Workbook

Sheet Hoja2 (hidden)
B1: $ CORRIENTES | D1: COP | E1: =+'Ficha Resumen'!S7 -> COP | F1: =+IF(E1=$D$1,1,IF(E1=$D$2,'Ficha Resumen'!S6,IF(Hoja2!E1=Hoja2!D3,'Ficha Resumen'!U6,1))) -> 1
B2: $ CONSTANTES | D2: USD
D3: EURO | F3: =+'Ficha Resumen'!H22 -> 2023 | M3: Aliados
C4: Inflación | D4: Inflación Acum | E4: Año | F4: Año | G4: Entidad | H4: Tipo de priyecto | J4: Tipo contratación | M4: 1
B5: Año 1 | C5: 0 | D5: =+C5 -> 0 | E5: 1 | F5: 2023 | G5: Pública | H5: Investigación | I5: Líder | J5: Planta | M5: =+M4+1 -> 2
B6: Año 2 | C6: 0.075 | D6: =+D5+C6 -> 0.075 | E6: =+E5+1 -> 2 | F6: 2024 | G6: Privada | H6: Consultoría | I6: Aliado | J6: Temporal | M6: =+M5+1 -> 3
B7: Año 3 | C7: 0.05 | D7: =+D6+C7 -> 0.125 | E7: =+E6+1 -> 3 | M7: 4
B8: Año 4 | C8: 0.043 | D8: 0.168 | E8: 4 | M8: 5
B9: Año 5 | C9: 0.037 | D9: 0.205 | E9: 5 | M9: 6
G10: Jurisprudencia | M10: 7
B11: Tipo de Contrato | G11: Estudios Internacionales, Políticos y Urbanos | M11: 8
B12: Laboral | G12: Administración
B13: Honorarios | G13: Economía
G14: EMCS
B15: Financiación | G15: Ciencias Naturales
B16: Financiado Caja | D16: Meses | E16: N° horas / Semana | G16: Ciencias Humanas
B17: Financiado No Caja | D17: 1 | E17: 1 | G17: Facultad de Creación
B18: Contrapartida Efectivo | D18: =+D17+1 -> 2 | E18: =+E17+1 -> 2 | G18: Ingenierías, Ciencia y Tecnología
B19: Contrapartida Especie | D19: =+D18+1 -> 3 | E19: =+E18+1 -> 3 | G19: Educación Continuada - Consultoría
D20: 4 | E20: 4 | G20: Cancillería
B21: Dedicación | D21: 5 | E21: 5 | G21: Regionalización
B22: Tiempo Completo | D22: 6 | E22: 6 | G22: Proyección Social
B23: Medio Tiempo | D23: 7 | E23: 7 | G23: DPEI
D24: 8 | E24: 8 | G24: Centro de Emprediento
B25: Tipo de salario | D25: 9 | E25: 9 | G25: Otra Unidad
B26: Honorarios | D26: 10 | E26: 10 | H26: 0.01
B27: Integral | D27: 11 | E27: 11 | H27: =+H26+0.01 -> 0.02
B28: No integral | D28: 12 | E28: 12 | H28: =+H27+0.01 -> 0.03
E29: 13 | H29: 0.04
B30: Financiación | E30: 14 | H30: 0.05
B31: Financiado Caja | E31: 15 | H31: 0.06
B32: Financiado No Caja | E32: 16 | H32: 0.07
B33: Contrapartida Efectivo | E33: 17 | H33: 0.08
B34: Contrapartida Especie | E34: 18 | H34: 0.09
E35: =+E34+1 -> 19 | H35: 0.1
B36: SI | E36: 20 | H36: 0.11
B37: NO | E37: 21 | H37: 0.12
E38: 22 | H38: 0.13
E39: 23 | H39: 0.14
B40: Equipos | E40: 24 | H40: 0.15
B41: Laboratorio | E41: 25 | H41: 0.16
B42: Computadores | E42: 26 | H42: 0.17
B43: Comunicaciones | E43: 27 | H43: 0.18
B44: Servidores | E44: 28 | H44: 0.19
B45: Audio y video | E45: 29 | H45: 0.2
B46: Equipo médico | E46: 30 | H46: 0.21
B47: Otros | E47: 31 | H47: 0.22
E48: 32 | H48: 0.23
E49: 33 | H49: 0.24
B50: Gastos propiedad | E50: 34 | H50: 0.25
B51: Artículos | E51: 35 | H51: 0.26
B52: Libros | E52: =+E51+1 -> 36 | H52: 0.27
B53: Manuales | E53: 37 | H53: 0.28
B54: Videos | E54: 38 | H54: 0.29
B55: Cartillas | E55: 39 | H55: 0.3
B56: Posters | E56: 40 | H56: 0.31
B57: Otros | E57: 41 | H57: 0.32
E58: 42 | H58: 0.33
E59: 43 | H59: 0.34
E60: 44 | H60: 0.35
B61: Material e Insumos | E61: =+E60+1 -> 45 | H61: 0.36
B62: Reactivos | E62: 46 | H62: 0.37
B63: Herramientas | E63: 47 | H63: 0.38
B64: Elementos de protección | E64: 48 | H64: 0.39
B65: Controles e instrumentación accesoria | H65: 0.4
B66: Material biológico | H66: 0.41
B67: Audiovisual | H67: 0.42
B68: Material de laboratorio | H68: 0.43
B69: Materiales agrícolas y consumible | H69: 0.44
B70: Otros | H70: 0.45
H71: 0.46
B72: Unidades de Medidas | H72: 0.47
B73: Kilogramos | H73: 0.48
B74: Libras | H74: 0.49
B75: Centímetros cúbicos | H75: 0.5
B76: Gramos | H76: 0.51
B77: Unidad | H77: 0.52
B78: Otro | H78: 0.53
H79: 0.54
B80: Personal | H80: 0.55
B81: Coinvestigador | H81: 0.56
B82: Coinvestigador entidad internacional | H82: 0.57
B83: Coinvestigador sector productivo | H83: 0.58
B84: Consultor | H84: 0.59
B85: Asesor | H85: 0.6
B86: Líder del Proyecto | H86: 0.61
B87: Coordinador administrativo del programa | H87: 0.62
B88: Director Científico del programa | H88: 0.63
B89: Investigador principal | H89: 0.64
B90: Joven investigador | H90: 0.65
B91: Personal de apoyo | H91: 0.66
B92: Personal de formación | H92: =+H91+0.01 -> 0.67
B93: Personal de formación - Maestría | H93: 0.68
B94: Personal de formación - PhD | H94: 0.69
B95: Estudiante de pregrado | H95: 0.7
B96: Profesional de contrataciones
B97: Profesional financiero
B98: Subdirector de fortalecimiento institucional
B99: Otro
B105: Certificaciones
B106: Certificaciones de calidad
B107: Certificaciones de calidad e inocuidad
B108: Certificaciones de buenas prácticas de producción agrícola
B109: Certificaciones de buenas prácticas de manufactura
B110: Bioseguridad y sostenibilidad ambiental de las tecnologías
B111: Registro de variedad vegetal
B112: Registro de nueva raza animal
B113: Otros
B115: Salida de Campo
B116: Alimentación
B117: Hospedaje
B118: Transporte
B119: Materiales
B121: Servicios técnicos
B122: Ensayos
B123: Pruebas
B124: Análisis
B125: Simulaciones
B126: Caracterizaciones
B127: Desarrollo de software
B128: Traducciones
B129: Diseño
B130: Desarrollo y mantenimiento de un portal web
B131: Prototipo
B132: Construcción de equipos
B133: Otros
B136: Destino
B137: Nacional: Ciudad principal
B138: Nacional: Otra Ciudades
B139: Norte América
B140: Suramerica
B141: Europa
B142: Asia
B144: Viajes
B145: Alojamiento
B146: Manutención
B147: Pasajes Aéreos
B148: Pasajes Terrestres
B151: Alquiler de Espacios
B152: Salones
B153: Oficinas
B154: Aulas
B155: Auditorio
B156: Carpas
B157: Otros
B159: Financiación Uso de espacios
B160: Financiado
B161: Contrapartida Especie
B163: Formación PHD
B164: Beca - Matrícula
B165: Pasajes Aéreos
B168: Otros
B169: Pólizas
B170: Otros

Sheet Hoja1
B4: INSTRUCTIVO PLANTILLA PRESUPUESTO - PROYECTOS DE INVESTIGACIÓN O CONSULTORÍA
C10: El siguiente documento contiene las instrucciones para el adecuado manejo de la plantilla, en el que se describe cada sección e indica como se debe diligenciar
C14: Variables generales: - Inflación anual del 3,2% - Si se requiere utilice una TRM del mercado en el momento de la evaluación - Factor prestacional del 21,02% para Salario Integral y de 56% para Salario no integral
C22: Generalidades: Es importante tener en cuenta las siguientes observaciones al diligenciar la información en cada uno de los rubros: - De click en cada rubro para su debido diligenciamiento - Solo se debe usar como moneda de referencia pesos colombianos - Los valores deben ser diligenciados en pesos - El valor de los rubros se debe digitar con signo positivo - Los valores a referenciar deben incluir el IVA - Por favor grabar el archivo con el nombre del proyecto
C38: A continuación se explicará cada uno de los rubros hojas y contenidos de la plantilla con las indicaciones de como diligenciarlos.
C42: * Ficha Resumen: En esta hoja se referencia información general del proyecto tales como: Entidades participantes, Nombre del Proyecto, Objetivo del proyecto, Duración en meses, Director y Nombre de la Institución que diligencia la presente plantilla. En esta hoja también se visualiza la consolidación y proyección anual de todos los rubros junto con el costo total del proyecto. De igual forma se identifica cuanto corresponde al valor financiado y cuanto es el valor total de contrapartida bien sea en efectivo o especie. Siguiendo al costado derecho de la ficha, se podrá observar el resumen por entidad participantes (Financiación y contrapartidas de cada uno) Financiación Caja: Corresponde al valor financiado que ingresa a la UR; que a su vez se convierte en la salida de efectivo para la UR. Financiación no caja: Corresponde al valor financiado que ingresa a la UR; que a su vez no será un la salida de efectivo para la UR. Contrapartida en especie: Corresponde al valor de contrapartida que no afecta la salida de efectivo o que incurra en marginalidad de caja o costos adicionales que se tengan que cubrir. Contrapartida en efectivo: Corresponde al valor de contrapartida de la UR que si afecta la salida de efectivo o que incurra en marginalidad de caja o costos adicionales que se tengan que cubrir. Gastos Administrativos: Se sugiere un porcentaje sobre la financiación de minímo el 10% Imprevistos: Se sugiere un porcentaje máximo del 5%
C52: * Material Bibliográfico: En esta hoja se debe referenciar la adquisición del material bibliográfico tales como libros, revistas, artículos entre otros, de carácter científico o tecnológico que sean estrictamente necesarios para la ejecución del proyecto. Es aquí donde también se deben incluir las suscripciones a revistas o bases de datos. En esta pestaña se deben diligenciar cantidades, valor individual, año de compra, si es financiado o contrapartida, una descripción breve del material y justificación y por último en caso de tener el nombre del proveedor incluirlo. | Q52: Ir a…..
C59: * Consultoría - Asesoría - Honorarios: En esta hoja se debe referenciar la contratación de personas naturales o jurídicas para realizar actividades científicas o tecnológicas nacionales o internacionales de corta duración que son relevantes para el proyecto. Se incluyen las asesorías técnicas, jurídicas relacionadas con aspectos de propiedad intelectual, negociación tecnológica, capacitaciones por expertos en temas científicos relacionadas con el proyecto. . Se solicita detallar la descripción y justificación breve del servicio a contratar, el costo del servicios en pesos colombianos, el o los años a ejecutarse y por último definir si es Financiado o contrapartida en especie o efectivo | Q59: Ir a…..
C70: * Equipos: Se debe referenciar el o los equipos necesarios para el desarrollo del proyecto, los cuales pueden ser adquiridos a cualquier título. La financiación para compra de equipos nuevos deberá estar sustentada en la estricta necesidad de los mismos para el desarrollo del proyecto. Aquí se requiere con obligatoriedad detallar la descripción y justificación breve de la compra del equipo, el costo incluyendo instalación en caso de ser requerida, los servicios conexos y puesta en funcionamiento cuando así lo requieran. también se debe referenciar el año de adquisición y por último definir si es Financiado o contrapartida en especie o efectivo. La entidad receptora del equipo debe garantizar el buen uso y el mantenimiento de los mismos. | Q70: Ir a…..
C77: * Eventos académicos y de Capacitación: En esta hoja se debe referenciar los gastos de logística, tales como alquiler de locaciones, audio, video, etc. ocasionados por la organización de eventos (paneles, cursos, simposios, talleres, seminarios, congresos, ferias de CTeI) que permitan presentar o divulgar los productos y resultados del programa. En este rubro también se contempla el pago de inscripción a eventos, congresos o cursos especializados a los que asistan los miembros del grupo de trabajo. Aquí se requiere detallar la descripción y justificación breve del evento, el proveedor (en caso de estar definido), el costo incluyendo instalación en caso de ser requerida, el año de adquisición y por último definir si es Financiado o contrapartida en especie o efectivo. | Q77: Ir a…..
C87: * Gastos de Personal: Gastos de personal contratado a término fijo o indefinido o de planta, que hace parte del grupo de trabajo y realiza actividades definidas en el marco del proyecto o propuesta de consultoría (Líder del proyecto, investigadores, coinvestigadores, estudiantes de pregrado, maestría, doctorado o especialidades médicas y jóvenes investigadores); así como personal de apoyo (personal formado en carreras técnicas y tecnológicas con capacidades para apoyar la ejecución de actividades del proyecto). Los recursos de financiación destinados para el sostenimiento de personal de formación de alto nivel en programas académicos nacionales (maestría, especialidades médicas o doctorado). En la plantilla se debe diligenciar los Nombres y Apellido, función en el proyecto (Investigador principal, joven investigador, profesionales, etc.), salario base mensual (sin prestaciones sociales), escoger el tipo de salario (integral o no integral), dedicación de tiempo en el proyecto (medio o completo), dedicación en meses por cada año y Horas de dedicación a la semana al proyecto por cada mes. Incentivos: Se aplica la política de incentivos para investigación 50% del valor financiado y para consultoría hasta el 70%; este último se debe selecciónar el % que se aplica para el proyecto en Incentivos. Para Investigación: http://servapps/normatividad/Lists/Decretos%20Rectorales/DispForm.aspx?ID=128&Source=http%3A%2F%2Fservapps%2Fnormatividad%2FLists%2FDecretos%2520Rectorales%2FAllItems%2Easpx%3FView%3D%7B88ED0896%2DD53F%2D4E15%2D8902%2D66D214CAD87D%7D%26FilterField1%3DCategor%255Fx00ed%255Fa%26FilterValue1%3DIncentivos Para Consultoría: http://servapps/normatividad/Lists/Decretos%20Rectorales/Attachments/439/DR_1392_18-11-2015.pdf | Q87: Ir a…..
C111: * Viajes: Se refiere a los gastos de transporte (pasajes nacionales e internacionales) y viáticos relacionados con las actividades propuestas en el componente científico-técnico del programa (capacitaciones, estancias en instituciones académicas nacionales o extranjeras, presentación de ponencias en eventos especializados, etc.) En el formato se debe diligenciar Número de días, número de personas, cual es el costo en pesos por persona, año de la ejecución del viaje, fuente de financiación o contrapartida, destino, obligatorio la descripción y justificación y en caso de conocer el proveedor incluirlo.
Q112: Ir a…..
C121: * Salidas de Campo: Costos asociados al levantamiento de información en campo, desde fuentes primarias o secundarias para la consecución de los objetivos del Programa/proyectos. Se incluyen gastos como: Alimentación, refrigerios, hospedaje, tiquetes de desplazamiento, alquiler de medios de transporte, gasolina, papelería y demás materiales necesarios para el trabajo en campo. Es importante referenciar la descripción y justificación, el proveedor en caso de estar definido. Salida de campo: Se entenderá por salida de campo toda actividad que se desarrolle fuera del campus multi-sede de la Universidad, realizada por profesores e investigadores, con la participación de los estudiantes, cuyos objetivos sean académicos, de investigación formativa o de representación de la Universidad en ámbitos académicos, deportivos y culturales. Se excluyen de esta definición las prácticas y pasantías previstas en los planes de estudios, las cuales tienen una normativa propia. Estos lineamientos aplican para las estaciones experimentales de campo de la Universidad. Curricular Extracurricular
Q122: Ir a…..
C128: * Servicios técnicos y tecnológicos: Contrataciones para la prestación de servicios altamente especializados y cuya necesidad esté suficientemente justificada para el desarrollo del proyecto. Por ejemplo: ensayos, pruebas, análisis, simulaciones, caracterizaciones, desarrollo de software, traducciones, diseño, desarrollo y mantenimiento de un portal web, prototipo, construcción de equipos o partes que la entidad no este en capacidad de realizar etc. No constituye gastos de personal.
Q129: Ir a…..
C136: * Materiales e insumos: Adquisición de insumos, bienes fungibles y demás elementos necesarios para el desarrollo de actividades previstas. Se contempla materiales e insumos para la construcción de equipos no existentes en el mercado, así como prototipos. Deben presentarse a manera de listado detallado agrupado por categorías sobre las cuales debe hacerse una Justificación de su necesidad y cantidad (Ej. reactivos, herramientas, elementos de protección, controles e instrumentación accesoria, material biológico, audiovisual, de laboratorio, agrícolas y consumible, etc.). En la plantilla se debe diligenciar la unidad de medida (litro, unidad, docenas, etc.), Cantidad, costo por unidad de medida, año, si es financiado o contrapartida en especie, se requiere la Justificación y descripción del material y en caso de conocer el proveedor, diligenciarlo. | Q136: Ir a…..
C150: * Software especializado: Adquisición de licencias de software especializado para las actividades propias del desarrollo del proyecto. Su necesidad y cantidad debe soportarse en justificaciones técnicas detalladas. No se considerará financiable dentro de este rubro software de uso cotidiano, como por ejemplo procesadores de texto, hojas de cálculo, software para presentaciones, sistemas operativos, etc. En el formato de debe referenciar obligatoriamente la Justificación y la descripción del Software a adquirir.
Q151: Ir a…..
C158: * Registros y certificaciones: Gastos por la obtención de certificaciones o evaluaciones de cumplimiento de normas de aseguramiento de la calidad o requisitos necesarios para el desarrollo del proyecto, incluyendo los gastos de implementación de dichas normas, (se reconocerá si son una actividad necesaria para la ejecución o como resultado del programa). Comprende, entre otros: certificaciones de calidad, certificaciones que garanticen calidad e inocuidad, certificaciones de buenas prácticas de producción agrícola, certificaciones de buenas prácticas de manufactura, bioseguridad y sostenibilidad ambiental de las tecnologías, registro de variedad vegetal, registro de nueva raza animal, entre otros. En la plantilla se debe referenciar la Justificación y descripción, en caso de conocer el proveedor diligenciarlo, Cantidad, Valor unitario, año y si es financiado o contrapartida.
Q159: Ir a…..
C172: * Publicaciones y difusión de resultados: Costos de diseño, elaboración y publicación de artículos científicos en revistas indexadas con un alto factor de impacto, libros, manuales, videos, cartillas, posters, etc., que presenten los resultados del programa y sirvan como estrategia de divulgación o apropiación social. | Q172: Ir a…..
C177: * Gastos de propiedad intelectual: Se entenderán todos aquellos que se relacionen directamente con la búsqueda en el estado del arte, búsqueda en el estado de la técnica, antecedentes marcarios y demás actuaciones tendientes a la protección de los de resultados en las diferentes modalidades de propiedad intelectual, así como los demás relacionados con la redacción, traducciones, pago de tasas y demás gastos inherentes a la protección. De igual forma se entenderán como gastos de propiedad intelectual todos aquellos que se relacionen directamente con las solicitudes a nivel nacional e internacional. En caso de optarse por la protección en el exterior, esta también deberá tramitarse en Colombia. En el formato de debe referenciar obligatoriamente la Justificación y la descripción | Q177: Ir a…..
C185: * Apoyo a formación doctoral: Formación doctoral en IES de la alianza, en programas de doctorado nacional incluidos en los bancos de elegibles de las convocatorias 727-2015 y 757-2016 de COLCIENCIAS. Los gastos de apoyo para la formación de un estudiante de doctorado comprenden hasta seis millones de pesos ($6.000.000) por semestre para matrícula, durante un máximo de ocho (8) semestres, y hasta seis millones de pesos ($6.000.000) para tiquete internacional para realización de pasantía. Este rubro no podrá exceder el 5% del total de recursos solicitados a COLCIENCIAS. Esto apoyo podrá ser otorgado a docentes de IES no acreditadas, a personal vinculado al sector productivo y a nuevos estudiantes que se pretenda vincular a las actividades de ejecución de los proyectos. Con excepción de docentes y personal del sector productivo, los gastos de sostenimiento durante la formación doctoral podrán ser cubiertos con recursos del rubro “Personal”. | Q185: Ir a…..
C193: * Alquiler de espacios y/o instalaciones: Se entenderán todos aquellos alquileres o arriendos de espacios o instalaciones siempre y cuando se relacione y enriquezca la temática del proyecto. | Q193: Ir a…..
C200: * Uso de espacios y/o instalaciones: Se entenderán todos espacios o instalaciones que sean propios de la entidad siempre y cuando se relacione y enriquezca la temática del proyecto. | Q200: Ir a…..

Sheet Ficha Resumen
D2: PLANTILLA PRESUPUESTO PARA PROYECTOS DE CONSULTORÍA O INVESTIGACIÓN
B5: Número de aliados | S5: INDICADORES
P6: Tipo de Entidad | Q6: Función | R6: Tasas de cambio | S6: 4800 | U6: 5000
B7: Nombre Entidad Financiadora | P7: Pública | Q7: Financiadora | R7: Seleccione Moneda | S7: COP | U7: $ CORRIENTES
B8: Unidad o Facultad UR Responsable | D8: EMCS | Q8: Líder | R8: Valor total proyecto | S8: =+N49 -> 35486797 | U8: =+S8/(1160000/Hoja2!F1) -> 30.59206638 | AA8: =IF(OR(U8=0,S7<>Hoja2!$D$1)," ",IF(AND(U10<>" ",U8<=500),"Pasa a aprobación de Dirección Financiera",IF(AND(U8>500,U8<=2000),"Atribución Vicerrector/Síndico",IF(AND(U8>2000,U8<=4000),"Atribución Rector",IF(U8>4000,"Atribución Conciliatura","Atribución decano"))))) -> Atribución decano
A9: 1 | B9: Entidad Externa 1 | R9: Valor financiado | S9: =+P49+Q49 -> 14996000 | U9: =+S9/(1160000/Hoja2!$F$1) -> 12.92758621 | AA9: =IF(OR(U9=0,S7<>Hoja2!D1)," ",IF(AND(U10<>" ",U9<=500),"Pasa a aprobación de Dirección Financiera",IF(AND(U9>500,U9<=2000),"Atribución Vicerrector/Síndico",IF(AND(U9>2000,U9<=4000),"Atribución Rector",IF(U9>4000,"Atribución Conciliatura","Atribución decano"))))) -> Atribución decano
A10: =A9+1 -> 2 | B10: Entidad Externa 2 | R10: Excedente | S10: =+Q49-S49+P31+P30 -> 0 | U10: =+IF(AND(Q18=Hoja2!H6,'Ficha Resumen'!S11<20%),"El margen no alcanza el mínimo exigible del 20%",IF(AND('Ficha Resumen'!Q18=Hoja2!H5,'Ficha Resumen'!S11<0%),"El margen no alcanza el mínimo exigible del 0%"," ")) -> 
A11: =A10+1 -> 3 | B11: Entidad Externa 3 | R11: Margen | S11: =IFERROR(S10/S9,0) -> 0
A12: 4 | B12: Entidad Externa 4 | R12: Excedente sin Capex | S12: =+S10-P31-Q31-P30-Q30 -> 0
A13: 5 | B13: Entidad Externa 5 | R13: Margen sin Capex | S13: =IFERROR(S12/S9,0) -> 0
A14: 6 | B14: Entidad Externa 6 | R14: % de gastos administrativos | S14: 0
A15: 7 | B15: Entidad Externa 7 | R15: % Imprevistos | S15: 0
A16: 8 | B16: Entidad Externa 8 | R16: % Seguimiento y evaluación e impuestos | S16: 0
Q17: Tipo de Proyecto | U17: =+IF(AND(Q18=Hoja2!H6,'Ficha Resumen'!S13<20%),"El margen no alcanza el mínimo exigible del 20%",IF(AND('Ficha Resumen'!Q18=Hoja2!H5,'Ficha Resumen'!S13<0%),"El margen no alcanza el mínimo exigible del 0%"," ")) -> 
B18: Nombre del proyecto | D18: Exploración de la validez de las formulas utilizadas para calcular porcentaje graso frente a la absorciometro de rayos X en deportistas paralimpicos con aputación de miembros inferiores | Q18: Investigación
B20: Objetivo | D20: Exploración de la validez de las formulas utilizadas para calcular porcentaje graso frente a la absorciometro de rayos X en deportistas paralimpicos con aputación de miembros inferiores
B22: Duración (Meses) | D22: 12 | F22: Año probable de inicio | H22: 2023 | J22: Director de Proyecto | L22: Laura Victoria Rivera Amezquita | AB22: UR | AF22: E1 | AK22: E2 | AP22: E3 | AU22: E4 | AZ22: E5 | BE22: E6 | BJ22: E7 | BO22: E8
B24: =+CONCATENATE("Cifras en"," ",S7) -> Cifras en COP | V24: =+$D$7 -> 0 | AA24: =+D8 -> EMCS | AF24: =+D9 -> 0 | AK24: =+D10 -> 0 | AP24: =+D11 -> 0 | AU24: =+D12 -> 0 | AZ24: =+D13 -> 0 | BE24: =+D14 -> 0 | BJ24: =+D15 -> 0 | BO24: =+D16 -> 0
B26: PRESUPUESTO GENERAL | D26: AÑO 1 | F26: AÑO 2 | H26: AÑO 3 | J26: AÑO 4 | L26: AÑO 5 | N26: TOTAL | P26: =+Hoja2!B16 -> Financiado Caja | Q26: =+Hoja2!$B$17 -> Financiado No Caja | R26: Contrapartida Especie | S26: Contrapartida Efectivo | U26: Si aparece un mensaje de Error, por favor revise | V26: =+$P$26 -> Financiado Caja | W26: =+$Q$26 -> Financiado No Caja | X26: =+$R$26 -> Contrapartida Especie | Y26: =+$S$26 -> Contrapartida Efectivo | AA26: =+$P$26 -> Financiado Caja | AB26: =+$Q$26 -> Financiado No Caja | AC26: =+$R$26 -> Contrapartida Especie | AD26: =+$S$26 -> Contrapartida Efectivo | AF26: =+P$26 -> Financiado Caja | AG26: =+Q$26 -> Financiado No Caja | AH26: =+$R$26 -> Contrapartida Especie | AI26: =+$S$26 -> Contrapartida Efectivo | AK26: =+P$26 -> Financiado Caja | AL26: =+Q$26 -> Financiado No Caja | AM26: =+$R$26 -> Contrapartida Especie | AN26: =+$S$26 -> Contrapartida Efectivo | AP26: =+P$26 -> Financiado Caja | AQ26: =+Q$26 -> Financiado No Caja | AR26: =+$R$26 -> Contrapartida Especie | AS26: =+$S$26 -> Contrapartida Efectivo | AU26: =+U$26 -> Si aparece un mensaje de Error, por favor revise | AV26: =+V$26 -> Financiado Caja | AW26: =+$R$26 -> Contrapartida Especie | AX26: =+$S$26 -> Contrapartida Efectivo | AZ26: =+Z$26 -> 0 | BA26: =+AA$26 -> Financiado Caja | BB26: =+$R$26 -> Contrapartida Especie | BC26: =+$S$26 -> Contrapartida Efectivo | BE26: =+AE$26 -> 0 | BF26: =+AF$26 -> Financiado Caja | BG26: =+$R$26 -> Contrapartida Especie | BH26: =+$S$26 -> Contrapartida Efectivo | BJ26: =+AJ$26 -> 0 | BK26: =+AK$26 -> Financiado Caja | BL26: =+$R$26 -> Contrapartida Especie | BM26: =+$S$26 -> Contrapartida Efectivo | BO26: =+AO$26 -> 0 | BP26: =+AP$26 -> Financiado Caja | BQ26: =+$R$26 -> Contrapartida Especie | BR26: =+$S$26 -> Contrapartida Efectivo
B28: Personal | D28: =+SUM(Personal!P9:P40,Personal!R9:R40)/Hoja2!$F$1 -> 20490797 | F28: =+SUM(Personal!X9:X40,Personal!Z9:Z40)/Hoja2!$F$1 -> 0 | H28: =+SUM(Personal!AF9:AF40,Personal!AH9:AH40)/Hoja2!$F$1 -> 0 | J28: =+SUM(Personal!AN9:AN40,Personal!AP9:AP40)/Hoja2!$F$1 -> 0 | L28: =+SUM(Personal!AV9:AV40,Personal!AX9:AX40)/Hoja2!$F$1 -> 0 | N28: =+SUM(D28:L28) -> 20490797 | P28: =+Personal!AY41/Hoja2!$F$1 -> 0 | Q28: =+Personal!AZ41/Hoja2!$F$1 -> 0 | R28: =+Personal!BA41/Hoja2!$F$1 -> 20490797 | S28: =+Personal!BB41/Hoja2!$F$1 -> 0 | T28: =+Personal!AY42 -> 0 | U28: =+IF(SUM(V28:BS28)=SUM(P28:S28)," ", "Error") ->  | V28: =+SUMIF(Personal!$B$9:$B$40,$V$24,Personal!AY$9:AY$40) -> 0 | W28: =+SUMIF(Personal!$B$9:$B$40,$V$24,Personal!AZ$9:AZ$40) -> 0 | X28: =+SUMIF(Personal!$B$9:$B$40,$V$24,Personal!$BA$9:$BA$40) -> 0 | Y28: =+SUMIF(Personal!$B$9:$B$40,$V$24,Personal!$BB$9:$BB$40) -> 0 | AA28: =+SUMIF(Personal!$B$9:$B$40,$AA$24,Personal!AY$9:AY$40)/Hoja2!$F$1 -> 0 | AB28: =+SUMIF(Personal!$B$9:$B$40,$AA$24,Personal!AZ$9:AZ$40)/Hoja2!$F$1 -> 0 | AC28: =+SUMIF(Personal!$B$9:$B$40,$AA$24,Personal!$BA$9:$BA$40)/Hoja2!$F$1 -> 20490797 | AD28: =+SUMIF(Personal!$B$9:$B$40,$AA$24,Personal!$BB$9:$BB$40)/Hoja2!$F$1 -> 0 | AF28: =+SUMIF(Personal!$B$9:$B$40,$AF$24,Personal!AY$9:AY$40)/Hoja2!$F$1 -> 0 | AG28: =+SUMIF(Personal!$B$9:$B$40,$AF$24,Personal!AZ$9:AZ$40)/Hoja2!$F$1 -> 0 | AH28: =+SUMIF(Personal!$B$9:$B$40,$AF$24,Personal!$BA$9:$BA$40)/Hoja2!$F$1 -> 0 | AI28: =+SUMIF(Personal!$B$9:$B$40,$AF$24,Personal!$BB$9:$BB$40)/Hoja2!$F$1 -> 0 | AK28: =+SUMIF(Personal!$B$9:$B$40,$AK$24,Personal!AY$9:AY$40)/Hoja2!$F$1 -> 0 | AL28: =+SUMIF(Personal!$B$9:$B$40,$AK$24,Personal!AZ$9:AZ$40)/Hoja2!$F$1 -> 0 | AM28: =+SUMIF(Personal!$B$9:$B$40,$AK$24,Personal!$BA$9:$BA$40)/Hoja2!$F$1 -> 0 | AN28: =+SUMIF(Personal!$B$9:$B$40,$AK$24,Personal!$BB$9:$BB$40)/Hoja2!$F$1 -> 0 | AP28: =+SUMIF(Personal!$B$9:$B$40,$AP$24,Personal!AY$9:AY$40)/Hoja2!$F$1 -> 0 | AQ28: =+SUMIF(Personal!$B$9:$B$40,$AP$24,Personal!AZ$9:AZ$40)/Hoja2!$F$1 -> 0 | AR28: =+SUMIF(Personal!$B$9:$B$40,$AP$24,Personal!$BA$9:$BA$40)/Hoja2!$F$1 -> 0 | AS28: =+SUMIF(Personal!$B$9:$B$40,$AP$24,Personal!$BB$9:$BB$40)/Hoja2!$F$1 -> 0 | AU28: =+SUMIF(Personal!$B$9:$B$40,$AU$24,Personal!BD$9:BD$40)/Hoja2!$F$1 -> 0 | AV28: =+SUMIF(Personal!$B$9:$B$40,$AU$24,Personal!BE$9:BE$40)/Hoja2!$F$1 -> 0 | AW28: =+SUMIF(Personal!$B$9:$B$40,$AU$24,Personal!$BA$9:$BA$40)/Hoja2!$F$1 -> 0 | AX28: =+SUMIF(Personal!$B$9:$B$40,$AU$24,Personal!$BB$9:$BB$40)/Hoja2!$F$1 -> 0 | AZ28: =+SUMIF(Personal!$B$9:$B$40,$AZ$24,Personal!BI$9:BI$40)/Hoja2!$F$1 -> 0 | BA28: =+SUMIF(Personal!$B$9:$B$40,$AZ$24,Personal!BJ$9:BJ$40)/Hoja2!$F$1 -> 0 | BB28: =+SUMIF(Personal!$B$9:$B$40,$AZ$24,Personal!$BA$9:$BA$40)/Hoja2!$F$1 -> 0 | BC28: =+SUMIF(Personal!$B$9:$B$40,$AZ$24,Personal!$BB$9:$BB$40)/Hoja2!$F$1 -> 0 | BE28: =+SUMIF(Personal!$B$9:$B$40,$BE$24,Personal!BN$9:BN$40)/Hoja2!$F$1 -> 0 | BF28: =+SUMIF(Personal!$B$9:$B$40,$BE$24,Personal!BO$9:BO$40)/Hoja2!$F$1 -> 0 | BG28: =+SUMIF(Personal!$B$9:$B$40,$BE$24,Personal!$BA$9:$BA$40)/Hoja2!$F$1 -> 0 | BH28: =+SUMIF(Personal!$B$9:$B$40,$BE$24,Personal!$BB$9:$BB$40)/Hoja2!$F$1 -> 0 | BJ28: =+SUMIF(Personal!$B$9:$B$40,$BJ$24,Personal!BS$9:BS$40)/Hoja2!$F$1 -> 0 | BK28: =+SUMIF(Personal!$B$9:$B$40,$BJ$24,Personal!BT$9:BT$40)/Hoja2!$F$1 -> 0 | BL28: =+SUMIF(Personal!$B$9:$B$40,$BJ$24,Personal!$BA$9:$BA$40)/Hoja2!$F$1 -> 0 | BM28: =+SUMIF(Personal!$B$9:$B$40,$BJ$24,Personal!$BB$9:$BB$40)/Hoja2!$F$1 -> 0 | BO28: =+SUMIF(Personal!$B$9:$B$40,$BO$24,Personal!BX$9:BX$40)/Hoja2!$F$1 -> 0 | BP28: =+SUMIF(Personal!$B$9:$B$40,$BO$24,Personal!BY$9:BY$40)/Hoja2!$F$1 -> 0 | BQ28: =+SUMIF(Personal!$B$9:$B$40,$BO$24,Personal!$BA$9:$BA$40)/Hoja2!$F$1 -> 0 | BR28: =+SUMIF(Personal!$B$9:$B$40,$BO$24,Personal!$BB$9:$BB$40)/Hoja2!$F$1 -> 0
B29: Consultoría - Asesoría - Honorarios | D29: =+SUMIF('Consultoría Especializada'!$G$9:$G$33,Hoja2!$B$5,'Consultoría Especializada'!$M$9:$M$33)/Hoja2!$F$1 -> 0 | F29: =+SUMIF('Consultoría Especializada'!$G$9:$G$33,Hoja2!$B$6,'Consultoría Especializada'!$M$9:$M$33)/Hoja2!$F$1 -> 0 | H29: =+SUMIF('Consultoría Especializada'!$G$9:$G$33,Hoja2!$B$7,'Consultoría Especializada'!$M$9:$M$33)/Hoja2!$F$1 -> 0 | J29: =+SUMIF('Consultoría Especializada'!$G$9:$G$33,Hoja2!$B$8,'Consultoría Especializada'!$M$9:$M$33)/Hoja2!$F$1 -> 0 | L29: =+SUMIF('Consultoría Especializada'!$G$9:$G$33,Hoja2!$B$9,'Consultoría Especializada'!$M$9:$M$33)/Hoja2!$F$1 -> 0 | N29: =+SUM(D29:L29) -> 0 | P29: =+'Consultoría Especializada'!I34/Hoja2!$F$1 -> 0 | Q29: =+'Consultoría Especializada'!J34/Hoja2!$F$1 -> 0 | R29: =+'Consultoría Especializada'!K34/Hoja2!$F$1 -> 0 | S29: =+'Consultoría Especializada'!L34/Hoja2!$F$1 -> 0 | V29: =+SUMIF('Consultoría Especializada'!$B$9:$B$33,$V$24,'Consultoría Especializada'!I$9:I$33) -> 0 | W29: =+SUMIF('Consultoría Especializada'!$B$9:$B$33,$V$24,'Consultoría Especializada'!J$9:J$33) -> 0 | X29: =+SUMIF('Consultoría Especializada'!$B$9:$B$33,$V$24,'Consultoría Especializada'!$K$9:$K$33) -> 0 | Y29: =+SUMIF('Consultoría Especializada'!$B$9:$B$33,$V$24,'Consultoría Especializada'!$L$9:$L$33) -> 0 | AA29: =+SUMIF('Consultoría Especializada'!$B$9:$B$33,$AA$24,'Consultoría Especializada'!I$9:I$33)/Hoja2!$F$1 -> 0 | AB29: =+SUMIF('Consultoría Especializada'!$B$9:$B$33,$AA$24,'Consultoría Especializada'!J$9:J$33)/Hoja2!$F$1 -> 0 | AC29: =+SUMIF('Consultoría Especializada'!$B$9:$B$33,$AA$24,'Consultoría Especializada'!$K$9:$K$33)/Hoja2!$F$1 -> 0 | AD29: =+SUMIF('Consultoría Especializada'!$B$9:$B$33,$AA$24,'Consultoría Especializada'!$L$9:$L$33)/Hoja2!$F$1 -> 0 | AF29: =+SUMIF('Consultoría Especializada'!$B$9:$B$33,$AF$24,'Consultoría Especializada'!I$9:I$33)/Hoja2!$F$1 -> 0 | AG29: =+SUMIF('Consultoría Especializada'!$B$9:$B$33,$AF$24,'Consultoría Especializada'!J$9:J$33)/Hoja2!$F$1 -> 0 | AH29: =+SUMIF('Consultoría Especializada'!$B$9:$B$33,$AF$24,'Consultoría Especializada'!$K$9:$K$33)/Hoja2!$F$1 -> 0 | AI29: =+SUMIF('Consultoría Especializada'!$B$9:$B$33,$AF$24,'Consultoría Especializada'!$L$9:$L$33)/Hoja2!$F$1 -> 0 | AK29: =+SUMIF('Consultoría Especializada'!$B$9:$B$33,$AK$24,'Consultoría Especializada'!I$9:I$33)/Hoja2!$F$1 -> 0 | AL29: =+SUMIF('Consultoría Especializada'!$B$9:$B$33,$AK$24,'Consultoría Especializada'!J$9:J$33)/Hoja2!$F$1 -> 0 | AM29: =+SUMIF('Consultoría Especializada'!$B$9:$B$33,$AK$24,'Consultoría Especializada'!$K$9:$K$33)/Hoja2!$F$1 -> 0 | AN29: =+SUMIF('Consultoría Especializada'!$B$9:$B$33,$AK$24,'Consultoría Especializada'!$L$9:$L$33)/Hoja2!$F$1 -> 0 | AP29: =+SUMIF('Consultoría Especializada'!$B$9:$B$33,$AP$24,'Consultoría Especializada'!I$9:I$33)/Hoja2!$F$1 -> 0 | AQ29: =+SUMIF('Consultoría Especializada'!$B$9:$B$33,$AP$24,'Consultoría Especializada'!J$9:J$33)/Hoja2!$F$1 -> 0 | AR29: =+SUMIF('Consultoría Especializada'!$B$9:$B$33,$AP$24,'Consultoría Especializada'!$K$9:$K$33)/Hoja2!$F$1 -> 0 | AS29: =+SUMIF('Consultoría Especializada'!$B$9:$B$33,$AP$24,'Consultoría Especializada'!$L$9:$L$33)/Hoja2!$F$1 -> 0 | AU29: =+SUMIF('Consultoría Especializada'!$B$9:$B$33,$AU$24,'Consultoría Especializada'!N$9:N$33)/Hoja2!$F$1 -> 0 | AV29: =+SUMIF('Consultoría Especializada'!$B$9:$B$33,$AU$24,'Consultoría Especializada'!O$9:O$33)/Hoja2!$F$1 -> 0 | AW29: =+SUMIF('Consultoría Especializada'!$B$9:$B$33,$AU$24,'Consultoría Especializada'!$K$9:$K$33)/Hoja2!$F$1 -> 0 | AX29: =+SUMIF('Consultoría Especializada'!$B$9:$B$33,$AU$24,'Consultoría Especializada'!$L$9:$L$33)/Hoja2!$F$1 -> 0 | AZ29: =+SUMIF('Consultoría Especializada'!$B$9:$B$33,$AZ$24,'Consultoría Especializada'!S$9:S$33)/Hoja2!$F$1 -> 0 | BA29: =+SUMIF('Consultoría Especializada'!$B$9:$B$33,$AZ$24,'Consultoría Especializada'!T$9:T$33)/Hoja2!$F$1 -> 0 | BB29: =+SUMIF('Consultoría Especializada'!$B$9:$B$33,$AZ$24,'Consultoría Especializada'!$K$9:$K$33)/Hoja2!$F$1 -> 0 | BC29: =+SUMIF('Consultoría Especializada'!$B$9:$B$33,$AZ$24,'Consultoría Especializada'!$L$9:$L$33)/Hoja2!$F$1 -> 0 | BE29: =+SUMIF('Consultoría Especializada'!$B$9:$B$33,$BE$24,'Consultoría Especializada'!X$9:X$33)/Hoja2!$F$1 -> 0 | BF29: =+SUMIF('Consultoría Especializada'!$B$9:$B$33,$BE$24,'Consultoría Especializada'!Y$9:Y$33)/Hoja2!$F$1 -> 0 | BG29: =+SUMIF('Consultoría Especializada'!$B$9:$B$33,$BE$24,'Consultoría Especializada'!$K$9:$K$33)/Hoja2!$F$1 -> 0 | BH29: =+SUMIF('Consultoría Especializada'!$B$9:$B$33,$BE$24,'Consultoría Especializada'!$L$9:$L$33)/Hoja2!$F$1 -> 0 | BJ29: =+SUMIF('Consultoría Especializada'!$B$9:$B$33,$BJ$24,'Consultoría Especializada'!AC$9:AC$33)/Hoja2!$F$1 -> 0 | BK29: =+SUMIF('Consultoría Especializada'!$B$9:$B$33,$BJ$24,'Consultoría Especializada'!AD$9:AD$33)/Hoja2!$F$1 -> 0 | BL29: =+SUMIF('Consultoría Especializada'!$B$9:$B$33,$BJ$24,'Consultoría Especializada'!$K$9:$K$33)/Hoja2!$F$1 -> 0 | BM29: =+SUMIF('Consultoría Especializada'!$B$9:$B$33,$BJ$24,'Consultoría Especializada'!$L$9:$L$33)/Hoja2!$F$1 -> 0 | BO29: =+SUMIF('Consultoría Especializada'!$B$9:$B$33,$BO$24,'Consultoría Especializada'!AH$9:AH$33)/Hoja2!$F$1 -> 0 | BP29: =+SUMIF('Consultoría Especializada'!$B$9:$B$33,$BO$24,'Consultoría Especializada'!AI$9:AI$33)/Hoja2!$F$1 -> 0 | BQ29: =+SUMIF('Consultoría Especializada'!$B$9:$B$33,$BO$24,'Consultoría Especializada'!$K$9:$K$33)/Hoja2!$F$1 -> 0 | BR29: =+SUMIF('Consultoría Especializada'!$B$9:$B$33,$BO$24,'Consultoría Especializada'!$L$9:$L$33)/Hoja2!$F$1 -> 0
B30: Material Bibliográfico | D30: =+SUMIF('Materiales Bibliográfico'!$F$9:$F$38,Hoja2!$B$5,'Materiales Bibliográfico'!$Q$9:$Q$38)/Hoja2!$F$1 -> 0 | F30: =+SUMIF('Materiales Bibliográfico'!$F$9:$F$38,Hoja2!$B$6,'Materiales Bibliográfico'!$Q$9:$Q$38)/Hoja2!$F$1 -> 0 | H30: =+SUMIF('Materiales Bibliográfico'!$F$9:$F$38,Hoja2!$B$7,'Materiales Bibliográfico'!$Q$9:$Q$38)/Hoja2!$F$1 -> 0 | J30: =+SUMIF('Materiales Bibliográfico'!$F$9:$F$38,Hoja2!$B$8,'Materiales Bibliográfico'!$Q$9:$Q$38)/Hoja2!$F$1 -> 0 | L30: =+SUMIF('Materiales Bibliográfico'!$F$9:$F$38,Hoja2!$B$9,'Materiales Bibliográfico'!$Q$9:$Q$38)/Hoja2!$F$1 -> 0 | N30: 0 | P30: =+'Materiales Bibliográfico'!M39/Hoja2!$F$1 -> 0 | Q30: =+'Materiales Bibliográfico'!N39/Hoja2!$F$1 -> 0 | R30: =+'Materiales Bibliográfico'!O39/Hoja2!$F$1 -> 0 | S30: =+'Materiales Bibliográfico'!P39/Hoja2!$F$1 -> 0 | V30: =+SUMIF('Materiales Bibliográfico'!$B$9:$B$38,$V$24,'Materiales Bibliográfico'!M$9:M$38) -> 0 | W30: =+SUMIF('Materiales Bibliográfico'!$B$9:$B$38,$V$24,'Materiales Bibliográfico'!N$9:N$38) -> 0 | X30: =+SUMIF('Materiales Bibliográfico'!$B$9:$B$38,$V$24,'Materiales Bibliográfico'!$O$9:$O$38) -> 0 | Y30: =+SUMIF('Materiales Bibliográfico'!$B$9:$B$38,$V$24,'Materiales Bibliográfico'!$P$9:$P$38) -> 0 | AA30: =+SUMIF('Materiales Bibliográfico'!$B$9:$B$38,$AA$24,'Materiales Bibliográfico'!M$9:M$38)/Hoja2!$F$1 -> 0 | AB30: =+SUMIF('Materiales Bibliográfico'!$B$9:$B$38,$AA$24,'Materiales Bibliográfico'!N$9:N$38)/Hoja2!$F$1 -> 0 | AC30: =+SUMIF('Materiales Bibliográfico'!$B$9:$B$38,$AA$24,'Materiales Bibliográfico'!$O$9:$O$38)/Hoja2!$F$1 -> 0 | AD30: =+SUMIF('Materiales Bibliográfico'!$B$9:$B$38,$AA$24,'Materiales Bibliográfico'!$P$9:$P$38)/Hoja2!$F$1 -> 0 | AF30: =+SUMIF('Materiales Bibliográfico'!$B$9:$B$38,$AF$24,'Materiales Bibliográfico'!M$9:M$38)/Hoja2!$F$1 -> 0 | AG30: =+SUMIF('Materiales Bibliográfico'!$B$9:$B$38,$AF$24,'Materiales Bibliográfico'!N$9:N$38)/Hoja2!$F$1 -> 0 | AH30: =+SUMIF('Materiales Bibliográfico'!$B$9:$B$38,$AF$24,'Materiales Bibliográfico'!$O$9:$O$38)/Hoja2!$F$1 -> 0 | AI30: =+SUMIF('Materiales Bibliográfico'!$B$9:$B$38,$AF$24,'Materiales Bibliográfico'!$P$9:$P$38)/Hoja2!$F$1 -> 0 | AK30: =+SUMIF('Materiales Bibliográfico'!$B$9:$B$38,$AK$24,'Materiales Bibliográfico'!M$9:M$38)/Hoja2!$F$1 -> 0 | AL30: =+SUMIF('Materiales Bibliográfico'!$B$9:$B$38,$AK$24,'Materiales Bibliográfico'!N$9:N$38)/Hoja2!$F$1 -> 0 | AM30: =+SUMIF('Materiales Bibliográfico'!$B$9:$B$38,$AK$24,'Materiales Bibliográfico'!$O$9:$O$38)/Hoja2!$F$1 -> 0 | AN30: =+SUMIF('Materiales Bibliográfico'!$B$9:$B$38,$AK$24,'Materiales Bibliográfico'!$P$9:$P$38)/Hoja2!$F$1 -> 0 | AP30: =+SUMIF('Materiales Bibliográfico'!$B$9:$B$38,$AP$24,'Materiales Bibliográfico'!M$9:M$38)/Hoja2!$F$1 -> 0 | AQ30: =+SUMIF('Materiales Bibliográfico'!$B$9:$B$38,$AP$24,'Materiales Bibliográfico'!N$9:N$38)/Hoja2!$F$1 -> 0 | AR30: =+SUMIF('Materiales Bibliográfico'!$B$9:$B$38,$AP$24,'Materiales Bibliográfico'!$O$9:$O$38)/Hoja2!$F$1 -> 0 | AS30: =+SUMIF('Materiales Bibliográfico'!$B$9:$B$38,$AP$24,'Materiales Bibliográfico'!$P$9:$P$38)/Hoja2!$F$1 -> 0 | AU30: =+SUMIF('Materiales Bibliográfico'!$B$9:$B$38,$AU$24,'Materiales Bibliográfico'!R$9:R$38)/Hoja2!$F$1 -> 0 | AV30: =+SUMIF('Materiales Bibliográfico'!$B$9:$B$38,$AU$24,'Materiales Bibliográfico'!S$9:S$38)/Hoja2!$F$1 -> 0 | AW30: =+SUMIF('Materiales Bibliográfico'!$B$9:$B$38,$AU$24,'Materiales Bibliográfico'!$O$9:$O$38)/Hoja2!$F$1 -> 0 | AX30: =+SUMIF('Materiales Bibliográfico'!$B$9:$B$38,$AU$24,'Materiales Bibliográfico'!$P$9:$P$38)/Hoja2!$F$1 -> 0 | AZ30: =+SUMIF('Materiales Bibliográfico'!$B$9:$B$38,$AZ$24,'Materiales Bibliográfico'!W$9:W$38)/Hoja2!$F$1 -> 0 | BA30: =+SUMIF('Materiales Bibliográfico'!$B$9:$B$38,$AZ$24,'Materiales Bibliográfico'!X$9:X$38)/Hoja2!$F$1 -> 0 | BB30: =+SUMIF('Materiales Bibliográfico'!$B$9:$B$38,$AZ$24,'Materiales Bibliográfico'!$O$9:$O$38)/Hoja2!$F$1 -> 0 | BC30: =+SUMIF('Materiales Bibliográfico'!$B$9:$B$38,$AZ$24,'Materiales Bibliográfico'!$P$9:$P$38)/Hoja2!$F$1 -> 0 | BE30: =+SUMIF('Materiales Bibliográfico'!$B$9:$B$38,$BE$24,'Materiales Bibliográfico'!AB$9:AB$38)/Hoja2!$F$1 -> 0 | BF30: =+SUMIF('Materiales Bibliográfico'!$B$9:$B$38,$BE$24,'Materiales Bibliográfico'!AC$9:AC$38)/Hoja2!$F$1 -> 0 | BG30: =+SUMIF('Materiales Bibliográfico'!$B$9:$B$38,$BE$24,'Materiales Bibliográfico'!$O$9:$O$38)/Hoja2!$F$1 -> 0 | BH30: =+SUMIF('Materiales Bibliográfico'!$B$9:$B$38,$BE$24,'Materiales Bibliográfico'!$P$9:$P$38)/Hoja2!$F$1 -> 0 | BJ30: =+SUMIF('Materiales Bibliográfico'!$B$9:$B$38,$BJ$24,'Materiales Bibliográfico'!AG$9:AG$38)/Hoja2!$F$1 -> 0 | BK30: =+SUMIF('Materiales Bibliográfico'!$B$9:$B$38,$BJ$24,'Materiales Bibliográfico'!AH$9:AH$38)/Hoja2!$F$1 -> 0 | BL30: =+SUMIF('Materiales Bibliográfico'!$B$9:$B$38,$BJ$24,'Materiales Bibliográfico'!$O$9:$O$38)/Hoja2!$F$1 -> 0 | BM30: =+SUMIF('Materiales Bibliográfico'!$B$9:$B$38,$BJ$24,'Materiales Bibliográfico'!$P$9:$P$38)/Hoja2!$F$1 -> 0 | BO30: =+SUMIF('Materiales Bibliográfico'!$B$9:$B$38,$BO$24,'Materiales Bibliográfico'!AL$9:AL$38)/Hoja2!$F$1 -> 0 | BP30: =+SUMIF('Materiales Bibliográfico'!$B$9:$B$38,$BO$24,'Materiales Bibliográfico'!AM$9:AM$38)/Hoja2!$F$1 -> 0 | BQ30: =+SUMIF('Materiales Bibliográfico'!$B$9:$B$38,$BO$24,'Materiales Bibliográfico'!$O$9:$O$38)/Hoja2!$F$1 -> 0 | BR30: =+SUMIF('Materiales Bibliográfico'!$B$9:$B$38,$BO$24,'Materiales Bibliográfico'!$P$9:$P$38)/Hoja2!$F$1 -> 0
B31: Equipos | D31: =+SUMIF(Equipos!$N$9:$N$56,Hoja2!$B$5,Equipos!$S$9:$S$56)/Hoja2!$F$1 -> 0 | F31: =+SUMIF(Equipos!$N$9:$N$56,Hoja2!$B$6,Equipos!$S$9:$S$56)/Hoja2!$F$1 -> 0 | H31: =+SUMIF(Equipos!$N$9:$N$56,Hoja2!$B$7,Equipos!$S$9:$S$56)/Hoja2!$F$1 -> 0 | J31: =+SUMIF(Equipos!$N$9:$N$56,Hoja2!$B$8,Equipos!$S$8:$S$56)/Hoja2!$F$1 -> 0 | L31: =+SUMIF(Equipos!$N$9:$N$56,Hoja2!$B$9,Equipos!$S$9:$S$56)/Hoja2!$F$1 -> 0 | N31: 0 | P31: =+Equipos!O57/Hoja2!$F$1 -> 0 | Q31: =+Equipos!P57/Hoja2!$F$1 -> 0 | R31: =+Equipos!Q57/Hoja2!$F$1 -> 0 | S31: =+Equipos!R57/Hoja2!$F$1 -> 0 | V31: =+SUMIF(Equipos!$B$9:$B$56,$V$24,Equipos!O$9:O$56) -> 0 | W31: =+SUMIF(Equipos!$B$9:$B$56,$V$24,Equipos!P$9:P$56) -> 0 | X31: =+SUMIF(Equipos!$B$9:$B$56,$V$24,Equipos!$Q$9:$Q$56) -> 0 | Y31: =+SUMIF(Equipos!$B$9:$B$56,$V$24,Equipos!$R$9:$R$56) -> 0 | AA31: =+SUMIF(Equipos!$B$9:$B$56,$AA$24,Equipos!O$9:O$56)/Hoja2!$F$1 -> 0 | AB31: =+SUMIF(Equipos!$B$9:$B$56,$AA$24,Equipos!P$9:P$56)/Hoja2!$F$1 -> 0 | AC31: =+SUMIF(Equipos!$B$9:$B$56,$AA$24,Equipos!$Q$9:$Q$56)/Hoja2!$F$1 -> 0 | AD31: =+SUMIF(Equipos!$B$9:$B$56,$AA$24,Equipos!$R$9:$R$56)/Hoja2!$F$1 -> 0 | AF31: =+SUMIF(Equipos!$B$9:$B$56,$AF$24,Equipos!O$9:O$56)/Hoja2!$F$1 -> 0 | AG31: =+SUMIF(Equipos!$B$9:$B$56,$AF$24,Equipos!P$9:P$56)/Hoja2!$F$1 -> 0 | AH31: =+SUMIF(Equipos!$B$9:$B$56,$AF$24,Equipos!$Q$9:$Q$56)/Hoja2!$F$1 -> 0 | AI31: =+SUMIF(Equipos!$B$9:$B$56,$AF$24,Equipos!$R$9:$R$56)/Hoja2!$F$1 -> 0 | AK31: =+SUMIF(Equipos!$B$9:$B$56,$AK$24,Equipos!O$9:O$56)/Hoja2!$F$1 -> 0 | AL31: =+SUMIF(Equipos!$B$9:$B$56,$AK$24,Equipos!P$9:P$56)/Hoja2!$F$1 -> 0 | AM31: =+SUMIF(Equipos!$B$9:$B$56,$AK$24,Equipos!$Q$9:$Q$56)/Hoja2!$F$1 -> 0 | AN31: =+SUMIF(Equipos!$B$9:$B$56,$AK$24,Equipos!$R$9:$R$56)/Hoja2!$F$1 -> 0 | AP31: =+SUMIF(Equipos!$B$9:$B$56,$AP$24,Equipos!O$9:O$56)/Hoja2!$F$1 -> 0 | AQ31: =+SUMIF(Equipos!$B$9:$B$56,$AP$24,Equipos!P$9:P$56)/Hoja2!$F$1 -> 0 | AR31: =+SUMIF(Equipos!$B$9:$B$56,$AP$24,Equipos!$Q$9:$Q$56)/Hoja2!$F$1 -> 0 | AS31: =+SUMIF(Equipos!$B$9:$B$56,$AP$24,Equipos!$R$9:$R$56)/Hoja2!$F$1 -> 0 | AU31: =+SUMIF(Equipos!$B$9:$B$56,$AU$24,Equipos!T$9:T$56)/Hoja2!$F$1 -> 0 | AV31: =+SUMIF(Equipos!$B$9:$B$56,$AU$24,Equipos!U$9:U$56)/Hoja2!$F$1 -> 0 | AW31: =+SUMIF(Equipos!$B$9:$B$56,$AU$24,Equipos!$Q$9:$Q$56)/Hoja2!$F$1 -> 0 | AX31: =+SUMIF(Equipos!$B$9:$B$56,$AU$24,Equipos!$R$9:$R$56)/Hoja2!$F$1 -> 0 | AZ31: =+SUMIF(Equipos!$B$9:$B$56,$AZ$24,Equipos!Y$9:Y$56)/Hoja2!$F$1 -> 0 | BA31: =+SUMIF(Equipos!$B$9:$B$56,$AZ$24,Equipos!Z$9:Z$56)/Hoja2!$F$1 -> 0 | BB31: =+SUMIF(Equipos!$B$9:$B$56,$AZ$24,Equipos!$Q$9:$Q$56)/Hoja2!$F$1 -> 0 | BC31: =+SUMIF(Equipos!$B$9:$B$56,$AZ$24,Equipos!$R$9:$R$56)/Hoja2!$F$1 -> 0 | BE31: =+SUMIF(Equipos!$B$9:$B$56,$BE$24,Equipos!AD$9:AD$56)/Hoja2!$F$1 -> 0 | BF31: =+SUMIF(Equipos!$B$9:$B$56,$BE$24,Equipos!AE$9:AE$56)/Hoja2!$F$1 -> 0 | BG31: =+SUMIF(Equipos!$B$9:$B$56,$BE$24,Equipos!$Q$9:$Q$56)/Hoja2!$F$1 -> 0 | BH31: =+SUMIF(Equipos!$B$9:$B$56,$BE$24,Equipos!$R$9:$R$56)/Hoja2!$F$1 -> 0 | BJ31: =+SUMIF(Equipos!$B$9:$B$56,$BJ$24,Equipos!AI$9:AI$56)/Hoja2!$F$1 -> 0 | BK31: =+SUMIF(Equipos!$B$9:$B$56,$BJ$24,Equipos!AJ$9:AJ$56)/Hoja2!$F$1 -> 0 | BL31: =+SUMIF(Equipos!$B$9:$B$56,$BJ$24,Equipos!$Q$9:$Q$56)/Hoja2!$F$1 -> 0 | BM31: =+SUMIF(Equipos!$B$9:$B$56,$BJ$24,Equipos!$R$9:$R$56)/Hoja2!$F$1 -> 0 | BO31: =+SUMIF(Equipos!$B$9:$B$56,$BO$24,Equipos!AN$9:AN$56)/Hoja2!$F$1 -> 0 | BP31: =+SUMIF(Equipos!$B$9:$B$56,$BO$24,Equipos!AO$9:AO$56)/Hoja2!$F$1 -> 0 | BQ31: =+SUMIF(Equipos!$B$9:$B$56,$BO$24,Equipos!$Q$9:$Q$56)/Hoja2!$F$1 -> 0 | BR31: =+SUMIF(Equipos!$B$9:$B$56,$BO$24,Equipos!$R$9:$R$56)/Hoja2!$F$1 -> 0
B32: Eventos académicos | D32: =+SUMIF('Eventos Académicos'!$K$9:$K$38,Hoja2!$B$5,'Eventos Académicos'!$Q$9:$Q$38)/Hoja2!$F$1 -> 285178 | F32: =+SUMIF('Eventos Académicos'!$K$9:$K$38,Hoja2!$B$6,'Eventos Académicos'!$Q$9:$Q$38)/Hoja2!$F$1 -> 0 | H32: =+SUMIF('Eventos Académicos'!$K$9:$K$38,Hoja2!$B$7,'Eventos Académicos'!$Q$9:$Q$38)/Hoja2!$F$1 -> 0 | J32: =+SUMIF('Eventos Académicos'!$K$9:$K$38,Hoja2!$B$8,'Eventos Académicos'!$Q$9:$Q$38)/Hoja2!$F$1 -> 0 | L32: =+SUMIF('Eventos Académicos'!$K$9:$K$38,Hoja2!$B$9,'Eventos Académicos'!$Q$9:$Q$38)/Hoja2!$F$1 -> 0 | N32: 285178 | P32: =+'Eventos Académicos'!M39/Hoja2!$F$1 -> 285178 | Q32: =+'Eventos Académicos'!N39/Hoja2!$F$1 -> 0 | R32: =+'Eventos Académicos'!O39/Hoja2!$F$1 -> 0 | S32: =+'Eventos Académicos'!P39/Hoja2!$F$1 -> 0 | V32: =+SUMIF('Eventos Académicos'!$B$9:$B$38,$V$24,'Eventos Académicos'!M$9:M$38) -> 0 | W32: =+SUMIF('Eventos Académicos'!$B$9:$B$38,$V$24,'Eventos Académicos'!N$9:N$38) -> 0 | X32: =+SUMIF('Eventos Académicos'!$B$9:$B$38,$V$24,'Eventos Académicos'!$O$9:$O$38) -> 0 | Y32: =+SUMIF('Eventos Académicos'!$B$9:$B$38,$V$24,'Eventos Académicos'!$P$9:$P$38) -> 0 | AA32: =+SUMIF('Eventos Académicos'!$B$9:$B$38,$AA$24,'Eventos Académicos'!M$9:M$38)/Hoja2!$F$1 -> 285178 | AB32: =+SUMIF('Eventos Académicos'!$B$9:$B$38,$AA$24,'Eventos Académicos'!N$9:N$38)/Hoja2!$F$1 -> 0 | AC32: =+SUMIF('Eventos Académicos'!$B$9:$B$38,$AA$24,'Eventos Académicos'!$O$9:$O$38)/Hoja2!$F$1 -> 0 | AD32: =+SUMIF('Eventos Académicos'!$B$9:$B$38,$AA$24,'Eventos Académicos'!$P$9:$P$38)/Hoja2!$F$1 -> 0 | AF32: =+SUMIF('Eventos Académicos'!$B$9:$B$38,$AF$24,'Eventos Académicos'!M$9:M$38)/Hoja2!$F$1 -> 0 | AG32: =+SUMIF('Eventos Académicos'!$B$9:$B$38,$AF$24,'Eventos Académicos'!N$9:N$38)/Hoja2!$F$1 -> 0 | AH32: =+SUMIF('Eventos Académicos'!$B$9:$B$38,$AF$24,'Eventos Académicos'!$O$9:$O$38)/Hoja2!$F$1 -> 0 | AI32: =+SUMIF('Eventos Académicos'!$B$9:$B$38,$AF$24,'Eventos Académicos'!$P$9:$P$38)/Hoja2!$F$1 -> 0 | AK32: =+SUMIF('Eventos Académicos'!$B$9:$B$38,$AK$24,'Eventos Académicos'!M$9:M$38)/Hoja2!$F$1 -> 0 | AL32: =+SUMIF('Eventos Académicos'!$B$9:$B$38,$AK$24,'Eventos Académicos'!N$9:N$38)/Hoja2!$F$1 -> 0 | AM32: =+SUMIF('Eventos Académicos'!$B$9:$B$38,$AK$24,'Eventos Académicos'!$O$9:$O$38)/Hoja2!$F$1 -> 0 | AN32: =+SUMIF('Eventos Académicos'!$B$9:$B$38,$AK$24,'Eventos Académicos'!$P$9:$P$38)/Hoja2!$F$1 -> 0 | AP32: =+SUMIF('Eventos Académicos'!$B$9:$B$38,$AP$24,'Eventos Académicos'!M$9:M$38)/Hoja2!$F$1 -> 0 | AQ32: =+SUMIF('Eventos Académicos'!$B$9:$B$38,$AP$24,'Eventos Académicos'!N$9:N$38)/Hoja2!$F$1 -> 0 | AR32: =+SUMIF('Eventos Académicos'!$B$9:$B$38,$AP$24,'Eventos Académicos'!$O$9:$O$38)/Hoja2!$F$1 -> 0 | AS32: =+SUMIF('Eventos Académicos'!$B$9:$B$38,$AP$24,'Eventos Académicos'!$P$9:$P$38)/Hoja2!$F$1 -> 0 | AU32: =+SUMIF('Eventos Académicos'!$B$9:$B$38,$AU$24,'Eventos Académicos'!R$9:R$38)/Hoja2!$F$1 -> 0 | AV32: =+SUMIF('Eventos Académicos'!$B$9:$B$38,$AU$24,'Eventos Académicos'!S$9:S$38)/Hoja2!$F$1 -> 0 | AW32: =+SUMIF('Eventos Académicos'!$B$9:$B$38,$AU$24,'Eventos Académicos'!$O$9:$O$38)/Hoja2!$F$1 -> 0 | AX32: =+SUMIF('Eventos Académicos'!$B$9:$B$38,$AU$24,'Eventos Académicos'!$P$9:$P$38)/Hoja2!$F$1 -> 0 | AZ32: =+SUMIF('Eventos Académicos'!$B$9:$B$38,$AZ$24,'Eventos Académicos'!W$9:W$38)/Hoja2!$F$1 -> 0 | BA32: =+SUMIF('Eventos Académicos'!$B$9:$B$38,$AZ$24,'Eventos Académicos'!X$9:X$38)/Hoja2!$F$1 -> 0 | BB32: =+SUMIF('Eventos Académicos'!$B$9:$B$38,$AZ$24,'Eventos Académicos'!$O$9:$O$38)/Hoja2!$F$1 -> 0 | BC32: =+SUMIF('Eventos Académicos'!$B$9:$B$38,$AZ$24,'Eventos Académicos'!$P$9:$P$38)/Hoja2!$F$1 -> 0 | BE32: =+SUMIF('Eventos Académicos'!$B$9:$B$38,$BE$24,'Eventos Académicos'!AB$9:AB$38)/Hoja2!$F$1 -> 0 | BF32: =+SUMIF('Eventos Académicos'!$B$9:$B$38,$BE$24,'Eventos Académicos'!AC$9:AC$38)/Hoja2!$F$1 -> 0 | BG32: =+SUMIF('Eventos Académicos'!$B$9:$B$38,$BE$24,'Eventos Académicos'!$O$9:$O$38)/Hoja2!$F$1 -> 0 | BH32: =+SUMIF('Eventos Académicos'!$B$9:$B$38,$BE$24,'Eventos Académicos'!$P$9:$P$38)/Hoja2!$F$1 -> 0 | BJ32: =+SUMIF('Eventos Académicos'!$B$9:$B$38,$BJ$24,'Eventos Académicos'!AG$9:AG$38)/Hoja2!$F$1 -> 0 | BK32: =+SUMIF('Eventos Académicos'!$B$9:$B$38,$BJ$24,'Eventos Académicos'!AH$9:AH$38)/Hoja2!$F$1 -> 0 | BL32: =+SUMIF('Eventos Académicos'!$B$9:$B$38,$BJ$24,'Eventos Académicos'!$O$9:$O$38)/Hoja2!$F$1 -> 0 | BM32: =+SUMIF('Eventos Académicos'!$B$9:$B$38,$BJ$24,'Eventos Académicos'!$P$9:$P$38)/Hoja2!$F$1 -> 0 | BO32: =+SUMIF('Eventos Académicos'!$B$9:$B$38,$BO$24,'Eventos Académicos'!AL$9:AL$38)/Hoja2!$F$1 -> 0 | BP32: =+SUMIF('Eventos Académicos'!$B$9:$B$38,$BO$24,'Eventos Académicos'!AM$9:AM$38)/Hoja2!$F$1 -> 0 | BQ32: =+SUMIF('Eventos Académicos'!$B$9:$B$38,$BO$24,'Eventos Académicos'!$O$9:$O$38)/Hoja2!$F$1 -> 0 | BR32: =+SUMIF('Eventos Académicos'!$B$9:$B$38,$BO$24,'Eventos Académicos'!$P$9:$P$38)/Hoja2!$F$1 -> 0
B33: Gastos de propiedad intelectual | D33: =+SUMIF('Propiedad Intelectual'!$I$9:$I$33,Hoja2!$B$5,'Propiedad Intelectual'!$O$9:$O$33)/Hoja2!$F$1 -> 0 | F33: =+SUMIF('Propiedad Intelectual'!$I$9:$I$33,Hoja2!$B$6,'Propiedad Intelectual'!$O$9:$O$33)/Hoja2!$F$1 -> 0 | H33: =+SUMIF('Propiedad Intelectual'!$I$9:$I$33,Hoja2!$B$7,'Propiedad Intelectual'!$O$9:$O$33)/Hoja2!$F$1 -> 0 | J33: =+SUMIF('Propiedad Intelectual'!$I$9:$I$33,Hoja2!$B$8,'Propiedad Intelectual'!$O$9:$O$33)/Hoja2!$F$1 -> 0 | L33: =+SUMIF('Propiedad Intelectual'!$I$9:$I$33,Hoja2!$B$9,'Propiedad Intelectual'!$O$9:$O$33)/Hoja2!$F$1 -> 0 | N33: 0 | P33: =+'Propiedad Intelectual'!K34/Hoja2!$F$1 -> 0 | Q33: =+'Propiedad Intelectual'!L34/Hoja2!$F$1 -> 0 | R33: =+'Propiedad Intelectual'!M34/Hoja2!$F$1 -> 0 | S33: =+'Propiedad Intelectual'!N34/Hoja2!$F$1 -> 0 | V33: =+SUMIF('Propiedad Intelectual'!$B$9:$B$33,$V$24,'Propiedad Intelectual'!K$9:K$33) -> 0 | W33: =+SUMIF('Propiedad Intelectual'!$B$9:$B$33,$V$24,'Propiedad Intelectual'!L$9:L$33) -> 0 | X33: =+SUMIF('Propiedad Intelectual'!$B$9:$B$33,$V$24,'Propiedad Intelectual'!$M$9:$M$33) -> 0 | Y33: =+SUMIF('Propiedad Intelectual'!$B$9:$B$33,$V$24,'Propiedad Intelectual'!$N$9:$N$33) -> 0 | AA33: =+SUMIF('Propiedad Intelectual'!$B$9:$B$33,$AA$24,'Propiedad Intelectual'!K$9:K$33)/Hoja2!$F$1 -> 0 | AB33: =+SUMIF('Propiedad Intelectual'!$B$9:$B$33,$AA$24,'Propiedad Intelectual'!L$9:L$33)/Hoja2!$F$1 -> 0 | AC33: =+SUMIF('Propiedad Intelectual'!$B$9:$B$33,$AA$24,'Propiedad Intelectual'!$M$9:$M$33)/Hoja2!$F$1 -> 0 | AD33: =+SUMIF('Propiedad Intelectual'!$B$9:$B$33,$AA$24,'Propiedad Intelectual'!$N$9:$N$33)/Hoja2!$F$1 -> 0 | AF33: =+SUMIF('Propiedad Intelectual'!$B$9:$B$33,$AF$24,'Propiedad Intelectual'!K$9:K$33)/Hoja2!$F$1 -> 0 | AG33: =+SUMIF('Propiedad Intelectual'!$B$9:$B$33,$AF$24,'Propiedad Intelectual'!L$9:L$33)/Hoja2!$F$1 -> 0 | AH33: =+SUMIF('Propiedad Intelectual'!$B$9:$B$33,$AF$24,'Propiedad Intelectual'!$M$9:$M$33)/Hoja2!$F$1 -> 0 | AI33: =+SUMIF('Propiedad Intelectual'!$B$9:$B$33,$AF$24,'Propiedad Intelectual'!$N$9:$N$33)/Hoja2!$F$1 -> 0 | AK33: =+SUMIF('Propiedad Intelectual'!$B$9:$B$33,$AK$24,'Propiedad Intelectual'!K$9:K$33)/Hoja2!$F$1 -> 0 | AL33: =+SUMIF('Propiedad Intelectual'!$B$9:$B$33,$AK$24,'Propiedad Intelectual'!L$9:L$33)/Hoja2!$F$1 -> 0 | AM33: =+SUMIF('Propiedad Intelectual'!$B$9:$B$33,$AK$24,'Propiedad Intelectual'!$M$9:$M$33)/Hoja2!$F$1 -> 0 | AN33: =+SUMIF('Propiedad Intelectual'!$B$9:$B$33,$AK$24,'Propiedad Intelectual'!$N$9:$N$33)/Hoja2!$F$1 -> 0 | AP33: =+SUMIF('Propiedad Intelectual'!$B$9:$B$33,$AP$24,'Propiedad Intelectual'!K$9:K$33)/Hoja2!$F$1 -> 0 | AQ33: =+SUMIF('Propiedad Intelectual'!$B$9:$B$33,$AP$24,'Propiedad Intelectual'!L$9:L$33)/Hoja2!$F$1 -> 0 | AR33: =+SUMIF('Propiedad Intelectual'!$B$9:$B$33,$AP$24,'Propiedad Intelectual'!$M$9:$M$33)/Hoja2!$F$1 -> 0 | AS33: =+SUMIF('Propiedad Intelectual'!$B$9:$B$33,$AP$24,'Propiedad Intelectual'!$N$9:$N$33)/Hoja2!$F$1 -> 0 | AU33: =+SUMIF('Propiedad Intelectual'!$B$9:$B$33,$AU$24,'Propiedad Intelectual'!P$9:P$33)/Hoja2!$F$1 -> 0 | AV33: =+SUMIF('Propiedad Intelectual'!$B$9:$B$33,$AU$24,'Propiedad Intelectual'!Q$9:Q$33)/Hoja2!$F$1 -> 0 | AW33: =+SUMIF('Propiedad Intelectual'!$B$9:$B$33,$AU$24,'Propiedad Intelectual'!$M$9:$M$33)/Hoja2!$F$1 -> 0 | AX33: =+SUMIF('Propiedad Intelectual'!$B$9:$B$33,$AU$24,'Propiedad Intelectual'!$N$9:$N$33)/Hoja2!$F$1 -> 0 | AZ33: =+SUMIF('Propiedad Intelectual'!$B$9:$B$33,$AZ$24,'Propiedad Intelectual'!U$9:U$33)/Hoja2!$F$1 -> 0 | BA33: =+SUMIF('Propiedad Intelectual'!$B$9:$B$33,$AZ$24,'Propiedad Intelectual'!V$9:V$33)/Hoja2!$F$1 -> 0 | BB33: =+SUMIF('Propiedad Intelectual'!$B$9:$B$33,$AZ$24,'Propiedad Intelectual'!$M$9:$M$33)/Hoja2!$F$1 -> 0 | BC33: =+SUMIF('Propiedad Intelectual'!$B$9:$B$33,$AZ$24,'Propiedad Intelectual'!$N$9:$N$33)/Hoja2!$F$1 -> 0 | BE33: =+SUMIF('Propiedad Intelectual'!$B$9:$B$33,$BE$24,'Propiedad Intelectual'!Z$9:Z$33)/Hoja2!$F$1 -> 0 | BF33: =+SUMIF('Propiedad Intelectual'!$B$9:$B$33,$BE$24,'Propiedad Intelectual'!AA$9:AA$33)/Hoja2!$F$1 -> 0 | BG33: =+SUMIF('Propiedad Intelectual'!$B$9:$B$33,$BE$24,'Propiedad Intelectual'!$M$9:$M$33)/Hoja2!$F$1 -> 0 | BH33: =+SUMIF('Propiedad Intelectual'!$B$9:$B$33,$BE$24,'Propiedad Intelectual'!$N$9:$N$33)/Hoja2!$F$1 -> 0 | BJ33: =+SUMIF('Propiedad Intelectual'!$B$9:$B$33,$BJ$24,'Propiedad Intelectual'!AE$9:AE$33)/Hoja2!$F$1 -> 0 | BK33: =+SUMIF('Propiedad Intelectual'!$B$9:$B$33,$BJ$24,'Propiedad Intelectual'!AF$9:AF$33)/Hoja2!$F$1 -> 0 | BL33: =+SUMIF('Propiedad Intelectual'!$B$9:$B$33,$BJ$24,'Propiedad Intelectual'!$M$9:$M$33)/Hoja2!$F$1 -> 0 | BM33: =+SUMIF('Propiedad Intelectual'!$B$9:$B$33,$BJ$24,'Propiedad Intelectual'!$N$9:$N$33)/Hoja2!$F$1 -> 0 | BO33: =+SUMIF('Propiedad Intelectual'!$B$9:$B$33,$BO$24,'Propiedad Intelectual'!AJ$9:AJ$33)/Hoja2!$F$1 -> 0 | BP33: =+SUMIF('Propiedad Intelectual'!$B$9:$B$33,$BO$24,'Propiedad Intelectual'!AK$9:AK$33)/Hoja2!$F$1 -> 0 | BQ33: =+SUMIF('Propiedad Intelectual'!$B$9:$B$33,$BO$24,'Propiedad Intelectual'!$M$9:$M$33)/Hoja2!$F$1 -> 0 | BR33: =+SUMIF('Propiedad Intelectual'!$B$9:$B$33,$BO$24,'Propiedad Intelectual'!$N$9:$N$33)/Hoja2!$F$1 -> 0
B34: Materiales e insumos | D34: =+SUMIF('Materiales e Insumos'!$K$9:$K$108,Hoja2!$B$5,'Materiales e Insumos'!$R$9:$R$108)/Hoja2!$F$1 -> 0 | F34: =+SUMIF('Materiales e Insumos'!$K$9:$K$108,Hoja2!$B$6,'Materiales e Insumos'!$R$9:$R$108)/Hoja2!$F$1 -> 0 | H34: =+SUMIF('Materiales e Insumos'!$K$9:$K$108,Hoja2!$B$7,'Materiales e Insumos'!$R$9:$R$108)/Hoja2!$F$1 -> 0 | J34: =+SUMIF('Materiales e Insumos'!$K$9:$K$108,Hoja2!$B$8,'Materiales e Insumos'!$R$9:$R$108)/Hoja2!$F$1 -> 0 | L34: =+SUMIF('Materiales e Insumos'!$K$9:$K$108,Hoja2!$B$9,'Materiales e Insumos'!$R$9:$R$108)/Hoja2!$F$1 -> 0 | N34: 0 | P34: =+'Materiales e Insumos'!N109/Hoja2!$F$1 -> 0 | Q34: =+'Materiales e Insumos'!O109/Hoja2!$F$1 -> 0 | R34: =+'Materiales e Insumos'!P109/Hoja2!$F$1 -> 0 | S34: =+'Materiales e Insumos'!Q109/Hoja2!$F$1 -> 0 | V34: =+SUMIF('Materiales e Insumos'!$B$9:$B$108,$V$24,'Materiales e Insumos'!N$9:N$108) -> 0 | W34: =+SUMIF('Materiales e Insumos'!$B$9:$B$108,$V$24,'Materiales e Insumos'!O$9:O$108) -> 0 | X34: =+SUMIF('Materiales e Insumos'!$B$9:$B$108,$V$24,'Materiales e Insumos'!$P$9:$P$108) -> 0 | Y34: =+SUMIF('Materiales e Insumos'!$B$9:$B$108,$V$24,'Materiales e Insumos'!$Q$9:$Q$108) -> 0 | AA34: =+SUMIF('Materiales e Insumos'!$B$9:$B$108,$AA$24,'Materiales e Insumos'!N$9:N$108)/Hoja2!$F$1 -> 0 | AB34: =+SUMIF('Materiales e Insumos'!$B$9:$B$108,$AA$24,'Materiales e Insumos'!O$9:O$108)/Hoja2!$F$1 -> 0 | AC34: =+SUMIF('Materiales e Insumos'!$B$9:$B$108,$AA$24,'Materiales e Insumos'!$P$9:$P$108)/Hoja2!$F$1 -> 0 | AD34: =+SUMIF('Materiales e Insumos'!$B$9:$B$108,$AA$24,'Materiales e Insumos'!$Q$9:$Q$108)/Hoja2!$F$1 -> 0 | AF34: =+SUMIF('Materiales e Insumos'!$B$9:$B$108,$AF$24,'Materiales e Insumos'!N$9:N$108)/Hoja2!$F$1 -> 0 | AG34: =+SUMIF('Materiales e Insumos'!$B$9:$B$108,$AF$24,'Materiales e Insumos'!O$9:O$108)/Hoja2!$F$1 -> 0 | AH34: =+SUMIF('Materiales e Insumos'!$B$9:$B$108,$AF$24,'Materiales e Insumos'!$P$9:$P$108)/Hoja2!$F$1 -> 0 | AI34: =+SUMIF('Materiales e Insumos'!$B$9:$B$108,$AF$24,'Materiales e Insumos'!$Q$9:$Q$108)/Hoja2!$F$1 -> 0 | AK34: =+SUMIF('Materiales e Insumos'!$B$9:$B$108,$AK$24,'Materiales e Insumos'!N$9:N$108)/Hoja2!$F$1 -> 0 | AL34: =+SUMIF('Materiales e Insumos'!$B$9:$B$108,$AK$24,'Materiales e Insumos'!O$9:O$108)/Hoja2!$F$1 -> 0 | AM34: =+SUMIF('Materiales e Insumos'!$B$9:$B$108,$AK$24,'Materiales e Insumos'!$P$9:$P$108)/Hoja2!$F$1 -> 0 | AN34: =+SUMIF('Materiales e Insumos'!$B$9:$B$108,$AK$24,'Materiales e Insumos'!$Q$9:$Q$108)/Hoja2!$F$1 -> 0 | AP34: =+SUMIF('Materiales e Insumos'!$B$9:$B$108,$AP$24,'Materiales e Insumos'!N$9:N$108)/Hoja2!$F$1 -> 0 | AQ34: =+SUMIF('Materiales e Insumos'!$B$9:$B$108,$AP$24,'Materiales e Insumos'!O$9:O$108)/Hoja2!$F$1 -> 0 | AR34: =+SUMIF('Materiales e Insumos'!$B$9:$B$108,$AP$24,'Materiales e Insumos'!$P$9:$P$108)/Hoja2!$F$1 -> 0 | AS34: =+SUMIF('Materiales e Insumos'!$B$9:$B$108,$AP$24,'Materiales e Insumos'!$Q$9:$Q$108)/Hoja2!$F$1 -> 0 | AU34: =+SUMIF('Materiales e Insumos'!$B$9:$B$108,$AU$24,'Materiales e Insumos'!S$9:S$108)/Hoja2!$F$1 -> 0 | AV34: =+SUMIF('Materiales e Insumos'!$B$9:$B$108,$AU$24,'Materiales e Insumos'!T$9:T$108)/Hoja2!$F$1 -> 0 | AW34: =+SUMIF('Materiales e Insumos'!$B$9:$B$108,$AU$24,'Materiales e Insumos'!$P$9:$P$108)/Hoja2!$F$1 -> 0 | AX34: =+SUMIF('Materiales e Insumos'!$B$9:$B$108,$AU$24,'Materiales e Insumos'!$Q$9:$Q$108)/Hoja2!$F$1 -> 0 | AZ34: =+SUMIF('Materiales e Insumos'!$B$9:$B$108,$AZ$24,'Materiales e Insumos'!X$9:X$108)/Hoja2!$F$1 -> 0 | BA34: =+SUMIF('Materiales e Insumos'!$B$9:$B$108,$AZ$24,'Materiales e Insumos'!Y$9:Y$108)/Hoja2!$F$1 -> 0 | BB34: =+SUMIF('Materiales e Insumos'!$B$9:$B$108,$AZ$24,'Materiales e Insumos'!$P$9:$P$108)/Hoja2!$F$1 -> 0 | BC34: =+SUMIF('Materiales e Insumos'!$B$9:$B$108,$AZ$24,'Materiales e Insumos'!$Q$9:$Q$108)/Hoja2!$F$1 -> 0 | BE34: =+SUMIF('Materiales e Insumos'!$B$9:$B$108,$BE$24,'Materiales e Insumos'!AC$9:AC$108)/Hoja2!$F$1 -> 0 | BF34: =+SUMIF('Materiales e Insumos'!$B$9:$B$108,$BE$24,'Materiales e Insumos'!AD$9:AD$108)/Hoja2!$F$1 -> 0 | BG34: =+SUMIF('Materiales e Insumos'!$B$9:$B$108,$BE$24,'Materiales e Insumos'!$P$9:$P$108)/Hoja2!$F$1 -> 0 | BH34: =+SUMIF('Materiales e Insumos'!$B$9:$B$108,$BE$24,'Materiales e Insumos'!$Q$9:$Q$108)/Hoja2!$F$1 -> 0 | BJ34: =+SUMIF('Materiales e Insumos'!$B$9:$B$108,$BJ$24,'Materiales e Insumos'!AH$9:AH$108)/Hoja2!$F$1 -> 0 | BK34: =+SUMIF('Materiales e Insumos'!$B$9:$B$108,$BJ$24,'Materiales e Insumos'!AI$9:AI$108)/Hoja2!$F$1 -> 0 | BL34: =+SUMIF('Materiales e Insumos'!$B$9:$B$108,$BJ$24,'Materiales e Insumos'!$P$9:$P$108)/Hoja2!$F$1 -> 0 | BM34: =+SUMIF('Materiales e Insumos'!$B$9:$B$108,$BJ$24,'Materiales e Insumos'!$Q$9:$Q$108)/Hoja2!$F$1 -> 0 | BO34: =+SUMIF('Materiales e Insumos'!$B$9:$B$108,$BO$24,'Materiales e Insumos'!AM$9:AM$108)/Hoja2!$F$1 -> 0 | BP34: =+SUMIF('Materiales e Insumos'!$B$9:$B$108,$BO$24,'Materiales e Insumos'!AN$9:AN$108)/Hoja2!$F$1 -> 0 | BQ34: =+SUMIF('Materiales e Insumos'!$B$9:$B$108,$BO$24,'Materiales e Insumos'!$P$9:$P$108)/Hoja2!$F$1 -> 0 | BR34: =+SUMIF('Materiales e Insumos'!$B$9:$B$108,$BO$24,'Materiales e Insumos'!$Q$9:$Q$108)/Hoja2!$F$1 -> 0
B35: Publicaciones y difusión de resultados | D35: =+SUMIF(Publicaciones!$L$9:$L$38,Hoja2!$B$5,Publicaciones!$R$9:$R$38)/Hoja2!$F$1 -> 0 | F35: =+SUMIF(Publicaciones!$L$9:$L$38,Hoja2!$B$6,Publicaciones!$R$9:$R$38)/Hoja2!$F$1 -> 0 | H35: =+SUMIF(Publicaciones!$L$9:$L$38,Hoja2!$B$7,Publicaciones!$R$9:$R$38)/Hoja2!$F$1 -> 0 | J35: =+SUMIF(Publicaciones!$L$9:$L$38,Hoja2!$B$8,Publicaciones!$R$9:$R$38)/Hoja2!$F$1 -> 0 | L35: =+SUMIF(Publicaciones!$L$9:$L$38,Hoja2!$B$9,Publicaciones!$R$9:$R$38)/Hoja2!$F$1 -> 0 | N35: 0 | P35: =+Publicaciones!N39/Hoja2!$F$1 -> 0 | Q35: =+Publicaciones!O39/Hoja2!$F$1 -> 0 | R35: =+Publicaciones!P39/Hoja2!$F$1 -> 0 | S35: =+Publicaciones!Q39/Hoja2!$F$1 -> 0 | V35: =+SUMIF(Publicaciones!$B$9:$B$38,$V$24,Publicaciones!N$9:N$38) -> 0 | W35: =+SUMIF(Publicaciones!$B$9:$B$38,$V$24,Publicaciones!O$9:O$38) -> 0 | X35: =+SUMIF(Publicaciones!$B$9:$B$38,$V$24,Publicaciones!$P$9:$P$38) -> 0 | Y35: =+SUMIF(Publicaciones!$B$9:$B$38,$V$24,Publicaciones!$Q$9:$Q$38) -> 0 | AA35: =+SUMIF(Publicaciones!$B$9:$B$38,$AA$24,Publicaciones!N$9:N$38)/Hoja2!$F$1 -> 0 | AB35: =+SUMIF(Publicaciones!$B$9:$B$38,$AA$24,Publicaciones!O$9:O$38)/Hoja2!$F$1 -> 0 | AC35: =+SUMIF(Publicaciones!$B$9:$B$38,$AA$24,Publicaciones!$P$9:$P$38)/Hoja2!$F$1 -> 0 | AD35: =+SUMIF(Publicaciones!$B$9:$B$38,$AA$24,Publicaciones!$Q$9:$Q$38)/Hoja2!$F$1 -> 0 | AF35: =+SUMIF(Publicaciones!$B$9:$B$38,$AF$24,Publicaciones!N$9:N$38)/Hoja2!$F$1 -> 0 | AG35: =+SUMIF(Publicaciones!$B$9:$B$38,$AF$24,Publicaciones!O$9:O$38)/Hoja2!$F$1 -> 0 | AH35: =+SUMIF(Publicaciones!$B$9:$B$38,$AF$24,Publicaciones!$P$9:$P$38)/Hoja2!$F$1 -> 0 | AI35: =+SUMIF(Publicaciones!$B$9:$B$38,$AF$24,Publicaciones!$Q$9:$Q$38)/Hoja2!$F$1 -> 0 | AK35: =+SUMIF(Publicaciones!$B$9:$B$38,$AK$24,Publicaciones!N$9:N$38)/Hoja2!$F$1 -> 0 | AL35: =+SUMIF(Publicaciones!$B$9:$B$38,$AK$24,Publicaciones!O$9:O$38)/Hoja2!$F$1 -> 0 | AM35: =+SUMIF(Publicaciones!$B$9:$B$38,$AK$24,Publicaciones!$P$9:$P$38)/Hoja2!$F$1 -> 0 | AN35: =+SUMIF(Publicaciones!$B$9:$B$38,$AK$24,Publicaciones!$Q$9:$Q$38)/Hoja2!$F$1 -> 0 | AP35: =+SUMIF(Publicaciones!$B$9:$B$38,$AP$24,Publicaciones!N$9:N$38)/Hoja2!$F$1 -> 0 | AQ35: =+SUMIF(Publicaciones!$B$9:$B$38,$AP$24,Publicaciones!O$9:O$38)/Hoja2!$F$1 -> 0 | AR35: =+SUMIF(Publicaciones!$B$9:$B$38,$AP$24,Publicaciones!$P$9:$P$38)/Hoja2!$F$1 -> 0 | AS35: =+SUMIF(Publicaciones!$B$9:$B$38,$AP$24,Publicaciones!$Q$9:$Q$38)/Hoja2!$F$1 -> 0 | AU35: =+SUMIF(Publicaciones!$B$9:$B$38,$AU$24,Publicaciones!S$9:S$38)/Hoja2!$F$1 -> 0 | AV35: =+SUMIF(Publicaciones!$B$9:$B$38,$AU$24,Publicaciones!T$9:T$38)/Hoja2!$F$1 -> 0 | AW35: =+SUMIF(Publicaciones!$B$9:$B$38,$AU$24,Publicaciones!$P$9:$P$38)/Hoja2!$F$1 -> 0 | AX35: =+SUMIF(Publicaciones!$B$9:$B$38,$AU$24,Publicaciones!$Q$9:$Q$38)/Hoja2!$F$1 -> 0 | AZ35: =+SUMIF(Publicaciones!$B$9:$B$38,$AZ$24,Publicaciones!X$9:X$38)/Hoja2!$F$1 -> 0 | BA35: =+SUMIF(Publicaciones!$B$9:$B$38,$AZ$24,Publicaciones!Y$9:Y$38)/Hoja2!$F$1 -> 0 | BB35: =+SUMIF(Publicaciones!$B$9:$B$38,$AZ$24,Publicaciones!$P$9:$P$38)/Hoja2!$F$1 -> 0 | BC35: =+SUMIF(Publicaciones!$B$9:$B$38,$AZ$24,Publicaciones!$Q$9:$Q$38)/Hoja2!$F$1 -> 0 | BE35: =+SUMIF(Publicaciones!$B$9:$B$38,$BE$24,Publicaciones!AC$9:AC$38)/Hoja2!$F$1 -> 0 | BF35: =+SUMIF(Publicaciones!$B$9:$B$38,$BE$24,Publicaciones!AD$9:AD$38)/Hoja2!$F$1 -> 0 | BG35: =+SUMIF(Publicaciones!$B$9:$B$38,$BE$24,Publicaciones!$P$9:$P$38)/Hoja2!$F$1 -> 0 | BH35: =+SUMIF(Publicaciones!$B$9:$B$38,$BE$24,Publicaciones!$Q$9:$Q$38)/Hoja2!$F$1 -> 0 | BJ35: =+SUMIF(Publicaciones!$B$9:$B$38,$BJ$24,Publicaciones!AH$9:AH$38)/Hoja2!$F$1 -> 0 | BK35: =+SUMIF(Publicaciones!$B$9:$B$38,$BJ$24,Publicaciones!AI$9:AI$38)/Hoja2!$F$1 -> 0 | BL35: =+SUMIF(Publicaciones!$B$9:$B$38,$BJ$24,Publicaciones!$P$9:$P$38)/Hoja2!$F$1 -> 0 | BM35: =+SUMIF(Publicaciones!$B$9:$B$38,$BJ$24,Publicaciones!$Q$9:$Q$38)/Hoja2!$F$1 -> 0 | BO35: =+SUMIF(Publicaciones!$B$9:$B$38,$BO$24,Publicaciones!AM$9:AM$38)/Hoja2!$F$1 -> 0 | BP35: =+SUMIF(Publicaciones!$B$9:$B$38,$BO$24,Publicaciones!AN$9:AN$38)/Hoja2!$F$1 -> 0 | BQ35: =+SUMIF(Publicaciones!$B$9:$B$38,$BO$24,Publicaciones!$P$9:$P$38)/Hoja2!$F$1 -> 0 | BR35: =+SUMIF(Publicaciones!$B$9:$B$38,$BO$24,Publicaciones!$Q$9:$Q$38)/Hoja2!$F$1 -> 0
B36: Registros y certificaciones | D36: =+SUMIF('Registros y Certificaciones'!$L$9:$L$38,Hoja2!$B$5,'Registros y Certificaciones'!$R$9:$R$38)/Hoja2!$F$1 -> 0 | F36: =+SUMIF('Registros y Certificaciones'!$L$9:$L$38,Hoja2!$B$6,'Registros y Certificaciones'!$R$9:$R$38)/Hoja2!$F$1 -> 0 | H36: =+SUMIF('Registros y Certificaciones'!$L$9:$L$38,Hoja2!$B$7,'Registros y Certificaciones'!$R$9:$R$38)/Hoja2!$F$1 -> 0 | J36: =+SUMIF('Registros y Certificaciones'!$L$9:$L$38,Hoja2!$B$8,'Registros y Certificaciones'!$R$9:$R$38)/Hoja2!$F$1 -> 0 | L36: =+SUMIF('Registros y Certificaciones'!$L$9:$L$38,Hoja2!$B$9,'Registros y Certificaciones'!$R$9:$R$38)/Hoja2!$F$1 -> 0 | N36: 0 | P36: =+'Registros y Certificaciones'!N39/Hoja2!$F$1 -> 0 | Q36: =+'Registros y Certificaciones'!O39/Hoja2!$F$1 -> 0 | R36: =+'Registros y Certificaciones'!P39/Hoja2!$F$1 -> 0 | S36: =+'Registros y Certificaciones'!Q39/Hoja2!$F$1 -> 0 | V36: =+SUMIF('Registros y Certificaciones'!$B$9:$B$38,$V$24,'Registros y Certificaciones'!N$9:N$38) -> 0 | W36: =+SUMIF('Registros y Certificaciones'!$B$9:$B$38,$V$24,'Registros y Certificaciones'!O$9:O$38) -> 0 | X36: =+SUMIF('Registros y Certificaciones'!$B$9:$B$38,$V$24,'Registros y Certificaciones'!$P$9:$P$38) -> 0 | Y36: =+SUMIF('Registros y Certificaciones'!$B$9:$B$38,$V$24,'Registros y Certificaciones'!$Q$9:$Q$38) -> 0 | AA36: =+SUMIF('Registros y Certificaciones'!$B$9:$B$38,$AA$24,'Registros y Certificaciones'!N$9:N$38)/Hoja2!$F$1 -> 0 | AB36: =+SUMIF('Registros y Certificaciones'!$B$9:$B$38,$AA$24,'Registros y Certificaciones'!O$9:O$38)/Hoja2!$F$1 -> 0 | AC36: =+SUMIF('Registros y Certificaciones'!$B$9:$B$38,$AA$24,'Registros y Certificaciones'!$P$9:$P$38)/Hoja2!$F$1 -> 0 | AD36: =+SUMIF('Registros y Certificaciones'!$B$9:$B$38,$AA$24,'Registros y Certificaciones'!$Q$9:$Q$38)/Hoja2!$F$1 -> 0 | AF36: =+SUMIF('Registros y Certificaciones'!$B$9:$B$38,$AF$24,'Registros y Certificaciones'!N$9:N$38)/Hoja2!$F$1 -> 0 | AG36: =+SUMIF('Registros y Certificaciones'!$B$9:$B$38,$AF$24,'Registros y Certificaciones'!O$9:O$38)/Hoja2!$F$1 -> 0 | AH36: =+SUMIF('Registros y Certificaciones'!$B$9:$B$38,$AF$24,'Registros y Certificaciones'!$P$9:$P$38)/Hoja2!$F$1 -> 0 | AI36: =+SUMIF('Registros y Certificaciones'!$B$9:$B$38,$AF$24,'Registros y Certificaciones'!$Q$9:$Q$38)/Hoja2!$F$1 -> 0 | AK36: =+SUMIF('Registros y Certificaciones'!$B$9:$B$38,$AK$24,'Registros y Certificaciones'!N$9:N$38)/Hoja2!$F$1 -> 0 | AL36: =+SUMIF('Registros y Certificaciones'!$B$9:$B$38,$AK$24,'Registros y Certificaciones'!O$9:O$38)/Hoja2!$F$1 -> 0 | AM36: =+SUMIF('Registros y Certificaciones'!$B$9:$B$38,$AK$24,'Registros y Certificaciones'!$P$9:$P$38)/Hoja2!$F$1 -> 0 | AN36: =+SUMIF('Registros y Certificaciones'!$B$9:$B$38,$AK$24,'Registros y Certificaciones'!$Q$9:$Q$38)/Hoja2!$F$1 -> 0 | AP36: =+SUMIF('Registros y Certificaciones'!$B$9:$B$38,$AP$24,'Registros y Certificaciones'!N$9:N$38)/Hoja2!$F$1 -> 0 | AQ36: =+SUMIF('Registros y Certificaciones'!$B$9:$B$38,$AP$24,'Registros y Certificaciones'!O$9:O$38)/Hoja2!$F$1 -> 0 | AR36: =+SUMIF('Registros y Certificaciones'!$B$9:$B$38,$AP$24,'Registros y Certificaciones'!$P$9:$P$38)/Hoja2!$F$1 -> 0 | AS36: =+SUMIF('Registros y Certificaciones'!$B$9:$B$38,$AP$24,'Registros y Certificaciones'!$Q$9:$Q$38)/Hoja2!$F$1 -> 0 | AU36: =+SUMIF('Registros y Certificaciones'!$B$9:$B$38,$AU$24,'Registros y Certificaciones'!S$9:S$38)/Hoja2!$F$1 -> 0 | AV36: =+SUMIF('Registros y Certificaciones'!$B$9:$B$38,$AU$24,'Registros y Certificaciones'!T$9:T$38)/Hoja2!$F$1 -> 0 | AW36: =+SUMIF('Registros y Certificaciones'!$B$9:$B$38,$AU$24,'Registros y Certificaciones'!$P$9:$P$38)/Hoja2!$F$1 -> 0 | AX36: =+SUMIF('Registros y Certificaciones'!$B$9:$B$38,$AU$24,'Registros y Certificaciones'!$Q$9:$Q$38)/Hoja2!$F$1 -> 0 | AZ36: =+SUMIF('Registros y Certificaciones'!$B$9:$B$38,$AZ$24,'Registros y Certificaciones'!X$9:X$38)/Hoja2!$F$1 -> 0 | BA36: =+SUMIF('Registros y Certificaciones'!$B$9:$B$38,$AZ$24,'Registros y Certificaciones'!Y$9:Y$38)/Hoja2!$F$1 -> 0 | BB36: =+SUMIF('Registros y Certificaciones'!$B$9:$B$38,$AZ$24,'Registros y Certificaciones'!$P$9:$P$38)/Hoja2!$F$1 -> 0 | BC36: =+SUMIF('Registros y Certificaciones'!$B$9:$B$38,$AZ$24,'Registros y Certificaciones'!$Q$9:$Q$38)/Hoja2!$F$1 -> 0 | BE36: =+SUMIF('Registros y Certificaciones'!$B$9:$B$38,$BE$24,'Registros y Certificaciones'!AC$9:AC$38)/Hoja2!$F$1 -> 0 | BF36: =+SUMIF('Registros y Certificaciones'!$B$9:$B$38,$BE$24,'Registros y Certificaciones'!AD$9:AD$38)/Hoja2!$F$1 -> 0 | BG36: =+SUMIF('Registros y Certificaciones'!$B$9:$B$38,$BE$24,'Registros y Certificaciones'!$P$9:$P$38)/Hoja2!$F$1 -> 0 | BH36: =+SUMIF('Registros y Certificaciones'!$B$9:$B$38,$BE$24,'Registros y Certificaciones'!$Q$9:$Q$38)/Hoja2!$F$1 -> 0 | BJ36: =+SUMIF('Registros y Certificaciones'!$B$9:$B$38,$BJ$24,'Registros y Certificaciones'!AH$9:AH$38)/Hoja2!$F$1 -> 0 | BK36: =+SUMIF('Registros y Certificaciones'!$B$9:$B$38,$BJ$24,'Registros y Certificaciones'!AI$9:AI$38)/Hoja2!$F$1 -> 0 | BL36: =+SUMIF('Registros y Certificaciones'!$B$9:$B$38,$BJ$24,'Registros y Certificaciones'!$P$9:$P$38)/Hoja2!$F$1 -> 0 | BM36: =+SUMIF('Registros y Certificaciones'!$B$9:$B$38,$BJ$24,'Registros y Certificaciones'!$Q$9:$Q$38)/Hoja2!$F$1 -> 0 | BO36: =+SUMIF('Registros y Certificaciones'!$B$9:$B$38,$BO$24,'Registros y Certificaciones'!AM$9:AM$38)/Hoja2!$F$1 -> 0 | BP36: =+SUMIF('Registros y Certificaciones'!$B$9:$B$38,$BO$24,'Registros y Certificaciones'!AN$9:AN$38)/Hoja2!$F$1 -> 0 | BQ36: =+SUMIF('Registros y Certificaciones'!$B$9:$B$38,$BO$24,'Registros y Certificaciones'!$P$9:$P$38)/Hoja2!$F$1 -> 0 | BR36: =+SUMIF('Registros y Certificaciones'!$B$9:$B$38,$BO$24,'Registros y Certificaciones'!$Q$9:$Q$38)/Hoja2!$F$1 -> 0
B37: Salidas de campo | D37: =+SUMIF('Salidas de campo'!$L$9:$L$38,Hoja2!$B$5,'Salidas de campo'!$R$9:$R$38)/Hoja2!$F$1 -> 1018290 | F37: =+SUMIF('Salidas de campo'!$L$9:$L$38,Hoja2!$B$6,'Salidas de campo'!$R$9:$R$38)/Hoja2!$F$1 -> 0 | H37: =+SUMIF('Salidas de campo'!$L$9:$L$38,Hoja2!$B$7,'Salidas de campo'!$R$9:$R$38)/Hoja2!$F$1 -> 0 | J37: =+SUMIF('Salidas de campo'!$L$9:$L$38,Hoja2!$B$8,'Salidas de campo'!$R$9:$R$38)/Hoja2!$F$1 -> 0 | L37: =+SUMIF('Salidas de campo'!$L$9:$L$38,Hoja2!$B$9,'Salidas de campo'!$R$9:$R$38)/Hoja2!$F$1 -> 0 | N37: 1018290 | P37: =+'Salidas de campo'!N39/Hoja2!$F$1 -> 1018290 | Q37: =+'Salidas de campo'!O39/Hoja2!$F$1 -> 0 | R37: =+'Salidas de campo'!P39/Hoja2!$F$1 -> 0 | S37: =+'Salidas de campo'!Q39/Hoja2!$F$1 -> 0 | V37: =+SUMIF('Salidas de campo'!$B$9:$B$38,$V$24,'Salidas de campo'!N$9:N$38) -> 0 | W37: =+SUMIF('Salidas de campo'!$B$9:$B$38,$V$24,'Salidas de campo'!O$9:O$38) -> 0 | X37: =+SUMIF('Salidas de campo'!$B$9:$B$38,$V$24,'Salidas de campo'!$P$9:$P$38) -> 0 | Y37: =+SUMIF('Salidas de campo'!$B$9:$B$38,$V$24,'Salidas de campo'!$Q$9:$Q$38) -> 0 | AA37: =+SUMIF('Salidas de campo'!$B$9:$B$38,$AA$24,'Salidas de campo'!N$9:N$38)/Hoja2!$F$1 -> 1018290 | AB37: =+SUMIF('Salidas de campo'!$B$9:$B$38,$AA$24,'Salidas de campo'!O$9:O$38)/Hoja2!$F$1 -> 0 | AC37: =+SUMIF('Salidas de campo'!$B$9:$B$38,$AA$24,'Salidas de campo'!$P$9:$P$38)/Hoja2!$F$1 -> 0 | AD37: =+SUMIF('Salidas de campo'!$B$9:$B$38,$AA$24,'Salidas de campo'!$Q$9:$Q$38)/Hoja2!$F$1 -> 0 | AF37: =+SUMIF('Salidas de campo'!$B$9:$B$38,$AF$24,'Salidas de campo'!N$9:N$38)/Hoja2!$F$1 -> 0 | AG37: =+SUMIF('Salidas de campo'!$B$9:$B$38,$AF$24,'Salidas de campo'!O$9:O$38)/Hoja2!$F$1 -> 0 | AH37: =+SUMIF('Salidas de campo'!$B$9:$B$38,$AF$24,'Salidas de campo'!$P$9:$P$38)/Hoja2!$F$1 -> 0 | AI37: =+SUMIF('Salidas de campo'!$B$9:$B$38,$AF$24,'Salidas de campo'!$Q$9:$Q$38)/Hoja2!$F$1 -> 0 | AK37: =+SUMIF('Salidas de campo'!$B$9:$B$38,$AK$24,'Salidas de campo'!N$9:N$38)/Hoja2!$F$1 -> 0 | AL37: =+SUMIF('Salidas de campo'!$B$9:$B$38,$AK$24,'Salidas de campo'!O$9:O$38)/Hoja2!$F$1 -> 0 | AM37: =+SUMIF('Salidas de campo'!$B$9:$B$38,$AK$24,'Salidas de campo'!$P$9:$P$38)/Hoja2!$F$1 -> 0 | AN37: =+SUMIF('Salidas de campo'!$B$9:$B$38,$AK$24,'Salidas de campo'!$Q$9:$Q$38)/Hoja2!$F$1 -> 0 | AP37: =+SUMIF('Salidas de campo'!$B$9:$B$38,$AP$24,'Salidas de campo'!N$9:N$38)/Hoja2!$F$1 -> 0 | AQ37: =+SUMIF('Salidas de campo'!$B$9:$B$38,$AP$24,'Salidas de campo'!O$9:O$38)/Hoja2!$F$1 -> 0 | AR37: =+SUMIF('Salidas de campo'!$B$9:$B$38,$AP$24,'Salidas de campo'!$P$9:$P$38)/Hoja2!$F$1 -> 0 | AS37: =+SUMIF('Salidas de campo'!$B$9:$B$38,$AP$24,'Salidas de campo'!$Q$9:$Q$38)/Hoja2!$F$1 -> 0 | AU37: =+SUMIF('Salidas de campo'!$B$9:$B$38,$AU$24,'Salidas de campo'!S$9:S$38)/Hoja2!$F$1 -> 0 | AV37: =+SUMIF('Salidas de campo'!$B$9:$B$38,$AU$24,'Salidas de campo'!T$9:T$38)/Hoja2!$F$1 -> 0 | AW37: =+SUMIF('Salidas de campo'!$B$9:$B$38,$AU$24,'Salidas de campo'!$P$9:$P$38)/Hoja2!$F$1 -> 0 | AX37: =+SUMIF('Salidas de campo'!$B$9:$B$38,$AU$24,'Salidas de campo'!$Q$9:$Q$38)/Hoja2!$F$1 -> 0 | AZ37: =+SUMIF('Salidas de campo'!$B$9:$B$38,$AZ$24,'Salidas de campo'!X$9:X$38)/Hoja2!$F$1 -> 0 | BA37: =+SUMIF('Salidas de campo'!$B$9:$B$38,$AZ$24,'Salidas de campo'!Y$9:Y$38)/Hoja2!$F$1 -> 0 | BB37: =+SUMIF('Salidas de campo'!$B$9:$B$38,$AZ$24,'Salidas de campo'!$P$9:$P$38)/Hoja2!$F$1 -> 0 | BC37: =+SUMIF('Salidas de campo'!$B$9:$B$38,$AZ$24,'Salidas de campo'!$Q$9:$Q$38)/Hoja2!$F$1 -> 0 | BE37: =+SUMIF('Salidas de campo'!$B$9:$B$38,$BE$24,'Salidas de campo'!AC$9:AC$38)/Hoja2!$F$1 -> 0 | BF37: =+SUMIF('Salidas de campo'!$B$9:$B$38,$BE$24,'Salidas de campo'!AD$9:AD$38)/Hoja2!$F$1 -> 0 | BG37: =+SUMIF('Salidas de campo'!$B$9:$B$38,$BE$24,'Salidas de campo'!$P$9:$P$38)/Hoja2!$F$1 -> 0 | BH37: =+SUMIF('Salidas de campo'!$B$9:$B$38,$BE$24,'Salidas de campo'!$Q$9:$Q$38)/Hoja2!$F$1 -> 0 | BJ37: =+SUMIF('Salidas de campo'!$B$9:$B$38,$BJ$24,'Salidas de campo'!AH$9:AH$38)/Hoja2!$F$1 -> 0 | BK37: =+SUMIF('Salidas de campo'!$B$9:$B$38,$BJ$24,'Salidas de campo'!AI$9:AI$38)/Hoja2!$F$1 -> 0 | BL37: =+SUMIF('Salidas de campo'!$B$9:$B$38,$BJ$24,'Salidas de campo'!$P$9:$P$38)/Hoja2!$F$1 -> 0 | BM37: =+SUMIF('Salidas de campo'!$B$9:$B$38,$BJ$24,'Salidas de campo'!$Q$9:$Q$38)/Hoja2!$F$1 -> 0 | BO37: =+SUMIF('Salidas de campo'!$B$9:$B$38,$BO$24,'Salidas de campo'!AM$9:AM$38)/Hoja2!$F$1 -> 0 | BP37: =+SUMIF('Salidas de campo'!$B$9:$B$38,$BO$24,'Salidas de campo'!AN$9:AN$38)/Hoja2!$F$1 -> 0 | BQ37: =+SUMIF('Salidas de campo'!$B$9:$B$38,$BO$24,'Salidas de campo'!$P$9:$P$38)/Hoja2!$F$1 -> 0 | BR37: =+SUMIF('Salidas de campo'!$B$9:$B$38,$BO$24,'Salidas de campo'!$Q$9:$Q$38)/Hoja2!$F$1 -> 0
B38: Servicios técnicos y tecnológicos | D38: =+SUMIF('Servicios técnicos'!$J$9:$J$33,Hoja2!$B$5,'Servicios técnicos'!$P$9:$P$33)/Hoja2!$F$1 -> 9920000 | F38: =+SUMIF('Servicios técnicos'!$J$9:$J$33,Hoja2!$B$6,'Servicios técnicos'!$P$9:$P$33)/Hoja2!$F$1 -> 0 | H38: =+SUMIF('Servicios técnicos'!$J$9:$J$33,Hoja2!$B$7,'Servicios técnicos'!$P$9:$P$33)/Hoja2!$F$1 -> 0 | J38: =+SUMIF('Servicios técnicos'!$J$9:$J$33,Hoja2!$B$8,'Servicios técnicos'!$P$9:$P$33)/Hoja2!$F$1 -> 0 | L38: =+SUMIF('Servicios técnicos'!$J$9:$J$33,Hoja2!$B$9,'Servicios técnicos'!$P$9:$P$33)/Hoja2!$F$1 -> 0 | N38: 9920000 | P38: =+'Servicios técnicos'!L34/Hoja2!$F$1 -> 9920000 | Q38: =+'Servicios técnicos'!M34/Hoja2!$F$1 -> 0 | R38: =+'Servicios técnicos'!N34/Hoja2!$F$1 -> 0 | S38: =+'Servicios técnicos'!O34/Hoja2!$F$1 -> 0 | V38: =+SUMIF('Servicios técnicos'!$B$9:$B$33,$V$24,'Servicios técnicos'!L$9:L$33) -> 0 | W38: =+SUMIF('Servicios técnicos'!$B$9:$B$33,$V$24,'Servicios técnicos'!M$9:M$33) -> 0 | X38: =+SUMIF('Servicios técnicos'!$B$9:$B$33,$V$24,'Servicios técnicos'!$N$9:$N$33) -> 0 | Y38: =+SUMIF('Servicios técnicos'!$B$9:$B$33,$V$24,'Servicios técnicos'!$O$9:$O$33) -> 0 | AA38: =+SUMIF('Servicios técnicos'!$B$9:$B$33,$AA$24,'Servicios técnicos'!L$9:L$33)/Hoja2!$F$1 -> 9920000 | AB38: =+SUMIF('Servicios técnicos'!$B$9:$B$33,$AA$24,'Servicios técnicos'!M$9:M$33)/Hoja2!$F$1 -> 0 | AC38: =+SUMIF('Servicios técnicos'!$B$9:$B$33,$AA$24,'Servicios técnicos'!$N$9:$N$33)/Hoja2!$F$1 -> 0 | AD38: =+SUMIF('Servicios técnicos'!$B$9:$B$33,$AA$24,'Servicios técnicos'!$O$9:$O$33)/Hoja2!$F$1 -> 0 | AF38: =+SUMIF('Servicios técnicos'!$B$9:$B$33,$AF$24,'Servicios técnicos'!L$9:L$33)/Hoja2!$F$1 -> 0 | AG38: =+SUMIF('Servicios técnicos'!$B$9:$B$33,$AF$24,'Servicios técnicos'!M$9:M$33)/Hoja2!$F$1 -> 0 | AH38: =+SUMIF('Servicios técnicos'!$B$9:$B$33,$AF$24,'Servicios técnicos'!$N$9:$N$33)/Hoja2!$F$1 -> 0 | AI38: =+SUMIF('Servicios técnicos'!$B$9:$B$33,$AF$24,'Servicios técnicos'!$O$9:$O$33)/Hoja2!$F$1 -> 0 | AK38: =+SUMIF('Servicios técnicos'!$B$9:$B$33,$AK$24,'Servicios técnicos'!L$9:L$33)/Hoja2!$F$1 -> 0 | AL38: =+SUMIF('Servicios técnicos'!$B$9:$B$33,$AK$24,'Servicios técnicos'!M$9:M$33)/Hoja2!$F$1 -> 0 | AM38: =+SUMIF('Servicios técnicos'!$B$9:$B$33,$AK$24,'Servicios técnicos'!$N$9:$N$33)/Hoja2!$F$1 -> 0 | AN38: =+SUMIF('Servicios técnicos'!$B$9:$B$33,$AK$24,'Servicios técnicos'!$O$9:$O$33)/Hoja2!$F$1 -> 0 | AP38: =+SUMIF('Servicios técnicos'!$B$9:$B$33,$AP$24,'Servicios técnicos'!L$9:L$33)/Hoja2!$F$1 -> 0 | AQ38: =+SUMIF('Servicios técnicos'!$B$9:$B$33,$AP$24,'Servicios técnicos'!M$9:M$33)/Hoja2!$F$1 -> 0 | AR38: =+SUMIF('Servicios técnicos'!$B$9:$B$33,$AP$24,'Servicios técnicos'!$N$9:$N$33)/Hoja2!$F$1 -> 0 | AS38: =+SUMIF('Servicios técnicos'!$B$9:$B$33,$AP$24,'Servicios técnicos'!$O$9:$O$33)/Hoja2!$F$1 -> 0 | AU38: =+SUMIF('Servicios técnicos'!$B$9:$B$33,$AU$24,'Servicios técnicos'!Q$9:Q$33)/Hoja2!$F$1 -> 0 | AV38: =+SUMIF('Servicios técnicos'!$B$9:$B$33,$AU$24,'Servicios técnicos'!R$9:R$33)/Hoja2!$F$1 -> 0 | AW38: =+SUMIF('Servicios técnicos'!$B$9:$B$33,$AU$24,'Servicios técnicos'!$N$9:$N$33)/Hoja2!$F$1 -> 0 | AX38: =+SUMIF('Servicios técnicos'!$B$9:$B$33,$AU$24,'Servicios técnicos'!$O$9:$O$33)/Hoja2!$F$1 -> 0 | AZ38: =+SUMIF('Servicios técnicos'!$B$9:$B$33,$AZ$24,'Servicios técnicos'!V$9:V$33)/Hoja2!$F$1 -> 0 | BA38: =+SUMIF('Servicios técnicos'!$B$9:$B$33,$AZ$24,'Servicios técnicos'!W$9:W$33)/Hoja2!$F$1 -> 0 | BB38: =+SUMIF('Servicios técnicos'!$B$9:$B$33,$AZ$24,'Servicios técnicos'!$N$9:$N$33)/Hoja2!$F$1 -> 0 | BC38: =+SUMIF('Servicios técnicos'!$B$9:$B$33,$AZ$24,'Servicios técnicos'!$O$9:$O$33)/Hoja2!$F$1 -> 0 | BE38: =+SUMIF('Servicios técnicos'!$B$9:$B$33,$BE$24,'Servicios técnicos'!AA$9:AA$33)/Hoja2!$F$1 -> 0 | BF38: =+SUMIF('Servicios técnicos'!$B$9:$B$33,$BE$24,'Servicios técnicos'!AB$9:AB$33)/Hoja2!$F$1 -> 0 | BG38: =+SUMIF('Servicios técnicos'!$B$9:$B$33,$BE$24,'Servicios técnicos'!$N$9:$N$33)/Hoja2!$F$1 -> 0 | BH38: =+SUMIF('Servicios técnicos'!$B$9:$B$33,$BE$24,'Servicios técnicos'!$O$9:$O$33)/Hoja2!$F$1 -> 0 | BJ38: =+SUMIF('Servicios técnicos'!$B$9:$B$33,$BJ$24,'Servicios técnicos'!AF$9:AF$33)/Hoja2!$F$1 -> 0 | BK38: =+SUMIF('Servicios técnicos'!$B$9:$B$33,$BJ$24,'Servicios técnicos'!AG$9:AG$33)/Hoja2!$F$1 -> 0 | BL38: =+SUMIF('Servicios técnicos'!$B$9:$B$33,$BJ$24,'Servicios técnicos'!$N$9:$N$33)/Hoja2!$F$1 -> 0 | BM38: =+SUMIF('Servicios técnicos'!$B$9:$B$33,$BJ$24,'Servicios técnicos'!$O$9:$O$33)/Hoja2!$F$1 -> 0 | BO38: =+SUMIF('Servicios técnicos'!$B$9:$B$33,$BO$24,'Servicios técnicos'!AK$9:AK$33)/Hoja2!$F$1 -> 0 | BP38: =+SUMIF('Servicios técnicos'!$B$9:$B$33,$BO$24,'Servicios técnicos'!AL$9:AL$33)/Hoja2!$F$1 -> 0 | BQ38: =+SUMIF('Servicios técnicos'!$B$9:$B$33,$BO$24,'Servicios técnicos'!$N$9:$N$33)/Hoja2!$F$1 -> 0 | BR38: =+SUMIF('Servicios técnicos'!$B$9:$B$33,$BO$24,'Servicios técnicos'!$O$9:$O$33)/Hoja2!$F$1 -> 0
B39: Software | D39: =+SUMIF(Software!$K$9:$K$38,Hoja2!$B$5,Software!$Q$9:$Q$38)/Hoja2!$F$1 -> 0 | F39: =+SUMIF(Software!$K$9:$K$38,Hoja2!$B$6,Software!$Q$9:$Q$38)/Hoja2!$F$1 -> 0 | H39: =+SUMIF(Software!$K$9:$K$38,Hoja2!$B$7,Software!$Q$9:$Q$38)/Hoja2!$F$1 -> 0 | J39: =+SUMIF(Software!$K$9:$K$38,Hoja2!$B$8,Software!$Q$9:$Q$38)/Hoja2!$F$1 -> 0 | L39: =+SUMIF(Software!$K$9:$K$38,Hoja2!$B$9,Software!$Q$9:$Q$38)/Hoja2!$F$1 -> 0 | N39: 0 | P39: =+Software!M39/Hoja2!$F$1 -> 0 | Q39: =+Software!N39/Hoja2!$F$1 -> 0 | R39: =+Software!O39/Hoja2!$F$1 -> 0 | S39: =+Software!P39/Hoja2!$F$1 -> 0 | V39: =+SUMIF(Software!$B$9:$B$38,$V$24,Software!M$9:M$38) -> 0 | W39: =+SUMIF(Software!$B$9:$B$38,$V$24,Software!N$9:N$38) -> 0 | X39: =+SUMIF(Software!$B$9:$B$38,$V$24,Software!$O$9:$O$38) -> 0 | Y39: =+SUMIF(Software!$B$9:$B$38,$V$24,Software!$P$9:$P$38) -> 0 | AA39: =+SUMIF(Software!$B$9:$B$38,$AA$24,Software!M$9:M$38)/Hoja2!$F$1 -> 0 | AB39: =+SUMIF(Software!$B$9:$B$38,$AA$24,Software!N$9:N$38)/Hoja2!$F$1 -> 0 | AC39: =+SUMIF(Software!$B$9:$B$38,$AA$24,Software!$O$9:$O$38)/Hoja2!$F$1 -> 0 | AD39: =+SUMIF(Software!$B$9:$B$38,$AA$24,Software!$P$9:$P$38)/Hoja2!$F$1 -> 0 | AF39: =+SUMIF(Software!$B$9:$B$38,$AF$24,Software!M$9:M$38)/Hoja2!$F$1 -> 0 | AG39: =+SUMIF(Software!$B$9:$B$38,$AF$24,Software!N$9:N$38)/Hoja2!$F$1 -> 0 | AH39: =+SUMIF(Software!$B$9:$B$38,$AF$24,Software!$O$9:$O$38)/Hoja2!$F$1 -> 0 | AI39: =+SUMIF(Software!$B$9:$B$38,$AF$24,Software!$P$9:$P$38)/Hoja2!$F$1 -> 0 | AK39: =+SUMIF(Software!$B$9:$B$38,$AK$24,Software!M$9:M$38)/Hoja2!$F$1 -> 0 | AL39: =+SUMIF(Software!$B$9:$B$38,$AK$24,Software!N$9:N$38)/Hoja2!$F$1 -> 0 | AM39: =+SUMIF(Software!$B$9:$B$38,$AK$24,Software!$O$9:$O$38)/Hoja2!$F$1 -> 0 | AN39: =+SUMIF(Software!$B$9:$B$38,$AK$24,Software!$P$9:$P$38)/Hoja2!$F$1 -> 0 | AP39: =+SUMIF(Software!$B$9:$B$38,$AP$24,Software!M$9:M$38)/Hoja2!$F$1 -> 0 | AQ39: =+SUMIF(Software!$B$9:$B$38,$AP$24,Software!N$9:N$38)/Hoja2!$F$1 -> 0 | AR39: =+SUMIF(Software!$B$9:$B$38,$AP$24,Software!$O$9:$O$38)/Hoja2!$F$1 -> 0 | AS39: =+SUMIF(Software!$B$9:$B$38,$AP$24,Software!$P$9:$P$38)/Hoja2!$F$1 -> 0 | AU39: =+SUMIF(Software!$B$9:$B$38,$AU$24,Software!R$9:R$38)/Hoja2!$F$1 -> 0 | AV39: =+SUMIF(Software!$B$9:$B$38,$AU$24,Software!S$9:S$38)/Hoja2!$F$1 -> 0 | AW39: =+SUMIF(Software!$B$9:$B$38,$AU$24,Software!$O$9:$O$38)/Hoja2!$F$1 -> 0 | AX39: =+SUMIF(Software!$B$9:$B$38,$AU$24,Software!$P$9:$P$38)/Hoja2!$F$1 -> 0 | AZ39: =+SUMIF(Software!$B$9:$B$38,$AZ$24,Software!W$9:W$38)/Hoja2!$F$1 -> 0 | BA39: =+SUMIF(Software!$B$9:$B$38,$AZ$24,Software!X$9:X$38)/Hoja2!$F$1 -> 0 | BB39: =+SUMIF(Software!$B$9:$B$38,$AZ$24,Software!$O$9:$O$38)/Hoja2!$F$1 -> 0 | BC39: =+SUMIF(Software!$B$9:$B$38,$AZ$24,Software!$P$9:$P$38)/Hoja2!$F$1 -> 0 | BE39: =+SUMIF(Software!$B$9:$B$38,$BE$24,Software!AB$9:AB$38)/Hoja2!$F$1 -> 0 | BF39: =+SUMIF(Software!$B$9:$B$38,$BE$24,Software!AC$9:AC$38)/Hoja2!$F$1 -> 0 | BG39: =+SUMIF(Software!$B$9:$B$38,$BE$24,Software!$O$9:$O$38)/Hoja2!$F$1 -> 0 | BH39: =+SUMIF(Software!$B$9:$B$38,$BE$24,Software!$P$9:$P$38)/Hoja2!$F$1 -> 0 | BJ39: =+SUMIF(Software!$B$9:$B$38,$BJ$24,Software!AG$9:AG$38)/Hoja2!$F$1 -> 0 | BK39: =+SUMIF(Software!$B$9:$B$38,$BJ$24,Software!AH$9:AH$38)/Hoja2!$F$1 -> 0 | BL39: =+SUMIF(Software!$B$9:$B$38,$BJ$24,Software!$O$9:$O$38)/Hoja2!$F$1 -> 0 | BM39: =+SUMIF(Software!$B$9:$B$38,$BJ$24,Software!$P$9:$P$38)/Hoja2!$F$1 -> 0 | BO39: =+SUMIF(Software!$B$9:$B$38,$BO$24,Software!AL$9:AL$38)/Hoja2!$F$1 -> 0 | BP39: =+SUMIF(Software!$B$9:$B$38,$BO$24,Software!AM$9:AM$38)/Hoja2!$F$1 -> 0 | BQ39: =+SUMIF(Software!$B$9:$B$38,$BO$24,Software!$O$9:$O$38)/Hoja2!$F$1 -> 0 | BR39: =+SUMIF(Software!$B$9:$B$38,$BO$24,Software!$P$9:$P$38)/Hoja2!$F$1 -> 0
B40: Viajes | D40: =+SUMIF(Viajes!$N$9:$N$38,Hoja2!$B$5,Viajes!$U$9:$U$38)/Hoja2!$F$1 -> 3772532 | F40: =+SUMIF(Viajes!$N$9:$N$38,Hoja2!$B$6,Viajes!$U$9:$U$38)/Hoja2!$F$1 -> 0 | H40: =+SUMIF(Viajes!$N$9:$N$38,Hoja2!$B$7,Viajes!$U$9:$U$38)/Hoja2!$F$1 -> 0 | J40: =+SUMIF(Viajes!$N$9:$N$38,Hoja2!$B$8,Viajes!$U$9:$U$38)/Hoja2!$F$1 -> 0 | L40: =+SUMIF(Viajes!$N$9:$N$38,Hoja2!$B$9,Viajes!$U$9:$U$38)/Hoja2!$F$1 -> 0 | N40: 3772532 | P40: =+Viajes!Q39/Hoja2!$F$1 -> 3772532 | Q40: =+Viajes!R39/Hoja2!$F$1 -> 0 | R40: =+Viajes!S39/Hoja2!$F$1 -> 0 | S40: =+Viajes!T39/Hoja2!$F$1 -> 0 | T40: =+Viajes!Q40 -> 0 | V40: =+SUMIF(Viajes!$B$9:$B$38,$V$24,Viajes!Q$9:Q$38) -> 0 | W40: =+SUMIF(Viajes!$B$9:$B$38,$V$24,Viajes!R$9:R$38) -> 0 | X40: =+SUMIF(Viajes!$B$9:$B$38,$V$24,Viajes!$S$9:$S$38) -> 0 | Y40: =+SUMIF(Viajes!$B$9:$B$38,$V$24,Viajes!$T$9:$T$38) -> 0 | AA40: =+SUMIF(Viajes!$B$9:$B$38,$AA$24,Viajes!Q$9:Q$38)/Hoja2!$F$1 -> 3772532 | AB40: =+SUMIF(Viajes!$B$9:$B$38,$AA$24,Viajes!R$9:R$38)/Hoja2!$F$1 -> 0 | AC40: =+SUMIF(Viajes!$B$9:$B$38,$AA$24,Viajes!$S$9:$S$38)/Hoja2!$F$1 -> 0 | AD40: =+SUMIF(Viajes!$B$9:$B$38,$AA$24,Viajes!$T$9:$T$38)/Hoja2!$F$1 -> 0 | AF40: =+SUMIF(Viajes!$B$9:$B$38,$AF$24,Viajes!Q$9:Q$38)/Hoja2!$F$1 -> 0 | AG40: =+SUMIF(Viajes!$B$9:$B$38,$AF$24,Viajes!R$9:R$38)/Hoja2!$F$1 -> 0 | AH40: =+SUMIF(Viajes!$B$9:$B$38,$AF$24,Viajes!$S$9:$S$38)/Hoja2!$F$1 -> 0 | AI40: =+SUMIF(Viajes!$B$9:$B$38,$AF$24,Viajes!$T$9:$T$38)/Hoja2!$F$1 -> 0 | AK40: =+SUMIF(Viajes!$B$9:$B$38,$AK$24,Viajes!Q$9:Q$38)/Hoja2!$F$1 -> 0 | AL40: =+SUMIF(Viajes!$B$9:$B$38,$AK$24,Viajes!R$9:R$38)/Hoja2!$F$1 -> 0 | AM40: =+SUMIF(Viajes!$B$9:$B$38,$AK$24,Viajes!$S$9:$S$38)/Hoja2!$F$1 -> 0 | AN40: =+SUMIF(Viajes!$B$9:$B$38,$AK$24,Viajes!$T$9:$T$38)/Hoja2!$F$1 -> 0 | AP40: =+SUMIF(Viajes!$B$9:$B$38,$AP$24,Viajes!Q$9:Q$38)/Hoja2!$F$1 -> 0 | AQ40: =+SUMIF(Viajes!$B$9:$B$38,$AP$24,Viajes!R$9:R$38)/Hoja2!$F$1 -> 0 | AR40: =+SUMIF(Viajes!$B$9:$B$38,$AP$24,Viajes!$S$9:$S$38)/Hoja2!$F$1 -> 0 | AS40: =+SUMIF(Viajes!$B$9:$B$38,$AP$24,Viajes!$T$9:$T$38)/Hoja2!$F$1 -> 0 | AU40: =+SUMIF(Viajes!$B$9:$B$38,$AU$24,Viajes!V$9:V$38)/Hoja2!$F$1 -> 0 | AV40: =+SUMIF(Viajes!$B$9:$B$38,$AU$24,Viajes!W$9:W$38)/Hoja2!$F$1 -> 0 | AW40: =+SUMIF(Viajes!$B$9:$B$38,$AU$24,Viajes!$S$9:$S$38)/Hoja2!$F$1 -> 0 | AX40: =+SUMIF(Viajes!$B$9:$B$38,$AU$24,Viajes!$T$9:$T$38)/Hoja2!$F$1 -> 0 | AZ40: =+SUMIF(Viajes!$B$9:$B$38,$AZ$24,Viajes!AA$9:AA$38)/Hoja2!$F$1 -> 0 | BA40: =+SUMIF(Viajes!$B$9:$B$38,$AZ$24,Viajes!AB$9:AB$38)/Hoja2!$F$1 -> 0 | BB40: =+SUMIF(Viajes!$B$9:$B$38,$AZ$24,Viajes!$S$9:$S$38)/Hoja2!$F$1 -> 0 | BC40: =+SUMIF(Viajes!$B$9:$B$38,$AZ$24,Viajes!$T$9:$T$38)/Hoja2!$F$1 -> 0 | BE40: =+SUMIF(Viajes!$B$9:$B$38,$BE$24,Viajes!AF$9:AF$38)/Hoja2!$F$1 -> 0 | BF40: =+SUMIF(Viajes!$B$9:$B$38,$BE$24,Viajes!AG$9:AG$38)/Hoja2!$F$1 -> 0 | BG40: =+SUMIF(Viajes!$B$9:$B$38,$BE$24,Viajes!$S$9:$S$38)/Hoja2!$F$1 -> 0 | BH40: =+SUMIF(Viajes!$B$9:$B$38,$BE$24,Viajes!$T$9:$T$38)/Hoja2!$F$1 -> 0 | BJ40: =+SUMIF(Viajes!$B$9:$B$38,$BJ$24,Viajes!AK$9:AK$38)/Hoja2!$F$1 -> 0 | BK40: =+SUMIF(Viajes!$B$9:$B$38,$BJ$24,Viajes!AL$9:AL$38)/Hoja2!$F$1 -> 0 | BL40: =+SUMIF(Viajes!$B$9:$B$38,$BJ$24,Viajes!$S$9:$S$38)/Hoja2!$F$1 -> 0 | BM40: =+SUMIF(Viajes!$B$9:$B$38,$BJ$24,Viajes!$T$9:$T$38)/Hoja2!$F$1 -> 0 | BO40: =+SUMIF(Viajes!$B$9:$B$38,$BO$24,Viajes!AP$9:AP$38)/Hoja2!$F$1 -> 0 | BP40: =+SUMIF(Viajes!$B$9:$B$38,$BO$24,Viajes!AQ$9:AQ$38)/Hoja2!$F$1 -> 0 | BQ40: =+SUMIF(Viajes!$B$9:$B$38,$BO$24,Viajes!$S$9:$S$38)/Hoja2!$F$1 -> 0 | BR40: =+SUMIF(Viajes!$B$9:$B$38,$BO$24,Viajes!$T$9:$T$38)/Hoja2!$F$1 -> 0
B41: Formación Doctoral | D41: =+SUMIF('Formación PHD'!$N$9:$N$38,Hoja2!$B$5,'Formación PHD'!$U$9:$U$38) -> 0 | F41: =+SUMIF('Formación PHD'!$N$9:$N$38,Hoja2!$B$6,'Formación PHD'!$U$9:$U$38) -> 0 | H41: =+SUMIF('Formación PHD'!$N$9:$N$38,Hoja2!$B$7,'Formación PHD'!$U$9:$U$38) -> 0 | J41: =+SUMIF('Formación PHD'!$N$9:$N$38,Hoja2!$B$9,'Formación PHD'!$U$9:$U$38) -> 0 | L41: =+SUMIF('Formación PHD'!$N$9:$N$38,Hoja2!$B$9,'Formación PHD'!$U$9:$U$38) -> 0 | N41: 0 | P41: =+'Formación PHD'!Q39 -> 0 | Q41: =+'Formación PHD'!R39 -> 0 | R41: =+'Formación PHD'!S39 -> 0 | S41: =+'Formación PHD'!T39 -> 0 | T41: =+'Formación PHD'!Q40 ->  | V41: =+SUMIF('Formación PHD'!$B$9:$B$38,$V$24,'Formación PHD'!Q$9:Q$38) -> 0 | W41: =+SUMIF('Formación PHD'!$B$9:$B$38,$V$24,'Formación PHD'!R$9:R$38) -> 0 | X41: =+SUMIF('Formación PHD'!$B$9:$B$38,$V$24,'Formación PHD'!$S$9:$S$38) -> 0 | Y41: =+SUMIF('Formación PHD'!$B$9:$B$38,$V$24,'Formación PHD'!$T$9:$T$38) -> 0 | AA41: =+SUMIF('Formación PHD'!$B$9:$B$38,$AA$24,'Formación PHD'!Q$9:Q$38) -> 0 | AB41: =+SUMIF('Formación PHD'!$B$9:$B$38,$AA$24,'Formación PHD'!R$9:R$38) -> 0 | AC41: =+SUMIF('Formación PHD'!$B$9:$B$38,$AA$24,'Formación PHD'!$S$9:$S$38) -> 0 | AD41: =+SUMIF('Formación PHD'!$B$9:$B$38,$AA$24,'Formación PHD'!$T$9:$T$38) -> 0 | AF41: =+SUMIF('Formación PHD'!$B$9:$B$38,$AF$24,'Formación PHD'!Q$9:Q$38) -> 0 | AG41: =+SUMIF('Formación PHD'!$B$9:$B$38,$AF$24,'Formación PHD'!R$9:R$38) -> 0 | AH41: =+SUMIF('Formación PHD'!$B$9:$B$38,$AF$24,'Formación PHD'!$S$9:$S$38) -> 0 | AI41: =+SUMIF('Formación PHD'!$B$9:$B$38,$AF$24,'Formación PHD'!$T$9:$T$38) -> 0 | AK41: =+SUMIF('Formación PHD'!$B$9:$B$38,$AK$24,'Formación PHD'!Q$9:Q$38) -> 0 | AL41: =+SUMIF('Formación PHD'!$B$9:$B$38,$AK$24,'Formación PHD'!R$9:R$38) -> 0 | AM41: =+SUMIF('Formación PHD'!$B$9:$B$38,$AK$24,'Formación PHD'!$S$9:$S$38) -> 0 | AN41: =+SUMIF('Formación PHD'!$B$9:$B$38,$AK$24,'Formación PHD'!$T$9:$T$38) -> 0 | AP41: =+SUMIF('Formación PHD'!$B$9:$B$38,$AP$24,'Formación PHD'!Q$9:Q$38) -> 0 | AQ41: =+SUMIF('Formación PHD'!$B$9:$B$38,$AP$24,'Formación PHD'!R$9:R$38) -> 0 | AR41: =+SUMIF('Formación PHD'!$B$9:$B$38,$AP$24,'Formación PHD'!$S$9:$S$38) -> 0 | AS41: =+SUMIF('Formación PHD'!$B$9:$B$38,$AP$24,'Formación PHD'!$T$9:$T$38) -> 0 | AU41: =+SUMIF('Formación PHD'!$B$9:$B$38,$AU$24,'Formación PHD'!V$9:V$38) -> 0 | AV41: =+SUMIF('Formación PHD'!$B$9:$B$38,$AU$24,'Formación PHD'!W$9:W$38) -> 0 | AW41: =+SUMIF('Formación PHD'!$B$9:$B$38,$AU$24,'Formación PHD'!$S$9:$S$38) -> 0 | AX41: =+SUMIF('Formación PHD'!$B$9:$B$38,$AU$24,'Formación PHD'!$T$9:$T$38) -> 0 | AZ41: =+SUMIF('Formación PHD'!$B$9:$B$38,$AZ$24,'Formación PHD'!AA$9:AA$38) -> 0 | BA41: =+SUMIF('Formación PHD'!$B$9:$B$38,$AZ$24,'Formación PHD'!AB$9:AB$38) -> 0 | BB41: =+SUMIF('Formación PHD'!$B$9:$B$38,$AZ$24,'Formación PHD'!$S$9:$S$38) -> 0 | BC41: =+SUMIF('Formación PHD'!$B$9:$B$38,$AZ$24,'Formación PHD'!$T$9:$T$38) -> 0 | BE41: =+SUMIF('Formación PHD'!$B$9:$B$38,$BE$24,'Formación PHD'!AF$9:AF$38) -> 0 | BF41: =+SUMIF('Formación PHD'!$B$9:$B$38,$BE$24,'Formación PHD'!AG$9:AG$38) -> 0 | BG41: =+SUMIF('Formación PHD'!$B$9:$B$38,$BE$24,'Formación PHD'!$S$9:$S$38) -> 0 | BH41: =+SUMIF('Formación PHD'!$B$9:$B$38,$BE$24,'Formación PHD'!$T$9:$T$38) -> 0 | BJ41: =+SUMIF('Formación PHD'!$B$9:$B$38,$BJ$24,'Formación PHD'!AK$9:AK$38) -> 0 | BK41: =+SUMIF('Formación PHD'!$B$9:$B$38,$BJ$24,'Formación PHD'!AL$9:AL$38) -> 0 | BL41: =+SUMIF('Formación PHD'!$B$9:$B$38,$BJ$24,'Formación PHD'!$S$9:$S$38) -> 0 | BM41: =+SUMIF('Formación PHD'!$B$9:$B$38,$BJ$24,'Formación PHD'!$T$9:$T$38) -> 0 | BO41: =+SUMIF('Formación PHD'!$B$9:$B$38,$BO$24,'Formación PHD'!AP$9:AP$38) -> 0 | BP41: =+SUMIF('Formación PHD'!$B$9:$B$38,$BO$24,'Formación PHD'!AQ$9:AQ$38) -> 0 | BQ41: =+SUMIF('Formación PHD'!$B$9:$B$38,$BO$24,'Formación PHD'!$S$9:$S$38) -> 0 | BR41: =+SUMIF('Formación PHD'!$B$9:$B$38,$BO$24,'Formación PHD'!$T$9:$T$38) -> 0
B42: Alquiler de espacios y/o Instalaciones | D42: =+SUMIF('Alquiler de espacios yo Instala'!$L$8:$L$37,Hoja2!$B$5,'Alquiler de espacios yo Instala'!$R$8:$R$37)/Hoja2!$F$1 -> 0 | F42: =+SUMIF('Alquiler de espacios yo Instala'!$L$8:$L$37,Hoja2!$B$6,'Alquiler de espacios yo Instala'!$R$8:$R$37)/Hoja2!$F$1 -> 0 | H42: =+SUMIF('Alquiler de espacios yo Instala'!$L$8:$L$37,Hoja2!$B$7,'Alquiler de espacios yo Instala'!$R$8:$R$37)/Hoja2!$F$1 -> 0 | J42: =+SUMIF('Alquiler de espacios yo Instala'!$L$8:$L$37,Hoja2!$B$8,'Alquiler de espacios yo Instala'!$R$8:$R$37)/Hoja2!$F$1 -> 0 | L42: =+SUMIF('Alquiler de espacios yo Instala'!$L$8:$L$37,Hoja2!$B$9,'Alquiler de espacios yo Instala'!$R$8:$R$37)/Hoja2!$F$1 -> 0 | N42: 0 | P42: =+'Alquiler de espacios yo Instala'!N38/Hoja2!$F$1 -> 0 | Q42: =+'Alquiler de espacios yo Instala'!O38/Hoja2!$F$1 -> 0 | R42: =+'Alquiler de espacios yo Instala'!P38/Hoja2!$F$1 -> 0 | S42: =+'Alquiler de espacios yo Instala'!Q38/Hoja2!$F$1 -> 0 | V42: =+SUMIF('Alquiler de espacios yo Instala'!$B$8:$B$37,$V$24,'Alquiler de espacios yo Instala'!N$8:N$37) -> 0 | W42: =+SUMIF('Alquiler de espacios yo Instala'!$B$8:$B$37,$V$24,'Alquiler de espacios yo Instala'!O$8:O$37) -> 0 | X42: =+SUMIF('Alquiler de espacios yo Instala'!$B$8:$B$37,$V$24,'Alquiler de espacios yo Instala'!$P$8:$P$37) -> 0 | Y42: =+SUMIF('Alquiler de espacios yo Instala'!$B$8:$B$37,$V$24,'Alquiler de espacios yo Instala'!$Q$8:$Q$37) -> 0 | AA42: =+SUMIF('Alquiler de espacios yo Instala'!$B$8:$B$37,$AA$24,'Alquiler de espacios yo Instala'!N$8:N$37)/Hoja2!$F$1 -> 0 | AB42: =+SUMIF('Alquiler de espacios yo Instala'!$B$8:$B$37,$AA$24,'Alquiler de espacios yo Instala'!O$8:O$37)/Hoja2!$F$1 -> 0 | AC42: =+SUMIF('Alquiler de espacios yo Instala'!$B$8:$B$37,$AA$24,'Alquiler de espacios yo Instala'!$P$8:$P$37)/Hoja2!$F$1 -> 0 | AD42: =+SUMIF('Alquiler de espacios yo Instala'!$B$8:$B$37,$AA$24,'Alquiler de espacios yo Instala'!$Q$8:$Q$37)/Hoja2!$F$1 -> 0 | AF42: =+SUMIF('Alquiler de espacios yo Instala'!$B$8:$B$37,$AF$24,'Alquiler de espacios yo Instala'!N$8:N$37)/Hoja2!$F$1 -> 0 | AG42: =+SUMIF('Alquiler de espacios yo Instala'!$B$8:$B$37,$AF$24,'Alquiler de espacios yo Instala'!O$8:O$37)/Hoja2!$F$1 -> 0 | AH42: =+SUMIF('Alquiler de espacios yo Instala'!$B$8:$B$37,$AF$24,'Alquiler de espacios yo Instala'!$P$8:$P$37)/Hoja2!$F$1 -> 0 | AI42: =+SUMIF('Alquiler de espacios yo Instala'!$B$8:$B$37,$AF$24,'Alquiler de espacios yo Instala'!$Q$8:$Q$37)/Hoja2!$F$1 -> 0 | AK42: =+SUMIF('Alquiler de espacios yo Instala'!$B$8:$B$37,$AK$24,'Alquiler de espacios yo Instala'!N$8:N$37)/Hoja2!$F$1 -> 0 | AL42: =+SUMIF('Alquiler de espacios yo Instala'!$B$8:$B$37,$AK$24,'Alquiler de espacios yo Instala'!O$8:O$37)/Hoja2!$F$1 -> 0 | AM42: =+SUMIF('Alquiler de espacios yo Instala'!$B$8:$B$37,$AK$24,'Alquiler de espacios yo Instala'!$P$8:$P$37)/Hoja2!$F$1 -> 0 | AN42: =+SUMIF('Alquiler de espacios yo Instala'!$B$8:$B$37,$AK$24,'Alquiler de espacios yo Instala'!$Q$8:$Q$37)/Hoja2!$F$1 -> 0 | AP42: =+SUMIF('Alquiler de espacios yo Instala'!$B$8:$B$37,$AP$24,'Alquiler de espacios yo Instala'!N$8:N$37)/Hoja2!$F$1 -> 0 | AQ42: =+SUMIF('Alquiler de espacios yo Instala'!$B$8:$B$37,$AP$24,'Alquiler de espacios yo Instala'!O$8:O$37)/Hoja2!$F$1 -> 0 | AR42: =+SUMIF('Alquiler de espacios yo Instala'!$B$8:$B$37,$AP$24,'Alquiler de espacios yo Instala'!$P$8:$P$37)/Hoja2!$F$1 -> 0 | AS42: =+SUMIF('Alquiler de espacios yo Instala'!$B$8:$B$37,$AP$24,'Alquiler de espacios yo Instala'!$Q$8:$Q$37)/Hoja2!$F$1 -> 0 | AU42: =+SUMIF('Alquiler de espacios yo Instala'!$B$8:$B$37,$AU$24,'Alquiler de espacios yo Instala'!S$8:S$37)/Hoja2!$F$1 -> 0 | AV42: =+SUMIF('Alquiler de espacios yo Instala'!$B$8:$B$37,$AU$24,'Alquiler de espacios yo Instala'!T$8:T$37)/Hoja2!$F$1 -> 0 | AW42: =+SUMIF('Alquiler de espacios yo Instala'!$B$8:$B$37,$AU$24,'Alquiler de espacios yo Instala'!$P$8:$P$37)/Hoja2!$F$1 -> 0 | AX42: =+SUMIF('Alquiler de espacios yo Instala'!$B$8:$B$37,$AU$24,'Alquiler de espacios yo Instala'!$Q$8:$Q$37)/Hoja2!$F$1 -> 0 | AZ42: =+SUMIF('Alquiler de espacios yo Instala'!$B$8:$B$37,$AZ$24,'Alquiler de espacios yo Instala'!X$8:X$37)/Hoja2!$F$1 -> 0 | BA42: =+SUMIF('Alquiler de espacios yo Instala'!$B$8:$B$37,$AZ$24,'Alquiler de espacios yo Instala'!Y$8:Y$37)/Hoja2!$F$1 -> 0 | BB42: =+SUMIF('Alquiler de espacios yo Instala'!$B$8:$B$37,$AZ$24,'Alquiler de espacios yo Instala'!$P$8:$P$37)/Hoja2!$F$1 -> 0 | BC42: =+SUMIF('Alquiler de espacios yo Instala'!$B$8:$B$37,$AZ$24,'Alquiler de espacios yo Instala'!$Q$8:$Q$37)/Hoja2!$F$1 -> 0 | BE42: =+SUMIF('Alquiler de espacios yo Instala'!$B$8:$B$37,$BE$24,'Alquiler de espacios yo Instala'!AC$8:AC$37)/Hoja2!$F$1 -> 0 | BF42: =+SUMIF('Alquiler de espacios yo Instala'!$B$8:$B$37,$BE$24,'Alquiler de espacios yo Instala'!AD$8:AD$37)/Hoja2!$F$1 -> 0 | BG42: =+SUMIF('Alquiler de espacios yo Instala'!$B$8:$B$37,$BE$24,'Alquiler de espacios yo Instala'!$P$8:$P$37)/Hoja2!$F$1 -> 0 | BH42: =+SUMIF('Alquiler de espacios yo Instala'!$B$8:$B$37,$BE$24,'Alquiler de espacios yo Instala'!$Q$8:$Q$37)/Hoja2!$F$1 -> 0 | BJ42: =+SUMIF('Alquiler de espacios yo Instala'!$B$8:$B$37,$BJ$24,'Alquiler de espacios yo Instala'!AH$8:AH$37)/Hoja2!$F$1 -> 0 | BK42: =+SUMIF('Alquiler de espacios yo Instala'!$B$8:$B$37,$BJ$24,'Alquiler de espacios yo Instala'!AI$8:AI$37)/Hoja2!$F$1 -> 0 | BL42: =+SUMIF('Alquiler de espacios yo Instala'!$B$8:$B$37,$BJ$24,'Alquiler de espacios yo Instala'!$P$8:$P$37)/Hoja2!$F$1 -> 0 | BM42: =+SUMIF('Alquiler de espacios yo Instala'!$B$8:$B$37,$BJ$24,'Alquiler de espacios yo Instala'!$Q$8:$Q$37)/Hoja2!$F$1 -> 0 | BO42: =+SUMIF('Alquiler de espacios yo Instala'!$B$8:$B$37,$BO$24,'Alquiler de espacios yo Instala'!AM$8:AM$37)/Hoja2!$F$1 -> 0 | BP42: =+SUMIF('Alquiler de espacios yo Instala'!$B$8:$B$37,$BO$24,'Alquiler de espacios yo Instala'!AN$8:AN$37)/Hoja2!$F$1 -> 0 | BQ42: =+SUMIF('Alquiler de espacios yo Instala'!$B$8:$B$37,$BO$24,'Alquiler de espacios yo Instala'!$P$8:$P$37)/Hoja2!$F$1 -> 0 | BR42: =+SUMIF('Alquiler de espacios yo Instala'!$B$8:$B$37,$BO$24,'Alquiler de espacios yo Instala'!$Q$8:$Q$37)/Hoja2!$F$1 -> 0
B43: Uso de espacios y/o instalaciones | D43: =+SUMIF('Uso de espacios yo Instalacione'!$L$8:$L$37,Hoja2!$B$5,'Uso de espacios yo Instalacione'!$R$8:$R$37)/Hoja2!$F$1 -> 0 | F43: =+SUMIF('Uso de espacios yo Instalacione'!$L$8:$L$37,Hoja2!$B$6,'Uso de espacios yo Instalacione'!$R$8:$R$37)/Hoja2!$F$1 -> 0 | H43: =+SUMIF('Uso de espacios yo Instalacione'!$L$7:$L$37,Hoja2!$B$7,'Uso de espacios yo Instalacione'!$R$8:$R$37)/Hoja2!$F$1 -> 0 | J43: =+SUMIF('Uso de espacios yo Instalacione'!$L$8:$L$37,Hoja2!$B$8,'Uso de espacios yo Instalacione'!$R$8:$R$37)/Hoja2!$F$1 -> 0 | L43: =+SUMIF('Uso de espacios yo Instalacione'!$L$8:$L$37,Hoja2!$B$9,'Uso de espacios yo Instalacione'!$R$8:$R$37)/Hoja2!$F$1 -> 0 | N43: 0 | P43: =+'Uso de espacios yo Instalacione'!N38/Hoja2!$F$1 -> 0 | Q43: =+'Uso de espacios yo Instalacione'!O38/Hoja2!$F$1 -> 0 | R43: =+'Uso de espacios yo Instalacione'!P38/Hoja2!$F$1 -> 0 | S43: =+'Uso de espacios yo Instalacione'!Q38/Hoja2!$F$1 -> 0 | V43: =+SUMIF('Uso de espacios yo Instalacione'!$B$8:$B$37,$V$24,'Uso de espacios yo Instalacione'!N$8:N$37) -> 0 | W43: =+SUMIF('Uso de espacios yo Instalacione'!$B$8:$B$37,$V$24,'Uso de espacios yo Instalacione'!O$8:O$37) -> 0 | X43: =+SUMIF('Uso de espacios yo Instalacione'!$B$8:$B$37,$V$24,'Uso de espacios yo Instalacione'!$P$8:$P$37) -> 0 | Y43: =+SUMIF('Uso de espacios yo Instalacione'!$B$8:$B$37,$V$24,'Uso de espacios yo Instalacione'!$Q$8:$Q$37) -> 0 | AA43: =+SUMIF('Uso de espacios yo Instalacione'!$B$8:$B$37,$AA$24,'Uso de espacios yo Instalacione'!N$8:N$37)/Hoja2!$F$1 -> 0 | AB43: =+SUMIF('Uso de espacios yo Instalacione'!$B$8:$B$37,$AA$24,'Uso de espacios yo Instalacione'!O$8:O$37)/Hoja2!$F$1 -> 0 | AC43: =+SUMIF('Uso de espacios yo Instalacione'!$B$8:$B$37,$AA$24,'Uso de espacios yo Instalacione'!$P$8:$P$37)/Hoja2!$F$1 -> 0 | AD43: =+SUMIF('Uso de espacios yo Instalacione'!$B$8:$B$37,$AA$24,'Uso de espacios yo Instalacione'!$Q$8:$Q$37)/Hoja2!$F$1 -> 0 | AF43: =+SUMIF('Uso de espacios yo Instalacione'!$B$8:$B$37,$AF$24,'Uso de espacios yo Instalacione'!N$8:N$37)/Hoja2!$F$1 -> 0 | AG43: =+SUMIF('Uso de espacios yo Instalacione'!$B$8:$B$37,$AF$24,'Uso de espacios yo Instalacione'!O$8:O$37)/Hoja2!$F$1 -> 0 | AH43: =+SUMIF('Uso de espacios yo Instalacione'!$B$8:$B$37,$AF$24,'Uso de espacios yo Instalacione'!$P$8:$P$37)/Hoja2!$F$1 -> 0 | AI43: =+SUMIF('Uso de espacios yo Instalacione'!$B$8:$B$37,$AF$24,'Uso de espacios yo Instalacione'!$Q$8:$Q$37)/Hoja2!$F$1 -> 0 | AK43: =+SUMIF('Uso de espacios yo Instalacione'!$B$8:$B$37,$AK$24,'Uso de espacios yo Instalacione'!N$8:N$37)/Hoja2!$F$1 -> 0 | AL43: =+SUMIF('Uso de espacios yo Instalacione'!$B$8:$B$37,$AK$24,'Uso de espacios yo Instalacione'!O$8:O$37)/Hoja2!$F$1 -> 0 | AM43: =+SUMIF('Uso de espacios yo Instalacione'!$B$8:$B$37,$AK$24,'Uso de espacios yo Instalacione'!$P$8:$P$37)/Hoja2!$F$1 -> 0 | AN43: =+SUMIF('Uso de espacios yo Instalacione'!$B$8:$B$37,$AK$24,'Uso de espacios yo Instalacione'!$Q$8:$Q$37)/Hoja2!$F$1 -> 0 | AP43: =+SUMIF('Uso de espacios yo Instalacione'!$B$8:$B$37,$AP$24,'Uso de espacios yo Instalacione'!N$8:N$37)/Hoja2!$F$1 -> 0 | AQ43: =+SUMIF('Uso de espacios yo Instalacione'!$B$8:$B$37,$AP$24,'Uso de espacios yo Instalacione'!O$8:O$37)/Hoja2!$F$1 -> 0 | AR43: =+SUMIF('Uso de espacios yo Instalacione'!$B$8:$B$37,$AP$24,'Uso de espacios yo Instalacione'!$P$8:$P$37)/Hoja2!$F$1 -> 0 | AS43: =+SUMIF('Uso de espacios yo Instalacione'!$B$8:$B$37,$AP$24,'Uso de espacios yo Instalacione'!$Q$8:$Q$37)/Hoja2!$F$1 -> 0 | AU43: =+SUMIF('Uso de espacios yo Instalacione'!$B$8:$B$37,$AU$24,'Uso de espacios yo Instalacione'!S$8:S$37)/Hoja2!$F$1 -> 0 | AV43: =+SUMIF('Uso de espacios yo Instalacione'!$B$8:$B$37,$AU$24,'Uso de espacios yo Instalacione'!T$8:T$37)/Hoja2!$F$1 -> 0 | AW43: =+SUMIF('Uso de espacios yo Instalacione'!$B$8:$B$37,$AU$24,'Uso de espacios yo Instalacione'!$P$8:$P$37)/Hoja2!$F$1 -> 0 | AX43: =+SUMIF('Uso de espacios yo Instalacione'!$B$8:$B$37,$AU$24,'Uso de espacios yo Instalacione'!$Q$8:$Q$37)/Hoja2!$F$1 -> 0 | AZ43: =+SUMIF('Uso de espacios yo Instalacione'!$B$8:$B$37,$AZ$24,'Uso de espacios yo Instalacione'!X$8:X$37)/Hoja2!$F$1 -> 0 | BA43: =+SUMIF('Uso de espacios yo Instalacione'!$B$8:$B$37,$AZ$24,'Uso de espacios yo Instalacione'!Y$8:Y$37)/Hoja2!$F$1 -> 0 | BB43: =+SUMIF('Uso de espacios yo Instalacione'!$B$8:$B$37,$AZ$24,'Uso de espacios yo Instalacione'!$P$8:$P$37)/Hoja2!$F$1 -> 0 | BC43: =+SUMIF('Uso de espacios yo Instalacione'!$B$8:$B$37,$AZ$24,'Uso de espacios yo Instalacione'!$Q$8:$Q$37)/Hoja2!$F$1 -> 0 | BE43: =+SUMIF('Uso de espacios yo Instalacione'!$B$8:$B$37,$BE$24,'Uso de espacios yo Instalacione'!AC$8:AC$37)/Hoja2!$F$1 -> 0 | BF43: =+SUMIF('Uso de espacios yo Instalacione'!$B$8:$B$37,$BE$24,'Uso de espacios yo Instalacione'!AD$8:AD$37)/Hoja2!$F$1 -> 0 | BG43: =+SUMIF('Uso de espacios yo Instalacione'!$B$8:$B$37,$BE$24,'Uso de espacios yo Instalacione'!$P$8:$P$37)/Hoja2!$F$1 -> 0 | BH43: =+SUMIF('Uso de espacios yo Instalacione'!$B$8:$B$37,$BE$24,'Uso de espacios yo Instalacione'!$Q$8:$Q$37)/Hoja2!$F$1 -> 0 | BJ43: =+SUMIF('Uso de espacios yo Instalacione'!$B$8:$B$37,$BJ$24,'Uso de espacios yo Instalacione'!AH$8:AH$37)/Hoja2!$F$1 -> 0 | BK43: =+SUMIF('Uso de espacios yo Instalacione'!$B$8:$B$37,$BJ$24,'Uso de espacios yo Instalacione'!AI$8:AI$37)/Hoja2!$F$1 -> 0 | BL43: =+SUMIF('Uso de espacios yo Instalacione'!$B$8:$B$37,$BJ$24,'Uso de espacios yo Instalacione'!$P$8:$P$37)/Hoja2!$F$1 -> 0 | BM43: =+SUMIF('Uso de espacios yo Instalacione'!$B$8:$B$37,$BJ$24,'Uso de espacios yo Instalacione'!$Q$8:$Q$37)/Hoja2!$F$1 -> 0 | BO43: =+SUMIF('Uso de espacios yo Instalacione'!$B$8:$B$37,$BO$24,'Uso de espacios yo Instalacione'!AM$8:AM$37)/Hoja2!$F$1 -> 0 | BP43: =+SUMIF('Uso de espacios yo Instalacione'!$B$8:$B$37,$BO$24,'Uso de espacios yo Instalacione'!AN$8:AN$37)/Hoja2!$F$1 -> 0 | BQ43: =+SUMIF('Uso de espacios yo Instalacione'!$B$8:$B$37,$BO$24,'Uso de espacios yo Instalacione'!$P$8:$P$37)/Hoja2!$F$1 -> 0 | BR43: =+SUMIF('Uso de espacios yo Instalacione'!$B$8:$B$37,$BO$24,'Uso de espacios yo Instalacione'!$Q$8:$Q$37)/Hoja2!$F$1 -> 0
B44: Otros | D44: =+SUMIF(Otros!$L$8:$L$37,Hoja2!$B$5,Otros!$R$8:$R$37)/Hoja2!$F$1 -> 0 | F44: =+SUMIF(Otros!$L$8:$L$37,Hoja2!$B$6,Otros!$R$8:$R$37)/Hoja2!$F$1 -> 0 | H44: =+SUMIF(Otros!$L$8:$L$37,Hoja2!$B$7,Otros!$R$8:$R$37)/Hoja2!$F$1 -> 0 | J44: =+SUMIF(Otros!$L$8:$L$37,Hoja2!$B$8,Otros!$R$8:$R$37)/Hoja2!$F$1 -> 0 | L44: =+SUMIF(Otros!$L$8:$L$37,Hoja2!$B$9,Otros!$R$8:$R$37)/Hoja2!$F$1 -> 0 | N44: 0 | P44: =+Otros!N38/Hoja2!$F$1 -> 0 | Q44: =+Otros!O38/Hoja2!$F$1 -> 0 | R44: =+Otros!P38/Hoja2!$F$1 -> 0 | S44: =+Otros!Q38/Hoja2!$F$1 -> 0 | V44: =+SUMIF(Otros!$B$8:$B$37,$V$24,Otros!N$8:N$37) -> 0 | W44: =+SUMIF(Otros!$B$8:$B$37,$V$24,Otros!O$8:O$37) -> 0 | X44: =+SUMIF(Otros!$B$8:$B$37,$V$24,Otros!$P$8:$P$37) -> 0 | Y44: =+SUMIF(Otros!$B$8:$B$37,$V$24,Otros!$Q$8:$Q$37) -> 0 | AA44: =+SUMIF(Otros!$B$8:$B$37,$AA$24,Otros!N$8:N$37)/Hoja2!$F$1 -> 0 | AB44: =+SUMIF(Otros!$B$8:$B$37,$AA$24,Otros!O$8:O$37)/Hoja2!$F$1 -> 0 | AC44: =+SUMIF(Otros!$B$8:$B$37,$AA$24,Otros!$P$8:$P$37)/Hoja2!$F$1 -> 0 | AD44: =+SUMIF(Otros!$B$8:$B$37,$AA$24,Otros!$Q$8:$Q$37)/Hoja2!$F$1 -> 0 | AF44: =+SUMIF(Otros!$B$8:$B$37,$AF$24,Otros!N$8:N$37)/Hoja2!$F$1 -> 0 | AG44: =+SUMIF(Otros!$B$8:$B$37,$AF$24,Otros!O$8:O$37)/Hoja2!$F$1 -> 0 | AH44: =+SUMIF(Otros!$B$8:$B$37,$AF$24,Otros!$P$8:$P$37)/Hoja2!$F$1 -> 0 | AI44: =+SUMIF(Otros!$B$8:$B$37,$AF$24,Otros!$Q$8:$Q$37)/Hoja2!$F$1 -> 0 | AK44: =+SUMIF(Otros!$B$8:$B$37,$AK$24,Otros!N$8:N$37)/Hoja2!$F$1 -> 0 | AL44: =+SUMIF(Otros!$B$8:$B$37,$AK$24,Otros!O$8:O$37)/Hoja2!$F$1 -> 0 | AM44: =+SUMIF(Otros!$B$8:$B$37,$AK$24,Otros!$P$8:$P$37)/Hoja2!$F$1 -> 0 | AN44: =+SUMIF(Otros!$B$8:$B$37,$AK$24,Otros!$Q$8:$Q$37)/Hoja2!$F$1 -> 0 | AP44: =+SUMIF(Otros!$B$8:$B$37,$AP$24,Otros!N$8:N$37)/Hoja2!$F$1 -> 0 | AQ44: =+SUMIF(Otros!$B$8:$B$37,$AP$24,Otros!O$8:O$37)/Hoja2!$F$1 -> 0 | AR44: =+SUMIF(Otros!$B$8:$B$37,$AP$24,Otros!$P$8:$P$37)/Hoja2!$F$1 -> 0 | AS44: =+SUMIF(Otros!$B$8:$B$37,$AP$24,Otros!$Q$8:$Q$37)/Hoja2!$F$1 -> 0 | AU44: =+SUMIF(Otros!$B$8:$B$37,$AU$24,Otros!S$8:S$37)/Hoja2!$F$1 -> 0 | AV44: =+SUMIF(Otros!$B$8:$B$37,$AU$24,Otros!T$8:T$37)/Hoja2!$F$1 -> 0 | AW44: =+SUMIF(Otros!$B$8:$B$37,$AU$24,Otros!$P$8:$P$37)/Hoja2!$F$1 -> 0 | AX44: =+SUMIF(Otros!$B$8:$B$37,$AU$24,Otros!$Q$8:$Q$37)/Hoja2!$F$1 -> 0 | AZ44: =+SUMIF(Otros!$B$8:$B$37,$AZ$24,Otros!X$8:X$37)/Hoja2!$F$1 -> 0 | BA44: =+SUMIF(Otros!$B$8:$B$37,$AZ$24,Otros!Y$8:Y$37)/Hoja2!$F$1 -> 0 | BB44: =+SUMIF(Otros!$B$8:$B$37,$AZ$24,Otros!$P$8:$P$37)/Hoja2!$F$1 -> 0 | BC44: =+SUMIF(Otros!$B$8:$B$37,$AZ$24,Otros!$Q$8:$Q$37)/Hoja2!$F$1 -> 0 | BE44: =+SUMIF(Otros!$B$8:$B$37,$BE$24,Otros!AC$8:AC$37)/Hoja2!$F$1 -> 0 | BF44: =+SUMIF(Otros!$B$8:$B$37,$BE$24,Otros!AD$8:AD$37)/Hoja2!$F$1 -> 0 | BG44: =+SUMIF(Otros!$B$8:$B$37,$BE$24,Otros!$P$8:$P$37)/Hoja2!$F$1 -> 0 | BH44: =+SUMIF(Otros!$B$8:$B$37,$BE$24,Otros!$Q$8:$Q$37)/Hoja2!$F$1 -> 0 | BJ44: =+SUMIF(Otros!$B$8:$B$37,$BJ$24,Otros!AH$8:AH$37)/Hoja2!$F$1 -> 0 | BK44: =+SUMIF(Otros!$B$8:$B$37,$BJ$24,Otros!AI$8:AI$37)/Hoja2!$F$1 -> 0 | BL44: =+SUMIF(Otros!$B$8:$B$37,$BJ$24,Otros!$P$8:$P$37)/Hoja2!$F$1 -> 0 | BM44: =+SUMIF(Otros!$B$8:$B$37,$BJ$24,Otros!$Q$8:$Q$37)/Hoja2!$F$1 -> 0 | BO44: =+SUMIF(Otros!$B$8:$B$37,$BO$24,Otros!AM$8:AM$37)/Hoja2!$F$1 -> 0 | BP44: =+SUMIF(Otros!$B$8:$B$37,$BO$24,Otros!AN$8:AN$37)/Hoja2!$F$1 -> 0 | BQ44: =+SUMIF(Otros!$B$8:$B$37,$BO$24,Otros!$P$8:$P$37)/Hoja2!$F$1 -> 0 | BR44: =+SUMIF(Otros!$B$8:$B$37,$BO$24,Otros!$Q$8:$Q$37)/Hoja2!$F$1 -> 0
B45: Imprevistos | N45: =+P45 -> 0 | P45: =+SUM(P28:Q44)*$S$15 -> 0 | V45: =+SUM(V29:V42)*6% -> 0 | W45: =+SUM(W29:W42)*6% -> 0 | AA45: =+SUM(AA28:AB44)*$S$15 -> 0 | AF45: =+SUM(AF28:AG44)*$S$15 -> 0 | AK45: =+SUM(AK28:AL44)*$S$15 -> 0 | AP45: =+SUM(AP28:AQ44)*$S$15 -> 0 | AU45: =+SUM(AU28:AV44)*$S$15 -> 0 | AZ45: =+SUM(AZ28:BA44)*$S$15 -> 0 | BE45: =+SUM(BE28:BF44)*$S$15 -> 0 | BJ45: =+SUM(BJ28:BK44)*$S$15 -> 0 | BO45: =+SUM(BO28:BP44)*$S$15 -> 0
B46: Gastos de Administración | N46: =+Q46 -> 0 | Q46: =+SUM(P28:Q44)*$S$14 -> 0 | V46: =+SUM(V29:V42)*6% -> 0 | W46: =+SUM(W29:W42)*6% -> 0 | AB46: =+SUM(AA28:AB44)*$S$14 -> 0 | AG46: =+SUM(AF28:AG44)*$S$14 -> 0 | AL46: =+SUM(AK28:AL44)*$S$14 -> 0 | AQ46: =+SUM(AP28:AQ44)*$S$14 -> 0 | AV46: =+SUM(AU28:AV44)*$S$14 -> 0 | BA46: =+SUM(AZ28:BA44)*$S$14 -> 0 | BF46: =+SUM(BE28:BF44)*$S$14 -> 0 | BK46: =+SUM(BJ28:BK44)*$S$14 -> 0 | BP46: =+SUM(BO28:BP44)*$S$14 -> 0
B47: Seguimiento y Evaluación | N47: =+P47 -> 0 | P47: =+SUM(P28:Q46)*$S$16 -> 0 | V47: =+SUM(V30:V43)*6% -> 0 | W47: =+SUM(W30:W43)*6% -> 0 | AA47: =+SUM(AA28:AB46)*$S$16 -> 0 | AF47: =+SUM(AF28:AG46)*$S$16 -> 0 | AK47: =+SUM(AK28:AL46)*$S$16 -> 0 | AP47: =+SUM(AP28:AQ46)*$S$16 -> 0 | AU47: =+SUM(AU28:AV46)*$S$16 -> 0 | AZ47: =+SUM(AZ28:BA46)*$S$16 -> 0 | BE47: =+SUM(BE28:BF46)*$S$16 -> 0 | BJ47: =+SUM(BJ28:BK46)*$S$16 -> 0 | BO47: =+SUM(BO28:BP46)*$S$16 -> 0
B49: TOTAL | D49: =+SUM(D28:D47) -> 35486797 | F49: =+SUM(F28:F47) -> 0 | H49: =+SUM(H28:H47) -> 0 | J49: =+SUM(J28:J47) -> 0 | L49: =+SUM(L28:L47) -> 0 | N49: =+SUM(N28:N47) -> 35486797 | P49: =+SUM(P28:P47) -> 14996000 | Q49: =+SUM(Q28:Q47) -> 0 | R49: 20490797 | S49: 0 | U49: =+IF(AND(SUM(D49,F49,H49,J49,L49)=SUM(N28:N44),SUM(V49:BS49)=SUM(P49:S49),SUM(N28:N44)=SUM(P28:S44))," ", "Error") ->  | V49: =+SUM(V30:V47) -> 0 | W49: =+SUM(W30:W47) -> 0 | X49: =+SUM(X30:X43) -> 0 | Y49: =+SUM(Y30:Y43) -> 0 | AA49: =+SUM(AA28:AA47) -> 14996000 | AB49: 0 | AC49: 20490797 | AD49: 0 | AF49: =+SUM(AF28:AF47) -> 0 | AG49: 0 | AH49: 0 | AI49: 0 | AK49: =+SUM(AK28:AK47) -> 0 | AL49: 0 | AM49: 0 | AN49: 0 | AP49: =+SUM(AP28:AP47) -> 0 | AQ49: 0 | AR49: 0 | AS49: 0 | AU49: =+SUM(AU28:AU47) -> 0 | AV49: 0 | AW49: 0 | AX49: 0 | AZ49: =+SUM(AZ28:AZ47) -> 0 | BA49: 0 | BB49: 0 | BC49: 0 | BE49: =+SUM(BE28:BE47) -> 0 | BF49: 0 | BG49: 0 | BH49: 0 | BJ49: =+SUM(BJ28:BJ47) -> 0 | BK49: =+SUM(BK28:BK47) -> 0 | BL49: =+SUM(BL28:BL47) -> 0 | BM49: =+SUM(BM28:BM47) -> 0 | BO49: =+SUM(BO28:BO47) -> 0 | BP49: 0 | BQ49: 0 | BR49: 0
B51: % PARTICIPACION TOTAL PROYECTO | D51: =IFERROR(D49/$N$49,0) -> 1 | F51: =IFERROR(F49/$N$49,0) -> 0 | H51: =IFERROR(H49/$N$49,0) -> 0 | J51: =IFERROR(J49/$N$49,0) -> 0 | L51: =IFERROR(L49/$N$49,0) -> 0 | N51: =IFERROR(N49/$N$49,0) -> 1 | P51: =IFERROR(P49/$N$49,0) -> 0.4225796991 | Q51: =IFERROR(Q49/$N$49,0) -> 0 | R51: 0.5774203009 | S51: 0 | V51: =IFERROR(V49/$N$49,0) -> 0 | W51: 0 | X51: =IFERROR(X49/$N$49,0) -> 0 | Y51: =IFERROR(Y49/$N$49,0) -> 0 | AA51: =IFERROR(AA49/$N$49,0) -> 0.4225796991 | AB51: =IFERROR(AB49/$N$49,0) -> 0 | AC51: 0.5774203009 | AD51: 0 | AF51: =IFERROR(AF49/$N$49,0) -> 0 | AG51: =IFERROR(AG49/$N$49,0) -> 0 | AH51: 0 | AI51: 0 | AK51: =IFERROR(AK49/$N$49,0) -> 0 | AL51: =IFERROR(AL49/$N$49,0) -> 0 | AM51: 0 | AN51: 0 | AP51: =IFERROR(AP49/$N$49,0) -> 0 | AQ51: =IFERROR(AQ49/$N$49,0) -> 0 | AR51: 0 | AS51: 0 | AU51: =IFERROR(AU49/$N$49,0) -> 0 | AV51: 0 | AW51: 0 | AX51: 0 | AZ51: =IFERROR(AZ49/$N$49,0) -> 0 | BA51: 0 | BB51: 0 | BC51: 0 | BE51: =IFERROR(BE49/$N$49,0) -> 0 | BF51: 0 | BG51: 0 | BH51: 0 | BJ51: =IFERROR(BJ49/$N$49,0) -> 0 | BK51: 0 | BL51: 0 | BM51: 0 | BO51: =IFERROR(BO49/$N$49,0) -> 0 | BP51: 0 | BQ51: 0 | BR51: 0

Sheet Personal
C3: Nombre del proyecto | D3: ='Ficha Resumen'!D18:P18 -> Exploración de la validez de las formulas utilizadas para calcular porcentaje graso frente a la absorciometro de rayos X en deportistas paralimpicos con aputación de miembros inferiores
O4: =+Hoja2!C5 -> 0 | W4: =+Hoja2!C6 -> 0.075 | AE4: =+Hoja2!C7 -> 0.05 | AM4: =+Hoja2!C8 -> 0.043 | AU4: =+Hoja2!C9 -> 0.037
C5: PERSONAL - SALARIAL
C6: Cifras en Pesos COP | F6: % Incentivos Consultoría | J6: 0.01 | K6: =+'Ficha Resumen'!D26 -> AÑO 1 | S6: =+'Ficha Resumen'!F26 -> AÑO 2 | AA6: =+'Ficha Resumen'!H26 -> AÑO 3 | AI6: =+'Ficha Resumen'!J26 -> AÑO 4 | AQ6: =+'Ficha Resumen'!L26 -> AÑO 5
F7: % Incentivos Investigación | J7: 0.5
B8: Institución | C8: Función en el proyecto | D8: Nombres y Apellidos* | E8: Financiado / Contrapartida | F8: Salario Base (sin prestaciones) $ / Mensual | G8: Tipo Contrato | H8: Tipo de salario | I8: % Carga Prestacional | J8: Dedicación | K8: Dedicación meses | L8: Dedicación H/Semanas | M8: Total Salario + Prestaciones | N8: Incentivo | O8: Valor Hora Salario | P8: Total Salario | Q8: Valor Hora Prestaciones | R8: Total Prestaciones | S8: Dedicación meses | T8: Dedicación H/Semanas | U8: Total Salario + Prestaciones | V8: Incentivo | W8: Valor Hora Salario | X8: Total Salario | Y8: Valor Hora Prestaciones | Z8: Total Prestaciones | AA8: Dedicación meses | AB8: Dedicación H/Semanas | AC8: Total Salario + Prestaciones | AD8: Incentivo | AE8: Valor Hora Salario | AF8: Total Salario | AG8: Valor Hora Prestaciones | AH8: Total Prestaciones | AI8: Dedicación meses | AJ8: Dedicación H/Semanas | AK8: Total Salario + Prestaciones | AL8: Incentivo | AM8: Valor Hora Salario | AN8: Total Salario | AO8: Valor Hora Prestaciones | AP8: Total Prestaciones | AQ8: Dedicación meses | AR8: Dedicación H/Semanas | AS8: Total Salario + Prestaciones | AT8: Incentivo | AU8: Valor Hora Salario | AV8: Total Salario | AW8: Valor Hora Prestaciones | AX8: Total Prestaciones | AY8: =+Hoja2!B16 -> Financiado Caja | AZ8: =+Hoja2!B17 -> Financiado No Caja | BA8: =+Hoja2!$B$19 -> Contrapartida Especie | BB8: =+Hoja2!$B$18 -> Contrapartida Efectivo | BC8: Total
B9: EMCS | C9: Líder del Proyecto | D9: RIVERA AMEZQUITA LAURA VICTORIA - INVESTIGADOR PRINCIPAL | E9: Contrapartida Especie | F9: 6367700 | G9: Planta | H9: No integral | I9: =+IF(H9=Hoja2!$B$27,0.2102,IF(H9=Hoja2!$B$28,0.58,0)) -> 0.58 | J9: Tiempo Completo | K9: 12 | L9: 4.05468355 | M9: =+P9+R9 -> 12238210 | N9: =+IF(G9=Hoja2!$J$5,IF(AND('Ficha Resumen'!$Q$18=Hoja2!$H$5,Personal!$E9=Hoja2!$B$31),Personal!$J$7*(Personal!$P9+Personal!$R9),IF(AND('Ficha Resumen'!$Q$18=Hoja2!$H$6,Personal!$E9=Hoja2!$B$31),Personal!$J$6*(Personal!$P9+Personal!$R9),0)),0) -> 0 | O9: =+IF(J9=Hoja2!$B$22,F9/160,IF(Personal!J9=Hoja2!$B$23,F9/80,0))*(1+O$4) -> 39798.125 | P9: =+O9*L9*4*K9 -> 7745702.532 | Q9: =+IF(J9=Hoja2!$B$22,F9*I9/160,IF(Personal!J9=Hoja2!$B$23,F9*I9/80,0))*(1+O$4) -> 23082.9125 | R9: =+Q9*L9*4*K9 -> 4492507.468 | U9: =+X9+Z9 -> 0 | V9: =IF(G9=Hoja2!$J$5,IF(AND('Ficha Resumen'!$Q$18=Hoja2!$H$5,Personal!$E9=Hoja2!$B$31),Personal!$J$7*(Personal!$X9+Personal!$Z9),IF(AND('Ficha Resumen'!$Q$18=Hoja2!$H$6,Personal!$E9=Hoja2!$B$31),Personal!$J$6*(Personal!$X9+Personal!$Z9),0)),0) -> 0 | W9: =+O9*(1+W$4) -> 42782.98438 | X9: =+W9*T9*4*S9 -> 0 | Y9: =+Q9*(1+W$4) -> 24814.13094 | Z9: =+Y9*T9*4*S9 -> 0 | AC9: =+AF9+AH9 -> 0 | AD9: =IF(G9=Hoja2!$J$5,IF(AND('Ficha Resumen'!$Q$18=Hoja2!$H$5,Personal!$E9=Hoja2!$B$31),Personal!$J$7*(Personal!$AF9+Personal!$AH9),IF(AND('Ficha Resumen'!$Q$18=Hoja2!$H$6,Personal!$E9=Hoja2!$B$31),Personal!$J$6*(Personal!$AF9+Personal!$AH9),0)),0) -> 0 | AE9: =+W9*(1+AE$4) -> 44922.13359 | AF9: =+AE9*AB9*4*AA9 -> 0 | AG9: =+Y9*(1+AE$4) -> 26054.83748 | AH9: =+AG9*AB9*4*AA9 -> 0 | AK9: =+AN9+AP9 -> 0 | AL9: =IF(G9=Hoja2!$J$5,IF(AND('Ficha Resumen'!$Q$18=Hoja2!$H$5,Personal!$E9=Hoja2!$B$31),Personal!$J$7*(Personal!$AN9+Personal!$AP9),IF(AND('Ficha Resumen'!$Q$18=Hoja2!$H$6,Personal!$E9=Hoja2!$B$31),Personal!$J$6*(Personal!$AN9+Personal!$AP9),0)),0) -> 0 | AM9: =+AE9*(1+AM$4) -> 46853.78534 | AN9: =+AM9*AJ9*4*AI9 -> 0 | AO9: =+AG9*(1+AM$4) -> 27175.1955 | AP9: =+AO9*AJ9*4*AI9 -> 0 | AS9: =+AV9+AX9 -> 0 | AT9: =IF(G9=Hoja2!$J$5,IF(AND('Ficha Resumen'!$Q$18=Hoja2!$H$5,Personal!$E9=Hoja2!$B$31),Personal!$J$7*(Personal!$AV9+Personal!$AX9),IF(AND('Ficha Resumen'!$Q$18=Hoja2!$H$6,Personal!$E9=Hoja2!$B$31),Personal!$J$6*(Personal!$AV9+Personal!$AX9),0)),0) -> 0 | AU9: =+AM9*(1+AU$4) -> 48587.3754 | AV9: =+AU9*AR9*4*AQ9 -> 0 | AW9: =+AO9*(1+AU$4) -> 28180.67773 | AX9: =+AW9*AR9*4*AQ9 -> 0 | AY9: =+IF(AND(E9=Hoja2!$B$31,(N9+V9+AD9+AL9+AT9)>0),(N9+V9+AD9+AL9+AT9),IF(E9=Hoja2!$B$31,(M9+U9+AC9+AK9+AS9),0)) -> 0 | AZ9: =+IF(E9=Hoja2!$B$31,(M9+U9+AC9+AK9+AS9)-AY9,IF(E9=Hoja2!$B$32,(M9+U9+AC9+AK9+AS9),0)) -> 0 | BA9: =+IF(E9=Hoja2!$B$34,(M9+U9+AC9+AK9+AS9),0) -> 12238210 | BB9: =+IF(E9=Hoja2!$B$33,(M9+U9+AC9+AK9+AS9),0) -> 0 | BC9: =+AY9+BA9+BB9+AZ9 -> 12238210 | BD9: =+IF(OR(C9=Hoja2!$B$92,C9=Hoja2!$B$93,C9=Hoja2!$B$94),Personal!AY9,0) -> 0
B10: EMCS | C10: Coinvestigador | D10: RAMOS CABALLERO DIANA MARCELA - COINVESTIGADOR UR | E10: Contrapartida Especie | F10: 10930000 | G10: Planta | H10: Integral | I10: =+IF(H10=Hoja2!$B$27,0.2102,IF(H10=Hoja2!$B$28,0.58,0)) -> 0.2102 | J10: Tiempo Completo | K10: 12 | L10: 2.079656205 | M10: =+P10+R10 -> 8252587 | N10: =+IF(G10=Hoja2!$J$5,IF(AND('Ficha Resumen'!$Q$18=Hoja2!$H$5,Personal!$E10=Hoja2!$B$31),Personal!$J$7*(Personal!$P10+Personal!$R10),IF(AND('Ficha Resumen'!$Q$18=Hoja2!$H$6,Personal!$E10=Hoja2!$B$31),Personal!$J$6*(Personal!$P10+Personal!$R10),0)),0) -> 0 | O10: =+IF(J10=Hoja2!$B$22,F10/160,IF(Personal!J10=Hoja2!$B$23,F10/80,0))*(1+O$4) -> 68312.5 | P10: =+O10*L10*4*K10 -> 6819192.695 | Q10: =+IF(J10=Hoja2!$B$22,F10*I10/160,IF(Personal!J10=Hoja2!$B$23,F10*I10/80,0))*(1+O$4) -> 14359.2875 | R10: =+Q10*L10*4*K10 -> 1433394.305 | U10: =+X10+Z10 -> 0 | V10: =IF(G10=Hoja2!$J$5,IF(AND('Ficha Resumen'!$Q$18=Hoja2!$H$5,Personal!$E10=Hoja2!$B$31),Personal!$J$7*(Personal!$X10+Personal!$Z10),IF(AND('Ficha Resumen'!$Q$18=Hoja2!$H$6,Personal!$E10=Hoja2!$B$31),Personal!$J$6*(Personal!$X10+Personal!$Z10),0)),0) -> 0 | W10: =+O10*(1+W$4) -> 73435.9375 | X10: =+W10*T10*4*S10 -> 0 | Y10: =+Q10*(1+W$4) -> 15436.23406 | Z10: =+Y10*T10*4*S10 -> 0 | AC10: =+AF10+AH10 -> 0 | AD10: =IF(G10=Hoja2!$J$5,IF(AND('Ficha Resumen'!$Q$18=Hoja2!$H$5,Personal!$E10=Hoja2!$B$31),Personal!$J$7*(Personal!$AF10+Personal!$AH10),IF(AND('Ficha Resumen'!$Q$18=Hoja2!$H$6,Personal!$E10=Hoja2!$B$31),Personal!$J$6*(Personal!$AF10+Personal!$AH10),0)),0) -> 0 | AE10: =+W10*(1+AE$4) -> 77107.73438 | AF10: =+AE10*AB10*4*AA10 -> 0 | AG10: =+Y10*(1+AE$4) -> 16208.04577 | AH10: =+AG10*AB10*4*AA10 -> 0 | AK10: =+AN10+AP10 -> 0 | AL10: =IF(G10=Hoja2!$J$5,IF(AND('Ficha Resumen'!$Q$18=Hoja2!$H$5,Personal!$E10=Hoja2!$B$31),Personal!$J$7*(Personal!$AN10+Personal!$AP10),IF(AND('Ficha Resumen'!$Q$18=Hoja2!$H$6,Personal!$E10=Hoja2!$B$31),Personal!$J$6*(Personal!$AN10+Personal!$AP10),0)),0) -> 0 | AM10: =+AE10*(1+AM$4) -> 80423.36695 | AN10: =+AM10*AJ10*4*AI10 -> 0 | AO10: =+AG10*(1+AM$4) -> 16904.99173 | AP10: =+AO10*AJ10*4*AI10 -> 0 | AS10: =+AV10+AX10 -> 0 | AT10: =IF(G10=Hoja2!$J$5,IF(AND('Ficha Resumen'!$Q$18=Hoja2!$H$5,Personal!$E10=Hoja2!$B$31),Personal!$J$7*(Personal!$AV10+Personal!$AX10),IF(AND('Ficha Resumen'!$Q$18=Hoja2!$H$6,Personal!$E10=Hoja2!$B$31),Personal!$J$6*(Personal!$AV10+Personal!$AX10),0)),0) -> 0 | AU10: =+AM10*(1+AU$4) -> 83399.03153 | AV10: =+AU10*AR10*4*AQ10 -> 0 | AW10: =+AO10*(1+AU$4) -> 17530.47643 | AX10: =+AW10*AR10*4*AQ10 -> 0 | AY10: =+IF(AND(E10=Hoja2!$B$31,(N10+V10+AD10+AL10+AT10)>0),(N10+V10+AD10+AL10+AT10),IF(E10=Hoja2!$B$31,(M10+U10+AC10+AK10+AS10),0)) -> 0 | AZ10: =+IF(E10=Hoja2!$B$31,(M10+U10+AC10+AK10+AS10)-AY10,IF(E10=Hoja2!$B$32,(M10+U10+AC10+AK10+AS10),0)) -> 0 | BA10: =+IF(E10=Hoja2!$B$34,(M10+U10+AC10+AK10+AS10),0) -> 8252587 | BB10: =+IF(E10=Hoja2!$B$33,(M10+U10+AC10+AK10+AS10),0) -> 0 | BC10: =+AY10+BA10+BB10+AZ10 -> 8252587 | BD10: =+IF(OR(C10=Hoja2!$B$92,C10=Hoja2!$B$93,C10=Hoja2!$B$94),Personal!AY10,0) -> 0
I11: =+IF(H11=Hoja2!$B$27,0.2102,IF(H11=Hoja2!$B$28,0.58,0)) -> 0 | M11: 0 | N11: =+IF(G11=Hoja2!$J$5,IF(AND('Ficha Resumen'!$Q$18=Hoja2!$H$5,Personal!$E11=Hoja2!$B$31),Personal!$J$7*(Personal!$P11+Personal!$R11),IF(AND('Ficha Resumen'!$Q$18=Hoja2!$H$6,Personal!$E11=Hoja2!$B$31),Personal!$J$6*(Personal!$P11+Personal!$R11),0)),0) -> 0 | O11: =+IF(J11=Hoja2!$B$22,F11/160,IF(Personal!J11=Hoja2!$B$23,F11/80,0))*(1+O$4) -> 0 | P11: 0 | Q11: =+IF(J11=Hoja2!$B$22,F11*I11/160,IF(Personal!J11=Hoja2!$B$23,F11*I11/80,0))*(1+O$4) -> 0 | R11: 0 | U11: 0 | V11: =IF(G11=Hoja2!$J$5,IF(AND('Ficha Resumen'!$Q$18=Hoja2!$H$5,Personal!$E11=Hoja2!$B$31),Personal!$J$7*(Personal!$X11+Personal!$Z11),IF(AND('Ficha Resumen'!$Q$18=Hoja2!$H$6,Personal!$E11=Hoja2!$B$31),Personal!$J$6*(Personal!$X11+Personal!$Z11),0)),0) -> 0 | W11: 0 | X11: 0 | Y11: 0 | Z11: 0 | AC11: 0 | AD11: =IF(G11=Hoja2!$J$5,IF(AND('Ficha Resumen'!$Q$18=Hoja2!$H$5,Personal!$E11=Hoja2!$B$31),Personal!$J$7*(Personal!$AF11+Personal!$AH11),IF(AND('Ficha Resumen'!$Q$18=Hoja2!$H$6,Personal!$E11=Hoja2!$B$31),Personal!$J$6*(Personal!$AF11+Personal!$AH11),0)),0) -> 0 | AE11: 0 | AF11: 0 | AG11: 0 | AH11: 0 | AK11: 0 | AL11: =IF(G11=Hoja2!$J$5,IF(AND('Ficha Resumen'!$Q$18=Hoja2!$H$5,Personal!$E11=Hoja2!$B$31),Personal!$J$7*(Personal!$AN11+Personal!$AP11),IF(AND('Ficha Resumen'!$Q$18=Hoja2!$H$6,Personal!$E11=Hoja2!$B$31),Personal!$J$6*(Personal!$AN11+Personal!$AP11),0)),0) -> 0 | AM11: 0 | AN11: 0 | AO11: 0 | AP11: 0 | AS11: 0 | AT11: =IF(G11=Hoja2!$J$5,IF(AND('Ficha Resumen'!$Q$18=Hoja2!$H$5,Personal!$E11=Hoja2!$B$31),Personal!$J$7*(Personal!$AV11+Personal!$AX11),IF(AND('Ficha Resumen'!$Q$18=Hoja2!$H$6,Personal!$E11=Hoja2!$B$31),Personal!$J$6*(Personal!$AV11+Personal!$AX11),0)),0) -> 0 | AU11: 0 | AV11: 0 | AW11: 0 | AX11: 0 | AY11: =+IF(AND(E11=Hoja2!$B$31,(N11+V11+AD11+AL11+AT11)>0),(N11+V11+AD11+AL11+AT11),IF(E11=Hoja2!$B$31,(M11+U11+AC11+AK11+AS11),0)) -> 0 | AZ11: =+IF(E11=Hoja2!$B$31,(M11+U11+AC11+AK11+AS11)-AY11,IF(E11=Hoja2!$B$32,(M11+U11+AC11+AK11+AS11),0)) -> 0 | BA11: =+IF(E11=Hoja2!$B$34,(M11+U11+AC11+AK11+AS11),0) -> 0 | BB11: =+IF(E11=Hoja2!$B$33,(M11+U11+AC11+AK11+AS11),0) -> 0 | BC11: 0 | BD11: =+IF(OR(C11=Hoja2!$B$92,C11=Hoja2!$B$93,C11=Hoja2!$B$94),Personal!AY11,0) -> 0
I12: =+IF(H12=Hoja2!$B$27,0.2102,IF(H12=Hoja2!$B$28,0.58,0)) -> 0 | M12: 0 | N12: =+IF(G12=Hoja2!$J$5,IF(AND('Ficha Resumen'!$Q$18=Hoja2!$H$5,Personal!$E12=Hoja2!$B$31),Personal!$J$7*(Personal!$P12+Personal!$R12),IF(AND('Ficha Resumen'!$Q$18=Hoja2!$H$6,Personal!$E12=Hoja2!$B$31),Personal!$J$6*(Personal!$P12+Personal!$R12),0)),0) -> 0 | O12: =+IF(J12=Hoja2!$B$22,F12/160,IF(Personal!J12=Hoja2!$B$23,F12/80,0))*(1+O$4) -> 0 | P12: 0 | Q12: =+IF(J12=Hoja2!$B$22,F12*I12/160,IF(Personal!J12=Hoja2!$B$23,F12*I12/80,0))*(1+O$4) -> 0 | R12: 0 | U12: 0 | V12: =IF(G12=Hoja2!$J$5,IF(AND('Ficha Resumen'!$Q$18=Hoja2!$H$5,Personal!$E12=Hoja2!$B$31),Personal!$J$7*(Personal!$X12+Personal!$Z12),IF(AND('Ficha Resumen'!$Q$18=Hoja2!$H$6,Personal!$E12=Hoja2!$B$31),Personal!$J$6*(Personal!$X12+Personal!$Z12),0)),0) -> 0 | W12: 0 | X12: 0 | Y12: 0 | Z12: 0 | AC12: 0 | AD12: =IF(G12=Hoja2!$J$5,IF(AND('Ficha Resumen'!$Q$18=Hoja2!$H$5,Personal!$E12=Hoja2!$B$31),Personal!$J$7*(Personal!$AF12+Personal!$AH12),IF(AND('Ficha Resumen'!$Q$18=Hoja2!$H$6,Personal!$E12=Hoja2!$B$31),Personal!$J$6*(Personal!$AF12+Personal!$AH12),0)),0) -> 0 | AE12: 0 | AF12: 0 | AG12: 0 | AH12: 0 | AK12: 0 | AL12: =IF(G12=Hoja2!$J$5,IF(AND('Ficha Resumen'!$Q$18=Hoja2!$H$5,Personal!$E12=Hoja2!$B$31),Personal!$J$7*(Personal!$AN12+Personal!$AP12),IF(AND('Ficha Resumen'!$Q$18=Hoja2!$H$6,Personal!$E12=Hoja2!$B$31),Personal!$J$6*(Personal!$AN12+Personal!$AP12),0)),0) -> 0 | AM12: 0 | AN12: 0 | AO12: 0 | AP12: 0 | AS12: 0 | AT12: =IF(G12=Hoja2!$J$5,IF(AND('Ficha Resumen'!$Q$18=Hoja2!$H$5,Personal!$E12=Hoja2!$B$31),Personal!$J$7*(Personal!$AV12+Personal!$AX12),IF(AND('Ficha Resumen'!$Q$18=Hoja2!$H$6,Personal!$E12=Hoja2!$B$31),Personal!$J$6*(Personal!$AV12+Personal!$AX12),0)),0) -> 0 | AU12: 0 | AV12: 0 | AW12: 0 | AX12: 0 | AY12: =+IF(AND(E12=Hoja2!$B$31,(N12+V12+AD12+AL12+AT12)>0),(N12+V12+AD12+AL12+AT12),IF(E12=Hoja2!$B$31,(M12+U12+AC12+AK12+AS12),0)) -> 0 | AZ12: =+IF(E12=Hoja2!$B$31,(M12+U12+AC12+AK12+AS12)-AY12,IF(E12=Hoja2!$B$32,(M12+U12+AC12+AK12+AS12),0)) -> 0 | BA12: =+IF(E12=Hoja2!$B$34,(M12+U12+AC12+AK12+AS12),0) -> 0 | BB12: =+IF(E12=Hoja2!$B$33,(M12+U12+AC12+AK12+AS12),0) -> 0 | BC12: 0 | BD12: =+IF(OR(C12=Hoja2!$B$92,C12=Hoja2!$B$93,C12=Hoja2!$B$94),Personal!AY12,0) -> 0
I13: =+IF(H13=Hoja2!$B$27,0.2102,IF(H13=Hoja2!$B$28,0.58,0)) -> 0 | M13: 0 | N13: =+IF(G13=Hoja2!$J$5,IF(AND('Ficha Resumen'!$Q$18=Hoja2!$H$5,Personal!$E13=Hoja2!$B$31),Personal!$J$7*(Personal!$P13+Personal!$R13),IF(AND('Ficha Resumen'!$Q$18=Hoja2!$H$6,Personal!$E13=Hoja2!$B$31),Personal!$J$6*(Personal!$P13+Personal!$R13),0)),0) -> 0 | O13: =+IF(J13=Hoja2!$B$22,F13/160,IF(Personal!J13=Hoja2!$B$23,F13/80,0))*(1+O$4) -> 0 | P13: 0 | Q13: =+IF(J13=Hoja2!$B$22,F13*I13/160,IF(Personal!J13=Hoja2!$B$23,F13*I13/80,0))*(1+O$4) -> 0 | R13: 0 | U13: 0 | V13: =IF(G13=Hoja2!$J$5,IF(AND('Ficha Resumen'!$Q$18=Hoja2!$H$5,Personal!$E13=Hoja2!$B$31),Personal!$J$7*(Personal!$X13+Personal!$Z13),IF(AND('Ficha Resumen'!$Q$18=Hoja2!$H$6,Personal!$E13=Hoja2!$B$31),Personal!$J$6*(Personal!$X13+Personal!$Z13),0)),0) -> 0 | W13: 0 | X13: 0 | Y13: 0 | Z13: 0 | AC13: 0 | AD13: =IF(G13=Hoja2!$J$5,IF(AND('Ficha Resumen'!$Q$18=Hoja2!$H$5,Personal!$E13=Hoja2!$B$31),Personal!$J$7*(Personal!$AF13+Personal!$AH13),IF(AND('Ficha Resumen'!$Q$18=Hoja2!$H$6,Personal!$E13=Hoja2!$B$31),Personal!$J$6*(Personal!$AF13+Personal!$AH13),0)),0) -> 0 | AE13: 0 | AF13: 0 | AG13: 0 | AH13: 0 | AK13: 0 | AL13: =IF(G13=Hoja2!$J$5,IF(AND('Ficha Resumen'!$Q$18=Hoja2!$H$5,Personal!$E13=Hoja2!$B$31),Personal!$J$7*(Personal!$AN13+Personal!$AP13),IF(AND('Ficha Resumen'!$Q$18=Hoja2!$H$6,Personal!$E13=Hoja2!$B$31),Personal!$J$6*(Personal!$AN13+Personal!$AP13),0)),0) -> 0 | AM13: 0 | AN13: 0 | AO13: 0 | AP13: 0 | AS13: 0 | AT13: =IF(G13=Hoja2!$J$5,IF(AND('Ficha Resumen'!$Q$18=Hoja2!$H$5,Personal!$E13=Hoja2!$B$31),Personal!$J$7*(Personal!$AV13+Personal!$AX13),IF(AND('Ficha Resumen'!$Q$18=Hoja2!$H$6,Personal!$E13=Hoja2!$B$31),Personal!$J$6*(Personal!$AV13+Personal!$AX13),0)),0) -> 0 | AU13: 0 | AV13: 0 | AW13: 0 | AX13: 0 | AY13: =+IF(AND(E13=Hoja2!$B$31,(N13+V13+AD13+AL13+AT13)>0),(N13+V13+AD13+AL13+AT13),IF(E13=Hoja2!$B$31,(M13+U13+AC13+AK13+AS13),0)) -> 0 | AZ13: =+IF(E13=Hoja2!$B$31,(M13+U13+AC13+AK13+AS13)-AY13,IF(E13=Hoja2!$B$32,(M13+U13+AC13+AK13+AS13),0)) -> 0 | BA13: =+IF(E13=Hoja2!$B$34,(M13+U13+AC13+AK13+AS13),0) -> 0 | BB13: =+IF(E13=Hoja2!$B$33,(M13+U13+AC13+AK13+AS13),0) -> 0 | BC13: 0 | BD13: =+IF(OR(C13=Hoja2!$B$92,C13=Hoja2!$B$93,C13=Hoja2!$B$94),Personal!AY13,0) -> 0
I14: =+IF(H14=Hoja2!$B$27,0.2102,IF(H14=Hoja2!$B$28,0.58,0)) -> 0 | M14: 0 | N14: =+IF(G14=Hoja2!$J$5,IF(AND('Ficha Resumen'!$Q$18=Hoja2!$H$5,Personal!$E14=Hoja2!$B$31),Personal!$J$7*(Personal!$P14+Personal!$R14),IF(AND('Ficha Resumen'!$Q$18=Hoja2!$H$6,Personal!$E14=Hoja2!$B$31),Personal!$J$6*(Personal!$P14+Personal!$R14),0)),0) -> 0 | O14: =+IF(J14=Hoja2!$B$22,F14/160,IF(Personal!J14=Hoja2!$B$23,F14/80,0))*(1+O$4) -> 0 | P14: 0 | Q14: =+IF(J14=Hoja2!$B$22,F14*I14/160,IF(Personal!J14=Hoja2!$B$23,F14*I14/80,0))*(1+O$4) -> 0 | R14: 0 | U14: 0 | V14: =IF(G14=Hoja2!$J$5,IF(AND('Ficha Resumen'!$Q$18=Hoja2!$H$5,Personal!$E14=Hoja2!$B$31),Personal!$J$7*(Personal!$X14+Personal!$Z14),IF(AND('Ficha Resumen'!$Q$18=Hoja2!$H$6,Personal!$E14=Hoja2!$B$31),Personal!$J$6*(Personal!$X14+Personal!$Z14),0)),0) -> 0 | W14: 0 | X14: 0 | Y14: 0 | Z14: 0 | AC14: 0 | AD14: =IF(G14=Hoja2!$J$5,IF(AND('Ficha Resumen'!$Q$18=Hoja2!$H$5,Personal!$E14=Hoja2!$B$31),Personal!$J$7*(Personal!$AF14+Personal!$AH14),IF(AND('Ficha Resumen'!$Q$18=Hoja2!$H$6,Personal!$E14=Hoja2!$B$31),Personal!$J$6*(Personal!$AF14+Personal!$AH14),0)),0) -> 0 | AE14: 0 | AF14: 0 | AG14: 0 | AH14: 0 | AK14: 0 | AL14: =IF(G14=Hoja2!$J$5,IF(AND('Ficha Resumen'!$Q$18=Hoja2!$H$5,Personal!$E14=Hoja2!$B$31),Personal!$J$7*(Personal!$AN14+Personal!$AP14),IF(AND('Ficha Resumen'!$Q$18=Hoja2!$H$6,Personal!$E14=Hoja2!$B$31),Personal!$J$6*(Personal!$AN14+Personal!$AP14),0)),0) -> 0 | AM14: 0 | AN14: 0 | AO14: 0 | AP14: 0 | AS14: 0 | AT14: =IF(G14=Hoja2!$J$5,IF(AND('Ficha Resumen'!$Q$18=Hoja2!$H$5,Personal!$E14=Hoja2!$B$31),Personal!$J$7*(Personal!$AV14+Personal!$AX14),IF(AND('Ficha Resumen'!$Q$18=Hoja2!$H$6,Personal!$E14=Hoja2!$B$31),Personal!$J$6*(Personal!$AV14+Personal!$AX14),0)),0) -> 0 | AU14: 0 | AV14: 0 | AW14: 0 | AX14: 0 | AY14: =+IF(AND(E14=Hoja2!$B$31,(N14+V14+AD14+AL14+AT14)>0),(N14+V14+AD14+AL14+AT14),IF(E14=Hoja2!$B$31,(M14+U14+AC14+AK14+AS14),0)) -> 0 | AZ14: =+IF(E14=Hoja2!$B$31,(M14+U14+AC14+AK14+AS14)-AY14,IF(E14=Hoja2!$B$32,(M14+U14+AC14+AK14+AS14),0)) -> 0 | BA14: =+IF(E14=Hoja2!$B$34,(M14+U14+AC14+AK14+AS14),0) -> 0 | BB14: =+IF(E14=Hoja2!$B$33,(M14+U14+AC14+AK14+AS14),0) -> 0 | BC14: 0 | BD14: =+IF(OR(C14=Hoja2!$B$92,C14=Hoja2!$B$93,C14=Hoja2!$B$94),Personal!AY14,0) -> 0
I15: =+IF(H15=Hoja2!$B$27,0.2102,IF(H15=Hoja2!$B$28,0.58,0)) -> 0 | M15: 0 | N15: =+IF(G15=Hoja2!$J$5,IF(AND('Ficha Resumen'!$Q$18=Hoja2!$H$5,Personal!$E15=Hoja2!$B$31),Personal!$J$7*(Personal!$P15+Personal!$R15),IF(AND('Ficha Resumen'!$Q$18=Hoja2!$H$6,Personal!$E15=Hoja2!$B$31),Personal!$J$6*(Personal!$P15+Personal!$R15),0)),0) -> 0 | O15: =+IF(J15=Hoja2!$B$22,F15/160,IF(Personal!J15=Hoja2!$B$23,F15/80,0))*(1+O$4) -> 0 | P15: 0 | Q15: =+IF(J15=Hoja2!$B$22,F15*I15/160,IF(Personal!J15=Hoja2!$B$23,F15*I15/80,0))*(1+O$4) -> 0 | R15: 0 | U15: 0 | V15: =IF(G15=Hoja2!$J$5,IF(AND('Ficha Resumen'!$Q$18=Hoja2!$H$5,Personal!$E15=Hoja2!$B$31),Personal!$J$7*(Personal!$X15+Personal!$Z15),IF(AND('Ficha Resumen'!$Q$18=Hoja2!$H$6,Personal!$E15=Hoja2!$B$31),Personal!$J$6*(Personal!$X15+Personal!$Z15),0)),0) -> 0 | W15: 0 | X15: 0 | Y15: 0 | Z15: 0 | AC15: 0 | AD15: =IF(G15=Hoja2!$J$5,IF(AND('Ficha Resumen'!$Q$18=Hoja2!$H$5,Personal!$E15=Hoja2!$B$31),Personal!$J$7*(Personal!$AF15+Personal!$AH15),IF(AND('Ficha Resumen'!$Q$18=Hoja2!$H$6,Personal!$E15=Hoja2!$B$31),Personal!$J$6*(Personal!$AF15+Personal!$AH15),0)),0) -> 0 | AE15: 0 | AF15: 0 | AG15: 0 | AH15: 0 | AK15: 0 | AL15: =IF(G15=Hoja2!$J$5,IF(AND('Ficha Resumen'!$Q$18=Hoja2!$H$5,Personal!$E15=Hoja2!$B$31),Personal!$J$7*(Personal!$AN15+Personal!$AP15),IF(AND('Ficha Resumen'!$Q$18=Hoja2!$H$6,Personal!$E15=Hoja2!$B$31),Personal!$J$6*(Personal!$AN15+Personal!$AP15),0)),0) -> 0 | AM15: 0 | AN15: 0 | AO15: 0 | AP15: 0 | AS15: 0 | AT15: =IF(G15=Hoja2!$J$5,IF(AND('Ficha Resumen'!$Q$18=Hoja2!$H$5,Personal!$E15=Hoja2!$B$31),Personal!$J$7*(Personal!$AV15+Personal!$AX15),IF(AND('Ficha Resumen'!$Q$18=Hoja2!$H$6,Personal!$E15=Hoja2!$B$31),Personal!$J$6*(Personal!$AV15+Personal!$AX15),0)),0) -> 0 | AU15: 0 | AV15: 0 | AW15: 0 | AX15: 0 | AY15: =+IF(AND(E15=Hoja2!$B$31,(N15+V15+AD15+AL15+AT15)>0),(N15+V15+AD15+AL15+AT15),IF(E15=Hoja2!$B$31,(M15+U15+AC15+AK15+AS15),0)) -> 0 | AZ15: =+IF(E15=Hoja2!$B$31,(M15+U15+AC15+AK15+AS15)-AY15,IF(E15=Hoja2!$B$32,(M15+U15+AC15+AK15+AS15),0)) -> 0 | BA15: =+IF(E15=Hoja2!$B$34,(M15+U15+AC15+AK15+AS15),0) -> 0 | BB15: =+IF(E15=Hoja2!$B$33,(M15+U15+AC15+AK15+AS15),0) -> 0 | BC15: 0 | BD15: =+IF(OR(C15=Hoja2!$B$92,C15=Hoja2!$B$93,C15=Hoja2!$B$94),Personal!AY15,0) -> 0
I16: =+IF(H16=Hoja2!$B$27,0.2102,IF(H16=Hoja2!$B$28,0.58,0)) -> 0 | M16: 0 | N16: =+IF(G16=Hoja2!$J$5,IF(AND('Ficha Resumen'!$Q$18=Hoja2!$H$5,Personal!$E16=Hoja2!$B$31),Personal!$J$7*(Personal!$P16+Personal!$R16),IF(AND('Ficha Resumen'!$Q$18=Hoja2!$H$6,Personal!$E16=Hoja2!$B$31),Personal!$J$6*(Personal!$P16+Personal!$R16),0)),0) -> 0 | O16: =+IF(J16=Hoja2!$B$22,F16/160,IF(Personal!J16=Hoja2!$B$23,F16/80,0))*(1+O$4) -> 0 | P16: 0 | Q16: =+IF(J16=Hoja2!$B$22,F16*I16/160,IF(Personal!J16=Hoja2!$B$23,F16*I16/80,0))*(1+O$4) -> 0 | R16: 0 | U16: 0 | V16: =IF(G16=Hoja2!$J$5,IF(AND('Ficha Resumen'!$Q$18=Hoja2!$H$5,Personal!$E16=Hoja2!$B$31),Personal!$J$7*(Personal!$X16+Personal!$Z16),IF(AND('Ficha Resumen'!$Q$18=Hoja2!$H$6,Personal!$E16=Hoja2!$B$31),Personal!$J$6*(Personal!$X16+Personal!$Z16),0)),0) -> 0 | W16: 0 | X16: 0 | Y16: 0 | Z16: 0 | AC16: 0 | AD16: =IF(G16=Hoja2!$J$5,IF(AND('Ficha Resumen'!$Q$18=Hoja2!$H$5,Personal!$E16=Hoja2!$B$31),Personal!$J$7*(Personal!$AF16+Personal!$AH16),IF(AND('Ficha Resumen'!$Q$18=Hoja2!$H$6,Personal!$E16=Hoja2!$B$31),Personal!$J$6*(Personal!$AF16+Personal!$AH16),0)),0) -> 0 | AE16: 0 | AF16: 0 | AG16: 0 | AH16: 0 | AK16: 0 | AL16: =IF(G16=Hoja2!$J$5,IF(AND('Ficha Resumen'!$Q$18=Hoja2!$H$5,Personal!$E16=Hoja2!$B$31),Personal!$J$7*(Personal!$AN16+Personal!$AP16),IF(AND('Ficha Resumen'!$Q$18=Hoja2!$H$6,Personal!$E16=Hoja2!$B$31),Personal!$J$6*(Personal!$AN16+Personal!$AP16),0)),0) -> 0 | AM16: 0 | AN16: 0 | AO16: 0 | AP16: 0 | AS16: 0 | AT16: =IF(G16=Hoja2!$J$5,IF(AND('Ficha Resumen'!$Q$18=Hoja2!$H$5,Personal!$E16=Hoja2!$B$31),Personal!$J$7*(Personal!$AV16+Personal!$AX16),IF(AND('Ficha Resumen'!$Q$18=Hoja2!$H$6,Personal!$E16=Hoja2!$B$31),Personal!$J$6*(Personal!$AV16+Personal!$AX16),0)),0) -> 0 | AU16: 0 | AV16: 0 | AW16: 0 | AX16: 0 | AY16: =+IF(AND(E16=Hoja2!$B$31,(N16+V16+AD16+AL16+AT16)>0),(N16+V16+AD16+AL16+AT16),IF(E16=Hoja2!$B$31,(M16+U16+AC16+AK16+AS16),0)) -> 0 | AZ16: =+IF(E16=Hoja2!$B$31,(M16+U16+AC16+AK16+AS16)-AY16,IF(E16=Hoja2!$B$32,(M16+U16+AC16+AK16+AS16),0)) -> 0 | BA16: =+IF(E16=Hoja2!$B$34,(M16+U16+AC16+AK16+AS16),0) -> 0 | BB16: =+IF(E16=Hoja2!$B$33,(M16+U16+AC16+AK16+AS16),0) -> 0 | BC16: 0 | BD16: =+IF(OR(C16=Hoja2!$B$92,C16=Hoja2!$B$93,C16=Hoja2!$B$94),Personal!AY16,0) -> 0
I17: =+IF(H17=Hoja2!$B$27,0.2102,IF(H17=Hoja2!$B$28,0.58,0)) -> 0 | M17: 0 | N17: =+IF(G17=Hoja2!$J$5,IF(AND('Ficha Resumen'!$Q$18=Hoja2!$H$5,Personal!$E17=Hoja2!$B$31),Personal!$J$7*(Personal!$P17+Personal!$R17),IF(AND('Ficha Resumen'!$Q$18=Hoja2!$H$6,Personal!$E17=Hoja2!$B$31),Personal!$J$6*(Personal!$P17+Personal!$R17),0)),0) -> 0 | O17: =+IF(J17=Hoja2!$B$22,F17/160,IF(Personal!J17=Hoja2!$B$23,F17/80,0))*(1+O$4) -> 0 | P17: 0 | Q17: =+IF(J17=Hoja2!$B$22,F17*I17/160,IF(Personal!J17=Hoja2!$B$23,F17*I17/80,0))*(1+O$4) -> 0 | R17: 0 | U17: 0 | V17: =IF(G17=Hoja2!$J$5,IF(AND('Ficha Resumen'!$Q$18=Hoja2!$H$5,Personal!$E17=Hoja2!$B$31),Personal!$J$7*(Personal!$X17+Personal!$Z17),IF(AND('Ficha Resumen'!$Q$18=Hoja2!$H$6,Personal!$E17=Hoja2!$B$31),Personal!$J$6*(Personal!$X17+Personal!$Z17),0)),0) -> 0 | W17: 0 | X17: 0 | Y17: 0 | Z17: 0 | AC17: 0 | AD17: =IF(G17=Hoja2!$J$5,IF(AND('Ficha Resumen'!$Q$18=Hoja2!$H$5,Personal!$E17=Hoja2!$B$31),Personal!$J$7*(Personal!$AF17+Personal!$AH17),IF(AND('Ficha Resumen'!$Q$18=Hoja2!$H$6,Personal!$E17=Hoja2!$B$31),Personal!$J$6*(Personal!$AF17+Personal!$AH17),0)),0) -> 0 | AE17: 0 | AF17: 0 | AG17: 0 | AH17: 0 | AK17: 0 | AL17: =IF(G17=Hoja2!$J$5,IF(AND('Ficha Resumen'!$Q$18=Hoja2!$H$5,Personal!$E17=Hoja2!$B$31),Personal!$J$7*(Personal!$AN17+Personal!$AP17),IF(AND('Ficha Resumen'!$Q$18=Hoja2!$H$6,Personal!$E17=Hoja2!$B$31),Personal!$J$6*(Personal!$AN17+Personal!$AP17),0)),0) -> 0 | AM17: 0 | AN17: 0 | AO17: 0 | AP17: 0 | AS17: 0 | AT17: =IF(G17=Hoja2!$J$5,IF(AND('Ficha Resumen'!$Q$18=Hoja2!$H$5,Personal!$E17=Hoja2!$B$31),Personal!$J$7*(Personal!$AV17+Personal!$AX17),IF(AND('Ficha Resumen'!$Q$18=Hoja2!$H$6,Personal!$E17=Hoja2!$B$31),Personal!$J$6*(Personal!$AV17+Personal!$AX17),0)),0) -> 0 | AU17: 0 | AV17: 0 | AW17: 0 | AX17: 0 | AY17: =+IF(AND(E17=Hoja2!$B$31,(N17+V17+AD17+AL17+AT17)>0),(N17+V17+AD17+AL17+AT17),IF(E17=Hoja2!$B$31,(M17+U17+AC17+AK17+AS17),0)) -> 0 | AZ17: =+IF(E17=Hoja2!$B$31,(M17+U17+AC17+AK17+AS17)-AY17,IF(E17=Hoja2!$B$32,(M17+U17+AC17+AK17+AS17),0)) -> 0 | BA17: =+IF(E17=Hoja2!$B$34,(M17+U17+AC17+AK17+AS17),0) -> 0 | BB17: =+IF(E17=Hoja2!$B$33,(M17+U17+AC17+AK17+AS17),0) -> 0 | BC17: 0 | BD17: =+IF(OR(C17=Hoja2!$B$92,C17=Hoja2!$B$93,C17=Hoja2!$B$94),Personal!AY17,0) -> 0
I18: =+IF(H18=Hoja2!$B$27,0.2102,IF(H18=Hoja2!$B$28,0.58,0)) -> 0 | M18: 0 | N18: =+IF(G18=Hoja2!$J$5,IF(AND('Ficha Resumen'!$Q$18=Hoja2!$H$5,Personal!$E18=Hoja2!$B$31),Personal!$J$7*(Personal!$P18+Personal!$R18),IF(AND('Ficha Resumen'!$Q$18=Hoja2!$H$6,Personal!$E18=Hoja2!$B$31),Personal!$J$6*(Personal!$P18+Personal!$R18),0)),0) -> 0 | O18: =+IF(J18=Hoja2!$B$22,F18/160,IF(Personal!J18=Hoja2!$B$23,F18/80,0))*(1+O$4) -> 0 | P18: 0 | Q18: =+IF(J18=Hoja2!$B$22,F18*I18/160,IF(Personal!J18=Hoja2!$B$23,F18*I18/80,0))*(1+O$4) -> 0 | R18: 0 | U18: 0 | V18: =IF(G18=Hoja2!$J$5,IF(AND('Ficha Resumen'!$Q$18=Hoja2!$H$5,Personal!$E18=Hoja2!$B$31),Personal!$J$7*(Personal!$X18+Personal!$Z18),IF(AND('Ficha Resumen'!$Q$18=Hoja2!$H$6,Personal!$E18=Hoja2!$B$31),Personal!$J$6*(Personal!$X18+Personal!$Z18),0)),0) -> 0 | W18: 0 | X18: 0 | Y18: 0 | Z18: 0 | AC18: 0 | AD18: =IF(G18=Hoja2!$J$5,IF(AND('Ficha Resumen'!$Q$18=Hoja2!$H$5,Personal!$E18=Hoja2!$B$31),Personal!$J$7*(Personal!$AF18+Personal!$AH18),IF(AND('Ficha Resumen'!$Q$18=Hoja2!$H$6,Personal!$E18=Hoja2!$B$31),Personal!$J$6*(Personal!$AF18+Personal!$AH18),0)),0) -> 0 | AE18: 0 | AF18: 0 | AG18: 0 | AH18: 0 | AK18: 0 | AL18: =IF(G18=Hoja2!$J$5,IF(AND('Ficha Resumen'!$Q$18=Hoja2!$H$5,Personal!$E18=Hoja2!$B$31),Personal!$J$7*(Personal!$AN18+Personal!$AP18),IF(AND('Ficha Resumen'!$Q$18=Hoja2!$H$6,Personal!$E18=Hoja2!$B$31),Personal!$J$6*(Personal!$AN18+Personal!$AP18),0)),0) -> 0 | AM18: 0 | AN18: 0 | AO18: 0 | AP18: 0 | AS18: 0 | AT18: =IF(G18=Hoja2!$J$5,IF(AND('Ficha Resumen'!$Q$18=Hoja2!$H$5,Personal!$E18=Hoja2!$B$31),Personal!$J$7*(Personal!$AV18+Personal!$AX18),IF(AND('Ficha Resumen'!$Q$18=Hoja2!$H$6,Personal!$E18=Hoja2!$B$31),Personal!$J$6*(Personal!$AV18+Personal!$AX18),0)),0) -> 0 | AU18: 0 | AV18: 0 | AW18: 0 | AX18: 0 | AY18: =+IF(AND(E18=Hoja2!$B$31,(N18+V18+AD18+AL18+AT18)>0),(N18+V18+AD18+AL18+AT18),IF(E18=Hoja2!$B$31,(M18+U18+AC18+AK18+AS18),0)) -> 0 | AZ18: =+IF(E18=Hoja2!$B$31,(M18+U18+AC18+AK18+AS18)-AY18,IF(E18=Hoja2!$B$32,(M18+U18+AC18+AK18+AS18),0)) -> 0 | BA18: =+IF(E18=Hoja2!$B$34,(M18+U18+AC18+AK18+AS18),0) -> 0 | BB18: =+IF(E18=Hoja2!$B$33,(M18+U18+AC18+AK18+AS18),0) -> 0 | BC18: 0 | BD18: =+IF(OR(C18=Hoja2!$B$92,C18=Hoja2!$B$93,C18=Hoja2!$B$94),Personal!AY18,0) -> 0
I19: =+IF(H19=Hoja2!$B$27,0.2102,IF(H19=Hoja2!$B$28,0.58,0)) -> 0 | M19: 0 | N19: =+IF(G19=Hoja2!$J$5,IF(AND('Ficha Resumen'!$Q$18=Hoja2!$H$5,Personal!$E19=Hoja2!$B$31),Personal!$J$7*(Personal!$P19+Personal!$R19),IF(AND('Ficha Resumen'!$Q$18=Hoja2!$H$6,Personal!$E19=Hoja2!$B$31),Personal!$J$6*(Personal!$P19+Personal!$R19),0)),0) -> 0 | O19: =+IF(J19=Hoja2!$B$22,F19/160,IF(Personal!J19=Hoja2!$B$23,F19/80,0))*(1+O$4) -> 0 | P19: 0 | Q19: =+IF(J19=Hoja2!$B$22,F19*I19/160,IF(Personal!J19=Hoja2!$B$23,F19*I19/80,0))*(1+O$4) -> 0 | R19: 0 | U19: 0 | V19: =IF(G19=Hoja2!$J$5,IF(AND('Ficha Resumen'!$Q$18=Hoja2!$H$5,Personal!$E19=Hoja2!$B$31),Personal!$J$7*(Personal!$X19+Personal!$Z19),IF(AND('Ficha Resumen'!$Q$18=Hoja2!$H$6,Personal!$E19=Hoja2!$B$31),Personal!$J$6*(Personal!$X19+Personal!$Z19),0)),0) -> 0 | W19: 0 | X19: 0 | Y19: 0 | Z19: 0 | AC19: 0 | AD19: =IF(G19=Hoja2!$J$5,IF(AND('Ficha Resumen'!$Q$18=Hoja2!$H$5,Personal!$E19=Hoja2!$B$31),Personal!$J$7*(Personal!$AF19+Personal!$AH19),IF(AND('Ficha Resumen'!$Q$18=Hoja2!$H$6,Personal!$E19=Hoja2!$B$31),Personal!$J$6*(Personal!$AF19+Personal!$AH19),0)),0) -> 0 | AE19: 0 | AF19: 0 | AG19: 0 | AH19: 0 | AK19: 0 | AL19: =IF(G19=Hoja2!$J$5,IF(AND('Ficha Resumen'!$Q$18=Hoja2!$H$5,Personal!$E19=Hoja2!$B$31),Personal!$J$7*(Personal!$AN19+Personal!$AP19),IF(AND('Ficha Resumen'!$Q$18=Hoja2!$H$6,Personal!$E19=Hoja2!$B$31),Personal!$J$6*(Personal!$AN19+Personal!$AP19),0)),0) -> 0 | AM19: 0 | AN19: 0 | AO19: 0 | AP19: 0 | AS19: 0 | AT19: =IF(G19=Hoja2!$J$5,IF(AND('Ficha Resumen'!$Q$18=Hoja2!$H$5,Personal!$E19=Hoja2!$B$31),Personal!$J$7*(Personal!$AV19+Personal!$AX19),IF(AND('Ficha Resumen'!$Q$18=Hoja2!$H$6,Personal!$E19=Hoja2!$B$31),Personal!$J$6*(Personal!$AV19+Personal!$AX19),0)),0) -> 0 | AU19: 0 | AV19: 0 | AW19: 0 | AX19: 0 | AY19: =+IF(AND(E19=Hoja2!$B$31,(N19+V19+AD19+AL19+AT19)>0),(N19+V19+AD19+AL19+AT19),IF(E19=Hoja2!$B$31,(M19+U19+AC19+AK19+AS19),0)) -> 0 | AZ19: =+IF(E19=Hoja2!$B$31,(M19+U19+AC19+AK19+AS19)-AY19,IF(E19=Hoja2!$B$32,(M19+U19+AC19+AK19+AS19),0)) -> 0 | BA19: =+IF(E19=Hoja2!$B$34,(M19+U19+AC19+AK19+AS19),0) -> 0 | BB19: =+IF(E19=Hoja2!$B$33,(M19+U19+AC19+AK19+AS19),0) -> 0 | BC19: 0 | BD19: =+IF(OR(C19=Hoja2!$B$92,C19=Hoja2!$B$93,C19=Hoja2!$B$94),Personal!AY19,0) -> 0
I20: =+IF(H20=Hoja2!$B$27,0.2102,IF(H20=Hoja2!$B$28,0.58,0)) -> 0 | M20: 0 | N20: =+IF(G20=Hoja2!$J$5,IF(AND('Ficha Resumen'!$Q$18=Hoja2!$H$5,Personal!$E20=Hoja2!$B$31),Personal!$J$7*(Personal!$P20+Personal!$R20),IF(AND('Ficha Resumen'!$Q$18=Hoja2!$H$6,Personal!$E20=Hoja2!$B$31),Personal!$J$6*(Personal!$P20+Personal!$R20),0)),0) -> 0 | O20: =+IF(J20=Hoja2!$B$22,F20/160,IF(Personal!J20=Hoja2!$B$23,F20/80,0))*(1+O$4) -> 0 | P20: 0 | Q20: =+IF(J20=Hoja2!$B$22,F20*I20/160,IF(Personal!J20=Hoja2!$B$23,F20*I20/80,0))*(1+O$4) -> 0 | R20: 0 | U20: 0 | V20: =IF(G20=Hoja2!$J$5,IF(AND('Ficha Resumen'!$Q$18=Hoja2!$H$5,Personal!$E20=Hoja2!$B$31),Personal!$J$7*(Personal!$X20+Personal!$Z20),IF(AND('Ficha Resumen'!$Q$18=Hoja2!$H$6,Personal!$E20=Hoja2!$B$31),Personal!$J$6*(Personal!$X20+Personal!$Z20),0)),0) -> 0 | W20: 0 | X20: 0 | Y20: 0 | Z20: 0 | AC20: 0 | AD20: =IF(G20=Hoja2!$J$5,IF(AND('Ficha Resumen'!$Q$18=Hoja2!$H$5,Personal!$E20=Hoja2!$B$31),Personal!$J$7*(Personal!$AF20+Personal!$AH20),IF(AND('Ficha Resumen'!$Q$18=Hoja2!$H$6,Personal!$E20=Hoja2!$B$31),Personal!$J$6*(Personal!$AF20+Personal!$AH20),0)),0) -> 0 | AE20: 0 | AF20: 0 | AG20: 0 | AH20: 0 | AK20: 0 | AL20: =IF(G20=Hoja2!$J$5,IF(AND('Ficha Resumen'!$Q$18=Hoja2!$H$5,Personal!$E20=Hoja2!$B$31),Personal!$J$7*(Personal!$AN20+Personal!$AP20),IF(AND('Ficha Resumen'!$Q$18=Hoja2!$H$6,Personal!$E20=Hoja2!$B$31),Personal!$J$6*(Personal!$AN20+Personal!$AP20),0)),0) -> 0 | AM20: 0 | AN20: 0 | AO20: 0 | AP20: 0 | AS20: 0 | AT20: =IF(G20=Hoja2!$J$5,IF(AND('Ficha Resumen'!$Q$18=Hoja2!$H$5,Personal!$E20=Hoja2!$B$31),Personal!$J$7*(Personal!$AV20+Personal!$AX20),IF(AND('Ficha Resumen'!$Q$18=Hoja2!$H$6,Personal!$E20=Hoja2!$B$31),Personal!$J$6*(Personal!$AV20+Personal!$AX20),0)),0) -> 0 | AU20: 0 | AV20: 0 | AW20: 0 | AX20: 0 | AY20: =+IF(AND(E20=Hoja2!$B$31,(N20+V20+AD20+AL20+AT20)>0),(N20+V20+AD20+AL20+AT20),IF(E20=Hoja2!$B$31,(M20+U20+AC20+AK20+AS20),0)) -> 0 | AZ20: =+IF(E20=Hoja2!$B$31,(M20+U20+AC20+AK20+AS20)-AY20,IF(E20=Hoja2!$B$32,(M20+U20+AC20+AK20+AS20),0)) -> 0 | BA20: =+IF(E20=Hoja2!$B$34,(M20+U20+AC20+AK20+AS20),0) -> 0 | BB20: =+IF(E20=Hoja2!$B$33,(M20+U20+AC20+AK20+AS20),0) -> 0 | BC20: 0 | BD20: =+IF(OR(C20=Hoja2!$B$92,C20=Hoja2!$B$93,C20=Hoja2!$B$94),Personal!AY20,0) -> 0
I21: =+IF(H21=Hoja2!$B$27,0.2102,IF(H21=Hoja2!$B$28,0.58,0)) -> 0 | M21: 0 | N21: =+IF(G21=Hoja2!$J$5,IF(AND('Ficha Resumen'!$Q$18=Hoja2!$H$5,Personal!$E21=Hoja2!$B$31),Personal!$J$7*(Personal!$P21+Personal!$R21),IF(AND('Ficha Resumen'!$Q$18=Hoja2!$H$6,Personal!$E21=Hoja2!$B$31),Personal!$J$6*(Personal!$P21+Personal!$R21),0)),0) -> 0 | O21: =+IF(J21=Hoja2!$B$22,F21/160,IF(Personal!J21=Hoja2!$B$23,F21/80,0))*(1+O$4) -> 0 | P21: 0 | Q21: =+IF(J21=Hoja2!$B$22,F21*I21/160,IF(Personal!J21=Hoja2!$B$23,F21*I21/80,0))*(1+O$4) -> 0 | R21: 0 | U21: 0 | V21: =IF(G21=Hoja2!$J$5,IF(AND('Ficha Resumen'!$Q$18=Hoja2!$H$5,Personal!$E21=Hoja2!$B$31),Personal!$J$7*(Personal!$X21+Personal!$Z21),IF(AND('Ficha Resumen'!$Q$18=Hoja2!$H$6,Personal!$E21=Hoja2!$B$31),Personal!$J$6*(Personal!$X21+Personal!$Z21),0)),0) -> 0 | W21: 0 | X21: 0 | Y21: 0 | Z21: 0 | AC21: 0 | AD21: =IF(G21=Hoja2!$J$5,IF(AND('Ficha Resumen'!$Q$18=Hoja2!$H$5,Personal!$E21=Hoja2!$B$31),Personal!$J$7*(Personal!$AF21+Personal!$AH21),IF(AND('Ficha Resumen'!$Q$18=Hoja2!$H$6,Personal!$E21=Hoja2!$B$31),Personal!$J$6*(Personal!$AF21+Personal!$AH21),0)),0) -> 0 | AE21: 0 | AF21: 0 | AG21: 0 | AH21: 0 | AK21: 0 | AL21: =IF(G21=Hoja2!$J$5,IF(AND('Ficha Resumen'!$Q$18=Hoja2!$H$5,Personal!$E21=Hoja2!$B$31),Personal!$J$7*(Personal!$AN21+Personal!$AP21),IF(AND('Ficha Resumen'!$Q$18=Hoja2!$H$6,Personal!$E21=Hoja2!$B$31),Personal!$J$6*(Personal!$AN21+Personal!$AP21),0)),0) -> 0 | AM21: 0 | AN21: 0 | AO21: 0 | AP21: 0 | AS21: 0 | AT21: =IF(G21=Hoja2!$J$5,IF(AND('Ficha Resumen'!$Q$18=Hoja2!$H$5,Personal!$E21=Hoja2!$B$31),Personal!$J$7*(Personal!$AV21+Personal!$AX21),IF(AND('Ficha Resumen'!$Q$18=Hoja2!$H$6,Personal!$E21=Hoja2!$B$31),Personal!$J$6*(Personal!$AV21+Personal!$AX21),0)),0) -> 0 | AU21: 0 | AV21: 0 | AW21: 0 | AX21: 0 | AY21: =+IF(AND(E21=Hoja2!$B$31,(N21+V21+AD21+AL21+AT21)>0),(N21+V21+AD21+AL21+AT21),IF(E21=Hoja2!$B$31,(M21+U21+AC21+AK21+AS21),0)) -> 0 | AZ21: =+IF(E21=Hoja2!$B$31,(M21+U21+AC21+AK21+AS21)-AY21,IF(E21=Hoja2!$B$32,(M21+U21+AC21+AK21+AS21),0)) -> 0 | BA21: =+IF(E21=Hoja2!$B$34,(M21+U21+AC21+AK21+AS21),0) -> 0 | BB21: =+IF(E21=Hoja2!$B$33,(M21+U21+AC21+AK21+AS21),0) -> 0 | BC21: 0 | BD21: =+IF(OR(C21=Hoja2!$B$92,C21=Hoja2!$B$93,C21=Hoja2!$B$94),Personal!AY21,0) -> 0
I22: =+IF(H22=Hoja2!$B$27,0.2102,IF(H22=Hoja2!$B$28,0.58,0)) -> 0 | M22: 0 | N22: =+IF(G22=Hoja2!$J$5,IF(AND('Ficha Resumen'!$Q$18=Hoja2!$H$5,Personal!$E22=Hoja2!$B$31),Personal!$J$7*(Personal!$P22+Personal!$R22),IF(AND('Ficha Resumen'!$Q$18=Hoja2!$H$6,Personal!$E22=Hoja2!$B$31),Personal!$J$6*(Personal!$P22+Personal!$R22),0)),0) -> 0 | O22: =+IF(J22=Hoja2!$B$22,F22/160,IF(Personal!J22=Hoja2!$B$23,F22/80,0))*(1+O$4) -> 0 | P22: 0 | Q22: =+IF(J22=Hoja2!$B$22,F22*I22/160,IF(Personal!J22=Hoja2!$B$23,F22*I22/80,0))*(1+O$4) -> 0 | R22: 0 | U22: 0 | V22: =IF(G22=Hoja2!$J$5,IF(AND('Ficha Resumen'!$Q$18=Hoja2!$H$5,Personal!$E22=Hoja2!$B$31),Personal!$J$7*(Personal!$X22+Personal!$Z22),IF(AND('Ficha Resumen'!$Q$18=Hoja2!$H$6,Personal!$E22=Hoja2!$B$31),Personal!$J$6*(Personal!$X22+Personal!$Z22),0)),0) -> 0 | W22: 0 | X22: 0 | Y22: 0 | Z22: 0 | AC22: 0 | AD22: =IF(G22=Hoja2!$J$5,IF(AND('Ficha Resumen'!$Q$18=Hoja2!$H$5,Personal!$E22=Hoja2!$B$31),Personal!$J$7*(Personal!$AF22+Personal!$AH22),IF(AND('Ficha Resumen'!$Q$18=Hoja2!$H$6,Personal!$E22=Hoja2!$B$31),Personal!$J$6*(Personal!$AF22+Personal!$AH22),0)),0) -> 0 | AE22: 0 | AF22: 0 | AG22: 0 | AH22: 0 | AK22: 0 | AL22: =IF(G22=Hoja2!$J$5,IF(AND('Ficha Resumen'!$Q$18=Hoja2!$H$5,Personal!$E22=Hoja2!$B$31),Personal!$J$7*(Personal!$AN22+Personal!$AP22),IF(AND('Ficha Resumen'!$Q$18=Hoja2!$H$6,Personal!$E22=Hoja2!$B$31),Personal!$J$6*(Personal!$AN22+Personal!$AP22),0)),0) -> 0 | AM22: 0 | AN22: 0 | AO22: 0 | AP22: 0 | AS22: 0 | AT22: =IF(G22=Hoja2!$J$5,IF(AND('Ficha Resumen'!$Q$18=Hoja2!$H$5,Personal!$E22=Hoja2!$B$31),Personal!$J$7*(Personal!$AV22+Personal!$AX22),IF(AND('Ficha Resumen'!$Q$18=Hoja2!$H$6,Personal!$E22=Hoja2!$B$31),Personal!$J$6*(Personal!$AV22+Personal!$AX22),0)),0) -> 0 | AU22: 0 | AV22: 0 | AW22: 0 | AX22: 0 | AY22: =+IF(AND(E22=Hoja2!$B$31,(N22+V22+AD22+AL22+AT22)>0),(N22+V22+AD22+AL22+AT22),IF(E22=Hoja2!$B$31,(M22+U22+AC22+AK22+AS22),0)) -> 0 | AZ22: =+IF(E22=Hoja2!$B$31,(M22+U22+AC22+AK22+AS22)-AY22,IF(E22=Hoja2!$B$32,(M22+U22+AC22+AK22+AS22),0)) -> 0 | BA22: =+IF(E22=Hoja2!$B$34,(M22+U22+AC22+AK22+AS22),0) -> 0 | BB22: =+IF(E22=Hoja2!$B$33,(M22+U22+AC22+AK22+AS22),0) -> 0 | BC22: 0 | BD22: =+IF(OR(C22=Hoja2!$B$92,C22=Hoja2!$B$93,C22=Hoja2!$B$94),Personal!AY22,0) -> 0
I23: =+IF(H23=Hoja2!$B$27,0.2102,IF(H23=Hoja2!$B$28,0.58,0)) -> 0 | M23: 0 | N23: =+IF(G23=Hoja2!$J$5,IF(AND('Ficha Resumen'!$Q$18=Hoja2!$H$5,Personal!$E23=Hoja2!$B$31),Personal!$J$7*(Personal!$P23+Personal!$R23),IF(AND('Ficha Resumen'!$Q$18=Hoja2!$H$6,Personal!$E23=Hoja2!$B$31),Personal!$J$6*(Personal!$P23+Personal!$R23),0)),0) -> 0 | O23: =+IF(J23=Hoja2!$B$22,F23/160,IF(Personal!J23=Hoja2!$B$23,F23/80,0))*(1+O$4) -> 0 | P23: 0 | Q23: =+IF(J23=Hoja2!$B$22,F23*I23/160,IF(Personal!J23=Hoja2!$B$23,F23*I23/80,0))*(1+O$4) -> 0 | R23: 0 | U23: 0 | V23: =IF(G23=Hoja2!$J$5,IF(AND('Ficha Resumen'!$Q$18=Hoja2!$H$5,Personal!$E23=Hoja2!$B$31),Personal!$J$7*(Personal!$X23+Personal!$Z23),IF(AND('Ficha Resumen'!$Q$18=Hoja2!$H$6,Personal!$E23=Hoja2!$B$31),Personal!$J$6*(Personal!$X23+Personal!$Z23),0)),0) -> 0 | W23: 0 | X23: 0 | Y23: 0 | Z23: 0 | AC23: 0 | AD23: =IF(G23=Hoja2!$J$5,IF(AND('Ficha Resumen'!$Q$18=Hoja2!$H$5,Personal!$E23=Hoja2!$B$31),Personal!$J$7*(Personal!$AF23+Personal!$AH23),IF(AND('Ficha Resumen'!$Q$18=Hoja2!$H$6,Personal!$E23=Hoja2!$B$31),Personal!$J$6*(Personal!$AF23+Personal!$AH23),0)),0) -> 0 | AE23: 0 | AF23: 0 | AG23: 0 | AH23: 0 | AK23: 0 | AL23: =IF(G23=Hoja2!$J$5,IF(AND('Ficha Resumen'!$Q$18=Hoja2!$H$5,Personal!$E23=Hoja2!$B$31),Personal!$J$7*(Personal!$AN23+Personal!$AP23),IF(AND('Ficha Resumen'!$Q$18=Hoja2!$H$6,Personal!$E23=Hoja2!$B$31),Personal!$J$6*(Personal!$AN23+Personal!$AP23),0)),0) -> 0 | AM23: 0 | AN23: 0 | AO23: 0 | AP23: 0 | AS23: 0 | AT23: =IF(G23=Hoja2!$J$5,IF(AND('Ficha Resumen'!$Q$18=Hoja2!$H$5,Personal!$E23=Hoja2!$B$31),Personal!$J$7*(Personal!$AV23+Personal!$AX23),IF(AND('Ficha Resumen'!$Q$18=Hoja2!$H$6,Personal!$E23=Hoja2!$B$31),Personal!$J$6*(Personal!$AV23+Personal!$AX23),0)),0) -> 0 | AU23: 0 | AV23: 0 | AW23: 0 | AX23: 0 | AY23: =+IF(AND(E23=Hoja2!$B$31,(N23+V23+AD23+AL23+AT23)>0),(N23+V23+AD23+AL23+AT23),IF(E23=Hoja2!$B$31,(M23+U23+AC23+AK23+AS23),0)) -> 0 | AZ23: =+IF(E23=Hoja2!$B$31,(M23+U23+AC23+AK23+AS23)-AY23,IF(E23=Hoja2!$B$32,(M23+U23+AC23+AK23+AS23),0)) -> 0 | BA23: =+IF(E23=Hoja2!$B$34,(M23+U23+AC23+AK23+AS23),0) -> 0 | BB23: =+IF(E23=Hoja2!$B$33,(M23+U23+AC23+AK23+AS23),0) -> 0 | BC23: 0 | BD23: =+IF(OR(C23=Hoja2!$B$92,C23=Hoja2!$B$93,C23=Hoja2!$B$94),Personal!AY23,0) -> 0
I24: =+IF(H24=Hoja2!$B$27,0.2102,IF(H24=Hoja2!$B$28,0.58,0)) -> 0 | M24: 0 | N24: =+IF(G24=Hoja2!$J$5,IF(AND('Ficha Resumen'!$Q$18=Hoja2!$H$5,Personal!$E24=Hoja2!$B$31),Personal!$J$7*(Personal!$P24+Personal!$R24),IF(AND('Ficha Resumen'!$Q$18=Hoja2!$H$6,Personal!$E24=Hoja2!$B$31),Personal!$J$6*(Personal!$P24+Personal!$R24),0)),0) -> 0 | O24: =+IF(J24=Hoja2!$B$22,F24/160,IF(Personal!J24=Hoja2!$B$23,F24/80,0))*(1+O$4) -> 0 | P24: 0 | Q24: =+IF(J24=Hoja2!$B$22,F24*I24/160,IF(Personal!J24=Hoja2!$B$23,F24*I24/80,0))*(1+O$4) -> 0 | R24: 0 | U24: 0 | V24: =IF(G24=Hoja2!$J$5,IF(AND('Ficha Resumen'!$Q$18=Hoja2!$H$5,Personal!$E24=Hoja2!$B$31),Personal!$J$7*(Personal!$X24+Personal!$Z24),IF(AND('Ficha Resumen'!$Q$18=Hoja2!$H$6,Personal!$E24=Hoja2!$B$31),Personal!$J$6*(Personal!$X24+Personal!$Z24),0)),0) -> 0 | W24: 0 | X24: 0 | Y24: 0 | Z24: 0 | AC24: 0 | AD24: =IF(G24=Hoja2!$J$5,IF(AND('Ficha Resumen'!$Q$18=Hoja2!$H$5,Personal!$E24=Hoja2!$B$31),Personal!$J$7*(Personal!$AF24+Personal!$AH24),IF(AND('Ficha Resumen'!$Q$18=Hoja2!$H$6,Personal!$E24=Hoja2!$B$31),Personal!$J$6*(Personal!$AF24+Personal!$AH24),0)),0) -> 0 | AE24: 0 | AF24: 0 | AG24: 0 | AH24: 0 | AK24: 0 | AL24: =IF(G24=Hoja2!$J$5,IF(AND('Ficha Resumen'!$Q$18=Hoja2!$H$5,Personal!$E24=Hoja2!$B$31),Personal!$J$7*(Personal!$AN24+Personal!$AP24),IF(AND('Ficha Resumen'!$Q$18=Hoja2!$H$6,Personal!$E24=Hoja2!$B$31),Personal!$J$6*(Personal!$AN24+Personal!$AP24),0)),0) -> 0 | AM24: 0 | AN24: 0 | AO24: 0 | AP24: 0 | AS24: 0 | AT24: =IF(G24=Hoja2!$J$5,IF(AND('Ficha Resumen'!$Q$18=Hoja2!$H$5,Personal!$E24=Hoja2!$B$31),Personal!$J$7*(Personal!$AV24+Personal!$AX24),IF(AND('Ficha Resumen'!$Q$18=Hoja2!$H$6,Personal!$E24=Hoja2!$B$31),Personal!$J$6*(Personal!$AV24+Personal!$AX24),0)),0) -> 0 | AU24: 0 | AV24: 0 | AW24: 0 | AX24: 0 | AY24: =+IF(AND(E24=Hoja2!$B$31,(N24+V24+AD24+AL24+AT24)>0),(N24+V24+AD24+AL24+AT24),IF(E24=Hoja2!$B$31,(M24+U24+AC24+AK24+AS24),0)) -> 0 | AZ24: =+IF(E24=Hoja2!$B$31,(M24+U24+AC24+AK24+AS24)-AY24,IF(E24=Hoja2!$B$32,(M24+U24+AC24+AK24+AS24),0)) -> 0 | BA24: =+IF(E24=Hoja2!$B$34,(M24+U24+AC24+AK24+AS24),0) -> 0 | BB24: =+IF(E24=Hoja2!$B$33,(M24+U24+AC24+AK24+AS24),0) -> 0 | BC24: 0 | BD24: =+IF(OR(C24=Hoja2!$B$92,C24=Hoja2!$B$93,C24=Hoja2!$B$94),Personal!AY24,0) -> 0
I25: =+IF(H25=Hoja2!$B$27,0.2102,IF(H25=Hoja2!$B$28,0.58,0)) -> 0 | M25: 0 | N25: =+IF(G25=Hoja2!$J$5,IF(AND('Ficha Resumen'!$Q$18=Hoja2!$H$5,Personal!$E25=Hoja2!$B$31),Personal!$J$7*(Personal!$P25+Personal!$R25),IF(AND('Ficha Resumen'!$Q$18=Hoja2!$H$6,Personal!$E25=Hoja2!$B$31),Personal!$J$6*(Personal!$P25+Personal!$R25),0)),0) -> 0 | O25: =+IF(J25=Hoja2!$B$22,F25/160,IF(Personal!J25=Hoja2!$B$23,F25/80,0))*(1+O$4) -> 0 | P25: 0 | Q25: =+IF(J25=Hoja2!$B$22,F25*I25/160,IF(Personal!J25=Hoja2!$B$23,F25*I25/80,0))*(1+O$4) -> 0 | R25: 0 | U25: 0 | V25: =IF(G25=Hoja2!$J$5,IF(AND('Ficha Resumen'!$Q$18=Hoja2!$H$5,Personal!$E25=Hoja2!$B$31),Personal!$J$7*(Personal!$X25+Personal!$Z25),IF(AND('Ficha Resumen'!$Q$18=Hoja2!$H$6,Personal!$E25=Hoja2!$B$31),Personal!$J$6*(Personal!$X25+Personal!$Z25),0)),0) -> 0 | W25: 0 | X25: 0 | Y25: 0 | Z25: 0 | AC25: 0 | AD25: =IF(G25=Hoja2!$J$5,IF(AND('Ficha Resumen'!$Q$18=Hoja2!$H$5,Personal!$E25=Hoja2!$B$31),Personal!$J$7*(Personal!$AF25+Personal!$AH25),IF(AND('Ficha Resumen'!$Q$18=Hoja2!$H$6,Personal!$E25=Hoja2!$B$31),Personal!$J$6*(Personal!$AF25+Personal!$AH25),0)),0) -> 0 | AE25: 0 | AF25: 0 | AG25: 0 | AH25: 0 | AK25: 0 | AL25: =IF(G25=Hoja2!$J$5,IF(AND('Ficha Resumen'!$Q$18=Hoja2!$H$5,Personal!$E25=Hoja2!$B$31),Personal!$J$7*(Personal!$AN25+Personal!$AP25),IF(AND('Ficha Resumen'!$Q$18=Hoja2!$H$6,Personal!$E25=Hoja2!$B$31),Personal!$J$6*(Personal!$AN25+Personal!$AP25),0)),0) -> 0 | AM25: 0 | AN25: 0 | AO25: 0 | AP25: 0 | AS25: 0 | AT25: =IF(G25=Hoja2!$J$5,IF(AND('Ficha Resumen'!$Q$18=Hoja2!$H$5,Personal!$E25=Hoja2!$B$31),Personal!$J$7*(Personal!$AV25+Personal!$AX25),IF(AND('Ficha Resumen'!$Q$18=Hoja2!$H$6,Personal!$E25=Hoja2!$B$31),Personal!$J$6*(Personal!$AV25+Personal!$AX25),0)),0) -> 0 | AU25: 0 | AV25: 0 | AW25: 0 | AX25: 0 | AY25: =+IF(AND(E25=Hoja2!$B$31,(N25+V25+AD25+AL25+AT25)>0),(N25+V25+AD25+AL25+AT25),IF(E25=Hoja2!$B$31,(M25+U25+AC25+AK25+AS25),0)) -> 0 | AZ25: =+IF(E25=Hoja2!$B$31,(M25+U25+AC25+AK25+AS25)-AY25,IF(E25=Hoja2!$B$32,(M25+U25+AC25+AK25+AS25),0)) -> 0 | BA25: =+IF(E25=Hoja2!$B$34,(M25+U25+AC25+AK25+AS25),0) -> 0 | BB25: =+IF(E25=Hoja2!$B$33,(M25+U25+AC25+AK25+AS25),0) -> 0 | BC25: 0 | BD25: =+IF(OR(C25=Hoja2!$B$92,C25=Hoja2!$B$93,C25=Hoja2!$B$94),Personal!AY25,0) -> 0
I26: =+IF(H26=Hoja2!$B$27,0.2102,IF(H26=Hoja2!$B$28,0.58,0)) -> 0 | M26: 0 | N26: =+IF(G26=Hoja2!$J$5,IF(AND('Ficha Resumen'!$Q$18=Hoja2!$H$5,Personal!$E26=Hoja2!$B$31),Personal!$J$7*(Personal!$P26+Personal!$R26),IF(AND('Ficha Resumen'!$Q$18=Hoja2!$H$6,Personal!$E26=Hoja2!$B$31),Personal!$J$6*(Personal!$P26+Personal!$R26),0)),0) -> 0 | O26: =+IF(J26=Hoja2!$B$22,F26/160,IF(Personal!J26=Hoja2!$B$23,F26/80,0))*(1+O$4) -> 0 | P26: 0 | Q26: =+IF(J26=Hoja2!$B$22,F26*I26/160,IF(Personal!J26=Hoja2!$B$23,F26*I26/80,0))*(1+O$4) -> 0 | R26: 0 | U26: 0 | V26: =IF(G26=Hoja2!$J$5,IF(AND('Ficha Resumen'!$Q$18=Hoja2!$H$5,Personal!$E26=Hoja2!$B$31),Personal!$J$7*(Personal!$X26+Personal!$Z26),IF(AND('Ficha Resumen'!$Q$18=Hoja2!$H$6,Personal!$E26=Hoja2!$B$31),Personal!$J$6*(Personal!$X26+Personal!$Z26),0)),0) -> 0 | W26: 0 | X26: 0 | Y26: 0 | Z26: 0 | AC26: 0 | AD26: =IF(G26=Hoja2!$J$5,IF(AND('Ficha Resumen'!$Q$18=Hoja2!$H$5,Personal!$E26=Hoja2!$B$31),Personal!$J$7*(Personal!$AF26+Personal!$AH26),IF(AND('Ficha Resumen'!$Q$18=Hoja2!$H$6,Personal!$E26=Hoja2!$B$31),Personal!$J$6*(Personal!$AF26+Personal!$AH26),0)),0) -> 0 | AE26: 0 | AF26: 0 | AG26: 0 | AH26: 0 | AK26: 0 | AL26: =IF(G26=Hoja2!$J$5,IF(AND('Ficha Resumen'!$Q$18=Hoja2!$H$5,Personal!$E26=Hoja2!$B$31),Personal!$J$7*(Personal!$AN26+Personal!$AP26),IF(AND('Ficha Resumen'!$Q$18=Hoja2!$H$6,Personal!$E26=Hoja2!$B$31),Personal!$J$6*(Personal!$AN26+Personal!$AP26),0)),0) -> 0 | AM26: 0 | AN26: 0 | AO26: 0 | AP26: 0 | AS26: 0 | AT26: =IF(G26=Hoja2!$J$5,IF(AND('Ficha Resumen'!$Q$18=Hoja2!$H$5,Personal!$E26=Hoja2!$B$31),Personal!$J$7*(Personal!$AV26+Personal!$AX26),IF(AND('Ficha Resumen'!$Q$18=Hoja2!$H$6,Personal!$E26=Hoja2!$B$31),Personal!$J$6*(Personal!$AV26+Personal!$AX26),0)),0) -> 0 | AU26: 0 | AV26: 0 | AW26: 0 | AX26: 0 | AY26: =+IF(AND(E26=Hoja2!$B$31,(N26+V26+AD26+AL26+AT26)>0),(N26+V26+AD26+AL26+AT26),IF(E26=Hoja2!$B$31,(M26+U26+AC26+AK26+AS26),0)) -> 0 | AZ26: =+IF(E26=Hoja2!$B$31,(M26+U26+AC26+AK26+AS26)-AY26,IF(E26=Hoja2!$B$32,(M26+U26+AC26+AK26+AS26),0)) -> 0 | BA26: =+IF(E26=Hoja2!$B$34,(M26+U26+AC26+AK26+AS26),0) -> 0 | BB26: =+IF(E26=Hoja2!$B$33,(M26+U26+AC26+AK26+AS26),0) -> 0 | BC26: 0 | BD26: =+IF(OR(C26=Hoja2!$B$92,C26=Hoja2!$B$93,C26=Hoja2!$B$94),Personal!AY26,0) -> 0
I27: =+IF(H27=Hoja2!$B$27,0.2102,IF(H27=Hoja2!$B$28,0.58,0)) -> 0 | M27: 0 | N27: =+IF(G27=Hoja2!$J$5,IF(AND('Ficha Resumen'!$Q$18=Hoja2!$H$5,Personal!$E27=Hoja2!$B$31),Personal!$J$7*(Personal!$P27+Personal!$R27),IF(AND('Ficha Resumen'!$Q$18=Hoja2!$H$6,Personal!$E27=Hoja2!$B$31),Personal!$J$6*(Personal!$P27+Personal!$R27),0)),0) -> 0 | O27: =+IF(J27=Hoja2!$B$22,F27/160,IF(Personal!J27=Hoja2!$B$23,F27/80,0))*(1+O$4) -> 0 | P27: 0 | Q27: =+IF(J27=Hoja2!$B$22,F27*I27/160,IF(Personal!J27=Hoja2!$B$23,F27*I27/80,0))*(1+O$4) -> 0 | R27: 0 | U27: 0 | V27: =IF(G27=Hoja2!$J$5,IF(AND('Ficha Resumen'!$Q$18=Hoja2!$H$5,Personal!$E27=Hoja2!$B$31),Personal!$J$7*(Personal!$X27+Personal!$Z27),IF(AND('Ficha Resumen'!$Q$18=Hoja2!$H$6,Personal!$E27=Hoja2!$B$31),Personal!$J$6*(Personal!$X27+Personal!$Z27),0)),0) -> 0 | W27: 0 | X27: 0 | Y27: 0 | Z27: 0 | AC27: 0 | AD27: =IF(G27=Hoja2!$J$5,IF(AND('Ficha Resumen'!$Q$18=Hoja2!$H$5,Personal!$E27=Hoja2!$B$31),Personal!$J$7*(Personal!$AF27+Personal!$AH27),IF(AND('Ficha Resumen'!$Q$18=Hoja2!$H$6,Personal!$E27=Hoja2!$B$31),Personal!$J$6*(Personal!$AF27+Personal!$AH27),0)),0) -> 0 | AE27: 0 | AF27: 0 | AG27: 0 | AH27: 0 | AK27: 0 | AL27: =IF(G27=Hoja2!$J$5,IF(AND('Ficha Resumen'!$Q$18=Hoja2!$H$5,Personal!$E27=Hoja2!$B$31),Personal!$J$7*(Personal!$AN27+Personal!$AP27),IF(AND('Ficha Resumen'!$Q$18=Hoja2!$H$6,Personal!$E27=Hoja2!$B$31),Personal!$J$6*(Personal!$AN27+Personal!$AP27),0)),0) -> 0 | AM27: 0 | AN27: 0 | AO27: 0 | AP27: 0 | AS27: 0 | AT27: =IF(G27=Hoja2!$J$5,IF(AND('Ficha Resumen'!$Q$18=Hoja2!$H$5,Personal!$E27=Hoja2!$B$31),Personal!$J$7*(Personal!$AV27+Personal!$AX27),IF(AND('Ficha Resumen'!$Q$18=Hoja2!$H$6,Personal!$E27=Hoja2!$B$31),Personal!$J$6*(Personal!$AV27+Personal!$AX27),0)),0) -> 0 | AU27: 0 | AV27: 0 | AW27: 0 | AX27: 0 | AY27: =+IF(AND(E27=Hoja2!$B$31,(N27+V27+AD27+AL27+AT27)>0),(N27+V27+AD27+AL27+AT27),IF(E27=Hoja2!$B$31,(M27+U27+AC27+AK27+AS27),0)) -> 0 | AZ27: =+IF(E27=Hoja2!$B$31,(M27+U27+AC27+AK27+AS27)-AY27,IF(E27=Hoja2!$B$32,(M27+U27+AC27+AK27+AS27),0)) -> 0 | BA27: =+IF(E27=Hoja2!$B$34,(M27+U27+AC27+AK27+AS27),0) -> 0 | BB27: =+IF(E27=Hoja2!$B$33,(M27+U27+AC27+AK27+AS27),0) -> 0 | BC27: 0 | BD27: =+IF(OR(C27=Hoja2!$B$92,C27=Hoja2!$B$93,C27=Hoja2!$B$94),Personal!AY27,0) -> 0
I28: =+IF(H28=Hoja2!$B$27,0.2102,IF(H28=Hoja2!$B$28,0.58,0)) -> 0 | M28: 0 | N28: =+IF(G28=Hoja2!$J$5,IF(AND('Ficha Resumen'!$Q$18=Hoja2!$H$5,Personal!$E28=Hoja2!$B$31),Personal!$J$7*(Personal!$P28+Personal!$R28),IF(AND('Ficha Resumen'!$Q$18=Hoja2!$H$6,Personal!$E28=Hoja2!$B$31),Personal!$J$6*(Personal!$P28+Personal!$R28),0)),0) -> 0 | O28: =+IF(J28=Hoja2!$B$22,F28/160,IF(Personal!J28=Hoja2!$B$23,F28/80,0))*(1+O$4) -> 0 | P28: 0 | Q28: =+IF(J28=Hoja2!$B$22,F28*I28/160,IF(Personal!J28=Hoja2!$B$23,F28*I28/80,0))*(1+O$4) -> 0 | R28: 0 | U28: 0 | V28: =IF(G28=Hoja2!$J$5,IF(AND('Ficha Resumen'!$Q$18=Hoja2!$H$5,Personal!$E28=Hoja2!$B$31),Personal!$J$7*(Personal!$X28+Personal!$Z28),IF(AND('Ficha Resumen'!$Q$18=Hoja2!$H$6,Personal!$E28=Hoja2!$B$31),Personal!$J$6*(Personal!$X28+Personal!$Z28),0)),0) -> 0 | W28: 0 | X28: 0 | Y28: 0 | Z28: 0 | AC28: 0 | AD28: =IF(G28=Hoja2!$J$5,IF(AND('Ficha Resumen'!$Q$18=Hoja2!$H$5,Personal!$E28=Hoja2!$B$31),Personal!$J$7*(Personal!$AF28+Personal!$AH28),IF(AND('Ficha Resumen'!$Q$18=Hoja2!$H$6,Personal!$E28=Hoja2!$B$31),Personal!$J$6*(Personal!$AF28+Personal!$AH28),0)),0) -> 0 | AE28: 0 | AF28: 0 | AG28: 0 | AH28: 0 | AK28: 0 | AL28: =IF(G28=Hoja2!$J$5,IF(AND('Ficha Resumen'!$Q$18=Hoja2!$H$5,Personal!$E28=Hoja2!$B$31),Personal!$J$7*(Personal!$AN28+Personal!$AP28),IF(AND('Ficha Resumen'!$Q$18=Hoja2!$H$6,Personal!$E28=Hoja2!$B$31),Personal!$J$6*(Personal!$AN28+Personal!$AP28),0)),0) -> 0 | AM28: 0 | AN28: 0 | AO28: 0 | AP28: 0 | AS28: 0 | AT28: =IF(G28=Hoja2!$J$5,IF(AND('Ficha Resumen'!$Q$18=Hoja2!$H$5,Personal!$E28=Hoja2!$B$31),Personal!$J$7*(Personal!$AV28+Personal!$AX28),IF(AND('Ficha Resumen'!$Q$18=Hoja2!$H$6,Personal!$E28=Hoja2!$B$31),Personal!$J$6*(Personal!$AV28+Personal!$AX28),0)),0) -> 0 | AU28: 0 | AV28: 0 | AW28: 0 | AX28: 0 | AY28: =+IF(AND(E28=Hoja2!$B$31,(N28+V28+AD28+AL28+AT28)>0),(N28+V28+AD28+AL28+AT28),IF(E28=Hoja2!$B$31,(M28+U28+AC28+AK28+AS28),0)) -> 0 | AZ28: =+IF(E28=Hoja2!$B$31,(M28+U28+AC28+AK28+AS28)-AY28,IF(E28=Hoja2!$B$32,(M28+U28+AC28+AK28+AS28),0)) -> 0 | BA28: =+IF(E28=Hoja2!$B$34,(M28+U28+AC28+AK28+AS28),0) -> 0 | BB28: =+IF(E28=Hoja2!$B$33,(M28+U28+AC28+AK28+AS28),0) -> 0 | BC28: 0 | BD28: =+IF(OR(C28=Hoja2!$B$92,C28=Hoja2!$B$93,C28=Hoja2!$B$94),Personal!AY28,0) -> 0
I29: =+IF(H29=Hoja2!$B$27,0.2102,IF(H29=Hoja2!$B$28,0.58,0)) -> 0 | M29: 0 | N29: =+IF(G29=Hoja2!$J$5,IF(AND('Ficha Resumen'!$Q$18=Hoja2!$H$5,Personal!$E29=Hoja2!$B$31),Personal!$J$7*(Personal!$P29+Personal!$R29),IF(AND('Ficha Resumen'!$Q$18=Hoja2!$H$6,Personal!$E29=Hoja2!$B$31),Personal!$J$6*(Personal!$P29+Personal!$R29),0)),0) -> 0 | O29: =+IF(J29=Hoja2!$B$22,F29/160,IF(Personal!J29=Hoja2!$B$23,F29/80,0))*(1+O$4) -> 0 | P29: 0 | Q29: =+IF(J29=Hoja2!$B$22,F29*I29/160,IF(Personal!J29=Hoja2!$B$23,F29*I29/80,0))*(1+O$4) -> 0 | R29: 0 | U29: 0 | V29: =IF(G29=Hoja2!$J$5,IF(AND('Ficha Resumen'!$Q$18=Hoja2!$H$5,Personal!$E29=Hoja2!$B$31),Personal!$J$7*(Personal!$X29+Personal!$Z29),IF(AND('Ficha Resumen'!$Q$18=Hoja2!$H$6,Personal!$E29=Hoja2!$B$31),Personal!$J$6*(Personal!$X29+Personal!$Z29),0)),0) -> 0 | W29: 0 | X29: 0 | Y29: 0 | Z29: 0 | AC29: 0 | AD29: =IF(G29=Hoja2!$J$5,IF(AND('Ficha Resumen'!$Q$18=Hoja2!$H$5,Personal!$E29=Hoja2!$B$31),Personal!$J$7*(Personal!$AF29+Personal!$AH29),IF(AND('Ficha Resumen'!$Q$18=Hoja2!$H$6,Personal!$E29=Hoja2!$B$31),Personal!$J$6*(Personal!$AF29+Personal!$AH29),0)),0) -> 0 | AE29: 0 | AF29: 0 | AG29: 0 | AH29: 0 | AK29: 0 | AL29: =IF(G29=Hoja2!$J$5,IF(AND('Ficha Resumen'!$Q$18=Hoja2!$H$5,Personal!$E29=Hoja2!$B$31),Personal!$J$7*(Personal!$AN29+Personal!$AP29),IF(AND('Ficha Resumen'!$Q$18=Hoja2!$H$6,Personal!$E29=Hoja2!$B$31),Personal!$J$6*(Personal!$AN29+Personal!$AP29),0)),0) -> 0 | AM29: 0 | AN29: 0 | AO29: 0 | AP29: 0 | AS29: 0 | AT29: =IF(G29=Hoja2!$J$5,IF(AND('Ficha Resumen'!$Q$18=Hoja2!$H$5,Personal!$E29=Hoja2!$B$31),Personal!$J$7*(Personal!$AV29+Personal!$AX29),IF(AND('Ficha Resumen'!$Q$18=Hoja2!$H$6,Personal!$E29=Hoja2!$B$31),Personal!$J$6*(Personal!$AV29+Personal!$AX29),0)),0) -> 0 | AU29: 0 | AV29: 0 | AW29: 0 | AX29: 0 | AY29: =+IF(AND(E29=Hoja2!$B$31,(N29+V29+AD29+AL29+AT29)>0),(N29+V29+AD29+AL29+AT29),IF(E29=Hoja2!$B$31,(M29+U29+AC29+AK29+AS29),0)) -> 0 | AZ29: =+IF(E29=Hoja2!$B$31,(M29+U29+AC29+AK29+AS29)-AY29,IF(E29=Hoja2!$B$32,(M29+U29+AC29+AK29+AS29),0)) -> 0 | BA29: =+IF(E29=Hoja2!$B$34,(M29+U29+AC29+AK29+AS29),0) -> 0 | BB29: =+IF(E29=Hoja2!$B$33,(M29+U29+AC29+AK29+AS29),0) -> 0 | BC29: 0 | BD29: =+IF(OR(C29=Hoja2!$B$92,C29=Hoja2!$B$93,C29=Hoja2!$B$94),Personal!AY29,0) -> 0
I30: =+IF(H30=Hoja2!$B$27,0.2102,IF(H30=Hoja2!$B$28,0.58,0)) -> 0 | M30: 0 | N30: =+IF(G30=Hoja2!$J$5,IF(AND('Ficha Resumen'!$Q$18=Hoja2!$H$5,Personal!$E30=Hoja2!$B$31),Personal!$J$7*(Personal!$P30+Personal!$R30),IF(AND('Ficha Resumen'!$Q$18=Hoja2!$H$6,Personal!$E30=Hoja2!$B$31),Personal!$J$6*(Personal!$P30+Personal!$R30),0)),0) -> 0 | O30: =+IF(J30=Hoja2!$B$22,F30/160,IF(Personal!J30=Hoja2!$B$23,F30/80,0))*(1+O$4) -> 0 | P30: 0 | Q30: =+IF(J30=Hoja2!$B$22,F30*I30/160,IF(Personal!J30=Hoja2!$B$23,F30*I30/80,0))*(1+O$4) -> 0 | R30: 0 | U30: 0 | V30: =IF(G30=Hoja2!$J$5,IF(AND('Ficha Resumen'!$Q$18=Hoja2!$H$5,Personal!$E30=Hoja2!$B$31),Personal!$J$7*(Personal!$X30+Personal!$Z30),IF(AND('Ficha Resumen'!$Q$18=Hoja2!$H$6,Personal!$E30=Hoja2!$B$31),Personal!$J$6*(Personal!$X30+Personal!$Z30),0)),0) -> 0 | W30: 0 | X30: 0 | Y30: 0 | Z30: 0 | AC30: 0 | AD30: =IF(G30=Hoja2!$J$5,IF(AND('Ficha Resumen'!$Q$18=Hoja2!$H$5,Personal!$E30=Hoja2!$B$31),Personal!$J$7*(Personal!$AF30+Personal!$AH30),IF(AND('Ficha Resumen'!$Q$18=Hoja2!$H$6,Personal!$E30=Hoja2!$B$31),Personal!$J$6*(Personal!$AF30+Personal!$AH30),0)),0) -> 0 | AE30: 0 | AF30: 0 | AG30: 0 | AH30: 0 | AK30: 0 | AL30: =IF(G30=Hoja2!$J$5,IF(AND('Ficha Resumen'!$Q$18=Hoja2!$H$5,Personal!$E30=Hoja2!$B$31),Personal!$J$7*(Personal!$AN30+Personal!$AP30),IF(AND('Ficha Resumen'!$Q$18=Hoja2!$H$6,Personal!$E30=Hoja2!$B$31),Personal!$J$6*(Personal!$AN30+Personal!$AP30),0)),0) -> 0 | AM30: 0 | AN30: 0 | AO30: 0 | AP30: 0 | AS30: 0 | AT30: =IF(G30=Hoja2!$J$5,IF(AND('Ficha Resumen'!$Q$18=Hoja2!$H$5,Personal!$E30=Hoja2!$B$31),Personal!$J$7*(Personal!$AV30+Personal!$AX30),IF(AND('Ficha Resumen'!$Q$18=Hoja2!$H$6,Personal!$E30=Hoja2!$B$31),Personal!$J$6*(Personal!$AV30+Personal!$AX30),0)),0) -> 0 | AU30: 0 | AV30: 0 | AW30: 0 | AX30: 0 | AY30: =+IF(AND(E30=Hoja2!$B$31,(N30+V30+AD30+AL30+AT30)>0),(N30+V30+AD30+AL30+AT30),IF(E30=Hoja2!$B$31,(M30+U30+AC30+AK30+AS30),0)) -> 0 | AZ30: =+IF(E30=Hoja2!$B$31,(M30+U30+AC30+AK30+AS30)-AY30,IF(E30=Hoja2!$B$32,(M30+U30+AC30+AK30+AS30),0)) -> 0 | BA30: =+IF(E30=Hoja2!$B$34,(M30+U30+AC30+AK30+AS30),0) -> 0 | BB30: =+IF(E30=Hoja2!$B$33,(M30+U30+AC30+AK30+AS30),0) -> 0 | BC30: 0 | BD30: =+IF(OR(C30=Hoja2!$B$92,C30=Hoja2!$B$93,C30=Hoja2!$B$94),Personal!AY30,0) -> 0
I31: =+IF(H31=Hoja2!$B$27,0.2102,IF(H31=Hoja2!$B$28,0.58,0)) -> 0 | M31: 0 | N31: =+IF(G31=Hoja2!$J$5,IF(AND('Ficha Resumen'!$Q$18=Hoja2!$H$5,Personal!$E31=Hoja2!$B$31),Personal!$J$7*(Personal!$P31+Personal!$R31),IF(AND('Ficha Resumen'!$Q$18=Hoja2!$H$6,Personal!$E31=Hoja2!$B$31),Personal!$J$6*(Personal!$P31+Personal!$R31),0)),0) -> 0 | O31: =+IF(J31=Hoja2!$B$22,F31/160,IF(Personal!J31=Hoja2!$B$23,F31/80,0))*(1+O$4) -> 0 | P31: 0 | Q31: =+IF(J31=Hoja2!$B$22,F31*I31/160,IF(Personal!J31=Hoja2!$B$23,F31*I31/80,0))*(1+O$4) -> 0 | R31: 0 | U31: 0 | V31: =IF(G31=Hoja2!$J$5,IF(AND('Ficha Resumen'!$Q$18=Hoja2!$H$5,Personal!$E31=Hoja2!$B$31),Personal!$J$7*(Personal!$X31+Personal!$Z31),IF(AND('Ficha Resumen'!$Q$18=Hoja2!$H$6,Personal!$E31=Hoja2!$B$31),Personal!$J$6*(Personal!$X31+Personal!$Z31),0)),0) -> 0 | W31: 0 | X31: 0 | Y31: 0 | Z31: 0 | AC31: 0 | AD31: =IF(G31=Hoja2!$J$5,IF(AND('Ficha Resumen'!$Q$18=Hoja2!$H$5,Personal!$E31=Hoja2!$B$31),Personal!$J$7*(Personal!$AF31+Personal!$AH31),IF(AND('Ficha Resumen'!$Q$18=Hoja2!$H$6,Personal!$E31=Hoja2!$B$31),Personal!$J$6*(Personal!$AF31+Personal!$AH31),0)),0) -> 0 | AE31: 0 | AF31: 0 | AG31: 0 | AH31: 0 | AK31: 0 | AL31: =IF(G31=Hoja2!$J$5,IF(AND('Ficha Resumen'!$Q$18=Hoja2!$H$5,Personal!$E31=Hoja2!$B$31),Personal!$J$7*(Personal!$AN31+Personal!$AP31),IF(AND('Ficha Resumen'!$Q$18=Hoja2!$H$6,Personal!$E31=Hoja2!$B$31),Personal!$J$6*(Personal!$AN31+Personal!$AP31),0)),0) -> 0 | AM31: 0 | AN31: 0 | AO31: 0 | AP31: 0 | AS31: 0 | AT31: =IF(G31=Hoja2!$J$5,IF(AND('Ficha Resumen'!$Q$18=Hoja2!$H$5,Personal!$E31=Hoja2!$B$31),Personal!$J$7*(Personal!$AV31+Personal!$AX31),IF(AND('Ficha Resumen'!$Q$18=Hoja2!$H$6,Personal!$E31=Hoja2!$B$31),Personal!$J$6*(Personal!$AV31+Personal!$AX31),0)),0) -> 0 | AU31: 0 | AV31: 0 | AW31: 0 | AX31: 0 | AY31: =+IF(AND(E31=Hoja2!$B$31,(N31+V31+AD31+AL31+AT31)>0),(N31+V31+AD31+AL31+AT31),IF(E31=Hoja2!$B$31,(M31+U31+AC31+AK31+AS31),0)) -> 0 | AZ31: =+IF(E31=Hoja2!$B$31,(M31+U31+AC31+AK31+AS31)-AY31,IF(E31=Hoja2!$B$32,(M31+U31+AC31+AK31+AS31),0)) -> 0 | BA31: =+IF(E31=Hoja2!$B$34,(M31+U31+AC31+AK31+AS31),0) -> 0 | BB31: =+IF(E31=Hoja2!$B$33,(M31+U31+AC31+AK31+AS31),0) -> 0 | BC31: 0 | BD31: =+IF(OR(C31=Hoja2!$B$92,C31=Hoja2!$B$93,C31=Hoja2!$B$94),Personal!AY31,0) -> 0
I32: =+IF(H32=Hoja2!$B$27,0.2102,IF(H32=Hoja2!$B$28,0.58,0)) -> 0 | M32: 0 | N32: =+IF(G32=Hoja2!$J$5,IF(AND('Ficha Resumen'!$Q$18=Hoja2!$H$5,Personal!$E32=Hoja2!$B$31),Personal!$J$7*(Personal!$P32+Personal!$R32),IF(AND('Ficha Resumen'!$Q$18=Hoja2!$H$6,Personal!$E32=Hoja2!$B$31),Personal!$J$6*(Personal!$P32+Personal!$R32),0)),0) -> 0 | O32: =+IF(J32=Hoja2!$B$22,F32/160,IF(Personal!J32=Hoja2!$B$23,F32/80,0))*(1+O$4) -> 0 | P32: 0 | Q32: =+IF(J32=Hoja2!$B$22,F32*I32/160,IF(Personal!J32=Hoja2!$B$23,F32*I32/80,0))*(1+O$4) -> 0 | R32: =+Q32*L32*4*K32 -> 0 | U32: 0 | V32: =IF(G32=Hoja2!$J$5,IF(AND('Ficha Resumen'!$Q$18=Hoja2!$H$5,Personal!$E32=Hoja2!$B$31),Personal!$J$7*(Personal!$X32+Personal!$Z32),IF(AND('Ficha Resumen'!$Q$18=Hoja2!$H$6,Personal!$E32=Hoja2!$B$31),Personal!$J$6*(Personal!$X32+Personal!$Z32),0)),0) -> 0 | W32: =+O32*(1+W$4) -> 0 | X32: =+W32*T32*4*S32 -> 0 | Y32: =+Q32*(1+W$4) -> 0 | Z32: =+Y32*T32*4*S32 -> 0 | AC32: 0 | AD32: =IF(G32=Hoja2!$J$5,IF(AND('Ficha Resumen'!$Q$18=Hoja2!$H$5,Personal!$E32=Hoja2!$B$31),Personal!$J$7*(Personal!$AF32+Personal!$AH32),IF(AND('Ficha Resumen'!$Q$18=Hoja2!$H$6,Personal!$E32=Hoja2!$B$31),Personal!$J$6*(Personal!$AF32+Personal!$AH32),0)),0) -> 0 | AE32: =+W32*(1+AE$4) -> 0 | AF32: =+AE32*AB32*4*AA32 -> 0 | AG32: =+Y32*(1+AE$4) -> 0 | AH32: =+AG32*AB32*4*AA32 -> 0 | AK32: 0 | AL32: =IF(G32=Hoja2!$J$5,IF(AND('Ficha Resumen'!$Q$18=Hoja2!$H$5,Personal!$E32=Hoja2!$B$31),Personal!$J$7*(Personal!$AN32+Personal!$AP32),IF(AND('Ficha Resumen'!$Q$18=Hoja2!$H$6,Personal!$E32=Hoja2!$B$31),Personal!$J$6*(Personal!$AN32+Personal!$AP32),0)),0) -> 0 | AM32: =+AE32*(1+AM$4) -> 0 | AN32: =+AM32*AJ32*4*AI32 -> 0 | AO32: =+AG32*(1+AM$4) -> 0 | AP32: =+AO32*AJ32*4*AI32 -> 0 | AS32: 0 | AT32: =IF(G32=Hoja2!$J$5,IF(AND('Ficha Resumen'!$Q$18=Hoja2!$H$5,Personal!$E32=Hoja2!$B$31),Personal!$J$7*(Personal!$AV32+Personal!$AX32),IF(AND('Ficha Resumen'!$Q$18=Hoja2!$H$6,Personal!$E32=Hoja2!$B$31),Personal!$J$6*(Personal!$AV32+Personal!$AX32),0)),0) -> 0 | AU32: 0 | AV32: 0 | AW32: 0 | AX32: 0 | AY32: =+IF(AND(E32=Hoja2!$B$31,(N32+V32+AD32+AL32+AT32)>0),(N32+V32+AD32+AL32+AT32),IF(E32=Hoja2!$B$31,(M32+U32+AC32+AK32+AS32),0)) -> 0 | AZ32: =+IF(E32=Hoja2!$B$31,(M32+U32+AC32+AK32+AS32)-AY32,IF(E32=Hoja2!$B$32,(M32+U32+AC32+AK32+AS32),0)) -> 0 | BA32: =+IF(E32=Hoja2!$B$34,(M32+U32+AC32+AK32+AS32),0) -> 0 | BB32: =+IF(E32=Hoja2!$B$33,(M32+U32+AC32+AK32+AS32),0) -> 0 | BC32: 0 | BD32: =+IF(OR(C32=Hoja2!$B$92,C32=Hoja2!$B$93,C32=Hoja2!$B$94),Personal!AY32,0) -> 0
I33: =+IF(H33=Hoja2!$B$27,0.2102,IF(H33=Hoja2!$B$28,0.58,0)) -> 0 | M33: 0 | N33: =+IF(G33=Hoja2!$J$5,IF(AND('Ficha Resumen'!$Q$18=Hoja2!$H$5,Personal!$E33=Hoja2!$B$31),Personal!$J$7*(Personal!$P33+Personal!$R33),IF(AND('Ficha Resumen'!$Q$18=Hoja2!$H$6,Personal!$E33=Hoja2!$B$31),Personal!$J$6*(Personal!$P33+Personal!$R33),0)),0) -> 0 | O33: =+IF(J33=Hoja2!$B$22,F33/160,IF(Personal!J33=Hoja2!$B$23,F33/80,0))*(1+O$4) -> 0 | P33: 0 | Q33: =+IF(J33=Hoja2!$B$22,F33*I33/160,IF(Personal!J33=Hoja2!$B$23,F33*I33/80,0))*(1+O$4) -> 0 | R33: 0 | U33: 0 | V33: =IF(G33=Hoja2!$J$5,IF(AND('Ficha Resumen'!$Q$18=Hoja2!$H$5,Personal!$E33=Hoja2!$B$31),Personal!$J$7*(Personal!$X33+Personal!$Z33),IF(AND('Ficha Resumen'!$Q$18=Hoja2!$H$6,Personal!$E33=Hoja2!$B$31),Personal!$J$6*(Personal!$X33+Personal!$Z33),0)),0) -> 0 | W33: 0 | X33: 0 | Y33: 0 | Z33: 0 | AC33: 0 | AD33: =IF(G33=Hoja2!$J$5,IF(AND('Ficha Resumen'!$Q$18=Hoja2!$H$5,Personal!$E33=Hoja2!$B$31),Personal!$J$7*(Personal!$AF33+Personal!$AH33),IF(AND('Ficha Resumen'!$Q$18=Hoja2!$H$6,Personal!$E33=Hoja2!$B$31),Personal!$J$6*(Personal!$AF33+Personal!$AH33),0)),0) -> 0 | AE33: 0 | AF33: 0 | AG33: 0 | AH33: 0 | AK33: 0 | AL33: =IF(G33=Hoja2!$J$5,IF(AND('Ficha Resumen'!$Q$18=Hoja2!$H$5,Personal!$E33=Hoja2!$B$31),Personal!$J$7*(Personal!$AN33+Personal!$AP33),IF(AND('Ficha Resumen'!$Q$18=Hoja2!$H$6,Personal!$E33=Hoja2!$B$31),Personal!$J$6*(Personal!$AN33+Personal!$AP33),0)),0) -> 0 | AM33: 0 | AN33: 0 | AO33: 0 | AP33: 0 | AS33: 0 | AT33: =IF(G33=Hoja2!$J$5,IF(AND('Ficha Resumen'!$Q$18=Hoja2!$H$5,Personal!$E33=Hoja2!$B$31),Personal!$J$7*(Personal!$AV33+Personal!$AX33),IF(AND('Ficha Resumen'!$Q$18=Hoja2!$H$6,Personal!$E33=Hoja2!$B$31),Personal!$J$6*(Personal!$AV33+Personal!$AX33),0)),0) -> 0 | AU33: 0 | AV33: 0 | AW33: 0 | AX33: 0 | AY33: =+IF(AND(E33=Hoja2!$B$31,(N33+V33+AD33+AL33+AT33)>0),(N33+V33+AD33+AL33+AT33),IF(E33=Hoja2!$B$31,(M33+U33+AC33+AK33+AS33),0)) -> 0 | AZ33: =+IF(E33=Hoja2!$B$31,(M33+U33+AC33+AK33+AS33)-AY33,IF(E33=Hoja2!$B$32,(M33+U33+AC33+AK33+AS33),0)) -> 0 | BA33: =+IF(E33=Hoja2!$B$34,(M33+U33+AC33+AK33+AS33),0) -> 0 | BB33: =+IF(E33=Hoja2!$B$33,(M33+U33+AC33+AK33+AS33),0) -> 0 | BC33: 0 | BD33: =+IF(OR(C33=Hoja2!$B$92,C33=Hoja2!$B$93,C33=Hoja2!$B$94),Personal!AY33,0) -> 0
I34: =+IF(H34=Hoja2!$B$27,0.2102,IF(H34=Hoja2!$B$28,0.58,0)) -> 0 | M34: 0 | N34: =+IF(G34=Hoja2!$J$5,IF(AND('Ficha Resumen'!$Q$18=Hoja2!$H$5,Personal!$E34=Hoja2!$B$31),Personal!$J$7*(Personal!$P34+Personal!$R34),IF(AND('Ficha Resumen'!$Q$18=Hoja2!$H$6,Personal!$E34=Hoja2!$B$31),Personal!$J$6*(Personal!$P34+Personal!$R34),0)),0) -> 0 | O34: =+IF(J34=Hoja2!$B$22,F34/160,IF(Personal!J34=Hoja2!$B$23,F34/80,0))*(1+O$4) -> 0 | P34: 0 | Q34: =+IF(J34=Hoja2!$B$22,F34*I34/160,IF(Personal!J34=Hoja2!$B$23,F34*I34/80,0))*(1+O$4) -> 0 | R34: 0 | U34: 0 | V34: =IF(G34=Hoja2!$J$5,IF(AND('Ficha Resumen'!$Q$18=Hoja2!$H$5,Personal!$E34=Hoja2!$B$31),Personal!$J$7*(Personal!$X34+Personal!$Z34),IF(AND('Ficha Resumen'!$Q$18=Hoja2!$H$6,Personal!$E34=Hoja2!$B$31),Personal!$J$6*(Personal!$X34+Personal!$Z34),0)),0) -> 0 | W34: 0 | X34: 0 | Y34: 0 | Z34: 0 | AC34: 0 | AD34: =IF(G34=Hoja2!$J$5,IF(AND('Ficha Resumen'!$Q$18=Hoja2!$H$5,Personal!$E34=Hoja2!$B$31),Personal!$J$7*(Personal!$AF34+Personal!$AH34),IF(AND('Ficha Resumen'!$Q$18=Hoja2!$H$6,Personal!$E34=Hoja2!$B$31),Personal!$J$6*(Personal!$AF34+Personal!$AH34),0)),0) -> 0 | AE34: 0 | AF34: 0 | AG34: 0 | AH34: 0 | AK34: 0 | AL34: =IF(G34=Hoja2!$J$5,IF(AND('Ficha Resumen'!$Q$18=Hoja2!$H$5,Personal!$E34=Hoja2!$B$31),Personal!$J$7*(Personal!$AN34+Personal!$AP34),IF(AND('Ficha Resumen'!$Q$18=Hoja2!$H$6,Personal!$E34=Hoja2!$B$31),Personal!$J$6*(Personal!$AN34+Personal!$AP34),0)),0) -> 0 | AM34: 0 | AN34: 0 | AO34: 0 | AP34: 0 | AS34: 0 | AT34: =IF(G34=Hoja2!$J$5,IF(AND('Ficha Resumen'!$Q$18=Hoja2!$H$5,Personal!$E34=Hoja2!$B$31),Personal!$J$7*(Personal!$AV34+Personal!$AX34),IF(AND('Ficha Resumen'!$Q$18=Hoja2!$H$6,Personal!$E34=Hoja2!$B$31),Personal!$J$6*(Personal!$AV34+Personal!$AX34),0)),0) -> 0 | AU34: 0 | AV34: 0 | AW34: 0 | AX34: 0 | AY34: =+IF(AND(E34=Hoja2!$B$31,(N34+V34+AD34+AL34+AT34)>0),(N34+V34+AD34+AL34+AT34),IF(E34=Hoja2!$B$31,(M34+U34+AC34+AK34+AS34),0)) -> 0 | AZ34: =+IF(E34=Hoja2!$B$31,(M34+U34+AC34+AK34+AS34)-AY34,IF(E34=Hoja2!$B$32,(M34+U34+AC34+AK34+AS34),0)) -> 0 | BA34: =+IF(E34=Hoja2!$B$34,(M34+U34+AC34+AK34+AS34),0) -> 0 | BB34: =+IF(E34=Hoja2!$B$33,(M34+U34+AC34+AK34+AS34),0) -> 0 | BC34: 0 | BD34: =+IF(OR(C34=Hoja2!$B$92,C34=Hoja2!$B$93,C34=Hoja2!$B$94),Personal!AY34,0) -> 0
I35: =+IF(H35=Hoja2!$B$27,0.2102,IF(H35=Hoja2!$B$28,0.58,0)) -> 0 | M35: 0 | N35: =+IF(G35=Hoja2!$J$5,IF(AND('Ficha Resumen'!$Q$18=Hoja2!$H$5,Personal!$E35=Hoja2!$B$31),Personal!$J$7*(Personal!$P35+Personal!$R35),IF(AND('Ficha Resumen'!$Q$18=Hoja2!$H$6,Personal!$E35=Hoja2!$B$31),Personal!$J$6*(Personal!$P35+Personal!$R35),0)),0) -> 0 | O35: =+IF(J35=Hoja2!$B$22,F35/160,IF(Personal!J35=Hoja2!$B$23,F35/80,0))*(1+O$4) -> 0 | P35: 0 | Q35: =+IF(J35=Hoja2!$B$22,F35*I35/160,IF(Personal!J35=Hoja2!$B$23,F35*I35/80,0))*(1+O$4) -> 0 | R35: 0 | U35: 0 | V35: =IF(G35=Hoja2!$J$5,IF(AND('Ficha Resumen'!$Q$18=Hoja2!$H$5,Personal!$E35=Hoja2!$B$31),Personal!$J$7*(Personal!$X35+Personal!$Z35),IF(AND('Ficha Resumen'!$Q$18=Hoja2!$H$6,Personal!$E35=Hoja2!$B$31),Personal!$J$6*(Personal!$X35+Personal!$Z35),0)),0) -> 0 | W35: 0 | X35: 0 | Y35: 0 | Z35: 0 | AC35: 0 | AD35: =IF(G35=Hoja2!$J$5,IF(AND('Ficha Resumen'!$Q$18=Hoja2!$H$5,Personal!$E35=Hoja2!$B$31),Personal!$J$7*(Personal!$AF35+Personal!$AH35),IF(AND('Ficha Resumen'!$Q$18=Hoja2!$H$6,Personal!$E35=Hoja2!$B$31),Personal!$J$6*(Personal!$AF35+Personal!$AH35),0)),0) -> 0 | AE35: 0 | AF35: 0 | AG35: 0 | AH35: 0 | AK35: 0 | AL35: =IF(G35=Hoja2!$J$5,IF(AND('Ficha Resumen'!$Q$18=Hoja2!$H$5,Personal!$E35=Hoja2!$B$31),Personal!$J$7*(Personal!$AN35+Personal!$AP35),IF(AND('Ficha Resumen'!$Q$18=Hoja2!$H$6,Personal!$E35=Hoja2!$B$31),Personal!$J$6*(Personal!$AN35+Personal!$AP35),0)),0) -> 0 | AM35: 0 | AN35: 0 | AO35: 0 | AP35: 0 | AS35: 0 | AT35: =IF(G35=Hoja2!$J$5,IF(AND('Ficha Resumen'!$Q$18=Hoja2!$H$5,Personal!$E35=Hoja2!$B$31),Personal!$J$7*(Personal!$AV35+Personal!$AX35),IF(AND('Ficha Resumen'!$Q$18=Hoja2!$H$6,Personal!$E35=Hoja2!$B$31),Personal!$J$6*(Personal!$AV35+Personal!$AX35),0)),0) -> 0 | AU35: 0 | AV35: 0 | AW35: 0 | AX35: 0 | AY35: =+IF(AND(E35=Hoja2!$B$31,(N35+V35+AD35+AL35+AT35)>0),(N35+V35+AD35+AL35+AT35),IF(E35=Hoja2!$B$31,(M35+U35+AC35+AK35+AS35),0)) -> 0 | AZ35: =+IF(E35=Hoja2!$B$31,(M35+U35+AC35+AK35+AS35)-AY35,IF(E35=Hoja2!$B$32,(M35+U35+AC35+AK35+AS35),0)) -> 0 | BA35: =+IF(E35=Hoja2!$B$34,(M35+U35+AC35+AK35+AS35),0) -> 0 | BB35: =+IF(E35=Hoja2!$B$33,(M35+U35+AC35+AK35+AS35),0) -> 0 | BC35: 0 | BD35: =+IF(OR(C35=Hoja2!$B$92,C35=Hoja2!$B$93,C35=Hoja2!$B$94),Personal!AY35,0) -> 0
I36: =+IF(H36=Hoja2!$B$27,0.2102,IF(H36=Hoja2!$B$28,0.58,0)) -> 0 | M36: 0 | N36: =+IF(G36=Hoja2!$J$5,IF(AND('Ficha Resumen'!$Q$18=Hoja2!$H$5,Personal!$E36=Hoja2!$B$31),Personal!$J$7*(Personal!$P36+Personal!$R36),IF(AND('Ficha Resumen'!$Q$18=Hoja2!$H$6,Personal!$E36=Hoja2!$B$31),Personal!$J$6*(Personal!$P36+Personal!$R36),0)),0) -> 0 | O36: =+IF(J36=Hoja2!$B$22,F36/160,IF(Personal!J36=Hoja2!$B$23,F36/80,0))*(1+O$4) -> 0 | P36: 0 | Q36: =+IF(J36=Hoja2!$B$22,F36*I36/160,IF(Personal!J36=Hoja2!$B$23,F36*I36/80,0))*(1+O$4) -> 0 | R36: 0 | U36: 0 | V36: =IF(G36=Hoja2!$J$5,IF(AND('Ficha Resumen'!$Q$18=Hoja2!$H$5,Personal!$E36=Hoja2!$B$31),Personal!$J$7*(Personal!$X36+Personal!$Z36),IF(AND('Ficha Resumen'!$Q$18=Hoja2!$H$6,Personal!$E36=Hoja2!$B$31),Personal!$J$6*(Personal!$X36+Personal!$Z36),0)),0) -> 0 | W36: 0 | X36: 0 | Y36: 0 | Z36: 0 | AC36: 0 | AD36: =IF(G36=Hoja2!$J$5,IF(AND('Ficha Resumen'!$Q$18=Hoja2!$H$5,Personal!$E36=Hoja2!$B$31),Personal!$J$7*(Personal!$AF36+Personal!$AH36),IF(AND('Ficha Resumen'!$Q$18=Hoja2!$H$6,Personal!$E36=Hoja2!$B$31),Personal!$J$6*(Personal!$AF36+Personal!$AH36),0)),0) -> 0 | AE36: 0 | AF36: 0 | AG36: 0 | AH36: 0 | AK36: 0 | AL36: =IF(G36=Hoja2!$J$5,IF(AND('Ficha Resumen'!$Q$18=Hoja2!$H$5,Personal!$E36=Hoja2!$B$31),Personal!$J$7*(Personal!$AN36+Personal!$AP36),IF(AND('Ficha Resumen'!$Q$18=Hoja2!$H$6,Personal!$E36=Hoja2!$B$31),Personal!$J$6*(Personal!$AN36+Personal!$AP36),0)),0) -> 0 | AM36: 0 | AN36: 0 | AO36: 0 | AP36: 0 | AS36: 0 | AT36: =IF(G36=Hoja2!$J$5,IF(AND('Ficha Resumen'!$Q$18=Hoja2!$H$5,Personal!$E36=Hoja2!$B$31),Personal!$J$7*(Personal!$AV36+Personal!$AX36),IF(AND('Ficha Resumen'!$Q$18=Hoja2!$H$6,Personal!$E36=Hoja2!$B$31),Personal!$J$6*(Personal!$AV36+Personal!$AX36),0)),0) -> 0 | AU36: 0 | AV36: 0 | AW36: 0 | AX36: 0 | AY36: =+IF(AND(E36=Hoja2!$B$31,(N36+V36+AD36+AL36+AT36)>0),(N36+V36+AD36+AL36+AT36),IF(E36=Hoja2!$B$31,(M36+U36+AC36+AK36+AS36),0)) -> 0 | AZ36: =+IF(E36=Hoja2!$B$31,(M36+U36+AC36+AK36+AS36)-AY36,IF(E36=Hoja2!$B$32,(M36+U36+AC36+AK36+AS36),0)) -> 0 | BA36: =+IF(E36=Hoja2!$B$34,(M36+U36+AC36+AK36+AS36),0) -> 0 | BB36: =+IF(E36=Hoja2!$B$33,(M36+U36+AC36+AK36+AS36),0) -> 0 | BC36: 0 | BD36: =+IF(OR(C36=Hoja2!$B$92,C36=Hoja2!$B$93,C36=Hoja2!$B$94),Personal!AY36,0) -> 0
I37: =+IF(H37=Hoja2!$B$27,0.2102,IF(H37=Hoja2!$B$28,0.58,0)) -> 0 | M37: 0 | N37: =+IF(G37=Hoja2!$J$5,IF(AND('Ficha Resumen'!$Q$18=Hoja2!$H$5,Personal!$E37=Hoja2!$B$31),Personal!$J$7*(Personal!$P37+Personal!$R37),IF(AND('Ficha Resumen'!$Q$18=Hoja2!$H$6,Personal!$E37=Hoja2!$B$31),Personal!$J$6*(Personal!$P37+Personal!$R37),0)),0) -> 0 | O37: =+IF(J37=Hoja2!$B$22,F37/160,IF(Personal!J37=Hoja2!$B$23,F37/80,0))*(1+O$4) -> 0 | P37: 0 | Q37: =+IF(J37=Hoja2!$B$22,F37*I37/160,IF(Personal!J37=Hoja2!$B$23,F37*I37/80,0))*(1+O$4) -> 0 | R37: 0 | U37: 0 | V37: =IF(G37=Hoja2!$J$5,IF(AND('Ficha Resumen'!$Q$18=Hoja2!$H$5,Personal!$E37=Hoja2!$B$31),Personal!$J$7*(Personal!$X37+Personal!$Z37),IF(AND('Ficha Resumen'!$Q$18=Hoja2!$H$6,Personal!$E37=Hoja2!$B$31),Personal!$J$6*(Personal!$X37+Personal!$Z37),0)),0) -> 0 | W37: 0 | X37: 0 | Y37: 0 | Z37: 0 | AC37: 0 | AD37: =IF(G37=Hoja2!$J$5,IF(AND('Ficha Resumen'!$Q$18=Hoja2!$H$5,Personal!$E37=Hoja2!$B$31),Personal!$J$7*(Personal!$AF37+Personal!$AH37),IF(AND('Ficha Resumen'!$Q$18=Hoja2!$H$6,Personal!$E37=Hoja2!$B$31),Personal!$J$6*(Personal!$AF37+Personal!$AH37),0)),0) -> 0 | AE37: 0 | AF37: 0 | AG37: 0 | AH37: 0 | AK37: 0 | AL37: =IF(G37=Hoja2!$J$5,IF(AND('Ficha Resumen'!$Q$18=Hoja2!$H$5,Personal!$E37=Hoja2!$B$31),Personal!$J$7*(Personal!$AN37+Personal!$AP37),IF(AND('Ficha Resumen'!$Q$18=Hoja2!$H$6,Personal!$E37=Hoja2!$B$31),Personal!$J$6*(Personal!$AN37+Personal!$AP37),0)),0) -> 0 | AM37: 0 | AN37: 0 | AO37: 0 | AP37: 0 | AS37: 0 | AT37: =IF(G37=Hoja2!$J$5,IF(AND('Ficha Resumen'!$Q$18=Hoja2!$H$5,Personal!$E37=Hoja2!$B$31),Personal!$J$7*(Personal!$AV37+Personal!$AX37),IF(AND('Ficha Resumen'!$Q$18=Hoja2!$H$6,Personal!$E37=Hoja2!$B$31),Personal!$J$6*(Personal!$AV37+Personal!$AX37),0)),0) -> 0 | AU37: 0 | AV37: 0 | AW37: 0 | AX37: 0 | AY37: =+IF(AND(E37=Hoja2!$B$31,(N37+V37+AD37+AL37+AT37)>0),(N37+V37+AD37+AL37+AT37),IF(E37=Hoja2!$B$31,(M37+U37+AC37+AK37+AS37),0)) -> 0 | AZ37: =+IF(E37=Hoja2!$B$31,(M37+U37+AC37+AK37+AS37)-AY37,IF(E37=Hoja2!$B$32,(M37+U37+AC37+AK37+AS37),0)) -> 0 | BA37: =+IF(E37=Hoja2!$B$34,(M37+U37+AC37+AK37+AS37),0) -> 0 | BB37: =+IF(E37=Hoja2!$B$33,(M37+U37+AC37+AK37+AS37),0) -> 0 | BC37: 0 | BD37: =+IF(OR(C37=Hoja2!$B$92,C37=Hoja2!$B$93,C37=Hoja2!$B$94),Personal!AY37,0) -> 0
I38: =+IF(H38=Hoja2!$B$27,0.2102,IF(H38=Hoja2!$B$28,0.58,0)) -> 0 | M38: 0 | N38: =+IF(G38=Hoja2!$J$5,IF(AND('Ficha Resumen'!$Q$18=Hoja2!$H$5,Personal!$E38=Hoja2!$B$31),Personal!$J$7*(Personal!$P38+Personal!$R38),IF(AND('Ficha Resumen'!$Q$18=Hoja2!$H$6,Personal!$E38=Hoja2!$B$31),Personal!$J$6*(Personal!$P38+Personal!$R38),0)),0) -> 0 | O38: =+IF(J38=Hoja2!$B$22,F38/160,IF(Personal!J38=Hoja2!$B$23,F38/80,0))*(1+O$4) -> 0 | P38: 0 | Q38: =+IF(J38=Hoja2!$B$22,F38*I38/160,IF(Personal!J38=Hoja2!$B$23,F38*I38/80,0))*(1+O$4) -> 0 | R38: 0 | U38: 0 | V38: =IF(G38=Hoja2!$J$5,IF(AND('Ficha Resumen'!$Q$18=Hoja2!$H$5,Personal!$E38=Hoja2!$B$31),Personal!$J$7*(Personal!$X38+Personal!$Z38),IF(AND('Ficha Resumen'!$Q$18=Hoja2!$H$6,Personal!$E38=Hoja2!$B$31),Personal!$J$6*(Personal!$X38+Personal!$Z38),0)),0) -> 0 | W38: 0 | X38: 0 | Y38: 0 | Z38: 0 | AC38: 0 | AD38: =IF(G38=Hoja2!$J$5,IF(AND('Ficha Resumen'!$Q$18=Hoja2!$H$5,Personal!$E38=Hoja2!$B$31),Personal!$J$7*(Personal!$AF38+Personal!$AH38),IF(AND('Ficha Resumen'!$Q$18=Hoja2!$H$6,Personal!$E38=Hoja2!$B$31),Personal!$J$6*(Personal!$AF38+Personal!$AH38),0)),0) -> 0 | AE38: 0 | AF38: 0 | AG38: 0 | AH38: 0 | AK38: 0 | AL38: =IF(G38=Hoja2!$J$5,IF(AND('Ficha Resumen'!$Q$18=Hoja2!$H$5,Personal!$E38=Hoja2!$B$31),Personal!$J$7*(Personal!$AN38+Personal!$AP38),IF(AND('Ficha Resumen'!$Q$18=Hoja2!$H$6,Personal!$E38=Hoja2!$B$31),Personal!$J$6*(Personal!$AN38+Personal!$AP38),0)),0) -> 0 | AM38: 0 | AN38: 0 | AO38: 0 | AP38: 0 | AS38: 0 | AT38: =IF(G38=Hoja2!$J$5,IF(AND('Ficha Resumen'!$Q$18=Hoja2!$H$5,Personal!$E38=Hoja2!$B$31),Personal!$J$7*(Personal!$AV38+Personal!$AX38),IF(AND('Ficha Resumen'!$Q$18=Hoja2!$H$6,Personal!$E38=Hoja2!$B$31),Personal!$J$6*(Personal!$AV38+Personal!$AX38),0)),0) -> 0 | AU38: 0 | AV38: 0 | AW38: 0 | AX38: 0 | AY38: =+IF(AND(E38=Hoja2!$B$31,(N38+V38+AD38+AL38+AT38)>0),(N38+V38+AD38+AL38+AT38),IF(E38=Hoja2!$B$31,(M38+U38+AC38+AK38+AS38),0)) -> 0 | AZ38: =+IF(E38=Hoja2!$B$31,(M38+U38+AC38+AK38+AS38)-AY38,IF(E38=Hoja2!$B$32,(M38+U38+AC38+AK38+AS38),0)) -> 0 | BA38: =+IF(E38=Hoja2!$B$34,(M38+U38+AC38+AK38+AS38),0) -> 0 | BB38: =+IF(E38=Hoja2!$B$33,(M38+U38+AC38+AK38+AS38),0) -> 0 | BC38: 0 | BD38: =+IF(OR(C38=Hoja2!$B$92,C38=Hoja2!$B$93,C38=Hoja2!$B$94),Personal!AY38,0) -> 0
I39: =+IF(H39=Hoja2!$B$27,0.2102,IF(H39=Hoja2!$B$28,0.58,0)) -> 0 | M39: 0 | N39: =+IF(G39=Hoja2!$J$5,IF(AND('Ficha Resumen'!$Q$18=Hoja2!$H$5,Personal!$E39=Hoja2!$B$31),Personal!$J$7*(Personal!$P39+Personal!$R39),IF(AND('Ficha Resumen'!$Q$18=Hoja2!$H$6,Personal!$E39=Hoja2!$B$31),Personal!$J$6*(Personal!$P39+Personal!$R39),0)),0) -> 0 | O39: =+IF(J39=Hoja2!$B$22,F39/160,IF(Personal!J39=Hoja2!$B$23,F39/80,0))*(1+O$4) -> 0 | P39: 0 | Q39: =+IF(J39=Hoja2!$B$22,F39*I39/160,IF(Personal!J39=Hoja2!$B$23,F39*I39/80,0))*(1+O$4) -> 0 | R39: 0 | U39: 0 | V39: =IF(G39=Hoja2!$J$5,IF(AND('Ficha Resumen'!$Q$18=Hoja2!$H$5,Personal!$E39=Hoja2!$B$31),Personal!$J$7*(Personal!$X39+Personal!$Z39),IF(AND('Ficha Resumen'!$Q$18=Hoja2!$H$6,Personal!$E39=Hoja2!$B$31),Personal!$J$6*(Personal!$X39+Personal!$Z39),0)),0) -> 0 | W39: 0 | X39: 0 | Y39: 0 | Z39: 0 | AC39: 0 | AD39: =IF(G39=Hoja2!$J$5,IF(AND('Ficha Resumen'!$Q$18=Hoja2!$H$5,Personal!$E39=Hoja2!$B$31),Personal!$J$7*(Personal!$AF39+Personal!$AH39),IF(AND('Ficha Resumen'!$Q$18=Hoja2!$H$6,Personal!$E39=Hoja2!$B$31),Personal!$J$6*(Personal!$AF39+Personal!$AH39),0)),0) -> 0 | AE39: 0 | AF39: 0 | AG39: 0 | AH39: 0 | AK39: 0 | AL39: =IF(G39=Hoja2!$J$5,IF(AND('Ficha Resumen'!$Q$18=Hoja2!$H$5,Personal!$E39=Hoja2!$B$31),Personal!$J$7*(Personal!$AN39+Personal!$AP39),IF(AND('Ficha Resumen'!$Q$18=Hoja2!$H$6,Personal!$E39=Hoja2!$B$31),Personal!$J$6*(Personal!$AN39+Personal!$AP39),0)),0) -> 0 | AM39: 0 | AN39: 0 | AO39: 0 | AP39: 0 | AS39: 0 | AT39: =IF(G39=Hoja2!$J$5,IF(AND('Ficha Resumen'!$Q$18=Hoja2!$H$5,Personal!$E39=Hoja2!$B$31),Personal!$J$7*(Personal!$AV39+Personal!$AX39),IF(AND('Ficha Resumen'!$Q$18=Hoja2!$H$6,Personal!$E39=Hoja2!$B$31),Personal!$J$6*(Personal!$AV39+Personal!$AX39),0)),0) -> 0 | AU39: 0 | AV39: 0 | AW39: 0 | AX39: 0 | AY39: =+IF(AND(E39=Hoja2!$B$31,(N39+V39+AD39+AL39+AT39)>0),(N39+V39+AD39+AL39+AT39),IF(E39=Hoja2!$B$31,(M39+U39+AC39+AK39+AS39),0)) -> 0 | AZ39: =+IF(E39=Hoja2!$B$31,(M39+U39+AC39+AK39+AS39)-AY39,IF(E39=Hoja2!$B$32,(M39+U39+AC39+AK39+AS39),0)) -> 0 | BA39: =+IF(E39=Hoja2!$B$34,(M39+U39+AC39+AK39+AS39),0) -> 0 | BB39: =+IF(E39=Hoja2!$B$33,(M39+U39+AC39+AK39+AS39),0) -> 0 | BC39: 0 | BD39: =+IF(OR(C39=Hoja2!$B$92,C39=Hoja2!$B$93,C39=Hoja2!$B$94),Personal!AY39,0) -> 0
I40: =+IF(H40=Hoja2!$B$27,0.2102,IF(H40=Hoja2!$B$28,0.58,0)) -> 0 | M40: 0 | N40: =+IF(G40=Hoja2!$J$5,IF(AND('Ficha Resumen'!$Q$18=Hoja2!$H$5,Personal!$E40=Hoja2!$B$31),Personal!$J$7*(Personal!$P40+Personal!$R40),IF(AND('Ficha Resumen'!$Q$18=Hoja2!$H$6,Personal!$E40=Hoja2!$B$31),Personal!$J$6*(Personal!$P40+Personal!$R40),0)),0) -> 0 | O40: =+IF(J40=Hoja2!$B$22,F40/160,IF(Personal!J40=Hoja2!$B$23,F40/80,0))*(1+O$4) -> 0 | P40: 0 | Q40: =+IF(J40=Hoja2!$B$22,F40*I40/160,IF(Personal!J40=Hoja2!$B$23,F40*I40/80,0))*(1+O$4) -> 0 | R40: 0 | U40: 0 | V40: =IF(G40=Hoja2!$J$5,IF(AND('Ficha Resumen'!$Q$18=Hoja2!$H$5,Personal!$E40=Hoja2!$B$31),Personal!$J$7*(Personal!$X40+Personal!$Z40),IF(AND('Ficha Resumen'!$Q$18=Hoja2!$H$6,Personal!$E40=Hoja2!$B$31),Personal!$J$6*(Personal!$X40+Personal!$Z40),0)),0) -> 0 | W40: 0 | X40: 0 | Y40: 0 | Z40: 0 | AC40: 0 | AD40: =IF(G40=Hoja2!$J$5,IF(AND('Ficha Resumen'!$Q$18=Hoja2!$H$5,Personal!$E40=Hoja2!$B$31),Personal!$J$7*(Personal!$AF40+Personal!$AH40),IF(AND('Ficha Resumen'!$Q$18=Hoja2!$H$6,Personal!$E40=Hoja2!$B$31),Personal!$J$6*(Personal!$AF40+Personal!$AH40),0)),0) -> 0 | AE40: 0 | AF40: 0 | AG40: 0 | AH40: 0 | AK40: 0 | AL40: =IF(G40=Hoja2!$J$5,IF(AND('Ficha Resumen'!$Q$18=Hoja2!$H$5,Personal!$E40=Hoja2!$B$31),Personal!$J$7*(Personal!$AN40+Personal!$AP40),IF(AND('Ficha Resumen'!$Q$18=Hoja2!$H$6,Personal!$E40=Hoja2!$B$31),Personal!$J$6*(Personal!$AN40+Personal!$AP40),0)),0) -> 0 | AM40: 0 | AN40: 0 | AO40: 0 | AP40: 0 | AS40: 0 | AT40: =IF(G40=Hoja2!$J$5,IF(AND('Ficha Resumen'!$Q$18=Hoja2!$H$5,Personal!$E40=Hoja2!$B$31),Personal!$J$7*(Personal!$AV40+Personal!$AX40),IF(AND('Ficha Resumen'!$Q$18=Hoja2!$H$6,Personal!$E40=Hoja2!$B$31),Personal!$J$6*(Personal!$AV40+Personal!$AX40),0)),0) -> 0 | AU40: 0 | AV40: 0 | AW40: 0 | AX40: 0 | AY40: =+IF(AND(E40=Hoja2!$B$31,(N40+V40+AD40+AL40+AT40)>0),(N40+V40+AD40+AL40+AT40),IF(E40=Hoja2!$B$31,(M40+U40+AC40+AK40+AS40),0)) -> 0 | AZ40: =+IF(E40=Hoja2!$B$31,(M40+U40+AC40+AK40+AS40)-AY40,IF(E40=Hoja2!$B$32,(M40+U40+AC40+AK40+AS40),0)) -> 0 | BA40: =+IF(E40=Hoja2!$B$34,(M40+U40+AC40+AK40+AS40),0) -> 0 | BB40: =+IF(E40=Hoja2!$B$33,(M40+U40+AC40+AK40+AS40),0) -> 0 | BC40: 0 | BD40: =+IF(OR(C40=Hoja2!$B$92,C40=Hoja2!$B$93,C40=Hoja2!$B$94),Personal!AY40,0) -> 0
AY41: =+SUM(AY9:AY40) -> 0 | AZ41: =+SUM(AZ9:AZ40) -> 0 | BA41: =+SUM(BA9:BA40) -> 20490797 | BB41: 0 | BC41: 20490797 | BD41: =+SUM(BD9:BD40) -> 0
W42: =+W9*T9*4*S9 -> 0 | AE42: =+AE9*AB9*4*AA9 -> 0 | AM42: =+AM9*AJ9*4*AI9 -> 0 | AU42: =+AU9*AR9*4*AQ9 -> 0 | BD42: =IFERROR(BD41/'Ficha Resumen'!P49,0) -> 0

Sheet Consultoría Especializada
C3: Nombre del proyecto | D3: =+'Ficha Resumen'!D18 -> Exploración de la validez de las formulas utilizadas para calcular porcentaje graso frente a la absorciometro de rayos X en deportistas paralimpicos con aputación de miembros inferiores
C5: CONSULTORÍA - ASESORÍA - HONORARIOS
C6: Cifras en Pesos COP
B8: Institución | C8: Descripción / Justificación | D8: Justificación* | E8: Proveedor | F8: Valor $ COP | G8: Año | H8: Financiado / Contrapartida | I8: =+Personal!AY8 -> Financiado Caja | J8: =+Personal!AZ8 -> Financiado No Caja | K8: =+Personal!BA8 -> Contrapartida Especie | L8: =+Personal!BB8 -> Contrapartida Efectivo | M8: Total
I9: =+IF(H9=Hoja2!$B$16,F9*(1+IFERROR(VLOOKUP(G9,Hoja2!$B$5:$E$9,2,FALSE),0))^IFERROR(VLOOKUP(G9,Hoja2!$B$5:$E$9,4,FALSE),1),0) -> 0 | J9: =+IF(H9=Hoja2!$B$17,F9*(1+IFERROR(VLOOKUP(G9,Hoja2!$B$5:$E$9,2,FALSE),0))^IFERROR(VLOOKUP(G9,Hoja2!$B$5:$E$9,4,FALSE),1),0) -> 0 | K9: =+IF(H9=Hoja2!$B$19,F9*(1+IFERROR(VLOOKUP(G9,Hoja2!$B$5:$E$9,2,FALSE),0))^IFERROR(VLOOKUP(G9,Hoja2!$B$5:$E$9,4,FALSE),1),0) -> 0 | L9: =+IF(H9=Hoja2!$B$18,F9*(1+IFERROR(VLOOKUP(G9,Hoja2!$B$5:$E$9,2,FALSE),0))^IFERROR(VLOOKUP(G9,Hoja2!$B$5:$E$9,4,FALSE),1),0) -> 0 | M9: =+SUM(I9:L9) -> 0
I10: =+IF(H10=Hoja2!$B$16,F10*(1+IFERROR(VLOOKUP(G10,Hoja2!$B$5:$E$9,2,FALSE),0))^IFERROR(VLOOKUP(G10,Hoja2!$B$5:$E$9,4,FALSE),1),0) -> 0 | J10: =+IF(H10=Hoja2!$B$17,F10*(1+IFERROR(VLOOKUP(G10,Hoja2!$B$5:$E$9,2,FALSE),0))^IFERROR(VLOOKUP(G10,Hoja2!$B$5:$E$9,4,FALSE),1),0) -> 0 | K10: =+IF(H10=Hoja2!$B$19,F10*(1+IFERROR(VLOOKUP(G10,Hoja2!$B$5:$E$9,2,FALSE),0))^IFERROR(VLOOKUP(G10,Hoja2!$B$5:$E$9,4,FALSE),1),0) -> 0 | L10: =+IF(H10=Hoja2!$B$18,F10*(1+IFERROR(VLOOKUP(G10,Hoja2!$B$5:$E$9,2,FALSE),0))^IFERROR(VLOOKUP(G10,Hoja2!$B$5:$E$9,4,FALSE),1),0) -> 0 | M10: =+SUM(I10:L10) -> 0
I11: =+IF(H11=Hoja2!$B$16,F11*(1+IFERROR(VLOOKUP(G11,Hoja2!$B$5:$E$9,2,FALSE),0))^IFERROR(VLOOKUP(G11,Hoja2!$B$5:$E$9,4,FALSE),1),0) -> 0 | J11: =+IF(H11=Hoja2!$B$17,F11*(1+IFERROR(VLOOKUP(G11,Hoja2!$B$5:$E$9,2,FALSE),0))^IFERROR(VLOOKUP(G11,Hoja2!$B$5:$E$9,4,FALSE),1),0) -> 0 | K11: =+IF(H11=Hoja2!$B$19,F11*(1+IFERROR(VLOOKUP(G11,Hoja2!$B$5:$E$9,2,FALSE),0))^IFERROR(VLOOKUP(G11,Hoja2!$B$5:$E$9,4,FALSE),1),0) -> 0 | L11: =+IF(H11=Hoja2!$B$18,F11*(1+IFERROR(VLOOKUP(G11,Hoja2!$B$5:$E$9,2,FALSE),0))^IFERROR(VLOOKUP(G11,Hoja2!$B$5:$E$9,4,FALSE),1),0) -> 0 | M11: 0
I12: =+IF(H12=Hoja2!$B$16,F12*(1+IFERROR(VLOOKUP(G12,Hoja2!$B$5:$E$9,2,FALSE),0))^IFERROR(VLOOKUP(G12,Hoja2!$B$5:$E$9,4,FALSE),1),0) -> 0 | J12: =+IF(H12=Hoja2!$B$17,F12*(1+IFERROR(VLOOKUP(G12,Hoja2!$B$5:$E$9,2,FALSE),0))^IFERROR(VLOOKUP(G12,Hoja2!$B$5:$E$9,4,FALSE),1),0) -> 0 | K12: =+IF(H12=Hoja2!$B$19,F12*(1+IFERROR(VLOOKUP(G12,Hoja2!$B$5:$E$9,2,FALSE),0))^IFERROR(VLOOKUP(G12,Hoja2!$B$5:$E$9,4,FALSE),1),0) -> 0 | L12: =+IF(H12=Hoja2!$B$18,F12*(1+IFERROR(VLOOKUP(G12,Hoja2!$B$5:$E$9,2,FALSE),0))^IFERROR(VLOOKUP(G12,Hoja2!$B$5:$E$9,4,FALSE),1),0) -> 0 | M12: 0
I13: =+IF(H13=Hoja2!$B$16,F13*(1+IFERROR(VLOOKUP(G13,Hoja2!$B$5:$E$9,2,FALSE),0))^IFERROR(VLOOKUP(G13,Hoja2!$B$5:$E$9,4,FALSE),1),0) -> 0 | J13: =+IF(H13=Hoja2!$B$17,F13*(1+IFERROR(VLOOKUP(G13,Hoja2!$B$5:$E$9,2,FALSE),0))^IFERROR(VLOOKUP(G13,Hoja2!$B$5:$E$9,4,FALSE),1),0) -> 0 | K13: =+IF(H13=Hoja2!$B$19,F13*(1+IFERROR(VLOOKUP(G13,Hoja2!$B$5:$E$9,2,FALSE),0))^IFERROR(VLOOKUP(G13,Hoja2!$B$5:$E$9,4,FALSE),1),0) -> 0 | L13: =+IF(H13=Hoja2!$B$18,F13*(1+IFERROR(VLOOKUP(G13,Hoja2!$B$5:$E$9,2,FALSE),0))^IFERROR(VLOOKUP(G13,Hoja2!$B$5:$E$9,4,FALSE),1),0) -> 0 | M13: 0
I14: =+IF(H14=Hoja2!$B$16,F14*(1+IFERROR(VLOOKUP(G14,Hoja2!$B$5:$E$9,2,FALSE),0))^IFERROR(VLOOKUP(G14,Hoja2!$B$5:$E$9,4,FALSE),1),0) -> 0 | J14: =+IF(H14=Hoja2!$B$17,F14*(1+IFERROR(VLOOKUP(G14,Hoja2!$B$5:$E$9,2,FALSE),0))^IFERROR(VLOOKUP(G14,Hoja2!$B$5:$E$9,4,FALSE),1),0) -> 0 | K14: =+IF(H14=Hoja2!$B$19,F14*(1+IFERROR(VLOOKUP(G14,Hoja2!$B$5:$E$9,2,FALSE),0))^IFERROR(VLOOKUP(G14,Hoja2!$B$5:$E$9,4,FALSE),1),0) -> 0 | L14: =+IF(H14=Hoja2!$B$18,F14*(1+IFERROR(VLOOKUP(G14,Hoja2!$B$5:$E$9,2,FALSE),0))^IFERROR(VLOOKUP(G14,Hoja2!$B$5:$E$9,4,FALSE),1),0) -> 0 | M14: 0
I15: =+IF(H15=Hoja2!$B$16,F15*(1+IFERROR(VLOOKUP(G15,Hoja2!$B$5:$E$9,2,FALSE),0))^IFERROR(VLOOKUP(G15,Hoja2!$B$5:$E$9,4,FALSE),1),0) -> 0 | J15: =+IF(H15=Hoja2!$B$17,F15*(1+IFERROR(VLOOKUP(G15,Hoja2!$B$5:$E$9,2,FALSE),0))^IFERROR(VLOOKUP(G15,Hoja2!$B$5:$E$9,4,FALSE),1),0) -> 0 | K15: =+IF(H15=Hoja2!$B$19,F15*(1+IFERROR(VLOOKUP(G15,Hoja2!$B$5:$E$9,2,FALSE),0))^IFERROR(VLOOKUP(G15,Hoja2!$B$5:$E$9,4,FALSE),1),0) -> 0 | L15: =+IF(H15=Hoja2!$B$18,F15*(1+IFERROR(VLOOKUP(G15,Hoja2!$B$5:$E$9,2,FALSE),0))^IFERROR(VLOOKUP(G15,Hoja2!$B$5:$E$9,4,FALSE),1),0) -> 0 | M15: 0
I16: =+IF(H16=Hoja2!$B$16,F16*(1+IFERROR(VLOOKUP(G16,Hoja2!$B$5:$E$9,2,FALSE),0))^IFERROR(VLOOKUP(G16,Hoja2!$B$5:$E$9,4,FALSE),1),0) -> 0 | J16: =+IF(H16=Hoja2!$B$17,F16*(1+IFERROR(VLOOKUP(G16,Hoja2!$B$5:$E$9,2,FALSE),0))^IFERROR(VLOOKUP(G16,Hoja2!$B$5:$E$9,4,FALSE),1),0) -> 0 | K16: =+IF(H16=Hoja2!$B$19,F16*(1+IFERROR(VLOOKUP(G16,Hoja2!$B$5:$E$9,2,FALSE),0))^IFERROR(VLOOKUP(G16,Hoja2!$B$5:$E$9,4,FALSE),1),0) -> 0 | L16: =+IF(H16=Hoja2!$B$18,F16*(1+IFERROR(VLOOKUP(G16,Hoja2!$B$5:$E$9,2,FALSE),0))^IFERROR(VLOOKUP(G16,Hoja2!$B$5:$E$9,4,FALSE),1),0) -> 0 | M16: 0
I17: =+IF(H17=Hoja2!$B$16,F17*(1+IFERROR(VLOOKUP(G17,Hoja2!$B$5:$E$9,2,FALSE),0))^IFERROR(VLOOKUP(G17,Hoja2!$B$5:$E$9,4,FALSE),1),0) -> 0 | J17: =+IF(H17=Hoja2!$B$17,F17*(1+IFERROR(VLOOKUP(G17,Hoja2!$B$5:$E$9,2,FALSE),0))^IFERROR(VLOOKUP(G17,Hoja2!$B$5:$E$9,4,FALSE),1),0) -> 0 | K17: =+IF(H17=Hoja2!$B$19,F17*(1+IFERROR(VLOOKUP(G17,Hoja2!$B$5:$E$9,2,FALSE),0))^IFERROR(VLOOKUP(G17,Hoja2!$B$5:$E$9,4,FALSE),1),0) -> 0 | L17: =+IF(H17=Hoja2!$B$18,F17*(1+IFERROR(VLOOKUP(G17,Hoja2!$B$5:$E$9,2,FALSE),0))^IFERROR(VLOOKUP(G17,Hoja2!$B$5:$E$9,4,FALSE),1),0) -> 0 | M17: 0
I18: =+IF(H18=Hoja2!$B$16,F18*(1+IFERROR(VLOOKUP(G18,Hoja2!$B$5:$E$9,2,FALSE),0))^IFERROR(VLOOKUP(G18,Hoja2!$B$5:$E$9,4,FALSE),1),0) -> 0 | J18: =+IF(H18=Hoja2!$B$17,F18*(1+IFERROR(VLOOKUP(G18,Hoja2!$B$5:$E$9,2,FALSE),0))^IFERROR(VLOOKUP(G18,Hoja2!$B$5:$E$9,4,FALSE),1),0) -> 0 | K18: =+IF(H18=Hoja2!$B$19,F18*(1+IFERROR(VLOOKUP(G18,Hoja2!$B$5:$E$9,2,FALSE),0))^IFERROR(VLOOKUP(G18,Hoja2!$B$5:$E$9,4,FALSE),1),0) -> 0 | L18: =+IF(H18=Hoja2!$B$18,F18*(1+IFERROR(VLOOKUP(G18,Hoja2!$B$5:$E$9,2,FALSE),0))^IFERROR(VLOOKUP(G18,Hoja2!$B$5:$E$9,4,FALSE),1),0) -> 0 | M18: 0
I19: =+IF(H19=Hoja2!$B$16,F19*(1+IFERROR(VLOOKUP(G19,Hoja2!$B$5:$E$9,2,FALSE),0))^IFERROR(VLOOKUP(G19,Hoja2!$B$5:$E$9,4,FALSE),1),0) -> 0 | J19: =+IF(H19=Hoja2!$B$17,F19*(1+IFERROR(VLOOKUP(G19,Hoja2!$B$5:$E$9,2,FALSE),0))^IFERROR(VLOOKUP(G19,Hoja2!$B$5:$E$9,4,FALSE),1),0) -> 0 | K19: =+IF(H19=Hoja2!$B$19,F19*(1+IFERROR(VLOOKUP(G19,Hoja2!$B$5:$E$9,2,FALSE),0))^IFERROR(VLOOKUP(G19,Hoja2!$B$5:$E$9,4,FALSE),1),0) -> 0 | L19: =+IF(H19=Hoja2!$B$18,F19*(1+IFERROR(VLOOKUP(G19,Hoja2!$B$5:$E$9,2,FALSE),0))^IFERROR(VLOOKUP(G19,Hoja2!$B$5:$E$9,4,FALSE),1),0) -> 0 | M19: 0
I20: =+IF(H20=Hoja2!$B$16,F20*(1+IFERROR(VLOOKUP(G20,Hoja2!$B$5:$E$9,2,FALSE),0))^IFERROR(VLOOKUP(G20,Hoja2!$B$5:$E$9,4,FALSE),1),0) -> 0 | J20: =+IF(H20=Hoja2!$B$17,F20*(1+IFERROR(VLOOKUP(G20,Hoja2!$B$5:$E$9,2,FALSE),0))^IFERROR(VLOOKUP(G20,Hoja2!$B$5:$E$9,4,FALSE),1),0) -> 0 | K20: =+IF(H20=Hoja2!$B$19,F20*(1+IFERROR(VLOOKUP(G20,Hoja2!$B$5:$E$9,2,FALSE),0))^IFERROR(VLOOKUP(G20,Hoja2!$B$5:$E$9,4,FALSE),1),0) -> 0 | L20: =+IF(H20=Hoja2!$B$18,F20*(1+IFERROR(VLOOKUP(G20,Hoja2!$B$5:$E$9,2,FALSE),0))^IFERROR(VLOOKUP(G20,Hoja2!$B$5:$E$9,4,FALSE),1),0) -> 0 | M20: 0
I21: =+IF(H21=Hoja2!$B$16,F21*(1+IFERROR(VLOOKUP(G21,Hoja2!$B$5:$E$9,2,FALSE),0))^IFERROR(VLOOKUP(G21,Hoja2!$B$5:$E$9,4,FALSE),1),0) -> 0 | J21: =+IF(H21=Hoja2!$B$17,F21*(1+IFERROR(VLOOKUP(G21,Hoja2!$B$5:$E$9,2,FALSE),0))^IFERROR(VLOOKUP(G21,Hoja2!$B$5:$E$9,4,FALSE),1),0) -> 0 | K21: =+IF(H21=Hoja2!$B$19,F21*(1+IFERROR(VLOOKUP(G21,Hoja2!$B$5:$E$9,2,FALSE),0))^IFERROR(VLOOKUP(G21,Hoja2!$B$5:$E$9,4,FALSE),1),0) -> 0 | L21: =+IF(H21=Hoja2!$B$18,F21*(1+IFERROR(VLOOKUP(G21,Hoja2!$B$5:$E$9,2,FALSE),0))^IFERROR(VLOOKUP(G21,Hoja2!$B$5:$E$9,4,FALSE),1),0) -> 0 | M21: 0
I22: =+IF(H22=Hoja2!$B$16,F22*(1+IFERROR(VLOOKUP(G22,Hoja2!$B$5:$E$9,2,FALSE),0))^IFERROR(VLOOKUP(G22,Hoja2!$B$5:$E$9,4,FALSE),1),0) -> 0 | J22: =+IF(H22=Hoja2!$B$17,F22*(1+IFERROR(VLOOKUP(G22,Hoja2!$B$5:$E$9,2,FALSE),0))^IFERROR(VLOOKUP(G22,Hoja2!$B$5:$E$9,4,FALSE),1),0) -> 0 | K22: =+IF(H22=Hoja2!$B$19,F22*(1+IFERROR(VLOOKUP(G22,Hoja2!$B$5:$E$9,2,FALSE),0))^IFERROR(VLOOKUP(G22,Hoja2!$B$5:$E$9,4,FALSE),1),0) -> 0 | L22: =+IF(H22=Hoja2!$B$18,F22*(1+IFERROR(VLOOKUP(G22,Hoja2!$B$5:$E$9,2,FALSE),0))^IFERROR(VLOOKUP(G22,Hoja2!$B$5:$E$9,4,FALSE),1),0) -> 0 | M22: 0
I23: =+IF(H23=Hoja2!$B$16,F23*(1+IFERROR(VLOOKUP(G23,Hoja2!$B$5:$E$9,2,FALSE),0))^IFERROR(VLOOKUP(G23,Hoja2!$B$5:$E$9,4,FALSE),1),0) -> 0 | J23: =+IF(H23=Hoja2!$B$17,F23*(1+IFERROR(VLOOKUP(G23,Hoja2!$B$5:$E$9,2,FALSE),0))^IFERROR(VLOOKUP(G23,Hoja2!$B$5:$E$9,4,FALSE),1),0) -> 0 | K23: =+IF(H23=Hoja2!$B$19,F23*(1+IFERROR(VLOOKUP(G23,Hoja2!$B$5:$E$9,2,FALSE),0))^IFERROR(VLOOKUP(G23,Hoja2!$B$5:$E$9,4,FALSE),1),0) -> 0 | L23: =+IF(H23=Hoja2!$B$18,F23*(1+IFERROR(VLOOKUP(G23,Hoja2!$B$5:$E$9,2,FALSE),0))^IFERROR(VLOOKUP(G23,Hoja2!$B$5:$E$9,4,FALSE),1),0) -> 0 | M23: 0
I24: =+IF(H24=Hoja2!$B$16,F24*(1+IFERROR(VLOOKUP(G24,Hoja2!$B$5:$E$9,2,FALSE),0))^IFERROR(VLOOKUP(G24,Hoja2!$B$5:$E$9,4,FALSE),1),0) -> 0 | J24: =+IF(H24=Hoja2!$B$17,F24*(1+IFERROR(VLOOKUP(G24,Hoja2!$B$5:$E$9,2,FALSE),0))^IFERROR(VLOOKUP(G24,Hoja2!$B$5:$E$9,4,FALSE),1),0) -> 0 | K24: =+IF(H24=Hoja2!$B$19,F24*(1+IFERROR(VLOOKUP(G24,Hoja2!$B$5:$E$9,2,FALSE),0))^IFERROR(VLOOKUP(G24,Hoja2!$B$5:$E$9,4,FALSE),1),0) -> 0 | L24: =+IF(H24=Hoja2!$B$18,F24*(1+IFERROR(VLOOKUP(G24,Hoja2!$B$5:$E$9,2,FALSE),0))^IFERROR(VLOOKUP(G24,Hoja2!$B$5:$E$9,4,FALSE),1),0) -> 0 | M24: 0
I25: =+IF(H25=Hoja2!$B$16,F25*(1+IFERROR(VLOOKUP(G25,Hoja2!$B$5:$E$9,2,FALSE),0))^IFERROR(VLOOKUP(G25,Hoja2!$B$5:$E$9,4,FALSE),1),0) -> 0 | J25: =+IF(H25=Hoja2!$B$17,F25*(1+IFERROR(VLOOKUP(G25,Hoja2!$B$5:$E$9,2,FALSE),0))^IFERROR(VLOOKUP(G25,Hoja2!$B$5:$E$9,4,FALSE),1),0) -> 0 | K25: =+IF(H25=Hoja2!$B$19,F25*(1+IFERROR(VLOOKUP(G25,Hoja2!$B$5:$E$9,2,FALSE),0))^IFERROR(VLOOKUP(G25,Hoja2!$B$5:$E$9,4,FALSE),1),0) -> 0 | L25: =+IF(H25=Hoja2!$B$18,F25*(1+IFERROR(VLOOKUP(G25,Hoja2!$B$5:$E$9,2,FALSE),0))^IFERROR(VLOOKUP(G25,Hoja2!$B$5:$E$9,4,FALSE),1),0) -> 0 | M25: 0
I26: =+IF(H26=Hoja2!$B$16,F26*(1+IFERROR(VLOOKUP(G26,Hoja2!$B$5:$E$9,2,FALSE),0))^IFERROR(VLOOKUP(G26,Hoja2!$B$5:$E$9,4,FALSE),1),0) -> 0 | J26: =+IF(H26=Hoja2!$B$17,F26*(1+IFERROR(VLOOKUP(G26,Hoja2!$B$5:$E$9,2,FALSE),0))^IFERROR(VLOOKUP(G26,Hoja2!$B$5:$E$9,4,FALSE),1),0) -> 0 | K26: =+IF(H26=Hoja2!$B$19,F26*(1+IFERROR(VLOOKUP(G26,Hoja2!$B$5:$E$9,2,FALSE),0))^IFERROR(VLOOKUP(G26,Hoja2!$B$5:$E$9,4,FALSE),1),0) -> 0 | L26: =+IF(H26=Hoja2!$B$18,F26*(1+IFERROR(VLOOKUP(G26,Hoja2!$B$5:$E$9,2,FALSE),0))^IFERROR(VLOOKUP(G26,Hoja2!$B$5:$E$9,4,FALSE),1),0) -> 0 | M26: 0
I27: =+IF(H27=Hoja2!$B$16,F27*(1+IFERROR(VLOOKUP(G27,Hoja2!$B$5:$E$9,2,FALSE),0))^IFERROR(VLOOKUP(G27,Hoja2!$B$5:$E$9,4,FALSE),1),0) -> 0 | J27: =+IF(H27=Hoja2!$B$17,F27*(1+IFERROR(VLOOKUP(G27,Hoja2!$B$5:$E$9,2,FALSE),0))^IFERROR(VLOOKUP(G27,Hoja2!$B$5:$E$9,4,FALSE),1),0) -> 0 | K27: =+IF(H27=Hoja2!$B$19,F27*(1+IFERROR(VLOOKUP(G27,Hoja2!$B$5:$E$9,2,FALSE),0))^IFERROR(VLOOKUP(G27,Hoja2!$B$5:$E$9,4,FALSE),1),0) -> 0 | L27: =+IF(H27=Hoja2!$B$18,F27*(1+IFERROR(VLOOKUP(G27,Hoja2!$B$5:$E$9,2,FALSE),0))^IFERROR(VLOOKUP(G27,Hoja2!$B$5:$E$9,4,FALSE),1),0) -> 0 | M27: 0
I28: =+IF(H28=Hoja2!$B$16,F28*(1+IFERROR(VLOOKUP(G28,Hoja2!$B$5:$E$9,2,FALSE),0))^IFERROR(VLOOKUP(G28,Hoja2!$B$5:$E$9,4,FALSE),1),0) -> 0 | J28: =+IF(H28=Hoja2!$B$17,F28*(1+IFERROR(VLOOKUP(G28,Hoja2!$B$5:$E$9,2,FALSE),0))^IFERROR(VLOOKUP(G28,Hoja2!$B$5:$E$9,4,FALSE),1),0) -> 0 | K28: =+IF(H28=Hoja2!$B$19,F28*(1+IFERROR(VLOOKUP(G28,Hoja2!$B$5:$E$9,2,FALSE),0))^IFERROR(VLOOKUP(G28,Hoja2!$B$5:$E$9,4,FALSE),1),0) -> 0 | L28: =+IF(H28=Hoja2!$B$18,F28*(1+IFERROR(VLOOKUP(G28,Hoja2!$B$5:$E$9,2,FALSE),0))^IFERROR(VLOOKUP(G28,Hoja2!$B$5:$E$9,4,FALSE),1),0) -> 0 | M28: 0
I29: =+IF(H29=Hoja2!$B$16,F29*(1+IFERROR(VLOOKUP(G29,Hoja2!$B$5:$E$9,2,FALSE),0))^IFERROR(VLOOKUP(G29,Hoja2!$B$5:$E$9,4,FALSE),1),0) -> 0 | J29: =+IF(H29=Hoja2!$B$17,F29*(1+IFERROR(VLOOKUP(G29,Hoja2!$B$5:$E$9,2,FALSE),0))^IFERROR(VLOOKUP(G29,Hoja2!$B$5:$E$9,4,FALSE),1),0) -> 0 | K29: =+IF(H29=Hoja2!$B$19,F29*(1+IFERROR(VLOOKUP(G29,Hoja2!$B$5:$E$9,2,FALSE),0))^IFERROR(VLOOKUP(G29,Hoja2!$B$5:$E$9,4,FALSE),1),0) -> 0 | L29: =+IF(H29=Hoja2!$B$18,F29*(1+IFERROR(VLOOKUP(G29,Hoja2!$B$5:$E$9,2,FALSE),0))^IFERROR(VLOOKUP(G29,Hoja2!$B$5:$E$9,4,FALSE),1),0) -> 0 | M29: 0
I30: =+IF(H30=Hoja2!$B$16,F30*(1+IFERROR(VLOOKUP(G30,Hoja2!$B$5:$E$9,2,FALSE),0))^IFERROR(VLOOKUP(G30,Hoja2!$B$5:$E$9,4,FALSE),1),0) -> 0 | J30: =+IF(H30=Hoja2!$B$17,F30*(1+IFERROR(VLOOKUP(G30,Hoja2!$B$5:$E$9,2,FALSE),0))^IFERROR(VLOOKUP(G30,Hoja2!$B$5:$E$9,4,FALSE),1),0) -> 0 | K30: =+IF(H30=Hoja2!$B$19,F30*(1+IFERROR(VLOOKUP(G30,Hoja2!$B$5:$E$9,2,FALSE),0))^IFERROR(VLOOKUP(G30,Hoja2!$B$5:$E$9,4,FALSE),1),0) -> 0 | L30: =+IF(H30=Hoja2!$B$18,F30*(1+IFERROR(VLOOKUP(G30,Hoja2!$B$5:$E$9,2,FALSE),0))^IFERROR(VLOOKUP(G30,Hoja2!$B$5:$E$9,4,FALSE),1),0) -> 0 | M30: 0
I31: =+IF(H31=Hoja2!$B$16,F31*(1+IFERROR(VLOOKUP(G31,Hoja2!$B$5:$E$9,2,FALSE),0))^IFERROR(VLOOKUP(G31,Hoja2!$B$5:$E$9,4,FALSE),1),0) -> 0 | J31: =+IF(H31=Hoja2!$B$17,F31*(1+IFERROR(VLOOKUP(G31,Hoja2!$B$5:$E$9,2,FALSE),0))^IFERROR(VLOOKUP(G31,Hoja2!$B$5:$E$9,4,FALSE),1),0) -> 0 | K31: =+IF(H31=Hoja2!$B$19,F31*(1+IFERROR(VLOOKUP(G31,Hoja2!$B$5:$E$9,2,FALSE),0))^IFERROR(VLOOKUP(G31,Hoja2!$B$5:$E$9,4,FALSE),1),0) -> 0 | L31: =+IF(H31=Hoja2!$B$18,F31*(1+IFERROR(VLOOKUP(G31,Hoja2!$B$5:$E$9,2,FALSE),0))^IFERROR(VLOOKUP(G31,Hoja2!$B$5:$E$9,4,FALSE),1),0) -> 0 | M31: 0
I32: =+IF(H32=Hoja2!$B$16,F32*(1+IFERROR(VLOOKUP(G32,Hoja2!$B$5:$E$9,2,FALSE),0))^IFERROR(VLOOKUP(G32,Hoja2!$B$5:$E$9,4,FALSE),1),0) -> 0 | J32: =+IF(H32=Hoja2!$B$17,F32*(1+IFERROR(VLOOKUP(G32,Hoja2!$B$5:$E$9,2,FALSE),0))^IFERROR(VLOOKUP(G32,Hoja2!$B$5:$E$9,4,FALSE),1),0) -> 0 | K32: =+IF(H32=Hoja2!$B$19,F32*(1+IFERROR(VLOOKUP(G32,Hoja2!$B$5:$E$9,2,FALSE),0))^IFERROR(VLOOKUP(G32,Hoja2!$B$5:$E$9,4,FALSE),1),0) -> 0 | L32: =+IF(H32=Hoja2!$B$18,F32*(1+IFERROR(VLOOKUP(G32,Hoja2!$B$5:$E$9,2,FALSE),0))^IFERROR(VLOOKUP(G32,Hoja2!$B$5:$E$9,4,FALSE),1),0) -> 0 | M32: 0
I33: =+IF(H33=Hoja2!$B$16,F33*(1+IFERROR(VLOOKUP(G33,Hoja2!$B$5:$E$9,2,FALSE),0))^IFERROR(VLOOKUP(G33,Hoja2!$B$5:$E$9,4,FALSE),1),0) -> 0 | J33: =+IF(H33=Hoja2!$B$17,F33*(1+IFERROR(VLOOKUP(G33,Hoja2!$B$5:$E$9,2,FALSE),0))^IFERROR(VLOOKUP(G33,Hoja2!$B$5:$E$9,4,FALSE),1),0) -> 0 | K33: =+IF(H33=Hoja2!$B$19,F33*(1+IFERROR(VLOOKUP(G33,Hoja2!$B$5:$E$9,2,FALSE),0))^IFERROR(VLOOKUP(G33,Hoja2!$B$5:$E$9,4,FALSE),1),0) -> 0 | L33: =+IF(H33=Hoja2!$B$18,F33*(1+IFERROR(VLOOKUP(G33,Hoja2!$B$5:$E$9,2,FALSE),0))^IFERROR(VLOOKUP(G33,Hoja2!$B$5:$E$9,4,FALSE),1),0) -> 0 | M33: 0
I34: =+SUM(I9:I33) -> 0 | J34: 0 | K34: 0 | L34: 0 | M34: =+SUM(M9:M33) -> 0

Sheet Materiales Bibliográfico
B3: Nombre del proyecto | E3: =+'Ficha Resumen'!D18 -> Exploración de la validez de las formulas utilizadas para calcular porcentaje graso frente a la absorciometro de rayos X en deportistas paralimpicos con aputación de miembros inferiores
B5: MATERIAL BIBLIOGRÁFICO
B6: Cifras en Pesos COP
B8: Institución | C8: Cantidad | D8: Costo por unidad | E8: Total costo | F8: Año | G8: Financiado / Contrapartida | H8: N° Actividad (Cronograma) | I8: Actividad (Cronograma) | J8: Descripción / Justificación | K8: Justificación* | L8: Proveedor | M8: =+'Consultoría Especializada'!I8 -> Financiado Caja | N8: =+'Consultoría Especializada'!J8 -> Financiado No Caja | O8: =+'Consultoría Especializada'!K8 -> Contrapartida Especie | P8: =+'Consultoría Especializada'!L8 -> Contrapartida Efectivo | Q8: Total
E9: =+C9*D9 -> 0 | M9: =+IF(G9=Hoja2!$B$16,'Materiales Bibliográfico'!E9*(1+IFERROR(VLOOKUP(F9,Hoja2!$B$5:$E$9,2,FALSE),0))^IFERROR(VLOOKUP(F9,Hoja2!$B$5:$E$9,4,FALSE),1),0) -> 0 | N9: =+IF(G9=Hoja2!$B$17,'Materiales Bibliográfico'!E9*(1+IFERROR(VLOOKUP(F9,Hoja2!$B$5:$E$9,2,FALSE),0))^IFERROR(VLOOKUP(F9,Hoja2!$B$5:$E$9,4,FALSE),1),0) -> 0 | O9: =+IF(G9=Hoja2!$B$19,'Materiales Bibliográfico'!E9*(1+IFERROR(VLOOKUP(F9,Hoja2!$B$5:$E$9,2,FALSE),0))^IFERROR(VLOOKUP(F9,Hoja2!$B$5:$E$9,4,FALSE),1),0) -> 0 | P9: =+IF(G9=Hoja2!$B$18,'Materiales Bibliográfico'!E9*(1+IFERROR(VLOOKUP(F9,Hoja2!$B$5:$E$9,2,FALSE),0))^IFERROR(VLOOKUP(F9,Hoja2!$B$5:$E$9,4,FALSE),1),0) -> 0 | Q9: =+SUM(M9:P9) -> 0
E10: 0 | M10: =+IF(G10=Hoja2!$B$16,'Materiales Bibliográfico'!E10*(1+IFERROR(VLOOKUP(F10,Hoja2!$B$5:$E$9,2,FALSE),0))^IFERROR(VLOOKUP(F10,Hoja2!$B$5:$E$9,4,FALSE),1),0) -> 0 | N10: =+IF(G10=Hoja2!$B$17,'Materiales Bibliográfico'!E10*(1+IFERROR(VLOOKUP(F10,Hoja2!$B$5:$E$9,2,FALSE),0))^IFERROR(VLOOKUP(F10,Hoja2!$B$5:$E$9,4,FALSE),1),0) -> 0 | O10: =+IF(G10=Hoja2!$B$19,'Materiales Bibliográfico'!E10*(1+IFERROR(VLOOKUP(F10,Hoja2!$B$5:$E$9,2,FALSE),0))^IFERROR(VLOOKUP(F10,Hoja2!$B$5:$E$9,4,FALSE),1),0) -> 0 | P10: =+IF(G10=Hoja2!$B$18,'Materiales Bibliográfico'!E10*(1+IFERROR(VLOOKUP(F10,Hoja2!$B$5:$E$9,2,FALSE),0))^IFERROR(VLOOKUP(F10,Hoja2!$B$5:$E$9,4,FALSE),1),0) -> 0 | Q10: =+SUM(M10:P10) -> 0
E11: 0 | M11: =+IF(G11=Hoja2!$B$16,'Materiales Bibliográfico'!E11*(1+IFERROR(VLOOKUP(F11,Hoja2!$B$5:$E$9,2,FALSE),0))^IFERROR(VLOOKUP(F11,Hoja2!$B$5:$E$9,4,FALSE),1),0) -> 0 | N11: =+IF(G11=Hoja2!$B$17,'Materiales Bibliográfico'!E11*(1+IFERROR(VLOOKUP(F11,Hoja2!$B$5:$E$9,2,FALSE),0))^IFERROR(VLOOKUP(F11,Hoja2!$B$5:$E$9,4,FALSE),1),0) -> 0 | O11: =+IF(G11=Hoja2!$B$19,'Materiales Bibliográfico'!E11*(1+IFERROR(VLOOKUP(F11,Hoja2!$B$5:$E$9,2,FALSE),0))^IFERROR(VLOOKUP(F11,Hoja2!$B$5:$E$9,4,FALSE),1),0) -> 0 | P11: =+IF(G11=Hoja2!$B$18,'Materiales Bibliográfico'!E11*(1+IFERROR(VLOOKUP(F11,Hoja2!$B$5:$E$9,2,FALSE),0))^IFERROR(VLOOKUP(F11,Hoja2!$B$5:$E$9,4,FALSE),1),0) -> 0 | Q11: 0
E12: 0 | M12: =+IF(G12=Hoja2!$B$16,'Materiales Bibliográfico'!E12*(1+IFERROR(VLOOKUP(F12,Hoja2!$B$5:$E$9,2,FALSE),0))^IFERROR(VLOOKUP(F12,Hoja2!$B$5:$E$9,4,FALSE),1),0) -> 0 | N12: =+IF(G12=Hoja2!$B$17,'Materiales Bibliográfico'!E12*(1+IFERROR(VLOOKUP(F12,Hoja2!$B$5:$E$9,2,FALSE),0))^IFERROR(VLOOKUP(F12,Hoja2!$B$5:$E$9,4,FALSE),1),0) -> 0 | O12: =+IF(G12=Hoja2!$B$19,'Materiales Bibliográfico'!E12*(1+IFERROR(VLOOKUP(F12,Hoja2!$B$5:$E$9,2,FALSE),0))^IFERROR(VLOOKUP(F12,Hoja2!$B$5:$E$9,4,FALSE),1),0) -> 0 | P12: =+IF(G12=Hoja2!$B$18,'Materiales Bibliográfico'!E12*(1+IFERROR(VLOOKUP(F12,Hoja2!$B$5:$E$9,2,FALSE),0))^IFERROR(VLOOKUP(F12,Hoja2!$B$5:$E$9,4,FALSE),1),0) -> 0 | Q12: 0
E13: 0 | M13: =+IF(G13=Hoja2!$B$16,'Materiales Bibliográfico'!E13*(1+IFERROR(VLOOKUP(F13,Hoja2!$B$5:$E$9,2,FALSE),0))^IFERROR(VLOOKUP(F13,Hoja2!$B$5:$E$9,4,FALSE),1),0) -> 0 | N13: =+IF(G13=Hoja2!$B$17,'Materiales Bibliográfico'!E13*(1+IFERROR(VLOOKUP(F13,Hoja2!$B$5:$E$9,2,FALSE),0))^IFERROR(VLOOKUP(F13,Hoja2!$B$5:$E$9,4,FALSE),1),0) -> 0 | O13: =+IF(G13=Hoja2!$B$19,'Materiales Bibliográfico'!E13*(1+IFERROR(VLOOKUP(F13,Hoja2!$B$5:$E$9,2,FALSE),0))^IFERROR(VLOOKUP(F13,Hoja2!$B$5:$E$9,4,FALSE),1),0) -> 0 | P13: =+IF(G13=Hoja2!$B$18,'Materiales Bibliográfico'!E13*(1+IFERROR(VLOOKUP(F13,Hoja2!$B$5:$E$9,2,FALSE),0))^IFERROR(VLOOKUP(F13,Hoja2!$B$5:$E$9,4,FALSE),1),0) -> 0 | Q13: 0
E14: 0 | M14: =+IF(G14=Hoja2!$B$16,'Materiales Bibliográfico'!E14*(1+IFERROR(VLOOKUP(F14,Hoja2!$B$5:$E$9,2,FALSE),0))^IFERROR(VLOOKUP(F14,Hoja2!$B$5:$E$9,4,FALSE),1),0) -> 0 | N14: =+IF(G14=Hoja2!$B$17,'Materiales Bibliográfico'!E14*(1+IFERROR(VLOOKUP(F14,Hoja2!$B$5:$E$9,2,FALSE),0))^IFERROR(VLOOKUP(F14,Hoja2!$B$5:$E$9,4,FALSE),1),0) -> 0 | O14: =+IF(G14=Hoja2!$B$19,'Materiales Bibliográfico'!E14*(1+IFERROR(VLOOKUP(F14,Hoja2!$B$5:$E$9,2,FALSE),0))^IFERROR(VLOOKUP(F14,Hoja2!$B$5:$E$9,4,FALSE),1),0) -> 0 | P14: =+IF(G14=Hoja2!$B$18,'Materiales Bibliográfico'!E14*(1+IFERROR(VLOOKUP(F14,Hoja2!$B$5:$E$9,2,FALSE),0))^IFERROR(VLOOKUP(F14,Hoja2!$B$5:$E$9,4,FALSE),1),0) -> 0 | Q14: 0
E15: 0 | M15: =+IF(G15=Hoja2!$B$16,'Materiales Bibliográfico'!E15*(1+IFERROR(VLOOKUP(F15,Hoja2!$B$5:$E$9,2,FALSE),0))^IFERROR(VLOOKUP(F15,Hoja2!$B$5:$E$9,4,FALSE),1),0) -> 0 | N15: =+IF(G15=Hoja2!$B$17,'Materiales Bibliográfico'!E15*(1+IFERROR(VLOOKUP(F15,Hoja2!$B$5:$E$9,2,FALSE),0))^IFERROR(VLOOKUP(F15,Hoja2!$B$5:$E$9,4,FALSE),1),0) -> 0 | O15: =+IF(G15=Hoja2!$B$19,'Materiales Bibliográfico'!E15*(1+IFERROR(VLOOKUP(F15,Hoja2!$B$5:$E$9,2,FALSE),0))^IFERROR(VLOOKUP(F15,Hoja2!$B$5:$E$9,4,FALSE),1),0) -> 0 | P15: =+IF(G15=Hoja2!$B$18,'Materiales Bibliográfico'!E15*(1+IFERROR(VLOOKUP(F15,Hoja2!$B$5:$E$9,2,FALSE),0))^IFERROR(VLOOKUP(F15,Hoja2!$B$5:$E$9,4,FALSE),1),0) -> 0 | Q15: 0
E16: 0 | M16: =+IF(G16=Hoja2!$B$16,'Materiales Bibliográfico'!E16*(1+IFERROR(VLOOKUP(F16,Hoja2!$B$5:$E$9,2,FALSE),0))^IFERROR(VLOOKUP(F16,Hoja2!$B$5:$E$9,4,FALSE),1),0) -> 0 | N16: =+IF(G16=Hoja2!$B$17,'Materiales Bibliográfico'!E16*(1+IFERROR(VLOOKUP(F16,Hoja2!$B$5:$E$9,2,FALSE),0))^IFERROR(VLOOKUP(F16,Hoja2!$B$5:$E$9,4,FALSE),1),0) -> 0 | O16: =+IF(G16=Hoja2!$B$19,'Materiales Bibliográfico'!E16*(1+IFERROR(VLOOKUP(F16,Hoja2!$B$5:$E$9,2,FALSE),0))^IFERROR(VLOOKUP(F16,Hoja2!$B$5:$E$9,4,FALSE),1),0) -> 0 | P16: =+IF(G16=Hoja2!$B$18,'Materiales Bibliográfico'!E16*(1+IFERROR(VLOOKUP(F16,Hoja2!$B$5:$E$9,2,FALSE),0))^IFERROR(VLOOKUP(F16,Hoja2!$B$5:$E$9,4,FALSE),1),0) -> 0 | Q16: 0
E17: 0 | M17: =+IF(G17=Hoja2!$B$16,'Materiales Bibliográfico'!E17*(1+IFERROR(VLOOKUP(F17,Hoja2!$B$5:$E$9,2,FALSE),0))^IFERROR(VLOOKUP(F17,Hoja2!$B$5:$E$9,4,FALSE),1),0) -> 0 | N17: =+IF(G17=Hoja2!$B$17,'Materiales Bibliográfico'!E17*(1+IFERROR(VLOOKUP(F17,Hoja2!$B$5:$E$9,2,FALSE),0))^IFERROR(VLOOKUP(F17,Hoja2!$B$5:$E$9,4,FALSE),1),0) -> 0 | O17: =+IF(G17=Hoja2!$B$19,'Materiales Bibliográfico'!E17*(1+IFERROR(VLOOKUP(F17,Hoja2!$B$5:$E$9,2,FALSE),0))^IFERROR(VLOOKUP(F17,Hoja2!$B$5:$E$9,4,FALSE),1),0) -> 0 | P17: =+IF(G17=Hoja2!$B$18,'Materiales Bibliográfico'!E17*(1+IFERROR(VLOOKUP(F17,Hoja2!$B$5:$E$9,2,FALSE),0))^IFERROR(VLOOKUP(F17,Hoja2!$B$5:$E$9,4,FALSE),1),0) -> 0 | Q17: 0
E18: 0 | M18: =+IF(G18=Hoja2!$B$16,'Materiales Bibliográfico'!E18*(1+IFERROR(VLOOKUP(F18,Hoja2!$B$5:$E$9,2,FALSE),0))^IFERROR(VLOOKUP(F18,Hoja2!$B$5:$E$9,4,FALSE),1),0) -> 0 | N18: =+IF(G18=Hoja2!$B$17,'Materiales Bibliográfico'!E18*(1+IFERROR(VLOOKUP(F18,Hoja2!$B$5:$E$9,2,FALSE),0))^IFERROR(VLOOKUP(F18,Hoja2!$B$5:$E$9,4,FALSE),1),0) -> 0 | O18: =+IF(G18=Hoja2!$B$19,'Materiales Bibliográfico'!E18*(1+IFERROR(VLOOKUP(F18,Hoja2!$B$5:$E$9,2,FALSE),0))^IFERROR(VLOOKUP(F18,Hoja2!$B$5:$E$9,4,FALSE),1),0) -> 0 | P18: =+IF(G18=Hoja2!$B$18,'Materiales Bibliográfico'!E18*(1+IFERROR(VLOOKUP(F18,Hoja2!$B$5:$E$9,2,FALSE),0))^IFERROR(VLOOKUP(F18,Hoja2!$B$5:$E$9,4,FALSE),1),0) -> 0 | Q18: 0
E19: 0 | M19: =+IF(G19=Hoja2!$B$16,'Materiales Bibliográfico'!E19*(1+IFERROR(VLOOKUP(F19,Hoja2!$B$5:$E$9,2,FALSE),0))^IFERROR(VLOOKUP(F19,Hoja2!$B$5:$E$9,4,FALSE),1),0) -> 0 | N19: =+IF(G19=Hoja2!$B$17,'Materiales Bibliográfico'!E19*(1+IFERROR(VLOOKUP(F19,Hoja2!$B$5:$E$9,2,FALSE),0))^IFERROR(VLOOKUP(F19,Hoja2!$B$5:$E$9,4,FALSE),1),0) -> 0 | O19: =+IF(G19=Hoja2!$B$19,'Materiales Bibliográfico'!E19*(1+IFERROR(VLOOKUP(F19,Hoja2!$B$5:$E$9,2,FALSE),0))^IFERROR(VLOOKUP(F19,Hoja2!$B$5:$E$9,4,FALSE),1),0) -> 0 | P19: =+IF(G19=Hoja2!$B$18,'Materiales Bibliográfico'!E19*(1+IFERROR(VLOOKUP(F19,Hoja2!$B$5:$E$9,2,FALSE),0))^IFERROR(VLOOKUP(F19,Hoja2!$B$5:$E$9,4,FALSE),1),0) -> 0 | Q19: 0
E20: 0 | M20: =+IF(G20=Hoja2!$B$16,'Materiales Bibliográfico'!E20*(1+IFERROR(VLOOKUP(F20,Hoja2!$B$5:$E$9,2,FALSE),0))^IFERROR(VLOOKUP(F20,Hoja2!$B$5:$E$9,4,FALSE),1),0) -> 0 | N20: =+IF(G20=Hoja2!$B$17,'Materiales Bibliográfico'!E20*(1+IFERROR(VLOOKUP(F20,Hoja2!$B$5:$E$9,2,FALSE),0))^IFERROR(VLOOKUP(F20,Hoja2!$B$5:$E$9,4,FALSE),1),0) -> 0 | O20: =+IF(G20=Hoja2!$B$19,'Materiales Bibliográfico'!E20*(1+IFERROR(VLOOKUP(F20,Hoja2!$B$5:$E$9,2,FALSE),0))^IFERROR(VLOOKUP(F20,Hoja2!$B$5:$E$9,4,FALSE),1),0) -> 0 | P20: =+IF(G20=Hoja2!$B$18,'Materiales Bibliográfico'!E20*(1+IFERROR(VLOOKUP(F20,Hoja2!$B$5:$E$9,2,FALSE),0))^IFERROR(VLOOKUP(F20,Hoja2!$B$5:$E$9,4,FALSE),1),0) -> 0 | Q20: 0
E21: 0 | M21: =+IF(G21=Hoja2!$B$16,'Materiales Bibliográfico'!E21*(1+IFERROR(VLOOKUP(F21,Hoja2!$B$5:$E$9,2,FALSE),0))^IFERROR(VLOOKUP(F21,Hoja2!$B$5:$E$9,4,FALSE),1),0) -> 0 | N21: =+IF(G21=Hoja2!$B$17,'Materiales Bibliográfico'!E21*(1+IFERROR(VLOOKUP(F21,Hoja2!$B$5:$E$9,2,FALSE),0))^IFERROR(VLOOKUP(F21,Hoja2!$B$5:$E$9,4,FALSE),1),0) -> 0 | O21: =+IF(G21=Hoja2!$B$19,'Materiales Bibliográfico'!E21*(1+IFERROR(VLOOKUP(F21,Hoja2!$B$5:$E$9,2,FALSE),0))^IFERROR(VLOOKUP(F21,Hoja2!$B$5:$E$9,4,FALSE),1),0) -> 0 | P21: =+IF(G21=Hoja2!$B$18,'Materiales Bibliográfico'!E21*(1+IFERROR(VLOOKUP(F21,Hoja2!$B$5:$E$9,2,FALSE),0))^IFERROR(VLOOKUP(F21,Hoja2!$B$5:$E$9,4,FALSE),1),0) -> 0 | Q21: 0
E22: 0 | M22: =+IF(G22=Hoja2!$B$16,'Materiales Bibliográfico'!E22*(1+IFERROR(VLOOKUP(F22,Hoja2!$B$5:$E$9,2,FALSE),0))^IFERROR(VLOOKUP(F22,Hoja2!$B$5:$E$9,4,FALSE),1),0) -> 0 | N22: =+IF(G22=Hoja2!$B$17,'Materiales Bibliográfico'!E22*(1+IFERROR(VLOOKUP(F22,Hoja2!$B$5:$E$9,2,FALSE),0))^IFERROR(VLOOKUP(F22,Hoja2!$B$5:$E$9,4,FALSE),1),0) -> 0 | O22: =+IF(G22=Hoja2!$B$19,'Materiales Bibliográfico'!E22*(1+IFERROR(VLOOKUP(F22,Hoja2!$B$5:$E$9,2,FALSE),0))^IFERROR(VLOOKUP(F22,Hoja2!$B$5:$E$9,4,FALSE),1),0) -> 0 | P22: =+IF(G22=Hoja2!$B$18,'Materiales Bibliográfico'!E22*(1+IFERROR(VLOOKUP(F22,Hoja2!$B$5:$E$9,2,FALSE),0))^IFERROR(VLOOKUP(F22,Hoja2!$B$5:$E$9,4,FALSE),1),0) -> 0 | Q22: 0
E23: 0 | M23: =+IF(G23=Hoja2!$B$16,'Materiales Bibliográfico'!E23*(1+IFERROR(VLOOKUP(F23,Hoja2!$B$5:$E$9,2,FALSE),0))^IFERROR(VLOOKUP(F23,Hoja2!$B$5:$E$9,4,FALSE),1),0) -> 0 | N23: =+IF(G23=Hoja2!$B$17,'Materiales Bibliográfico'!E23*(1+IFERROR(VLOOKUP(F23,Hoja2!$B$5:$E$9,2,FALSE),0))^IFERROR(VLOOKUP(F23,Hoja2!$B$5:$E$9,4,FALSE),1),0) -> 0 | O23: =+IF(G23=Hoja2!$B$19,'Materiales Bibliográfico'!E23*(1+IFERROR(VLOOKUP(F23,Hoja2!$B$5:$E$9,2,FALSE),0))^IFERROR(VLOOKUP(F23,Hoja2!$B$5:$E$9,4,FALSE),1),0) -> 0 | P23: =+IF(G23=Hoja2!$B$18,'Materiales Bibliográfico'!E23*(1+IFERROR(VLOOKUP(F23,Hoja2!$B$5:$E$9,2,FALSE),0))^IFERROR(VLOOKUP(F23,Hoja2!$B$5:$E$9,4,FALSE),1),0) -> 0 | Q23: 0
E24: 0 | M24: =+IF(G24=Hoja2!$B$16,'Materiales Bibliográfico'!E24*(1+IFERROR(VLOOKUP(F24,Hoja2!$B$5:$E$9,2,FALSE),0))^IFERROR(VLOOKUP(F24,Hoja2!$B$5:$E$9,4,FALSE),1),0) -> 0 | N24: =+IF(G24=Hoja2!$B$17,'Materiales Bibliográfico'!E24*(1+IFERROR(VLOOKUP(F24,Hoja2!$B$5:$E$9,2,FALSE),0))^IFERROR(VLOOKUP(F24,Hoja2!$B$5:$E$9,4,FALSE),1),0) -> 0 | O24: =+IF(G24=Hoja2!$B$19,'Materiales Bibliográfico'!E24*(1+IFERROR(VLOOKUP(F24,Hoja2!$B$5:$E$9,2,FALSE),0))^IFERROR(VLOOKUP(F24,Hoja2!$B$5:$E$9,4,FALSE),1),0) -> 0 | P24: =+IF(G24=Hoja2!$B$18,'Materiales Bibliográfico'!E24*(1+IFERROR(VLOOKUP(F24,Hoja2!$B$5:$E$9,2,FALSE),0))^IFERROR(VLOOKUP(F24,Hoja2!$B$5:$E$9,4,FALSE),1),0) -> 0 | Q24: 0
E25: 0 | M25: =+IF(G25=Hoja2!$B$16,'Materiales Bibliográfico'!E25*(1+IFERROR(VLOOKUP(F25,Hoja2!$B$5:$E$9,2,FALSE),0))^IFERROR(VLOOKUP(F25,Hoja2!$B$5:$E$9,4,FALSE),1),0) -> 0 | N25: =+IF(G25=Hoja2!$B$17,'Materiales Bibliográfico'!E25*(1+IFERROR(VLOOKUP(F25,Hoja2!$B$5:$E$9,2,FALSE),0))^IFERROR(VLOOKUP(F25,Hoja2!$B$5:$E$9,4,FALSE),1),0) -> 0 | O25: =+IF(G25=Hoja2!$B$19,'Materiales Bibliográfico'!E25*(1+IFERROR(VLOOKUP(F25,Hoja2!$B$5:$E$9,2,FALSE),0))^IFERROR(VLOOKUP(F25,Hoja2!$B$5:$E$9,4,FALSE),1),0) -> 0 | P25: =+IF(G25=Hoja2!$B$18,'Materiales Bibliográfico'!E25*(1+IFERROR(VLOOKUP(F25,Hoja2!$B$5:$E$9,2,FALSE),0))^IFERROR(VLOOKUP(F25,Hoja2!$B$5:$E$9,4,FALSE),1),0) -> 0 | Q25: 0
E26: 0 | M26: =+IF(G26=Hoja2!$B$16,'Materiales Bibliográfico'!E26*(1+IFERROR(VLOOKUP(F26,Hoja2!$B$5:$E$9,2,FALSE),0))^IFERROR(VLOOKUP(F26,Hoja2!$B$5:$E$9,4,FALSE),1),0) -> 0 | N26: =+IF(G26=Hoja2!$B$17,'Materiales Bibliográfico'!E26*(1+IFERROR(VLOOKUP(F26,Hoja2!$B$5:$E$9,2,FALSE),0))^IFERROR(VLOOKUP(F26,Hoja2!$B$5:$E$9,4,FALSE),1),0) -> 0 | O26: =+IF(G26=Hoja2!$B$19,'Materiales Bibliográfico'!E26*(1+IFERROR(VLOOKUP(F26,Hoja2!$B$5:$E$9,2,FALSE),0))^IFERROR(VLOOKUP(F26,Hoja2!$B$5:$E$9,4,FALSE),1),0) -> 0 | P26: =+IF(G26=Hoja2!$B$18,'Materiales Bibliográfico'!E26*(1+IFERROR(VLOOKUP(F26,Hoja2!$B$5:$E$9,2,FALSE),0))^IFERROR(VLOOKUP(F26,Hoja2!$B$5:$E$9,4,FALSE),1),0) -> 0 | Q26: 0
E27: 0 | M27: =+IF(G27=Hoja2!$B$16,'Materiales Bibliográfico'!E27*(1+IFERROR(VLOOKUP(F27,Hoja2!$B$5:$E$9,2,FALSE),0))^IFERROR(VLOOKUP(F27,Hoja2!$B$5:$E$9,4,FALSE),1),0) -> 0 | N27: =+IF(G27=Hoja2!$B$17,'Materiales Bibliográfico'!E27*(1+IFERROR(VLOOKUP(F27,Hoja2!$B$5:$E$9,2,FALSE),0))^IFERROR(VLOOKUP(F27,Hoja2!$B$5:$E$9,4,FALSE),1),0) -> 0 | O27: =+IF(G27=Hoja2!$B$19,'Materiales Bibliográfico'!E27*(1+IFERROR(VLOOKUP(F27,Hoja2!$B$5:$E$9,2,FALSE),0))^IFERROR(VLOOKUP(F27,Hoja2!$B$5:$E$9,4,FALSE),1),0) -> 0 | P27: =+IF(G27=Hoja2!$B$18,'Materiales Bibliográfico'!E27*(1+IFERROR(VLOOKUP(F27,Hoja2!$B$5:$E$9,2,FALSE),0))^IFERROR(VLOOKUP(F27,Hoja2!$B$5:$E$9,4,FALSE),1),0) -> 0 | Q27: 0
E28: 0 | M28: =+IF(G28=Hoja2!$B$16,'Materiales Bibliográfico'!E28*(1+IFERROR(VLOOKUP(F28,Hoja2!$B$5:$E$9,2,FALSE),0))^IFERROR(VLOOKUP(F28,Hoja2!$B$5:$E$9,4,FALSE),1),0) -> 0 | N28: =+IF(G28=Hoja2!$B$17,'Materiales Bibliográfico'!E28*(1+IFERROR(VLOOKUP(F28,Hoja2!$B$5:$E$9,2,FALSE),0))^IFERROR(VLOOKUP(F28,Hoja2!$B$5:$E$9,4,FALSE),1),0) -> 0 | O28: =+IF(G28=Hoja2!$B$19,'Materiales Bibliográfico'!E28*(1+IFERROR(VLOOKUP(F28,Hoja2!$B$5:$E$9,2,FALSE),0))^IFERROR(VLOOKUP(F28,Hoja2!$B$5:$E$9,4,FALSE),1),0) -> 0 | P28: =+IF(G28=Hoja2!$B$18,'Materiales Bibliográfico'!E28*(1+IFERROR(VLOOKUP(F28,Hoja2!$B$5:$E$9,2,FALSE),0))^IFERROR(VLOOKUP(F28,Hoja2!$B$5:$E$9,4,FALSE),1),0) -> 0 | Q28: 0
E29: =+C29*D29 -> 0 | M29: =+IF(G29=Hoja2!$B$16,'Materiales Bibliográfico'!E29*(1+IFERROR(VLOOKUP(F29,Hoja2!$B$5:$E$9,2,FALSE),0))^IFERROR(VLOOKUP(F29,Hoja2!$B$5:$E$9,4,FALSE),1),0) -> 0 | N29: =+IF(G29=Hoja2!$B$17,'Materiales Bibliográfico'!E29*(1+IFERROR(VLOOKUP(F29,Hoja2!$B$5:$E$9,2,FALSE),0))^IFERROR(VLOOKUP(F29,Hoja2!$B$5:$E$9,4,FALSE),1),0) -> 0 | O29: =+IF(G29=Hoja2!$B$19,'Materiales Bibliográfico'!E29*(1+IFERROR(VLOOKUP(F29,Hoja2!$B$5:$E$9,2,FALSE),0))^IFERROR(VLOOKUP(F29,Hoja2!$B$5:$E$9,4,FALSE),1),0) -> 0 | P29: =+IF(G29=Hoja2!$B$18,'Materiales Bibliográfico'!E29*(1+IFERROR(VLOOKUP(F29,Hoja2!$B$5:$E$9,2,FALSE),0))^IFERROR(VLOOKUP(F29,Hoja2!$B$5:$E$9,4,FALSE),1),0) -> 0 | Q29: 0
E30: 0 | M30: =+IF(G30=Hoja2!$B$16,'Materiales Bibliográfico'!E30*(1+IFERROR(VLOOKUP(F30,Hoja2!$B$5:$E$9,2,FALSE),0))^IFERROR(VLOOKUP(F30,Hoja2!$B$5:$E$9,4,FALSE),1),0) -> 0 | N30: =+IF(G30=Hoja2!$B$17,'Materiales Bibliográfico'!E30*(1+IFERROR(VLOOKUP(F30,Hoja2!$B$5:$E$9,2,FALSE),0))^IFERROR(VLOOKUP(F30,Hoja2!$B$5:$E$9,4,FALSE),1),0) -> 0 | O30: =+IF(G30=Hoja2!$B$19,'Materiales Bibliográfico'!E30*(1+IFERROR(VLOOKUP(F30,Hoja2!$B$5:$E$9,2,FALSE),0))^IFERROR(VLOOKUP(F30,Hoja2!$B$5:$E$9,4,FALSE),1),0) -> 0 | P30: =+IF(G30=Hoja2!$B$18,'Materiales Bibliográfico'!E30*(1+IFERROR(VLOOKUP(F30,Hoja2!$B$5:$E$9,2,FALSE),0))^IFERROR(VLOOKUP(F30,Hoja2!$B$5:$E$9,4,FALSE),1),0) -> 0 | Q30: 0
E31: 0 | M31: =+IF(G31=Hoja2!$B$16,'Materiales Bibliográfico'!E31*(1+IFERROR(VLOOKUP(F31,Hoja2!$B$5:$E$9,2,FALSE),0))^IFERROR(VLOOKUP(F31,Hoja2!$B$5:$E$9,4,FALSE),1),0) -> 0 | N31: =+IF(G31=Hoja2!$B$17,'Materiales Bibliográfico'!E31*(1+IFERROR(VLOOKUP(F31,Hoja2!$B$5:$E$9,2,FALSE),0))^IFERROR(VLOOKUP(F31,Hoja2!$B$5:$E$9,4,FALSE),1),0) -> 0 | O31: =+IF(G31=Hoja2!$B$19,'Materiales Bibliográfico'!E31*(1+IFERROR(VLOOKUP(F31,Hoja2!$B$5:$E$9,2,FALSE),0))^IFERROR(VLOOKUP(F31,Hoja2!$B$5:$E$9,4,FALSE),1),0) -> 0 | P31: =+IF(G31=Hoja2!$B$18,'Materiales Bibliográfico'!E31*(1+IFERROR(VLOOKUP(F31,Hoja2!$B$5:$E$9,2,FALSE),0))^IFERROR(VLOOKUP(F31,Hoja2!$B$5:$E$9,4,FALSE),1),0) -> 0 | Q31: 0
E32: 0 | M32: =+IF(G32=Hoja2!$B$16,'Materiales Bibliográfico'!E32*(1+IFERROR(VLOOKUP(F32,Hoja2!$B$5:$E$9,2,FALSE),0))^IFERROR(VLOOKUP(F32,Hoja2!$B$5:$E$9,4,FALSE),1),0) -> 0 | N32: =+IF(G32=Hoja2!$B$17,'Materiales Bibliográfico'!E32*(1+IFERROR(VLOOKUP(F32,Hoja2!$B$5:$E$9,2,FALSE),0))^IFERROR(VLOOKUP(F32,Hoja2!$B$5:$E$9,4,FALSE),1),0) -> 0 | O32: =+IF(G32=Hoja2!$B$19,'Materiales Bibliográfico'!E32*(1+IFERROR(VLOOKUP(F32,Hoja2!$B$5:$E$9,2,FALSE),0))^IFERROR(VLOOKUP(F32,Hoja2!$B$5:$E$9,4,FALSE),1),0) -> 0 | P32: =+IF(G32=Hoja2!$B$18,'Materiales Bibliográfico'!E32*(1+IFERROR(VLOOKUP(F32,Hoja2!$B$5:$E$9,2,FALSE),0))^IFERROR(VLOOKUP(F32,Hoja2!$B$5:$E$9,4,FALSE),1),0) -> 0 | Q32: 0
E33: 0 | M33: =+IF(G33=Hoja2!$B$16,'Materiales Bibliográfico'!E33*(1+IFERROR(VLOOKUP(F33,Hoja2!$B$5:$E$9,2,FALSE),0))^IFERROR(VLOOKUP(F33,Hoja2!$B$5:$E$9,4,FALSE),1),0) -> 0 | N33: =+IF(G33=Hoja2!$B$17,'Materiales Bibliográfico'!E33*(1+IFERROR(VLOOKUP(F33,Hoja2!$B$5:$E$9,2,FALSE),0))^IFERROR(VLOOKUP(F33,Hoja2!$B$5:$E$9,4,FALSE),1),0) -> 0 | O33: =+IF(G33=Hoja2!$B$19,'Materiales Bibliográfico'!E33*(1+IFERROR(VLOOKUP(F33,Hoja2!$B$5:$E$9,2,FALSE),0))^IFERROR(VLOOKUP(F33,Hoja2!$B$5:$E$9,4,FALSE),1),0) -> 0 | P33: =+IF(G33=Hoja2!$B$18,'Materiales Bibliográfico'!E33*(1+IFERROR(VLOOKUP(F33,Hoja2!$B$5:$E$9,2,FALSE),0))^IFERROR(VLOOKUP(F33,Hoja2!$B$5:$E$9,4,FALSE),1),0) -> 0 | Q33: 0
E34: 0 | M34: =+IF(G34=Hoja2!$B$16,'Materiales Bibliográfico'!E34*(1+IFERROR(VLOOKUP(F34,Hoja2!$B$5:$E$9,2,FALSE),0))^IFERROR(VLOOKUP(F34,Hoja2!$B$5:$E$9,4,FALSE),1),0) -> 0 | N34: =+IF(G34=Hoja2!$B$17,'Materiales Bibliográfico'!E34*(1+IFERROR(VLOOKUP(F34,Hoja2!$B$5:$E$9,2,FALSE),0))^IFERROR(VLOOKUP(F34,Hoja2!$B$5:$E$9,4,FALSE),1),0) -> 0 | O34: =+IF(G34=Hoja2!$B$19,'Materiales Bibliográfico'!E34*(1+IFERROR(VLOOKUP(F34,Hoja2!$B$5:$E$9,2,FALSE),0))^IFERROR(VLOOKUP(F34,Hoja2!$B$5:$E$9,4,FALSE),1),0) -> 0 | P34: =+IF(G34=Hoja2!$B$18,'Materiales Bibliográfico'!E34*(1+IFERROR(VLOOKUP(F34,Hoja2!$B$5:$E$9,2,FALSE),0))^IFERROR(VLOOKUP(F34,Hoja2!$B$5:$E$9,4,FALSE),1),0) -> 0 | Q34: 0
E35: 0 | M35: =+IF(G35=Hoja2!$B$16,'Materiales Bibliográfico'!E35*(1+IFERROR(VLOOKUP(F35,Hoja2!$B$5:$E$9,2,FALSE),0))^IFERROR(VLOOKUP(F35,Hoja2!$B$5:$E$9,4,FALSE),1),0) -> 0 | N35: =+IF(G35=Hoja2!$B$17,'Materiales Bibliográfico'!E35*(1+IFERROR(VLOOKUP(F35,Hoja2!$B$5:$E$9,2,FALSE),0))^IFERROR(VLOOKUP(F35,Hoja2!$B$5:$E$9,4,FALSE),1),0) -> 0 | O35: =+IF(G35=Hoja2!$B$19,'Materiales Bibliográfico'!E35*(1+IFERROR(VLOOKUP(F35,Hoja2!$B$5:$E$9,2,FALSE),0))^IFERROR(VLOOKUP(F35,Hoja2!$B$5:$E$9,4,FALSE),1),0) -> 0 | P35: =+IF(G35=Hoja2!$B$18,'Materiales Bibliográfico'!E35*(1+IFERROR(VLOOKUP(F35,Hoja2!$B$5:$E$9,2,FALSE),0))^IFERROR(VLOOKUP(F35,Hoja2!$B$5:$E$9,4,FALSE),1),0) -> 0 | Q35: 0
E36: 0 | M36: =+IF(G36=Hoja2!$B$16,'Materiales Bibliográfico'!E36*(1+IFERROR(VLOOKUP(F36,Hoja2!$B$5:$E$9,2,FALSE),0))^IFERROR(VLOOKUP(F36,Hoja2!$B$5:$E$9,4,FALSE),1),0) -> 0 | N36: =+IF(G36=Hoja2!$B$17,'Materiales Bibliográfico'!E36*(1+IFERROR(VLOOKUP(F36,Hoja2!$B$5:$E$9,2,FALSE),0))^IFERROR(VLOOKUP(F36,Hoja2!$B$5:$E$9,4,FALSE),1),0) -> 0 | O36: =+IF(G36=Hoja2!$B$19,'Materiales Bibliográfico'!E36*(1+IFERROR(VLOOKUP(F36,Hoja2!$B$5:$E$9,2,FALSE),0))^IFERROR(VLOOKUP(F36,Hoja2!$B$5:$E$9,4,FALSE),1),0) -> 0 | P36: =+IF(G36=Hoja2!$B$18,'Materiales Bibliográfico'!E36*(1+IFERROR(VLOOKUP(F36,Hoja2!$B$5:$E$9,2,FALSE),0))^IFERROR(VLOOKUP(F36,Hoja2!$B$5:$E$9,4,FALSE),1),0) -> 0 | Q36: 0
E37: 0 | M37: =+IF(G37=Hoja2!$B$16,'Materiales Bibliográfico'!E37*(1+IFERROR(VLOOKUP(F37,Hoja2!$B$5:$E$9,2,FALSE),0))^IFERROR(VLOOKUP(F37,Hoja2!$B$5:$E$9,4,FALSE),1),0) -> 0 | N37: =+IF(G37=Hoja2!$B$17,'Materiales Bibliográfico'!E37*(1+IFERROR(VLOOKUP(F37,Hoja2!$B$5:$E$9,2,FALSE),0))^IFERROR(VLOOKUP(F37,Hoja2!$B$5:$E$9,4,FALSE),1),0) -> 0 | O37: =+IF(G37=Hoja2!$B$19,'Materiales Bibliográfico'!E37*(1+IFERROR(VLOOKUP(F37,Hoja2!$B$5:$E$9,2,FALSE),0))^IFERROR(VLOOKUP(F37,Hoja2!$B$5:$E$9,4,FALSE),1),0) -> 0 | P37: =+IF(G37=Hoja2!$B$18,'Materiales Bibliográfico'!E37*(1+IFERROR(VLOOKUP(F37,Hoja2!$B$5:$E$9,2,FALSE),0))^IFERROR(VLOOKUP(F37,Hoja2!$B$5:$E$9,4,FALSE),1),0) -> 0 | Q37: 0
E38: 0 | M38: =+IF(G38=Hoja2!$B$16,'Materiales Bibliográfico'!E38*(1+IFERROR(VLOOKUP(F38,Hoja2!$B$5:$E$9,2,FALSE),0))^IFERROR(VLOOKUP(F38,Hoja2!$B$5:$E$9,4,FALSE),1),0) -> 0 | N38: =+IF(G38=Hoja2!$B$17,'Materiales Bibliográfico'!E38*(1+IFERROR(VLOOKUP(F38,Hoja2!$B$5:$E$9,2,FALSE),0))^IFERROR(VLOOKUP(F38,Hoja2!$B$5:$E$9,4,FALSE),1),0) -> 0 | O38: =+IF(G38=Hoja2!$B$19,'Materiales Bibliográfico'!E38*(1+IFERROR(VLOOKUP(F38,Hoja2!$B$5:$E$9,2,FALSE),0))^IFERROR(VLOOKUP(F38,Hoja2!$B$5:$E$9,4,FALSE),1),0) -> 0 | P38: =+IF(G38=Hoja2!$B$18,'Materiales Bibliográfico'!E38*(1+IFERROR(VLOOKUP(F38,Hoja2!$B$5:$E$9,2,FALSE),0))^IFERROR(VLOOKUP(F38,Hoja2!$B$5:$E$9,4,FALSE),1),0) -> 0 | Q38: 0
M39: =+SUM(M9:M38) -> 0 | N39: 0 | O39: 0 | P39: =+SUM(P9:P38) -> 0 | Q39: =+SUM(Q9:Q38) -> 0

Sheet Equipos
C3: Nombre del proyecto | F3: =+'Ficha Resumen'!D18 -> Exploración de la validez de las formulas utilizadas para calcular porcentaje graso frente a la absorciometro de rayos X en deportistas paralimpicos con aputación de miembros inferiores
C5: EQUIPOS
C6: Cifras en Pesos COP
B8: Institución | C8: Tipo | D8: N° Actividad (Cronograma) | E8: Actividad (Cronograma) | F8: Descripción / Justificación | G8: Justificación* | H8: Proveedor | I8: Financiado / Contrapartida | J8: Cantidad* | K8: Valor Unitario* | L8: Valor total | M8: Valor 10% Depreciación | N8: Año | O8: =+'Materiales Bibliográfico'!M8 -> Financiado Caja | P8: =+'Materiales Bibliográfico'!N8 -> Financiado No Caja | Q8: =+'Materiales Bibliográfico'!O8 -> Contrapartida Especie | R8: =+'Materiales Bibliográfico'!P8 -> Contrapartida Efectivo | S8: Total
L9: =+J9*K9 -> 0 | M9: =+Q9 -> 0 | O9: =+IF(I9=Hoja2!$B$16,L9*(1+IFERROR(VLOOKUP(N9,Hoja2!$B$5:$E$9,2,FALSE),0))^IFERROR(VLOOKUP(N9,Hoja2!$B$5:$E$9,4,FALSE),1),0) -> 0 | P9: =+IF(I9=Hoja2!$B$17,L9*(1+IFERROR(VLOOKUP(N9,Hoja2!$B$5:$E$9,2,FALSE),0))^IFERROR(VLOOKUP(N9,Hoja2!$B$5:$E$9,4,FALSE),1),0) -> 0 | Q9: =+IF(I9=Hoja2!$B$19,L9*10%,0) -> 0 | R9: =+IF(I9=Hoja2!$B$18,L9*(1+IFERROR(VLOOKUP(N9,Hoja2!$B$5:$E$9,2,FALSE),0))^IFERROR(VLOOKUP(N9,Hoja2!$B$5:$E$9,4,FALSE),1),0) -> 0 | S9: =+SUM(O9:R9) -> 0
L10: =+J10*K10 -> 0 | M10: =+Q10 -> 0 | O10: =+IF(I10=Hoja2!$B$16,L10*(1+IFERROR(VLOOKUP(N10,Hoja2!$B$5:$E$9,2,FALSE),0))^IFERROR(VLOOKUP(N10,Hoja2!$B$5:$E$9,4,FALSE),1),0) -> 0 | P10: =+IF(I10=Hoja2!$B$17,L10*(1+IFERROR(VLOOKUP(N10,Hoja2!$B$5:$E$9,2,FALSE),0))^IFERROR(VLOOKUP(N10,Hoja2!$B$5:$E$9,4,FALSE),1),0) -> 0 | Q10: =+IF(I10=Hoja2!$B$19,L10*10%,0) -> 0 | R10: =+IF(I10=Hoja2!$B$18,L10*(1+IFERROR(VLOOKUP(N10,Hoja2!$B$5:$E$9,2,FALSE),0))^IFERROR(VLOOKUP(N10,Hoja2!$B$5:$E$9,4,FALSE),1),0) -> 0 | S10: =+SUM(O10:R10) -> 0
L11: 0 | M11: 0 | O11: =+IF(I11=Hoja2!$B$16,L11*(1+IFERROR(VLOOKUP(N11,Hoja2!$B$5:$E$9,2,FALSE),0))^IFERROR(VLOOKUP(N11,Hoja2!$B$5:$E$9,4,FALSE),1),0) -> 0 | P11: =+IF(I11=Hoja2!$B$17,L11*(1+IFERROR(VLOOKUP(N11,Hoja2!$B$5:$E$9,2,FALSE),0))^IFERROR(VLOOKUP(N11,Hoja2!$B$5:$E$9,4,FALSE),1),0) -> 0 | Q11: =+IF(I11=Hoja2!$B$19,L11*10%,0) -> 0 | R11: =+IF(I11=Hoja2!$B$18,L11*(1+IFERROR(VLOOKUP(N11,Hoja2!$B$5:$E$9,2,FALSE),0))^IFERROR(VLOOKUP(N11,Hoja2!$B$5:$E$9,4,FALSE),1),0) -> 0 | S11: 0
L12: 0 | M12: 0 | O12: =+IF(I12=Hoja2!$B$16,L12*(1+IFERROR(VLOOKUP(N12,Hoja2!$B$5:$E$9,2,FALSE),0))^IFERROR(VLOOKUP(N12,Hoja2!$B$5:$E$9,4,FALSE),1),0) -> 0 | P12: =+IF(I12=Hoja2!$B$17,L12*(1+IFERROR(VLOOKUP(N12,Hoja2!$B$5:$E$9,2,FALSE),0))^IFERROR(VLOOKUP(N12,Hoja2!$B$5:$E$9,4,FALSE),1),0) -> 0 | Q12: =+IF(I12=Hoja2!$B$19,L12*10%,0) -> 0 | R12: =+IF(I12=Hoja2!$B$18,L12*(1+IFERROR(VLOOKUP(N12,Hoja2!$B$5:$E$9,2,FALSE),0))^IFERROR(VLOOKUP(N12,Hoja2!$B$5:$E$9,4,FALSE),1),0) -> 0 | S12: 0
L13: 0 | M13: 0 | O13: =+IF(I13=Hoja2!$B$16,L13*(1+IFERROR(VLOOKUP(N13,Hoja2!$B$5:$E$9,2,FALSE),0))^IFERROR(VLOOKUP(N13,Hoja2!$B$5:$E$9,4,FALSE),1),0) -> 0 | P13: =+IF(I13=Hoja2!$B$17,L13*(1+IFERROR(VLOOKUP(N13,Hoja2!$B$5:$E$9,2,FALSE),0))^IFERROR(VLOOKUP(N13,Hoja2!$B$5:$E$9,4,FALSE),1),0) -> 0 | Q13: =+IF(I13=Hoja2!$B$19,L13*10%,0) -> 0 | R13: =+IF(I13=Hoja2!$B$18,L13*(1+IFERROR(VLOOKUP(N13,Hoja2!$B$5:$E$9,2,FALSE),0))^IFERROR(VLOOKUP(N13,Hoja2!$B$5:$E$9,4,FALSE),1),0) -> 0 | S13: 0
L14: 0 | M14: 0 | O14: =+IF(I14=Hoja2!$B$16,L14*(1+IFERROR(VLOOKUP(N14,Hoja2!$B$5:$E$9,2,FALSE),0))^IFERROR(VLOOKUP(N14,Hoja2!$B$5:$E$9,4,FALSE),1),0) -> 0 | P14: =+IF(I14=Hoja2!$B$17,L14*(1+IFERROR(VLOOKUP(N14,Hoja2!$B$5:$E$9,2,FALSE),0))^IFERROR(VLOOKUP(N14,Hoja2!$B$5:$E$9,4,FALSE),1),0) -> 0 | Q14: =+IF(I14=Hoja2!$B$19,L14*10%,0) -> 0 | R14: =+IF(I14=Hoja2!$B$18,L14*(1+IFERROR(VLOOKUP(N14,Hoja2!$B$5:$E$9,2,FALSE),0))^IFERROR(VLOOKUP(N14,Hoja2!$B$5:$E$9,4,FALSE),1),0) -> 0 | S14: 0
L15: 0 | M15: 0 | O15: =+IF(I15=Hoja2!$B$16,L15*(1+IFERROR(VLOOKUP(N15,Hoja2!$B$5:$E$9,2,FALSE),0))^IFERROR(VLOOKUP(N15,Hoja2!$B$5:$E$9,4,FALSE),1),0) -> 0 | P15: =+IF(I15=Hoja2!$B$17,L15*(1+IFERROR(VLOOKUP(N15,Hoja2!$B$5:$E$9,2,FALSE),0))^IFERROR(VLOOKUP(N15,Hoja2!$B$5:$E$9,4,FALSE),1),0) -> 0 | Q15: =+IF(I15=Hoja2!$B$19,L15*10%,0) -> 0 | R15: =+IF(I15=Hoja2!$B$18,L15*(1+IFERROR(VLOOKUP(N15,Hoja2!$B$5:$E$9,2,FALSE),0))^IFERROR(VLOOKUP(N15,Hoja2!$B$5:$E$9,4,FALSE),1),0) -> 0 | S15: 0
L16: 0 | M16: 0 | O16: =+IF(I16=Hoja2!$B$16,L16*(1+IFERROR(VLOOKUP(N16,Hoja2!$B$5:$E$9,2,FALSE),0))^IFERROR(VLOOKUP(N16,Hoja2!$B$5:$E$9,4,FALSE),1),0) -> 0 | P16: =+IF(I16=Hoja2!$B$17,L16*(1+IFERROR(VLOOKUP(N16,Hoja2!$B$5:$E$9,2,FALSE),0))^IFERROR(VLOOKUP(N16,Hoja2!$B$5:$E$9,4,FALSE),1),0) -> 0 | Q16: =+IF(I16=Hoja2!$B$19,L16*10%,0) -> 0 | R16: =+IF(I16=Hoja2!$B$18,L16*(1+IFERROR(VLOOKUP(N16,Hoja2!$B$5:$E$9,2,FALSE),0))^IFERROR(VLOOKUP(N16,Hoja2!$B$5:$E$9,4,FALSE),1),0) -> 0 | S16: 0
L17: 0 | M17: 0 | O17: =+IF(I17=Hoja2!$B$16,L17*(1+IFERROR(VLOOKUP(N17,Hoja2!$B$5:$E$9,2,FALSE),0))^IFERROR(VLOOKUP(N17,Hoja2!$B$5:$E$9,4,FALSE),1),0) -> 0 | P17: =+IF(I17=Hoja2!$B$17,L17*(1+IFERROR(VLOOKUP(N17,Hoja2!$B$5:$E$9,2,FALSE),0))^IFERROR(VLOOKUP(N17,Hoja2!$B$5:$E$9,4,FALSE),1),0) -> 0 | Q17: =+IF(I17=Hoja2!$B$19,L17*10%,0) -> 0 | R17: =+IF(I17=Hoja2!$B$18,L17*(1+IFERROR(VLOOKUP(N17,Hoja2!$B$5:$E$9,2,FALSE),0))^IFERROR(VLOOKUP(N17,Hoja2!$B$5:$E$9,4,FALSE),1),0) -> 0 | S17: 0
L18: 0 | M18: 0 | O18: =+IF(I18=Hoja2!$B$16,L18*(1+IFERROR(VLOOKUP(N18,Hoja2!$B$5:$E$9,2,FALSE),0))^IFERROR(VLOOKUP(N18,Hoja2!$B$5:$E$9,4,FALSE),1),0) -> 0 | P18: =+IF(I18=Hoja2!$B$17,L18*(1+IFERROR(VLOOKUP(N18,Hoja2!$B$5:$E$9,2,FALSE),0))^IFERROR(VLOOKUP(N18,Hoja2!$B$5:$E$9,4,FALSE),1),0) -> 0 | Q18: =+IF(I18=Hoja2!$B$19,L18*10%,0) -> 0 | R18: =+IF(I18=Hoja2!$B$18,L18*(1+IFERROR(VLOOKUP(N18,Hoja2!$B$5:$E$9,2,FALSE),0))^IFERROR(VLOOKUP(N18,Hoja2!$B$5:$E$9,4,FALSE),1),0) -> 0 | S18: 0
L19: 0 | M19: 0 | O19: =+IF(I19=Hoja2!$B$16,L19*(1+IFERROR(VLOOKUP(N19,Hoja2!$B$5:$E$9,2,FALSE),0))^IFERROR(VLOOKUP(N19,Hoja2!$B$5:$E$9,4,FALSE),1),0) -> 0 | P19: =+IF(I19=Hoja2!$B$17,L19*(1+IFERROR(VLOOKUP(N19,Hoja2!$B$5:$E$9,2,FALSE),0))^IFERROR(VLOOKUP(N19,Hoja2!$B$5:$E$9,4,FALSE),1),0) -> 0 | Q19: =+IF(I19=Hoja2!$B$19,L19*10%,0) -> 0 | R19: =+IF(I19=Hoja2!$B$18,L19*(1+IFERROR(VLOOKUP(N19,Hoja2!$B$5:$E$9,2,FALSE),0))^IFERROR(VLOOKUP(N19,Hoja2!$B$5:$E$9,4,FALSE),1),0) -> 0 | S19: 0
L20: 0 | M20: 0 | O20: =+IF(I20=Hoja2!$B$16,L20*(1+IFERROR(VLOOKUP(N20,Hoja2!$B$5:$E$9,2,FALSE),0))^IFERROR(VLOOKUP(N20,Hoja2!$B$5:$E$9,4,FALSE),1),0) -> 0 | P20: =+IF(I20=Hoja2!$B$17,L20*(1+IFERROR(VLOOKUP(N20,Hoja2!$B$5:$E$9,2,FALSE),0))^IFERROR(VLOOKUP(N20,Hoja2!$B$5:$E$9,4,FALSE),1),0) -> 0 | Q20: =+IF(I20=Hoja2!$B$19,L20*10%,0) -> 0 | R20: =+IF(I20=Hoja2!$B$18,L20*(1+IFERROR(VLOOKUP(N20,Hoja2!$B$5:$E$9,2,FALSE),0))^IFERROR(VLOOKUP(N20,Hoja2!$B$5:$E$9,4,FALSE),1),0) -> 0 | S20: 0
L21: 0 | M21: 0 | O21: =+IF(I21=Hoja2!$B$16,L21*(1+IFERROR(VLOOKUP(N21,Hoja2!$B$5:$E$9,2,FALSE),0))^IFERROR(VLOOKUP(N21,Hoja2!$B$5:$E$9,4,FALSE),1),0) -> 0 | P21: =+IF(I21=Hoja2!$B$17,L21*(1+IFERROR(VLOOKUP(N21,Hoja2!$B$5:$E$9,2,FALSE),0))^IFERROR(VLOOKUP(N21,Hoja2!$B$5:$E$9,4,FALSE),1),0) -> 0 | Q21: =+IF(I21=Hoja2!$B$19,L21*10%,0) -> 0 | R21: =+IF(I21=Hoja2!$B$18,L21*(1+IFERROR(VLOOKUP(N21,Hoja2!$B$5:$E$9,2,FALSE),0))^IFERROR(VLOOKUP(N21,Hoja2!$B$5:$E$9,4,FALSE),1),0) -> 0 | S21: 0
L22: 0 | M22: 0 | O22: =+IF(I22=Hoja2!$B$16,L22*(1+IFERROR(VLOOKUP(N22,Hoja2!$B$5:$E$9,2,FALSE),0))^IFERROR(VLOOKUP(N22,Hoja2!$B$5:$E$9,4,FALSE),1),0) -> 0 | P22: =+IF(I22=Hoja2!$B$17,L22*(1+IFERROR(VLOOKUP(N22,Hoja2!$B$5:$E$9,2,FALSE),0))^IFERROR(VLOOKUP(N22,Hoja2!$B$5:$E$9,4,FALSE),1),0) -> 0 | Q22: =+IF(I22=Hoja2!$B$19,L22*10%,0) -> 0 | R22: =+IF(I22=Hoja2!$B$18,L22*(1+IFERROR(VLOOKUP(N22,Hoja2!$B$5:$E$9,2,FALSE),0))^IFERROR(VLOOKUP(N22,Hoja2!$B$5:$E$9,4,FALSE),1),0) -> 0 | S22: 0
L23: 0 | M23: 0 | O23: =+IF(I23=Hoja2!$B$16,L23*(1+IFERROR(VLOOKUP(N23,Hoja2!$B$5:$E$9,2,FALSE),0))^IFERROR(VLOOKUP(N23,Hoja2!$B$5:$E$9,4,FALSE),1),0) -> 0 | P23: =+IF(I23=Hoja2!$B$17,L23*(1+IFERROR(VLOOKUP(N23,Hoja2!$B$5:$E$9,2,FALSE),0))^IFERROR(VLOOKUP(N23,Hoja2!$B$5:$E$9,4,FALSE),1),0) -> 0 | Q23: =+IF(I23=Hoja2!$B$19,L23*10%,0) -> 0 | R23: =+IF(I23=Hoja2!$B$18,L23*(1+IFERROR(VLOOKUP(N23,Hoja2!$B$5:$E$9,2,FALSE),0))^IFERROR(VLOOKUP(N23,Hoja2!$B$5:$E$9,4,FALSE),1),0) -> 0 | S23: 0
L24: 0 | M24: 0 | O24: =+IF(I24=Hoja2!$B$16,L24*(1+IFERROR(VLOOKUP(N24,Hoja2!$B$5:$E$9,2,FALSE),0))^IFERROR(VLOOKUP(N24,Hoja2!$B$5:$E$9,4,FALSE),1),0) -> 0 | P24: =+IF(I24=Hoja2!$B$17,L24*(1+IFERROR(VLOOKUP(N24,Hoja2!$B$5:$E$9,2,FALSE),0))^IFERROR(VLOOKUP(N24,Hoja2!$B$5:$E$9,4,FALSE),1),0) -> 0 | Q24: =+IF(I24=Hoja2!$B$19,L24*10%,0) -> 0 | R24: =+IF(I24=Hoja2!$B$18,L24*(1+IFERROR(VLOOKUP(N24,Hoja2!$B$5:$E$9,2,FALSE),0))^IFERROR(VLOOKUP(N24,Hoja2!$B$5:$E$9,4,FALSE),1),0) -> 0 | S24: 0
L25: 0 | M25: 0 | O25: =+IF(I25=Hoja2!$B$16,L25*(1+IFERROR(VLOOKUP(N25,Hoja2!$B$5:$E$9,2,FALSE),0))^IFERROR(VLOOKUP(N25,Hoja2!$B$5:$E$9,4,FALSE),1),0) -> 0 | P25: =+IF(I25=Hoja2!$B$17,L25*(1+IFERROR(VLOOKUP(N25,Hoja2!$B$5:$E$9,2,FALSE),0))^IFERROR(VLOOKUP(N25,Hoja2!$B$5:$E$9,4,FALSE),1),0) -> 0 | Q25: =+IF(I25=Hoja2!$B$19,L25*10%,0) -> 0 | R25: =+IF(I25=Hoja2!$B$18,L25*(1+IFERROR(VLOOKUP(N25,Hoja2!$B$5:$E$9,2,FALSE),0))^IFERROR(VLOOKUP(N25,Hoja2!$B$5:$E$9,4,FALSE),1),0) -> 0 | S25: 0
L26: 0 | M26: 0 | O26: =+IF(I26=Hoja2!$B$16,L26*(1+IFERROR(VLOOKUP(N26,Hoja2!$B$5:$E$9,2,FALSE),0))^IFERROR(VLOOKUP(N26,Hoja2!$B$5:$E$9,4,FALSE),1),0) -> 0 | P26: =+IF(I26=Hoja2!$B$17,L26*(1+IFERROR(VLOOKUP(N26,Hoja2!$B$5:$E$9,2,FALSE),0))^IFERROR(VLOOKUP(N26,Hoja2!$B$5:$E$9,4,FALSE),1),0) -> 0 | Q26: =+IF(I26=Hoja2!$B$19,L26*10%,0) -> 0 | R26: =+IF(I26=Hoja2!$B$18,L26*(1+IFERROR(VLOOKUP(N26,Hoja2!$B$5:$E$9,2,FALSE),0))^IFERROR(VLOOKUP(N26,Hoja2!$B$5:$E$9,4,FALSE),1),0) -> 0 | S26: 0
L27: 0 | M27: 0 | O27: =+IF(I27=Hoja2!$B$16,L27*(1+IFERROR(VLOOKUP(N27,Hoja2!$B$5:$E$9,2,FALSE),0))^IFERROR(VLOOKUP(N27,Hoja2!$B$5:$E$9,4,FALSE),1),0) -> 0 | P27: =+IF(I27=Hoja2!$B$17,L27*(1+IFERROR(VLOOKUP(N27,Hoja2!$B$5:$E$9,2,FALSE),0))^IFERROR(VLOOKUP(N27,Hoja2!$B$5:$E$9,4,FALSE),1),0) -> 0 | Q27: =+IF(I27=Hoja2!$B$19,L27*10%,0) -> 0 | R27: =+IF(I27=Hoja2!$B$18,L27*(1+IFERROR(VLOOKUP(N27,Hoja2!$B$5:$E$9,2,FALSE),0))^IFERROR(VLOOKUP(N27,Hoja2!$B$5:$E$9,4,FALSE),1),0) -> 0 | S27: 0
L28: 0 | M28: 0 | O28: =+IF(I28=Hoja2!$B$16,L28*(1+IFERROR(VLOOKUP(N28,Hoja2!$B$5:$E$9,2,FALSE),0))^IFERROR(VLOOKUP(N28,Hoja2!$B$5:$E$9,4,FALSE),1),0) -> 0 | P28: =+IF(I28=Hoja2!$B$17,L28*(1+IFERROR(VLOOKUP(N28,Hoja2!$B$5:$E$9,2,FALSE),0))^IFERROR(VLOOKUP(N28,Hoja2!$B$5:$E$9,4,FALSE),1),0) -> 0 | Q28: =+IF(I28=Hoja2!$B$19,L28*10%,0) -> 0 | R28: =+IF(I28=Hoja2!$B$18,L28*(1+IFERROR(VLOOKUP(N28,Hoja2!$B$5:$E$9,2,FALSE),0))^IFERROR(VLOOKUP(N28,Hoja2!$B$5:$E$9,4,FALSE),1),0) -> 0 | S28: 0
L29: 0 | M29: 0 | O29: =+IF(I29=Hoja2!$B$16,L29*(1+IFERROR(VLOOKUP(N29,Hoja2!$B$5:$E$9,2,FALSE),0))^IFERROR(VLOOKUP(N29,Hoja2!$B$5:$E$9,4,FALSE),1),0) -> 0 | P29: =+IF(I29=Hoja2!$B$17,L29*(1+IFERROR(VLOOKUP(N29,Hoja2!$B$5:$E$9,2,FALSE),0))^IFERROR(VLOOKUP(N29,Hoja2!$B$5:$E$9,4,FALSE),1),0) -> 0 | Q29: =+IF(I29=Hoja2!$B$19,L29*10%,0) -> 0 | R29: =+IF(I29=Hoja2!$B$18,L29*(1+IFERROR(VLOOKUP(N29,Hoja2!$B$5:$E$9,2,FALSE),0))^IFERROR(VLOOKUP(N29,Hoja2!$B$5:$E$9,4,FALSE),1),0) -> 0 | S29: 0
L30: =+J30*K30 -> 0 | M30: =+Q30 -> 0 | O30: =+IF(I30=Hoja2!$B$16,L30*(1+IFERROR(VLOOKUP(N30,Hoja2!$B$5:$E$9,2,FALSE),0))^IFERROR(VLOOKUP(N30,Hoja2!$B$5:$E$9,4,FALSE),1),0) -> 0 | P30: =+IF(I30=Hoja2!$B$17,L30*(1+IFERROR(VLOOKUP(N30,Hoja2!$B$5:$E$9,2,FALSE),0))^IFERROR(VLOOKUP(N30,Hoja2!$B$5:$E$9,4,FALSE),1),0) -> 0 | Q30: =+IF(I30=Hoja2!$B$19,L30*10%,0) -> 0 | R30: =+IF(I30=Hoja2!$B$18,L30*(1+IFERROR(VLOOKUP(N30,Hoja2!$B$5:$E$9,2,FALSE),0))^IFERROR(VLOOKUP(N30,Hoja2!$B$5:$E$9,4,FALSE),1),0) -> 0 | S30: 0
L31: 0 | M31: 0 | O31: =+IF(I31=Hoja2!$B$16,L31*(1+IFERROR(VLOOKUP(N31,Hoja2!$B$5:$E$9,2,FALSE),0))^IFERROR(VLOOKUP(N31,Hoja2!$B$5:$E$9,4,FALSE),1),0) -> 0 | P31: =+IF(I31=Hoja2!$B$17,L31*(1+IFERROR(VLOOKUP(N31,Hoja2!$B$5:$E$9,2,FALSE),0))^IFERROR(VLOOKUP(N31,Hoja2!$B$5:$E$9,4,FALSE),1),0) -> 0 | Q31: =+IF(I31=Hoja2!$B$19,L31*10%,0) -> 0 | R31: =+IF(I31=Hoja2!$B$18,L31*(1+IFERROR(VLOOKUP(N31,Hoja2!$B$5:$E$9,2,FALSE),0))^IFERROR(VLOOKUP(N31,Hoja2!$B$5:$E$9,4,FALSE),1),0) -> 0 | S31: 0
L32: 0 | M32: 0 | O32: =+IF(I32=Hoja2!$B$16,L32*(1+IFERROR(VLOOKUP(N32,Hoja2!$B$5:$E$9,2,FALSE),0))^IFERROR(VLOOKUP(N32,Hoja2!$B$5:$E$9,4,FALSE),1),0) -> 0 | P32: =+IF(I32=Hoja2!$B$17,L32*(1+IFERROR(VLOOKUP(N32,Hoja2!$B$5:$E$9,2,FALSE),0))^IFERROR(VLOOKUP(N32,Hoja2!$B$5:$E$9,4,FALSE),1),0) -> 0 | Q32: =+IF(I32=Hoja2!$B$19,L32*10%,0) -> 0 | R32: =+IF(I32=Hoja2!$B$18,L32*(1+IFERROR(VLOOKUP(N32,Hoja2!$B$5:$E$9,2,FALSE),0))^IFERROR(VLOOKUP(N32,Hoja2!$B$5:$E$9,4,FALSE),1),0) -> 0 | S32: 0
L33: 0 | M33: 0 | O33: =+IF(I33=Hoja2!$B$16,L33*(1+IFERROR(VLOOKUP(N33,Hoja2!$B$5:$E$9,2,FALSE),0))^IFERROR(VLOOKUP(N33,Hoja2!$B$5:$E$9,4,FALSE),1),0) -> 0 | P33: =+IF(I33=Hoja2!$B$17,L33*(1+IFERROR(VLOOKUP(N33,Hoja2!$B$5:$E$9,2,FALSE),0))^IFERROR(VLOOKUP(N33,Hoja2!$B$5:$E$9,4,FALSE),1),0) -> 0 | Q33: =+IF(I33=Hoja2!$B$19,L33*10%,0) -> 0 | R33: =+IF(I33=Hoja2!$B$18,L33*(1+IFERROR(VLOOKUP(N33,Hoja2!$B$5:$E$9,2,FALSE),0))^IFERROR(VLOOKUP(N33,Hoja2!$B$5:$E$9,4,FALSE),1),0) -> 0 | S33: 0
L34: 0 | M34: 0 | O34: =+IF(I34=Hoja2!$B$16,L34*(1+IFERROR(VLOOKUP(N34,Hoja2!$B$5:$E$9,2,FALSE),0))^IFERROR(VLOOKUP(N34,Hoja2!$B$5:$E$9,4,FALSE),1),0) -> 0 | P34: =+IF(I34=Hoja2!$B$17,L34*(1+IFERROR(VLOOKUP(N34,Hoja2!$B$5:$E$9,2,FALSE),0))^IFERROR(VLOOKUP(N34,Hoja2!$B$5:$E$9,4,FALSE),1),0) -> 0 | Q34: =+IF(I34=Hoja2!$B$19,L34*10%,0) -> 0 | R34: =+IF(I34=Hoja2!$B$18,L34*(1+IFERROR(VLOOKUP(N34,Hoja2!$B$5:$E$9,2,FALSE),0))^IFERROR(VLOOKUP(N34,Hoja2!$B$5:$E$9,4,FALSE),1),0) -> 0 | S34: 0
L35: 0 | M35: 0 | O35: =+IF(I35=Hoja2!$B$16,L35*(1+IFERROR(VLOOKUP(N35,Hoja2!$B$5:$E$9,2,FALSE),0))^IFERROR(VLOOKUP(N35,Hoja2!$B$5:$E$9,4,FALSE),1),0) -> 0 | P35: =+IF(I35=Hoja2!$B$17,L35*(1+IFERROR(VLOOKUP(N35,Hoja2!$B$5:$E$9,2,FALSE),0))^IFERROR(VLOOKUP(N35,Hoja2!$B$5:$E$9,4,FALSE),1),0) -> 0 | Q35: =+IF(I35=Hoja2!$B$19,L35*10%,0) -> 0 | R35: =+IF(I35=Hoja2!$B$18,L35*(1+IFERROR(VLOOKUP(N35,Hoja2!$B$5:$E$9,2,FALSE),0))^IFERROR(VLOOKUP(N35,Hoja2!$B$5:$E$9,4,FALSE),1),0) -> 0 | S35: 0
L36: 0 | M36: 0 | O36: =+IF(I36=Hoja2!$B$16,L36*(1+IFERROR(VLOOKUP(N36,Hoja2!$B$5:$E$9,2,FALSE),0))^IFERROR(VLOOKUP(N36,Hoja2!$B$5:$E$9,4,FALSE),1),0) -> 0 | P36: =+IF(I36=Hoja2!$B$17,L36*(1+IFERROR(VLOOKUP(N36,Hoja2!$B$5:$E$9,2,FALSE),0))^IFERROR(VLOOKUP(N36,Hoja2!$B$5:$E$9,4,FALSE),1),0) -> 0 | Q36: =+IF(I36=Hoja2!$B$19,L36*10%,0) -> 0 | R36: =+IF(I36=Hoja2!$B$18,L36*(1+IFERROR(VLOOKUP(N36,Hoja2!$B$5:$E$9,2,FALSE),0))^IFERROR(VLOOKUP(N36,Hoja2!$B$5:$E$9,4,FALSE),1),0) -> 0 | S36: 0
L37: 0 | M37: 0 | O37: =+IF(I37=Hoja2!$B$16,L37*(1+IFERROR(VLOOKUP(N37,Hoja2!$B$5:$E$9,2,FALSE),0))^IFERROR(VLOOKUP(N37,Hoja2!$B$5:$E$9,4,FALSE),1),0) -> 0 | P37: =+IF(I37=Hoja2!$B$17,L37*(1+IFERROR(VLOOKUP(N37,Hoja2!$B$5:$E$9,2,FALSE),0))^IFERROR(VLOOKUP(N37,Hoja2!$B$5:$E$9,4,FALSE),1),0) -> 0 | Q37: =+IF(I37=Hoja2!$B$19,L37*10%,0) -> 0 | R37: =+IF(I37=Hoja2!$B$18,L37*(1+IFERROR(VLOOKUP(N37,Hoja2!$B$5:$E$9,2,FALSE),0))^IFERROR(VLOOKUP(N37,Hoja2!$B$5:$E$9,4,FALSE),1),0) -> 0 | S37: 0
L38: 0 | M38: 0 | O38: =+IF(I38=Hoja2!$B$16,L38*(1+IFERROR(VLOOKUP(N38,Hoja2!$B$5:$E$9,2,FALSE),0))^IFERROR(VLOOKUP(N38,Hoja2!$B$5:$E$9,4,FALSE),1),0) -> 0 | P38: =+IF(I38=Hoja2!$B$17,L38*(1+IFERROR(VLOOKUP(N38,Hoja2!$B$5:$E$9,2,FALSE),0))^IFERROR(VLOOKUP(N38,Hoja2!$B$5:$E$9,4,FALSE),1),0) -> 0 | Q38: =+IF(I38=Hoja2!$B$19,L38*10%,0) -> 0 | R38: =+IF(I38=Hoja2!$B$18,L38*(1+IFERROR(VLOOKUP(N38,Hoja2!$B$5:$E$9,2,FALSE),0))^IFERROR(VLOOKUP(N38,Hoja2!$B$5:$E$9,4,FALSE),1),0) -> 0 | S38: 0
L39: 0 | M39: 0 | O39: =+IF(I39=Hoja2!$B$16,L39*(1+IFERROR(VLOOKUP(N39,Hoja2!$B$5:$E$9,2,FALSE),0))^IFERROR(VLOOKUP(N39,Hoja2!$B$5:$E$9,4,FALSE),1),0) -> 0 | P39: =+IF(I39=Hoja2!$B$17,L39*(1+IFERROR(VLOOKUP(N39,Hoja2!$B$5:$E$9,2,FALSE),0))^IFERROR(VLOOKUP(N39,Hoja2!$B$5:$E$9,4,FALSE),1),0) -> 0 | Q39: =+IF(I39=Hoja2!$B$19,L39*10%,0) -> 0 | R39: =+IF(I39=Hoja2!$B$18,L39*(1+IFERROR(VLOOKUP(N39,Hoja2!$B$5:$E$9,2,FALSE),0))^IFERROR(VLOOKUP(N39,Hoja2!$B$5:$E$9,4,FALSE),1),0) -> 0 | S39: 0
L40: 0 | M40: 0 | O40: =+IF(I40=Hoja2!$B$16,L40*(1+IFERROR(VLOOKUP(N40,Hoja2!$B$5:$E$9,2,FALSE),0))^IFERROR(VLOOKUP(N40,Hoja2!$B$5:$E$9,4,FALSE),1),0) -> 0 | P40: =+IF(I40=Hoja2!$B$17,L40*(1+IFERROR(VLOOKUP(N40,Hoja2!$B$5:$E$9,2,FALSE),0))^IFERROR(VLOOKUP(N40,Hoja2!$B$5:$E$9,4,FALSE),1),0) -> 0 | Q40: =+IF(I40=Hoja2!$B$19,L40*10%,0) -> 0 | R40: =+IF(I40=Hoja2!$B$18,L40*(1+IFERROR(VLOOKUP(N40,Hoja2!$B$5:$E$9,2,FALSE),0))^IFERROR(VLOOKUP(N40,Hoja2!$B$5:$E$9,4,FALSE),1),0) -> 0 | S40: 0
L41: 0 | M41: 0 | O41: =+IF(I41=Hoja2!$B$16,L41*(1+IFERROR(VLOOKUP(N41,Hoja2!$B$5:$E$9,2,FALSE),0))^IFERROR(VLOOKUP(N41,Hoja2!$B$5:$E$9,4,FALSE),1),0) -> 0 | P41: =+IF(I41=Hoja2!$B$17,L41*(1+IFERROR(VLOOKUP(N41,Hoja2!$B$5:$E$9,2,FALSE),0))^IFERROR(VLOOKUP(N41,Hoja2!$B$5:$E$9,4,FALSE),1),0) -> 0 | Q41: =+IF(I41=Hoja2!$B$19,L41*10%,0) -> 0 | R41: =+IF(I41=Hoja2!$B$18,L41*(1+IFERROR(VLOOKUP(N41,Hoja2!$B$5:$E$9,2,FALSE),0))^IFERROR(VLOOKUP(N41,Hoja2!$B$5:$E$9,4,FALSE),1),0) -> 0 | S41: 0
L42: 0 | M42: 0 | O42: =+IF(I42=Hoja2!$B$16,L42*(1+IFERROR(VLOOKUP(N42,Hoja2!$B$5:$E$9,2,FALSE),0))^IFERROR(VLOOKUP(N42,Hoja2!$B$5:$E$9,4,FALSE),1),0) -> 0 | P42: =+IF(I42=Hoja2!$B$17,L42*(1+IFERROR(VLOOKUP(N42,Hoja2!$B$5:$E$9,2,FALSE),0))^IFERROR(VLOOKUP(N42,Hoja2!$B$5:$E$9,4,FALSE),1),0) -> 0 | Q42: =+IF(I42=Hoja2!$B$19,L42*10%,0) -> 0 | R42: =+IF(I42=Hoja2!$B$18,L42*(1+IFERROR(VLOOKUP(N42,Hoja2!$B$5:$E$9,2,FALSE),0))^IFERROR(VLOOKUP(N42,Hoja2!$B$5:$E$9,4,FALSE),1),0) -> 0 | S42: 0
L43: 0 | M43: 0 | O43: =+IF(I43=Hoja2!$B$16,L43*(1+IFERROR(VLOOKUP(N43,Hoja2!$B$5:$E$9,2,FALSE),0))^IFERROR(VLOOKUP(N43,Hoja2!$B$5:$E$9,4,FALSE),1),0) -> 0 | P43: =+IF(I43=Hoja2!$B$17,L43*(1+IFERROR(VLOOKUP(N43,Hoja2!$B$5:$E$9,2,FALSE),0))^IFERROR(VLOOKUP(N43,Hoja2!$B$5:$E$9,4,FALSE),1),0) -> 0 | Q43: =+IF(I43=Hoja2!$B$19,L43*10%,0) -> 0 | R43: =+IF(I43=Hoja2!$B$18,L43*(1+IFERROR(VLOOKUP(N43,Hoja2!$B$5:$E$9,2,FALSE),0))^IFERROR(VLOOKUP(N43,Hoja2!$B$5:$E$9,4,FALSE),1),0) -> 0 | S43: 0
L44: 0 | M44: 0 | O44: =+IF(I44=Hoja2!$B$16,L44*(1+IFERROR(VLOOKUP(N44,Hoja2!$B$5:$E$9,2,FALSE),0))^IFERROR(VLOOKUP(N44,Hoja2!$B$5:$E$9,4,FALSE),1),0) -> 0 | P44: =+IF(I44=Hoja2!$B$17,L44*(1+IFERROR(VLOOKUP(N44,Hoja2!$B$5:$E$9,2,FALSE),0))^IFERROR(VLOOKUP(N44,Hoja2!$B$5:$E$9,4,FALSE),1),0) -> 0 | Q44: =+IF(I44=Hoja2!$B$19,L44*10%,0) -> 0 | R44: =+IF(I44=Hoja2!$B$18,L44*(1+IFERROR(VLOOKUP(N44,Hoja2!$B$5:$E$9,2,FALSE),0))^IFERROR(VLOOKUP(N44,Hoja2!$B$5:$E$9,4,FALSE),1),0) -> 0 | S44: 0
L45: 0 | M45: 0 | O45: =+IF(I45=Hoja2!$B$16,L45*(1+IFERROR(VLOOKUP(N45,Hoja2!$B$5:$E$9,2,FALSE),0))^IFERROR(VLOOKUP(N45,Hoja2!$B$5:$E$9,4,FALSE),1),0) -> 0 | P45: =+IF(I45=Hoja2!$B$17,L45*(1+IFERROR(VLOOKUP(N45,Hoja2!$B$5:$E$9,2,FALSE),0))^IFERROR(VLOOKUP(N45,Hoja2!$B$5:$E$9,4,FALSE),1),0) -> 0 | Q45: =+IF(I45=Hoja2!$B$19,L45*10%,0) -> 0 | R45: =+IF(I45=Hoja2!$B$18,L45*(1+IFERROR(VLOOKUP(N45,Hoja2!$B$5:$E$9,2,FALSE),0))^IFERROR(VLOOKUP(N45,Hoja2!$B$5:$E$9,4,FALSE),1),0) -> 0 | S45: 0
L46: 0 | M46: 0 | O46: =+IF(I46=Hoja2!$B$16,L46*(1+IFERROR(VLOOKUP(N46,Hoja2!$B$5:$E$9,2,FALSE),0))^IFERROR(VLOOKUP(N46,Hoja2!$B$5:$E$9,4,FALSE),1),0) -> 0 | P46: =+IF(I46=Hoja2!$B$17,L46*(1+IFERROR(VLOOKUP(N46,Hoja2!$B$5:$E$9,2,FALSE),0))^IFERROR(VLOOKUP(N46,Hoja2!$B$5:$E$9,4,FALSE),1),0) -> 0 | Q46: =+IF(I46=Hoja2!$B$19,L46*10%,0) -> 0 | R46: =+IF(I46=Hoja2!$B$18,L46*(1+IFERROR(VLOOKUP(N46,Hoja2!$B$5:$E$9,2,FALSE),0))^IFERROR(VLOOKUP(N46,Hoja2!$B$5:$E$9,4,FALSE),1),0) -> 0 | S46: 0
L47: 0 | M47: 0 | O47: =+IF(I47=Hoja2!$B$16,L47*(1+IFERROR(VLOOKUP(N47,Hoja2!$B$5:$E$9,2,FALSE),0))^IFERROR(VLOOKUP(N47,Hoja2!$B$5:$E$9,4,FALSE),1),0) -> 0 | P47: =+IF(I47=Hoja2!$B$17,L47*(1+IFERROR(VLOOKUP(N47,Hoja2!$B$5:$E$9,2,FALSE),0))^IFERROR(VLOOKUP(N47,Hoja2!$B$5:$E$9,4,FALSE),1),0) -> 0 | Q47: =+IF(I47=Hoja2!$B$19,L47*10%,0) -> 0 | R47: =+IF(I47=Hoja2!$B$18,L47*(1+IFERROR(VLOOKUP(N47,Hoja2!$B$5:$E$9,2,FALSE),0))^IFERROR(VLOOKUP(N47,Hoja2!$B$5:$E$9,4,FALSE),1),0) -> 0 | S47: 0
L48: 0 | M48: 0 | O48: =+IF(I48=Hoja2!$B$16,L48*(1+IFERROR(VLOOKUP(N48,Hoja2!$B$5:$E$9,2,FALSE),0))^IFERROR(VLOOKUP(N48,Hoja2!$B$5:$E$9,4,FALSE),1),0) -> 0 | P48: =+IF(I48=Hoja2!$B$17,L48*(1+IFERROR(VLOOKUP(N48,Hoja2!$B$5:$E$9,2,FALSE),0))^IFERROR(VLOOKUP(N48,Hoja2!$B$5:$E$9,4,FALSE),1),0) -> 0 | Q48: =+IF(I48=Hoja2!$B$19,L48*10%,0) -> 0 | R48: =+IF(I48=Hoja2!$B$18,L48*(1+IFERROR(VLOOKUP(N48,Hoja2!$B$5:$E$9,2,FALSE),0))^IFERROR(VLOOKUP(N48,Hoja2!$B$5:$E$9,4,FALSE),1),0) -> 0 | S48: 0
L49: 0 | M49: 0 | O49: =+IF(I49=Hoja2!$B$16,L49*(1+IFERROR(VLOOKUP(N49,Hoja2!$B$5:$E$9,2,FALSE),0))^IFERROR(VLOOKUP(N49,Hoja2!$B$5:$E$9,4,FALSE),1),0) -> 0 | P49: =+IF(I49=Hoja2!$B$17,L49*(1+IFERROR(VLOOKUP(N49,Hoja2!$B$5:$E$9,2,FALSE),0))^IFERROR(VLOOKUP(N49,Hoja2!$B$5:$E$9,4,FALSE),1),0) -> 0 | Q49: =+IF(I49=Hoja2!$B$19,L49*10%,0) -> 0 | R49: =+IF(I49=Hoja2!$B$18,L49*(1+IFERROR(VLOOKUP(N49,Hoja2!$B$5:$E$9,2,FALSE),0))^IFERROR(VLOOKUP(N49,Hoja2!$B$5:$E$9,4,FALSE),1),0) -> 0 | S49: 0
L50: 0 | M50: 0 | O50: =+IF(I50=Hoja2!$B$16,L50*(1+IFERROR(VLOOKUP(N50,Hoja2!$B$5:$E$9,2,FALSE),0))^IFERROR(VLOOKUP(N50,Hoja2!$B$5:$E$9,4,FALSE),1),0) -> 0 | P50: =+IF(I50=Hoja2!$B$17,L50*(1+IFERROR(VLOOKUP(N50,Hoja2!$B$5:$E$9,2,FALSE),0))^IFERROR(VLOOKUP(N50,Hoja2!$B$5:$E$9,4,FALSE),1),0) -> 0 | Q50: =+IF(I50=Hoja2!$B$19,L50*10%,0) -> 0 | R50: =+IF(I50=Hoja2!$B$18,L50*(1+IFERROR(VLOOKUP(N50,Hoja2!$B$5:$E$9,2,FALSE),0))^IFERROR(VLOOKUP(N50,Hoja2!$B$5:$E$9,4,FALSE),1),0) -> 0 | S50: 0
L51: 0 | M51: 0 | O51: =+IF(I51=Hoja2!$B$16,L51*(1+IFERROR(VLOOKUP(N51,Hoja2!$B$5:$E$9,2,FALSE),0))^IFERROR(VLOOKUP(N51,Hoja2!$B$5:$E$9,4,FALSE),1),0) -> 0 | P51: =+IF(I51=Hoja2!$B$17,L51*(1+IFERROR(VLOOKUP(N51,Hoja2!$B$5:$E$9,2,FALSE),0))^IFERROR(VLOOKUP(N51,Hoja2!$B$5:$E$9,4,FALSE),1),0) -> 0 | Q51: =+IF(I51=Hoja2!$B$19,L51*10%,0) -> 0 | R51: =+IF(I51=Hoja2!$B$18,L51*(1+IFERROR(VLOOKUP(N51,Hoja2!$B$5:$E$9,2,FALSE),0))^IFERROR(VLOOKUP(N51,Hoja2!$B$5:$E$9,4,FALSE),1),0) -> 0 | S51: 0
L52: 0 | M52: 0 | O52: =+IF(I52=Hoja2!$B$16,L52*(1+IFERROR(VLOOKUP(N52,Hoja2!$B$5:$E$9,2,FALSE),0))^IFERROR(VLOOKUP(N52,Hoja2!$B$5:$E$9,4,FALSE),1),0) -> 0 | P52: =+IF(I52=Hoja2!$B$17,L52*(1+IFERROR(VLOOKUP(N52,Hoja2!$B$5:$E$9,2,FALSE),0))^IFERROR(VLOOKUP(N52,Hoja2!$B$5:$E$9,4,FALSE),1),0) -> 0 | Q52: =+IF(I52=Hoja2!$B$19,L52*10%,0) -> 0 | R52: =+IF(I52=Hoja2!$B$18,L52*(1+IFERROR(VLOOKUP(N52,Hoja2!$B$5:$E$9,2,FALSE),0))^IFERROR(VLOOKUP(N52,Hoja2!$B$5:$E$9,4,FALSE),1),0) -> 0 | S52: 0
L53: 0 | M53: 0 | O53: =+IF(I53=Hoja2!$B$16,L53*(1+IFERROR(VLOOKUP(N53,Hoja2!$B$5:$E$9,2,FALSE),0))^IFERROR(VLOOKUP(N53,Hoja2!$B$5:$E$9,4,FALSE),1),0) -> 0 | P53: =+IF(I53=Hoja2!$B$17,L53*(1+IFERROR(VLOOKUP(N53,Hoja2!$B$5:$E$9,2,FALSE),0))^IFERROR(VLOOKUP(N53,Hoja2!$B$5:$E$9,4,FALSE),1),0) -> 0 | Q53: =+IF(I53=Hoja2!$B$19,L53*10%,0) -> 0 | R53: =+IF(I53=Hoja2!$B$18,L53*(1+IFERROR(VLOOKUP(N53,Hoja2!$B$5:$E$9,2,FALSE),0))^IFERROR(VLOOKUP(N53,Hoja2!$B$5:$E$9,4,FALSE),1),0) -> 0 | S53: 0
L54: 0 | M54: 0 | O54: =+IF(I54=Hoja2!$B$16,L54*(1+IFERROR(VLOOKUP(N54,Hoja2!$B$5:$E$9,2,FALSE),0))^IFERROR(VLOOKUP(N54,Hoja2!$B$5:$E$9,4,FALSE),1),0) -> 0 | P54: =+IF(I54=Hoja2!$B$17,L54*(1+IFERROR(VLOOKUP(N54,Hoja2!$B$5:$E$9,2,FALSE),0))^IFERROR(VLOOKUP(N54,Hoja2!$B$5:$E$9,4,FALSE),1),0) -> 0 | Q54: =+IF(I54=Hoja2!$B$19,L54*10%,0) -> 0 | R54: =+IF(I54=Hoja2!$B$18,L54*(1+IFERROR(VLOOKUP(N54,Hoja2!$B$5:$E$9,2,FALSE),0))^IFERROR(VLOOKUP(N54,Hoja2!$B$5:$E$9,4,FALSE),1),0) -> 0 | S54: 0
L55: 0 | M55: 0 | O55: =+IF(I55=Hoja2!$B$16,L55*(1+IFERROR(VLOOKUP(N55,Hoja2!$B$5:$E$9,2,FALSE),0))^IFERROR(VLOOKUP(N55,Hoja2!$B$5:$E$9,4,FALSE),1),0) -> 0 | P55: =+IF(I55=Hoja2!$B$17,L55*(1+IFERROR(VLOOKUP(N55,Hoja2!$B$5:$E$9,2,FALSE),0))^IFERROR(VLOOKUP(N55,Hoja2!$B$5:$E$9,4,FALSE),1),0) -> 0 | Q55: =+IF(I55=Hoja2!$B$19,L55*10%,0) -> 0 | R55: =+IF(I55=Hoja2!$B$18,L55*(1+IFERROR(VLOOKUP(N55,Hoja2!$B$5:$E$9,2,FALSE),0))^IFERROR(VLOOKUP(N55,Hoja2!$B$5:$E$9,4,FALSE),1),0) -> 0 | S55: 0
L56: 0 | M56: 0 | O56: =+IF(I56=Hoja2!$B$16,L56*(1+IFERROR(VLOOKUP(N56,Hoja2!$B$5:$E$9,2,FALSE),0))^IFERROR(VLOOKUP(N56,Hoja2!$B$5:$E$9,4,FALSE),1),0) -> 0 | P56: =+IF(I56=Hoja2!$B$17,L56*(1+IFERROR(VLOOKUP(N56,Hoja2!$B$5:$E$9,2,FALSE),0))^IFERROR(VLOOKUP(N56,Hoja2!$B$5:$E$9,4,FALSE),1),0) -> 0 | Q56: =+IF(I56=Hoja2!$B$19,L56*10%,0) -> 0 | R56: =+IF(I56=Hoja2!$B$18,L56*(1+IFERROR(VLOOKUP(N56,Hoja2!$B$5:$E$9,2,FALSE),0))^IFERROR(VLOOKUP(N56,Hoja2!$B$5:$E$9,4,FALSE),1),0) -> 0 | S56: 0
O57: =+SUM(O9:O56) -> 0 | P57: 0 | Q57: 0 | R57: 0 | S57: =+SUM(S9:S56) -> 0

Sheet Eventos Académicos
C3: Nombre del proyecto | D3: =+'Ficha Resumen'!D18:P18 -> Exploración de la validez de las formulas utilizadas para calcular porcentaje graso frente a la absorciometro de rayos X en deportistas paralimpicos con aputación de miembros inferiores
C5: EVENTOS ACADÉMICOS Y DE CAPACITACIÓN
C6: Cifras en Pesos COP
B8: Institución | C8: Descripción / Justificación | D8: Justificación* | E8: N° Actividad (Cronograma) | F8: Actividad (Cronograma) | G8: Proveedor | H8: Cantidad | I8: Valor Unitario | J8: Valor total | K8: Año | L8: Financiado / Contrapartida | M8: =+Equipos!O8 -> Financiado Caja | N8: =+Equipos!P8 -> Financiado No Caja | O8: =+Equipos!Q8 -> Contrapartida Especie | P8: =+Equipos!R8 -> Contrapartida Efectivo | Q8: Total
B9: EMCS | C9: Cafeteria | H9: 1 | I9: 285178 | J9: =+I9*H9 -> 285178 | K9: Año 1 | L9: Financiado Caja | M9: =+IF(L9=Hoja2!$B$16,J9*(1+IFERROR(VLOOKUP(K9,Hoja2!$B$5:$E$9,2,FALSE),0))^IFERROR(VLOOKUP(K9,Hoja2!$B$5:$E$9,4,FALSE),1),0) -> 285178 | N9: =+IF(L9=Hoja2!$B$17,J9*(1+IFERROR(VLOOKUP(K9,Hoja2!$B$5:$E$9,2,FALSE),0))^IFERROR(VLOOKUP(K9,Hoja2!$B$5:$E$9,4,FALSE),1),0) -> 0 | O9: =+IF(L9=Hoja2!$B$19,J9*(1+IFERROR(VLOOKUP(K9,Hoja2!$B$5:$E$9,2,FALSE),0))^IFERROR(VLOOKUP(K9,Hoja2!$B$5:$E$9,4,FALSE),1),0) -> 0 | P9: =+IF(L9=Hoja2!$B$18,J9*(1+IFERROR(VLOOKUP(K9,Hoja2!$B$5:$E$9,2,FALSE),0))^IFERROR(VLOOKUP(K9,Hoja2!$B$5:$E$9,4,FALSE),1),0) -> 0 | Q9: =+SUM(M9:P9) -> 285178
J10: =+I10*H10 -> 0 | M10: =+IF(L10=Hoja2!$B$16,J10*(1+IFERROR(VLOOKUP(K10,Hoja2!$B$5:$E$9,2,FALSE),0))^IFERROR(VLOOKUP(K10,Hoja2!$B$5:$E$9,4,FALSE),1),0) -> 0 | N10: =+IF(L10=Hoja2!$B$17,J10*(1+IFERROR(VLOOKUP(K10,Hoja2!$B$5:$E$9,2,FALSE),0))^IFERROR(VLOOKUP(K10,Hoja2!$B$5:$E$9,4,FALSE),1),0) -> 0 | O10: =+IF(L10=Hoja2!$B$19,J10*(1+IFERROR(VLOOKUP(K10,Hoja2!$B$5:$E$9,2,FALSE),0))^IFERROR(VLOOKUP(K10,Hoja2!$B$5:$E$9,4,FALSE),1),0) -> 0 | P10: =+IF(L10=Hoja2!$B$18,J10*(1+IFERROR(VLOOKUP(K10,Hoja2!$B$5:$E$9,2,FALSE),0))^IFERROR(VLOOKUP(K10,Hoja2!$B$5:$E$9,4,FALSE),1),0) -> 0 | Q10: =+SUM(M10:P10) -> 0
J11: 0 | M11: =+IF(L11=Hoja2!$B$16,J11*(1+IFERROR(VLOOKUP(K11,Hoja2!$B$5:$E$9,2,FALSE),0))^IFERROR(VLOOKUP(K11,Hoja2!$B$5:$E$9,4,FALSE),1),0) -> 0 | N11: =+IF(L11=Hoja2!$B$17,J11*(1+IFERROR(VLOOKUP(K11,Hoja2!$B$5:$E$9,2,FALSE),0))^IFERROR(VLOOKUP(K11,Hoja2!$B$5:$E$9,4,FALSE),1),0) -> 0 | O11: =+IF(L11=Hoja2!$B$19,J11*(1+IFERROR(VLOOKUP(K11,Hoja2!$B$5:$E$9,2,FALSE),0))^IFERROR(VLOOKUP(K11,Hoja2!$B$5:$E$9,4,FALSE),1),0) -> 0 | P11: =+IF(L11=Hoja2!$B$18,J11*(1+IFERROR(VLOOKUP(K11,Hoja2!$B$5:$E$9,2,FALSE),0))^IFERROR(VLOOKUP(K11,Hoja2!$B$5:$E$9,4,FALSE),1),0) -> 0 | Q11: 0
J12: 0 | M12: =+IF(L12=Hoja2!$B$16,J12*(1+IFERROR(VLOOKUP(K12,Hoja2!$B$5:$E$9,2,FALSE),0))^IFERROR(VLOOKUP(K12,Hoja2!$B$5:$E$9,4,FALSE),1),0) -> 0 | N12: =+IF(L12=Hoja2!$B$17,J12*(1+IFERROR(VLOOKUP(K12,Hoja2!$B$5:$E$9,2,FALSE),0))^IFERROR(VLOOKUP(K12,Hoja2!$B$5:$E$9,4,FALSE),1),0) -> 0 | O12: =+IF(L12=Hoja2!$B$19,J12*(1+IFERROR(VLOOKUP(K12,Hoja2!$B$5:$E$9,2,FALSE),0))^IFERROR(VLOOKUP(K12,Hoja2!$B$5:$E$9,4,FALSE),1),0) -> 0 | P12: =+IF(L12=Hoja2!$B$18,J12*(1+IFERROR(VLOOKUP(K12,Hoja2!$B$5:$E$9,2,FALSE),0))^IFERROR(VLOOKUP(K12,Hoja2!$B$5:$E$9,4,FALSE),1),0) -> 0 | Q12: 0
J13: 0 | M13: =+IF(L13=Hoja2!$B$16,J13*(1+IFERROR(VLOOKUP(K13,Hoja2!$B$5:$E$9,2,FALSE),0))^IFERROR(VLOOKUP(K13,Hoja2!$B$5:$E$9,4,FALSE),1),0) -> 0 | N13: =+IF(L13=Hoja2!$B$17,J13*(1+IFERROR(VLOOKUP(K13,Hoja2!$B$5:$E$9,2,FALSE),0))^IFERROR(VLOOKUP(K13,Hoja2!$B$5:$E$9,4,FALSE),1),0) -> 0 | O13: =+IF(L13=Hoja2!$B$19,J13*(1+IFERROR(VLOOKUP(K13,Hoja2!$B$5:$E$9,2,FALSE),0))^IFERROR(VLOOKUP(K13,Hoja2!$B$5:$E$9,4,FALSE),1),0) -> 0 | P13: =+IF(L13=Hoja2!$B$18,J13*(1+IFERROR(VLOOKUP(K13,Hoja2!$B$5:$E$9,2,FALSE),0))^IFERROR(VLOOKUP(K13,Hoja2!$B$5:$E$9,4,FALSE),1),0) -> 0 | Q13: 0
J14: 0 | M14: =+IF(L14=Hoja2!$B$16,J14*(1+IFERROR(VLOOKUP(K14,Hoja2!$B$5:$E$9,2,FALSE),0))^IFERROR(VLOOKUP(K14,Hoja2!$B$5:$E$9,4,FALSE),1),0) -> 0 | N14: =+IF(L14=Hoja2!$B$17,J14*(1+IFERROR(VLOOKUP(K14,Hoja2!$B$5:$E$9,2,FALSE),0))^IFERROR(VLOOKUP(K14,Hoja2!$B$5:$E$9,4,FALSE),1),0) -> 0 | O14: =+IF(L14=Hoja2!$B$19,J14*(1+IFERROR(VLOOKUP(K14,Hoja2!$B$5:$E$9,2,FALSE),0))^IFERROR(VLOOKUP(K14,Hoja2!$B$5:$E$9,4,FALSE),1),0) -> 0 | P14: =+IF(L14=Hoja2!$B$18,J14*(1+IFERROR(VLOOKUP(K14,Hoja2!$B$5:$E$9,2,FALSE),0))^IFERROR(VLOOKUP(K14,Hoja2!$B$5:$E$9,4,FALSE),1),0) -> 0 | Q14: 0
J15: 0 | M15: =+IF(L15=Hoja2!$B$16,J15*(1+IFERROR(VLOOKUP(K15,Hoja2!$B$5:$E$9,2,FALSE),0))^IFERROR(VLOOKUP(K15,Hoja2!$B$5:$E$9,4,FALSE),1),0) -> 0 | N15: =+IF(L15=Hoja2!$B$17,J15*(1+IFERROR(VLOOKUP(K15,Hoja2!$B$5:$E$9,2,FALSE),0))^IFERROR(VLOOKUP(K15,Hoja2!$B$5:$E$9,4,FALSE),1),0) -> 0 | O15: =+IF(L15=Hoja2!$B$19,J15*(1+IFERROR(VLOOKUP(K15,Hoja2!$B$5:$E$9,2,FALSE),0))^IFERROR(VLOOKUP(K15,Hoja2!$B$5:$E$9,4,FALSE),1),0) -> 0 | P15: =+IF(L15=Hoja2!$B$18,J15*(1+IFERROR(VLOOKUP(K15,Hoja2!$B$5:$E$9,2,FALSE),0))^IFERROR(VLOOKUP(K15,Hoja2!$B$5:$E$9,4,FALSE),1),0) -> 0 | Q15: 0
J16: 0 | M16: =+IF(L16=Hoja2!$B$16,J16*(1+IFERROR(VLOOKUP(K16,Hoja2!$B$5:$E$9,2,FALSE),0))^IFERROR(VLOOKUP(K16,Hoja2!$B$5:$E$9,4,FALSE),1),0) -> 0 | N16: =+IF(L16=Hoja2!$B$17,J16*(1+IFERROR(VLOOKUP(K16,Hoja2!$B$5:$E$9,2,FALSE),0))^IFERROR(VLOOKUP(K16,Hoja2!$B$5:$E$9,4,FALSE),1),0) -> 0 | O16: =+IF(L16=Hoja2!$B$19,J16*(1+IFERROR(VLOOKUP(K16,Hoja2!$B$5:$E$9,2,FALSE),0))^IFERROR(VLOOKUP(K16,Hoja2!$B$5:$E$9,4,FALSE),1),0) -> 0 | P16: =+IF(L16=Hoja2!$B$18,J16*(1+IFERROR(VLOOKUP(K16,Hoja2!$B$5:$E$9,2,FALSE),0))^IFERROR(VLOOKUP(K16,Hoja2!$B$5:$E$9,4,FALSE),1),0) -> 0 | Q16: 0
J17: 0 | M17: =+IF(L17=Hoja2!$B$16,J17*(1+IFERROR(VLOOKUP(K17,Hoja2!$B$5:$E$9,2,FALSE),0))^IFERROR(VLOOKUP(K17,Hoja2!$B$5:$E$9,4,FALSE),1),0) -> 0 | N17: =+IF(L17=Hoja2!$B$17,J17*(1+IFERROR(VLOOKUP(K17,Hoja2!$B$5:$E$9,2,FALSE),0))^IFERROR(VLOOKUP(K17,Hoja2!$B$5:$E$9,4,FALSE),1),0) -> 0 | O17: =+IF(L17=Hoja2!$B$19,J17*(1+IFERROR(VLOOKUP(K17,Hoja2!$B$5:$E$9,2,FALSE),0))^IFERROR(VLOOKUP(K17,Hoja2!$B$5:$E$9,4,FALSE),1),0) -> 0 | P17: =+IF(L17=Hoja2!$B$18,J17*(1+IFERROR(VLOOKUP(K17,Hoja2!$B$5:$E$9,2,FALSE),0))^IFERROR(VLOOKUP(K17,Hoja2!$B$5:$E$9,4,FALSE),1),0) -> 0 | Q17: 0
J18: 0 | M18: =+IF(L18=Hoja2!$B$16,J18*(1+IFERROR(VLOOKUP(K18,Hoja2!$B$5:$E$9,2,FALSE),0))^IFERROR(VLOOKUP(K18,Hoja2!$B$5:$E$9,4,FALSE),1),0) -> 0 | N18: =+IF(L18=Hoja2!$B$17,J18*(1+IFERROR(VLOOKUP(K18,Hoja2!$B$5:$E$9,2,FALSE),0))^IFERROR(VLOOKUP(K18,Hoja2!$B$5:$E$9,4,FALSE),1),0) -> 0 | O18: =+IF(L18=Hoja2!$B$19,J18*(1+IFERROR(VLOOKUP(K18,Hoja2!$B$5:$E$9,2,FALSE),0))^IFERROR(VLOOKUP(K18,Hoja2!$B$5:$E$9,4,FALSE),1),0) -> 0 | P18: =+IF(L18=Hoja2!$B$18,J18*(1+IFERROR(VLOOKUP(K18,Hoja2!$B$5:$E$9,2,FALSE),0))^IFERROR(VLOOKUP(K18,Hoja2!$B$5:$E$9,4,FALSE),1),0) -> 0 | Q18: 0
J19: =+I19*H19 -> 0 | M19: =+IF(L19=Hoja2!$B$16,J19*(1+IFERROR(VLOOKUP(K19,Hoja2!$B$5:$E$9,2,FALSE),0))^IFERROR(VLOOKUP(K19,Hoja2!$B$5:$E$9,4,FALSE),1),0) -> 0 | N19: =+IF(L19=Hoja2!$B$17,J19*(1+IFERROR(VLOOKUP(K19,Hoja2!$B$5:$E$9,2,FALSE),0))^IFERROR(VLOOKUP(K19,Hoja2!$B$5:$E$9,4,FALSE),1),0) -> 0 | O19: =+IF(L19=Hoja2!$B$19,J19*(1+IFERROR(VLOOKUP(K19,Hoja2!$B$5:$E$9,2,FALSE),0))^IFERROR(VLOOKUP(K19,Hoja2!$B$5:$E$9,4,FALSE),1),0) -> 0 | P19: =+IF(L19=Hoja2!$B$18,J19*(1+IFERROR(VLOOKUP(K19,Hoja2!$B$5:$E$9,2,FALSE),0))^IFERROR(VLOOKUP(K19,Hoja2!$B$5:$E$9,4,FALSE),1),0) -> 0 | Q19: 0
J20: 0 | M20: =+IF(L20=Hoja2!$B$16,J20*(1+IFERROR(VLOOKUP(K20,Hoja2!$B$5:$E$9,2,FALSE),0))^IFERROR(VLOOKUP(K20,Hoja2!$B$5:$E$9,4,FALSE),1),0) -> 0 | N20: =+IF(L20=Hoja2!$B$17,J20*(1+IFERROR(VLOOKUP(K20,Hoja2!$B$5:$E$9,2,FALSE),0))^IFERROR(VLOOKUP(K20,Hoja2!$B$5:$E$9,4,FALSE),1),0) -> 0 | O20: =+IF(L20=Hoja2!$B$19,J20*(1+IFERROR(VLOOKUP(K20,Hoja2!$B$5:$E$9,2,FALSE),0))^IFERROR(VLOOKUP(K20,Hoja2!$B$5:$E$9,4,FALSE),1),0) -> 0 | P20: =+IF(L20=Hoja2!$B$18,J20*(1+IFERROR(VLOOKUP(K20,Hoja2!$B$5:$E$9,2,FALSE),0))^IFERROR(VLOOKUP(K20,Hoja2!$B$5:$E$9,4,FALSE),1),0) -> 0 | Q20: 0
J21: 0 | M21: =+IF(L21=Hoja2!$B$16,J21*(1+IFERROR(VLOOKUP(K21,Hoja2!$B$5:$E$9,2,FALSE),0))^IFERROR(VLOOKUP(K21,Hoja2!$B$5:$E$9,4,FALSE),1),0) -> 0 | N21: =+IF(L21=Hoja2!$B$17,J21*(1+IFERROR(VLOOKUP(K21,Hoja2!$B$5:$E$9,2,FALSE),0))^IFERROR(VLOOKUP(K21,Hoja2!$B$5:$E$9,4,FALSE),1),0) -> 0 | O21: =+IF(L21=Hoja2!$B$19,J21*(1+IFERROR(VLOOKUP(K21,Hoja2!$B$5:$E$9,2,FALSE),0))^IFERROR(VLOOKUP(K21,Hoja2!$B$5:$E$9,4,FALSE),1),0) -> 0 | P21: =+IF(L21=Hoja2!$B$18,J21*(1+IFERROR(VLOOKUP(K21,Hoja2!$B$5:$E$9,2,FALSE),0))^IFERROR(VLOOKUP(K21,Hoja2!$B$5:$E$9,4,FALSE),1),0) -> 0 | Q21: 0
J22: 0 | M22: =+IF(L22=Hoja2!$B$16,J22*(1+IFERROR(VLOOKUP(K22,Hoja2!$B$5:$E$9,2,FALSE),0))^IFERROR(VLOOKUP(K22,Hoja2!$B$5:$E$9,4,FALSE),1),0) -> 0 | N22: =+IF(L22=Hoja2!$B$17,J22*(1+IFERROR(VLOOKUP(K22,Hoja2!$B$5:$E$9,2,FALSE),0))^IFERROR(VLOOKUP(K22,Hoja2!$B$5:$E$9,4,FALSE),1),0) -> 0 | O22: =+IF(L22=Hoja2!$B$19,J22*(1+IFERROR(VLOOKUP(K22,Hoja2!$B$5:$E$9,2,FALSE),0))^IFERROR(VLOOKUP(K22,Hoja2!$B$5:$E$9,4,FALSE),1),0) -> 0 | P22: =+IF(L22=Hoja2!$B$18,J22*(1+IFERROR(VLOOKUP(K22,Hoja2!$B$5:$E$9,2,FALSE),0))^IFERROR(VLOOKUP(K22,Hoja2!$B$5:$E$9,4,FALSE),1),0) -> 0 | Q22: 0
J23: 0 | M23: =+IF(L23=Hoja2!$B$16,J23*(1+IFERROR(VLOOKUP(K23,Hoja2!$B$5:$E$9,2,FALSE),0))^IFERROR(VLOOKUP(K23,Hoja2!$B$5:$E$9,4,FALSE),1),0) -> 0 | N23: =+IF(L23=Hoja2!$B$17,J23*(1+IFERROR(VLOOKUP(K23,Hoja2!$B$5:$E$9,2,FALSE),0))^IFERROR(VLOOKUP(K23,Hoja2!$B$5:$E$9,4,FALSE),1),0) -> 0 | O23: =+IF(L23=Hoja2!$B$19,J23*(1+IFERROR(VLOOKUP(K23,Hoja2!$B$5:$E$9,2,FALSE),0))^IFERROR(VLOOKUP(K23,Hoja2!$B$5:$E$9,4,FALSE),1),0) -> 0 | P23: =+IF(L23=Hoja2!$B$18,J23*(1+IFERROR(VLOOKUP(K23,Hoja2!$B$5:$E$9,2,FALSE),0))^IFERROR(VLOOKUP(K23,Hoja2!$B$5:$E$9,4,FALSE),1),0) -> 0 | Q23: 0
J24: 0 | M24: =+IF(L24=Hoja2!$B$16,J24*(1+IFERROR(VLOOKUP(K24,Hoja2!$B$5:$E$9,2,FALSE),0))^IFERROR(VLOOKUP(K24,Hoja2!$B$5:$E$9,4,FALSE),1),0) -> 0 | N24: =+IF(L24=Hoja2!$B$17,J24*(1+IFERROR(VLOOKUP(K24,Hoja2!$B$5:$E$9,2,FALSE),0))^IFERROR(VLOOKUP(K24,Hoja2!$B$5:$E$9,4,FALSE),1),0) -> 0 | O24: =+IF(L24=Hoja2!$B$19,J24*(1+IFERROR(VLOOKUP(K24,Hoja2!$B$5:$E$9,2,FALSE),0))^IFERROR(VLOOKUP(K24,Hoja2!$B$5:$E$9,4,FALSE),1),0) -> 0 | P24: =+IF(L24=Hoja2!$B$18,J24*(1+IFERROR(VLOOKUP(K24,Hoja2!$B$5:$E$9,2,FALSE),0))^IFERROR(VLOOKUP(K24,Hoja2!$B$5:$E$9,4,FALSE),1),0) -> 0 | Q24: 0
J25: 0 | M25: =+IF(L25=Hoja2!$B$16,J25*(1+IFERROR(VLOOKUP(K25,Hoja2!$B$5:$E$9,2,FALSE),0))^IFERROR(VLOOKUP(K25,Hoja2!$B$5:$E$9,4,FALSE),1),0) -> 0 | N25: =+IF(L25=Hoja2!$B$17,J25*(1+IFERROR(VLOOKUP(K25,Hoja2!$B$5:$E$9,2,FALSE),0))^IFERROR(VLOOKUP(K25,Hoja2!$B$5:$E$9,4,FALSE),1),0) -> 0 | O25: =+IF(L25=Hoja2!$B$19,J25*(1+IFERROR(VLOOKUP(K25,Hoja2!$B$5:$E$9,2,FALSE),0))^IFERROR(VLOOKUP(K25,Hoja2!$B$5:$E$9,4,FALSE),1),0) -> 0 | P25: =+IF(L25=Hoja2!$B$18,J25*(1+IFERROR(VLOOKUP(K25,Hoja2!$B$5:$E$9,2,FALSE),0))^IFERROR(VLOOKUP(K25,Hoja2!$B$5:$E$9,4,FALSE),1),0) -> 0 | Q25: 0
J26: 0 | M26: =+IF(L26=Hoja2!$B$16,J26*(1+IFERROR(VLOOKUP(K26,Hoja2!$B$5:$E$9,2,FALSE),0))^IFERROR(VLOOKUP(K26,Hoja2!$B$5:$E$9,4,FALSE),1),0) -> 0 | N26: =+IF(L26=Hoja2!$B$17,J26*(1+IFERROR(VLOOKUP(K26,Hoja2!$B$5:$E$9,2,FALSE),0))^IFERROR(VLOOKUP(K26,Hoja2!$B$5:$E$9,4,FALSE),1),0) -> 0 | O26: =+IF(L26=Hoja2!$B$19,J26*(1+IFERROR(VLOOKUP(K26,Hoja2!$B$5:$E$9,2,FALSE),0))^IFERROR(VLOOKUP(K26,Hoja2!$B$5:$E$9,4,FALSE),1),0) -> 0 | P26: =+IF(L26=Hoja2!$B$18,J26*(1+IFERROR(VLOOKUP(K26,Hoja2!$B$5:$E$9,2,FALSE),0))^IFERROR(VLOOKUP(K26,Hoja2!$B$5:$E$9,4,FALSE),1),0) -> 0 | Q26: 0
J27: 0 | M27: =+IF(L27=Hoja2!$B$16,J27*(1+IFERROR(VLOOKUP(K27,Hoja2!$B$5:$E$9,2,FALSE),0))^IFERROR(VLOOKUP(K27,Hoja2!$B$5:$E$9,4,FALSE),1),0) -> 0 | N27: =+IF(L27=Hoja2!$B$17,J27*(1+IFERROR(VLOOKUP(K27,Hoja2!$B$5:$E$9,2,FALSE),0))^IFERROR(VLOOKUP(K27,Hoja2!$B$5:$E$9,4,FALSE),1),0) -> 0 | O27: =+IF(L27=Hoja2!$B$19,J27*(1+IFERROR(VLOOKUP(K27,Hoja2!$B$5:$E$9,2,FALSE),0))^IFERROR(VLOOKUP(K27,Hoja2!$B$5:$E$9,4,FALSE),1),0) -> 0 | P27: =+IF(L27=Hoja2!$B$18,J27*(1+IFERROR(VLOOKUP(K27,Hoja2!$B$5:$E$9,2,FALSE),0))^IFERROR(VLOOKUP(K27,Hoja2!$B$5:$E$9,4,FALSE),1),0) -> 0 | Q27: 0
J28: 0 | M28: =+IF(L28=Hoja2!$B$16,J28*(1+IFERROR(VLOOKUP(K28,Hoja2!$B$5:$E$9,2,FALSE),0))^IFERROR(VLOOKUP(K28,Hoja2!$B$5:$E$9,4,FALSE),1),0) -> 0 | N28: =+IF(L28=Hoja2!$B$17,J28*(1+IFERROR(VLOOKUP(K28,Hoja2!$B$5:$E$9,2,FALSE),0))^IFERROR(VLOOKUP(K28,Hoja2!$B$5:$E$9,4,FALSE),1),0) -> 0 | O28: =+IF(L28=Hoja2!$B$19,J28*(1+IFERROR(VLOOKUP(K28,Hoja2!$B$5:$E$9,2,FALSE),0))^IFERROR(VLOOKUP(K28,Hoja2!$B$5:$E$9,4,FALSE),1),0) -> 0 | P28: =+IF(L28=Hoja2!$B$18,J28*(1+IFERROR(VLOOKUP(K28,Hoja2!$B$5:$E$9,2,FALSE),0))^IFERROR(VLOOKUP(K28,Hoja2!$B$5:$E$9,4,FALSE),1),0) -> 0 | Q28: 0
J29: 0 | M29: =+IF(L29=Hoja2!$B$16,J29*(1+IFERROR(VLOOKUP(K29,Hoja2!$B$5:$E$9,2,FALSE),0))^IFERROR(VLOOKUP(K29,Hoja2!$B$5:$E$9,4,FALSE),1),0) -> 0 | N29: =+IF(L29=Hoja2!$B$17,J29*(1+IFERROR(VLOOKUP(K29,Hoja2!$B$5:$E$9,2,FALSE),0))^IFERROR(VLOOKUP(K29,Hoja2!$B$5:$E$9,4,FALSE),1),0) -> 0 | O29: =+IF(L29=Hoja2!$B$19,J29*(1+IFERROR(VLOOKUP(K29,Hoja2!$B$5:$E$9,2,FALSE),0))^IFERROR(VLOOKUP(K29,Hoja2!$B$5:$E$9,4,FALSE),1),0) -> 0 | P29: =+IF(L29=Hoja2!$B$18,J29*(1+IFERROR(VLOOKUP(K29,Hoja2!$B$5:$E$9,2,FALSE),0))^IFERROR(VLOOKUP(K29,Hoja2!$B$5:$E$9,4,FALSE),1),0) -> 0 | Q29: 0
J30: 0 | M30: =+IF(L30=Hoja2!$B$16,J30*(1+IFERROR(VLOOKUP(K30,Hoja2!$B$5:$E$9,2,FALSE),0))^IFERROR(VLOOKUP(K30,Hoja2!$B$5:$E$9,4,FALSE),1),0) -> 0 | N30: =+IF(L30=Hoja2!$B$17,J30*(1+IFERROR(VLOOKUP(K30,Hoja2!$B$5:$E$9,2,FALSE),0))^IFERROR(VLOOKUP(K30,Hoja2!$B$5:$E$9,4,FALSE),1),0) -> 0 | O30: =+IF(L30=Hoja2!$B$19,J30*(1+IFERROR(VLOOKUP(K30,Hoja2!$B$5:$E$9,2,FALSE),0))^IFERROR(VLOOKUP(K30,Hoja2!$B$5:$E$9,4,FALSE),1),0) -> 0 | P30: =+IF(L30=Hoja2!$B$18,J30*(1+IFERROR(VLOOKUP(K30,Hoja2!$B$5:$E$9,2,FALSE),0))^IFERROR(VLOOKUP(K30,Hoja2!$B$5:$E$9,4,FALSE),1),0) -> 0 | Q30: 0
J31: 0 | M31: =+IF(L31=Hoja2!$B$16,J31*(1+IFERROR(VLOOKUP(K31,Hoja2!$B$5:$E$9,2,FALSE),0))^IFERROR(VLOOKUP(K31,Hoja2!$B$5:$E$9,4,FALSE),1),0) -> 0 | N31: =+IF(L31=Hoja2!$B$17,J31*(1+IFERROR(VLOOKUP(K31,Hoja2!$B$5:$E$9,2,FALSE),0))^IFERROR(VLOOKUP(K31,Hoja2!$B$5:$E$9,4,FALSE),1),0) -> 0 | O31: =+IF(L31=Hoja2!$B$19,J31*(1+IFERROR(VLOOKUP(K31,Hoja2!$B$5:$E$9,2,FALSE),0))^IFERROR(VLOOKUP(K31,Hoja2!$B$5:$E$9,4,FALSE),1),0) -> 0 | P31: =+IF(L31=Hoja2!$B$18,J31*(1+IFERROR(VLOOKUP(K31,Hoja2!$B$5:$E$9,2,FALSE),0))^IFERROR(VLOOKUP(K31,Hoja2!$B$5:$E$9,4,FALSE),1),0) -> 0 | Q31: 0
J32: 0 | M32: =+IF(L32=Hoja2!$B$16,J32*(1+IFERROR(VLOOKUP(K32,Hoja2!$B$5:$E$9,2,FALSE),0))^IFERROR(VLOOKUP(K32,Hoja2!$B$5:$E$9,4,FALSE),1),0) -> 0 | N32: =+IF(L32=Hoja2!$B$17,J32*(1+IFERROR(VLOOKUP(K32,Hoja2!$B$5:$E$9,2,FALSE),0))^IFERROR(VLOOKUP(K32,Hoja2!$B$5:$E$9,4,FALSE),1),0) -> 0 | O32: =+IF(L32=Hoja2!$B$19,J32*(1+IFERROR(VLOOKUP(K32,Hoja2!$B$5:$E$9,2,FALSE),0))^IFERROR(VLOOKUP(K32,Hoja2!$B$5:$E$9,4,FALSE),1),0) -> 0 | P32: =+IF(L32=Hoja2!$B$18,J32*(1+IFERROR(VLOOKUP(K32,Hoja2!$B$5:$E$9,2,FALSE),0))^IFERROR(VLOOKUP(K32,Hoja2!$B$5:$E$9,4,FALSE),1),0) -> 0 | Q32: 0
J33: 0 | M33: =+IF(L33=Hoja2!$B$16,J33*(1+IFERROR(VLOOKUP(K33,Hoja2!$B$5:$E$9,2,FALSE),0))^IFERROR(VLOOKUP(K33,Hoja2!$B$5:$E$9,4,FALSE),1),0) -> 0 | N33: =+IF(L33=Hoja2!$B$17,J33*(1+IFERROR(VLOOKUP(K33,Hoja2!$B$5:$E$9,2,FALSE),0))^IFERROR(VLOOKUP(K33,Hoja2!$B$5:$E$9,4,FALSE),1),0) -> 0 | O33: =+IF(L33=Hoja2!$B$19,J33*(1+IFERROR(VLOOKUP(K33,Hoja2!$B$5:$E$9,2,FALSE),0))^IFERROR(VLOOKUP(K33,Hoja2!$B$5:$E$9,4,FALSE),1),0) -> 0 | P33: =+IF(L33=Hoja2!$B$18,J33*(1+IFERROR(VLOOKUP(K33,Hoja2!$B$5:$E$9,2,FALSE),0))^IFERROR(VLOOKUP(K33,Hoja2!$B$5:$E$9,4,FALSE),1),0) -> 0 | Q33: 0
J34: 0 | M34: =+IF(L34=Hoja2!$B$16,J34*(1+IFERROR(VLOOKUP(K34,Hoja2!$B$5:$E$9,2,FALSE),0))^IFERROR(VLOOKUP(K34,Hoja2!$B$5:$E$9,4,FALSE),1),0) -> 0 | N34: =+IF(L34=Hoja2!$B$17,J34*(1+IFERROR(VLOOKUP(K34,Hoja2!$B$5:$E$9,2,FALSE),0))^IFERROR(VLOOKUP(K34,Hoja2!$B$5:$E$9,4,FALSE),1),0) -> 0 | O34: =+IF(L34=Hoja2!$B$19,J34*(1+IFERROR(VLOOKUP(K34,Hoja2!$B$5:$E$9,2,FALSE),0))^IFERROR(VLOOKUP(K34,Hoja2!$B$5:$E$9,4,FALSE),1),0) -> 0 | P34: =+IF(L34=Hoja2!$B$18,J34*(1+IFERROR(VLOOKUP(K34,Hoja2!$B$5:$E$9,2,FALSE),0))^IFERROR(VLOOKUP(K34,Hoja2!$B$5:$E$9,4,FALSE),1),0) -> 0 | Q34: 0
J35: 0 | M35: =+IF(L35=Hoja2!$B$16,J35*(1+IFERROR(VLOOKUP(K35,Hoja2!$B$5:$E$9,2,FALSE),0))^IFERROR(VLOOKUP(K35,Hoja2!$B$5:$E$9,4,FALSE),1),0) -> 0 | N35: =+IF(L35=Hoja2!$B$17,J35*(1+IFERROR(VLOOKUP(K35,Hoja2!$B$5:$E$9,2,FALSE),0))^IFERROR(VLOOKUP(K35,Hoja2!$B$5:$E$9,4,FALSE),1),0) -> 0 | O35: =+IF(L35=Hoja2!$B$19,J35*(1+IFERROR(VLOOKUP(K35,Hoja2!$B$5:$E$9,2,FALSE),0))^IFERROR(VLOOKUP(K35,Hoja2!$B$5:$E$9,4,FALSE),1),0) -> 0 | P35: =+IF(L35=Hoja2!$B$18,J35*(1+IFERROR(VLOOKUP(K35,Hoja2!$B$5:$E$9,2,FALSE),0))^IFERROR(VLOOKUP(K35,Hoja2!$B$5:$E$9,4,FALSE),1),0) -> 0 | Q35: 0
J36: 0 | M36: =+IF(L36=Hoja2!$B$16,J36*(1+IFERROR(VLOOKUP(K36,Hoja2!$B$5:$E$9,2,FALSE),0))^IFERROR(VLOOKUP(K36,Hoja2!$B$5:$E$9,4,FALSE),1),0) -> 0 | N36: =+IF(L36=Hoja2!$B$17,J36*(1+IFERROR(VLOOKUP(K36,Hoja2!$B$5:$E$9,2,FALSE),0))^IFERROR(VLOOKUP(K36,Hoja2!$B$5:$E$9,4,FALSE),1),0) -> 0 | O36: =+IF(L36=Hoja2!$B$19,J36*(1+IFERROR(VLOOKUP(K36,Hoja2!$B$5:$E$9,2,FALSE),0))^IFERROR(VLOOKUP(K36,Hoja2!$B$5:$E$9,4,FALSE),1),0) -> 0 | P36: =+IF(L36=Hoja2!$B$18,J36*(1+IFERROR(VLOOKUP(K36,Hoja2!$B$5:$E$9,2,FALSE),0))^IFERROR(VLOOKUP(K36,Hoja2!$B$5:$E$9,4,FALSE),1),0) -> 0 | Q36: 0
J37: 0 | M37: =+IF(L37=Hoja2!$B$16,J37*(1+IFERROR(VLOOKUP(K37,Hoja2!$B$5:$E$9,2,FALSE),0))^IFERROR(VLOOKUP(K37,Hoja2!$B$5:$E$9,4,FALSE),1),0) -> 0 | N37: =+IF(L37=Hoja2!$B$17,J37*(1+IFERROR(VLOOKUP(K37,Hoja2!$B$5:$E$9,2,FALSE),0))^IFERROR(VLOOKUP(K37,Hoja2!$B$5:$E$9,4,FALSE),1),0) -> 0 | O37: =+IF(L37=Hoja2!$B$19,J37*(1+IFERROR(VLOOKUP(K37,Hoja2!$B$5:$E$9,2,FALSE),0))^IFERROR(VLOOKUP(K37,Hoja2!$B$5:$E$9,4,FALSE),1),0) -> 0 | P37: =+IF(L37=Hoja2!$B$18,J37*(1+IFERROR(VLOOKUP(K37,Hoja2!$B$5:$E$9,2,FALSE),0))^IFERROR(VLOOKUP(K37,Hoja2!$B$5:$E$9,4,FALSE),1),0) -> 0 | Q37: 0
J38: 0 | M38: =+IF(L38=Hoja2!$B$16,J38*(1+IFERROR(VLOOKUP(K38,Hoja2!$B$5:$E$9,2,FALSE),0))^IFERROR(VLOOKUP(K38,Hoja2!$B$5:$E$9,4,FALSE),1),0) -> 0 | N38: =+IF(L38=Hoja2!$B$17,J38*(1+IFERROR(VLOOKUP(K38,Hoja2!$B$5:$E$9,2,FALSE),0))^IFERROR(VLOOKUP(K38,Hoja2!$B$5:$E$9,4,FALSE),1),0) -> 0 | O38: =+IF(L38=Hoja2!$B$19,J38*(1+IFERROR(VLOOKUP(K38,Hoja2!$B$5:$E$9,2,FALSE),0))^IFERROR(VLOOKUP(K38,Hoja2!$B$5:$E$9,4,FALSE),1),0) -> 0 | P38: =+IF(L38=Hoja2!$B$18,J38*(1+IFERROR(VLOOKUP(K38,Hoja2!$B$5:$E$9,2,FALSE),0))^IFERROR(VLOOKUP(K38,Hoja2!$B$5:$E$9,4,FALSE),1),0) -> 0 | Q38: 0
M39: =+SUM(M9:M38) -> 285178 | N39: =+SUM(N9:N38) -> 0 | O39: =+SUM(O9:O38) -> 0 | P39: =+SUM(P9:P38) -> 0 | Q39: =+SUM(Q9:Q38) -> 285178

Sheet Propiedad Intelectual
C3: Nombre del proyecto | D3: =+'Ficha Resumen'!D18 -> Exploración de la validez de las formulas utilizadas para calcular porcentaje graso frente a la absorciometro de rayos X en deportistas paralimpicos con aputación de miembros inferiores
C5: PROPIEDAD INTELECTUAL
C6: Cifras en Pesos COP
B8: Institución | C8: Descripción / Justificación | D8: Justificación* | E8: N° Actividad (Cronograma) | F8: Actividad (Cronograma) | G8: Proveedor | H8: Valor $ COP* | I8: Año | J8: Financiado / Contrapartida | K8: =+'Eventos Académicos'!M8 -> Financiado Caja | L8: =+'Eventos Académicos'!N8 -> Financiado No Caja | M8: =+'Eventos Académicos'!O8 -> Contrapartida Especie | N8: =+'Eventos Académicos'!P8 -> Contrapartida Efectivo | O8: Total
K9: =+IF(J9=Hoja2!$B$16,H9*(1+IFERROR(VLOOKUP(I9,Hoja2!$B$5:$E$9,2,FALSE),0))^IFERROR(VLOOKUP(I9,Hoja2!$B$5:$E$9,4,FALSE),1),0) -> 0 | L9: =+IF(J9=Hoja2!$B$17,H9*(1+IFERROR(VLOOKUP(I9,Hoja2!$B$5:$E$9,2,FALSE),0))^IFERROR(VLOOKUP(I9,Hoja2!$B$5:$E$9,4,FALSE),1),0) -> 0 | M9: =+IF(J9=Hoja2!$B$19,H9*(1+IFERROR(VLOOKUP(I9,Hoja2!$B$5:$E$9,2,FALSE),0))^IFERROR(VLOOKUP(I9,Hoja2!$B$5:$E$9,4,FALSE),1),0) -> 0 | N9: =+IF(J9=Hoja2!$B$18,H9*(1+IFERROR(VLOOKUP(I9,Hoja2!$B$5:$E$9,2,FALSE),0))^IFERROR(VLOOKUP(I9,Hoja2!$B$5:$E$9,4,FALSE),1),0) -> 0 | O9: =+SUM(K9:N9) -> 0
K10: =+IF(J10=Hoja2!$B$16,H10*(1+IFERROR(VLOOKUP(I10,Hoja2!$B$5:$E$9,2,FALSE),0))^IFERROR(VLOOKUP(I10,Hoja2!$B$5:$E$9,4,FALSE),1),0) -> 0 | L10: =+IF(J10=Hoja2!$B$17,H10*(1+IFERROR(VLOOKUP(I10,Hoja2!$B$5:$E$9,2,FALSE),0))^IFERROR(VLOOKUP(I10,Hoja2!$B$5:$E$9,4,FALSE),1),0) -> 0 | M10: =+IF(J10=Hoja2!$B$19,H10*(1+IFERROR(VLOOKUP(I10,Hoja2!$B$5:$E$9,2,FALSE),0))^IFERROR(VLOOKUP(I10,Hoja2!$B$5:$E$9,4,FALSE),1),0) -> 0 | N10: =+IF(J10=Hoja2!$B$18,H10*(1+IFERROR(VLOOKUP(I10,Hoja2!$B$5:$E$9,2,FALSE),0))^IFERROR(VLOOKUP(I10,Hoja2!$B$5:$E$9,4,FALSE),1),0) -> 0 | O10: =+SUM(K10:N10) -> 0
K11: =+IF(J11=Hoja2!$B$16,H11*(1+IFERROR(VLOOKUP(I11,Hoja2!$B$5:$E$9,2,FALSE),0))^IFERROR(VLOOKUP(I11,Hoja2!$B$5:$E$9,4,FALSE),1),0) -> 0 | L11: =+IF(J11=Hoja2!$B$17,H11*(1+IFERROR(VLOOKUP(I11,Hoja2!$B$5:$E$9,2,FALSE),0))^IFERROR(VLOOKUP(I11,Hoja2!$B$5:$E$9,4,FALSE),1),0) -> 0 | M11: =+IF(J11=Hoja2!$B$19,H11*(1+IFERROR(VLOOKUP(I11,Hoja2!$B$5:$E$9,2,FALSE),0))^IFERROR(VLOOKUP(I11,Hoja2!$B$5:$E$9,4,FALSE),1),0) -> 0 | N11: =+IF(J11=Hoja2!$B$18,H11*(1+IFERROR(VLOOKUP(I11,Hoja2!$B$5:$E$9,2,FALSE),0))^IFERROR(VLOOKUP(I11,Hoja2!$B$5:$E$9,4,FALSE),1),0) -> 0 | O11: 0
K12: =+IF(J12=Hoja2!$B$16,H12*(1+IFERROR(VLOOKUP(I12,Hoja2!$B$5:$E$9,2,FALSE),0))^IFERROR(VLOOKUP(I12,Hoja2!$B$5:$E$9,4,FALSE),1),0) -> 0 | L12: =+IF(J12=Hoja2!$B$17,H12*(1+IFERROR(VLOOKUP(I12,Hoja2!$B$5:$E$9,2,FALSE),0))^IFERROR(VLOOKUP(I12,Hoja2!$B$5:$E$9,4,FALSE),1),0) -> 0 | M12: =+IF(J12=Hoja2!$B$19,H12*(1+IFERROR(VLOOKUP(I12,Hoja2!$B$5:$E$9,2,FALSE),0))^IFERROR(VLOOKUP(I12,Hoja2!$B$5:$E$9,4,FALSE),1),0) -> 0 | N12: =+IF(J12=Hoja2!$B$18,H12*(1+IFERROR(VLOOKUP(I12,Hoja2!$B$5:$E$9,2,FALSE),0))^IFERROR(VLOOKUP(I12,Hoja2!$B$5:$E$9,4,FALSE),1),0) -> 0 | O12: 0
K13: =+IF(J13=Hoja2!$B$16,H13*(1+IFERROR(VLOOKUP(I13,Hoja2!$B$5:$E$9,2,FALSE),0))^IFERROR(VLOOKUP(I13,Hoja2!$B$5:$E$9,4,FALSE),1),0) -> 0 | L13: =+IF(J13=Hoja2!$B$17,H13*(1+IFERROR(VLOOKUP(I13,Hoja2!$B$5:$E$9,2,FALSE),0))^IFERROR(VLOOKUP(I13,Hoja2!$B$5:$E$9,4,FALSE),1),0) -> 0 | M13: =+IF(J13=Hoja2!$B$19,H13*(1+IFERROR(VLOOKUP(I13,Hoja2!$B$5:$E$9,2,FALSE),0))^IFERROR(VLOOKUP(I13,Hoja2!$B$5:$E$9,4,FALSE),1),0) -> 0 | N13: =+IF(J13=Hoja2!$B$18,H13*(1+IFERROR(VLOOKUP(I13,Hoja2!$B$5:$E$9,2,FALSE),0))^IFERROR(VLOOKUP(I13,Hoja2!$B$5:$E$9,4,FALSE),1),0) -> 0 | O13: 0
K14: =+IF(J14=Hoja2!$B$16,H14*(1+IFERROR(VLOOKUP(I14,Hoja2!$B$5:$E$9,2,FALSE),0))^IFERROR(VLOOKUP(I14,Hoja2!$B$5:$E$9,4,FALSE),1),0) -> 0 | L14: =+IF(J14=Hoja2!$B$17,H14*(1+IFERROR(VLOOKUP(I14,Hoja2!$B$5:$E$9,2,FALSE),0))^IFERROR(VLOOKUP(I14,Hoja2!$B$5:$E$9,4,FALSE),1),0) -> 0 | M14: =+IF(J14=Hoja2!$B$19,H14*(1+IFERROR(VLOOKUP(I14,Hoja2!$B$5:$E$9,2,FALSE),0))^IFERROR(VLOOKUP(I14,Hoja2!$B$5:$E$9,4,FALSE),1),0) -> 0 | N14: =+IF(J14=Hoja2!$B$18,H14*(1+IFERROR(VLOOKUP(I14,Hoja2!$B$5:$E$9,2,FALSE),0))^IFERROR(VLOOKUP(I14,Hoja2!$B$5:$E$9,4,FALSE),1),0) -> 0 | O14: 0
K15: =+IF(J15=Hoja2!$B$16,H15*(1+IFERROR(VLOOKUP(I15,Hoja2!$B$5:$E$9,2,FALSE),0))^IFERROR(VLOOKUP(I15,Hoja2!$B$5:$E$9,4,FALSE),1),0) -> 0 | L15: =+IF(J15=Hoja2!$B$17,H15*(1+IFERROR(VLOOKUP(I15,Hoja2!$B$5:$E$9,2,FALSE),0))^IFERROR(VLOOKUP(I15,Hoja2!$B$5:$E$9,4,FALSE),1),0) -> 0 | M15: =+IF(J15=Hoja2!$B$19,H15*(1+IFERROR(VLOOKUP(I15,Hoja2!$B$5:$E$9,2,FALSE),0))^IFERROR(VLOOKUP(I15,Hoja2!$B$5:$E$9,4,FALSE),1),0) -> 0 | N15: =+IF(J15=Hoja2!$B$18,H15*(1+IFERROR(VLOOKUP(I15,Hoja2!$B$5:$E$9,2,FALSE),0))^IFERROR(VLOOKUP(I15,Hoja2!$B$5:$E$9,4,FALSE),1),0) -> 0 | O15: 0
K16: =+IF(J16=Hoja2!$B$16,H16*(1+IFERROR(VLOOKUP(I16,Hoja2!$B$5:$E$9,2,FALSE),0))^IFERROR(VLOOKUP(I16,Hoja2!$B$5:$E$9,4,FALSE),1),0) -> 0 | L16: =+IF(J16=Hoja2!$B$17,H16*(1+IFERROR(VLOOKUP(I16,Hoja2!$B$5:$E$9,2,FALSE),0))^IFERROR(VLOOKUP(I16,Hoja2!$B$5:$E$9,4,FALSE),1),0) -> 0 | M16: =+IF(J16=Hoja2!$B$19,H16*(1+IFERROR(VLOOKUP(I16,Hoja2!$B$5:$E$9,2,FALSE),0))^IFERROR(VLOOKUP(I16,Hoja2!$B$5:$E$9,4,FALSE),1),0) -> 0 | N16: =+IF(J16=Hoja2!$B$18,H16*(1+IFERROR(VLOOKUP(I16,Hoja2!$B$5:$E$9,2,FALSE),0))^IFERROR(VLOOKUP(I16,Hoja2!$B$5:$E$9,4,FALSE),1),0) -> 0 | O16: 0
K17: =+IF(J17=Hoja2!$B$16,H17*(1+IFERROR(VLOOKUP(I17,Hoja2!$B$5:$E$9,2,FALSE),0))^IFERROR(VLOOKUP(I17,Hoja2!$B$5:$E$9,4,FALSE),1),0) -> 0 | L17: =+IF(J17=Hoja2!$B$17,H17*(1+IFERROR(VLOOKUP(I17,Hoja2!$B$5:$E$9,2,FALSE),0))^IFERROR(VLOOKUP(I17,Hoja2!$B$5:$E$9,4,FALSE),1),0) -> 0 | M17: =+IF(J17=Hoja2!$B$19,H17*(1+IFERROR(VLOOKUP(I17,Hoja2!$B$5:$E$9,2,FALSE),0))^IFERROR(VLOOKUP(I17,Hoja2!$B$5:$E$9,4,FALSE),1),0) -> 0 | N17: =+IF(J17=Hoja2!$B$18,H17*(1+IFERROR(VLOOKUP(I17,Hoja2!$B$5:$E$9,2,FALSE),0))^IFERROR(VLOOKUP(I17,Hoja2!$B$5:$E$9,4,FALSE),1),0) -> 0 | O17: 0
K18: =+IF(J18=Hoja2!$B$16,H18*(1+IFERROR(VLOOKUP(I18,Hoja2!$B$5:$E$9,2,FALSE),0))^IFERROR(VLOOKUP(I18,Hoja2!$B$5:$E$9,4,FALSE),1),0) -> 0 | L18: =+IF(J18=Hoja2!$B$17,H18*(1+IFERROR(VLOOKUP(I18,Hoja2!$B$5:$E$9,2,FALSE),0))^IFERROR(VLOOKUP(I18,Hoja2!$B$5:$E$9,4,FALSE),1),0) -> 0 | M18: =+IF(J18=Hoja2!$B$19,H18*(1+IFERROR(VLOOKUP(I18,Hoja2!$B$5:$E$9,2,FALSE),0))^IFERROR(VLOOKUP(I18,Hoja2!$B$5:$E$9,4,FALSE),1),0) -> 0 | N18: =+IF(J18=Hoja2!$B$18,H18*(1+IFERROR(VLOOKUP(I18,Hoja2!$B$5:$E$9,2,FALSE),0))^IFERROR(VLOOKUP(I18,Hoja2!$B$5:$E$9,4,FALSE),1),0) -> 0 | O18: 0
K19: =+IF(J19=Hoja2!$B$16,H19*(1+IFERROR(VLOOKUP(I19,Hoja2!$B$5:$E$9,2,FALSE),0))^IFERROR(VLOOKUP(I19,Hoja2!$B$5:$E$9,4,FALSE),1),0) -> 0 | L19: =+IF(J19=Hoja2!$B$17,H19*(1+IFERROR(VLOOKUP(I19,Hoja2!$B$5:$E$9,2,FALSE),0))^IFERROR(VLOOKUP(I19,Hoja2!$B$5:$E$9,4,FALSE),1),0) -> 0 | M19: =+IF(J19=Hoja2!$B$19,H19*(1+IFERROR(VLOOKUP(I19,Hoja2!$B$5:$E$9,2,FALSE),0))^IFERROR(VLOOKUP(I19,Hoja2!$B$5:$E$9,4,FALSE),1),0) -> 0 | N19: =+IF(J19=Hoja2!$B$18,H19*(1+IFERROR(VLOOKUP(I19,Hoja2!$B$5:$E$9,2,FALSE),0))^IFERROR(VLOOKUP(I19,Hoja2!$B$5:$E$9,4,FALSE),1),0) -> 0 | O19: 0
K20: =+IF(J20=Hoja2!$B$16,H20*(1+IFERROR(VLOOKUP(I20,Hoja2!$B$5:$E$9,2,FALSE),0))^IFERROR(VLOOKUP(I20,Hoja2!$B$5:$E$9,4,FALSE),1),0) -> 0 | L20: =+IF(J20=Hoja2!$B$17,H20*(1+IFERROR(VLOOKUP(I20,Hoja2!$B$5:$E$9,2,FALSE),0))^IFERROR(VLOOKUP(I20,Hoja2!$B$5:$E$9,4,FALSE),1),0) -> 0 | M20: =+IF(J20=Hoja2!$B$19,H20*(1+IFERROR(VLOOKUP(I20,Hoja2!$B$5:$E$9,2,FALSE),0))^IFERROR(VLOOKUP(I20,Hoja2!$B$5:$E$9,4,FALSE),1),0) -> 0 | N20: =+IF(J20=Hoja2!$B$18,H20*(1+IFERROR(VLOOKUP(I20,Hoja2!$B$5:$E$9,2,FALSE),0))^IFERROR(VLOOKUP(I20,Hoja2!$B$5:$E$9,4,FALSE),1),0) -> 0 | O20: 0
K21: =+IF(J21=Hoja2!$B$16,H21*(1+IFERROR(VLOOKUP(I21,Hoja2!$B$5:$E$9,2,FALSE),0))^IFERROR(VLOOKUP(I21,Hoja2!$B$5:$E$9,4,FALSE),1),0) -> 0 | L21: =+IF(J21=Hoja2!$B$17,H21*(1+IFERROR(VLOOKUP(I21,Hoja2!$B$5:$E$9,2,FALSE),0))^IFERROR(VLOOKUP(I21,Hoja2!$B$5:$E$9,4,FALSE),1),0) -> 0 | M21: =+IF(J21=Hoja2!$B$19,H21*(1+IFERROR(VLOOKUP(I21,Hoja2!$B$5:$E$9,2,FALSE),0))^IFERROR(VLOOKUP(I21,Hoja2!$B$5:$E$9,4,FALSE),1),0) -> 0 | N21: =+IF(J21=Hoja2!$B$18,H21*(1+IFERROR(VLOOKUP(I21,Hoja2!$B$5:$E$9,2,FALSE),0))^IFERROR(VLOOKUP(I21,Hoja2!$B$5:$E$9,4,FALSE),1),0) -> 0 | O21: 0
K22: =+IF(J22=Hoja2!$B$16,H22*(1+IFERROR(VLOOKUP(I22,Hoja2!$B$5:$E$9,2,FALSE),0))^IFERROR(VLOOKUP(I22,Hoja2!$B$5:$E$9,4,FALSE),1),0) -> 0 | L22: =+IF(J22=Hoja2!$B$17,H22*(1+IFERROR(VLOOKUP(I22,Hoja2!$B$5:$E$9,2,FALSE),0))^IFERROR(VLOOKUP(I22,Hoja2!$B$5:$E$9,4,FALSE),1),0) -> 0 | M22: =+IF(J22=Hoja2!$B$19,H22*(1+IFERROR(VLOOKUP(I22,Hoja2!$B$5:$E$9,2,FALSE),0))^IFERROR(VLOOKUP(I22,Hoja2!$B$5:$E$9,4,FALSE),1),0) -> 0 | N22: =+IF(J22=Hoja2!$B$18,H22*(1+IFERROR(VLOOKUP(I22,Hoja2!$B$5:$E$9,2,FALSE),0))^IFERROR(VLOOKUP(I22,Hoja2!$B$5:$E$9,4,FALSE),1),0) -> 0 | O22: 0
K23: =+IF(J23=Hoja2!$B$16,H23*(1+IFERROR(VLOOKUP(I23,Hoja2!$B$5:$E$9,2,FALSE),0))^IFERROR(VLOOKUP(I23,Hoja2!$B$5:$E$9,4,FALSE),1),0) -> 0 | L23: =+IF(J23=Hoja2!$B$17,H23*(1+IFERROR(VLOOKUP(I23,Hoja2!$B$5:$E$9,2,FALSE),0))^IFERROR(VLOOKUP(I23,Hoja2!$B$5:$E$9,4,FALSE),1),0) -> 0 | M23: =+IF(J23=Hoja2!$B$19,H23*(1+IFERROR(VLOOKUP(I23,Hoja2!$B$5:$E$9,2,FALSE),0))^IFERROR(VLOOKUP(I23,Hoja2!$B$5:$E$9,4,FALSE),1),0) -> 0 | N23: =+IF(J23=Hoja2!$B$18,H23*(1+IFERROR(VLOOKUP(I23,Hoja2!$B$5:$E$9,2,FALSE),0))^IFERROR(VLOOKUP(I23,Hoja2!$B$5:$E$9,4,FALSE),1),0) -> 0 | O23: 0
K24: =+IF(J24=Hoja2!$B$16,H24*(1+IFERROR(VLOOKUP(I24,Hoja2!$B$5:$E$9,2,FALSE),0))^IFERROR(VLOOKUP(I24,Hoja2!$B$5:$E$9,4,FALSE),1),0) -> 0 | L24: =+IF(J24=Hoja2!$B$17,H24*(1+IFERROR(VLOOKUP(I24,Hoja2!$B$5:$E$9,2,FALSE),0))^IFERROR(VLOOKUP(I24,Hoja2!$B$5:$E$9,4,FALSE),1),0) -> 0 | M24: =+IF(J24=Hoja2!$B$19,H24*(1+IFERROR(VLOOKUP(I24,Hoja2!$B$5:$E$9,2,FALSE),0))^IFERROR(VLOOKUP(I24,Hoja2!$B$5:$E$9,4,FALSE),1),0) -> 0 | N24: =+IF(J24=Hoja2!$B$18,H24*(1+IFERROR(VLOOKUP(I24,Hoja2!$B$5:$E$9,2,FALSE),0))^IFERROR(VLOOKUP(I24,Hoja2!$B$5:$E$9,4,FALSE),1),0) -> 0 | O24: 0
K25: =+IF(J25=Hoja2!$B$16,H25*(1+IFERROR(VLOOKUP(I25,Hoja2!$B$5:$E$9,2,FALSE),0))^IFERROR(VLOOKUP(I25,Hoja2!$B$5:$E$9,4,FALSE),1),0) -> 0 | L25: =+IF(J25=Hoja2!$B$17,H25*(1+IFERROR(VLOOKUP(I25,Hoja2!$B$5:$E$9,2,FALSE),0))^IFERROR(VLOOKUP(I25,Hoja2!$B$5:$E$9,4,FALSE),1),0) -> 0 | M25: =+IF(J25=Hoja2!$B$19,H25*(1+IFERROR(VLOOKUP(I25,Hoja2!$B$5:$E$9,2,FALSE),0))^IFERROR(VLOOKUP(I25,Hoja2!$B$5:$E$9,4,FALSE),1),0) -> 0 | N25: =+IF(J25=Hoja2!$B$18,H25*(1+IFERROR(VLOOKUP(I25,Hoja2!$B$5:$E$9,2,FALSE),0))^IFERROR(VLOOKUP(I25,Hoja2!$B$5:$E$9,4,FALSE),1),0) -> 0 | O25: 0
K26: =+IF(J26=Hoja2!$B$16,H26*(1+IFERROR(VLOOKUP(I26,Hoja2!$B$5:$E$9,2,FALSE),0))^IFERROR(VLOOKUP(I26,Hoja2!$B$5:$E$9,4,FALSE),1),0) -> 0 | L26: =+IF(J26=Hoja2!$B$17,H26*(1+IFERROR(VLOOKUP(I26,Hoja2!$B$5:$E$9,2,FALSE),0))^IFERROR(VLOOKUP(I26,Hoja2!$B$5:$E$9,4,FALSE),1),0) -> 0 | M26: =+IF(J26=Hoja2!$B$19,H26*(1+IFERROR(VLOOKUP(I26,Hoja2!$B$5:$E$9,2,FALSE),0))^IFERROR(VLOOKUP(I26,Hoja2!$B$5:$E$9,4,FALSE),1),0) -> 0 | N26: =+IF(J26=Hoja2!$B$18,H26*(1+IFERROR(VLOOKUP(I26,Hoja2!$B$5:$E$9,2,FALSE),0))^IFERROR(VLOOKUP(I26,Hoja2!$B$5:$E$9,4,FALSE),1),0) -> 0 | O26: 0
K27: =+IF(J27=Hoja2!$B$16,H27*(1+IFERROR(VLOOKUP(I27,Hoja2!$B$5:$E$9,2,FALSE),0))^IFERROR(VLOOKUP(I27,Hoja2!$B$5:$E$9,4,FALSE),1),0) -> 0 | L27: =+IF(J27=Hoja2!$B$17,H27*(1+IFERROR(VLOOKUP(I27,Hoja2!$B$5:$E$9,2,FALSE),0))^IFERROR(VLOOKUP(I27,Hoja2!$B$5:$E$9,4,FALSE),1),0) -> 0 | M27: =+IF(J27=Hoja2!$B$19,H27*(1+IFERROR(VLOOKUP(I27,Hoja2!$B$5:$E$9,2,FALSE),0))^IFERROR(VLOOKUP(I27,Hoja2!$B$5:$E$9,4,FALSE),1),0) -> 0 | N27: =+IF(J27=Hoja2!$B$18,H27*(1+IFERROR(VLOOKUP(I27,Hoja2!$B$5:$E$9,2,FALSE),0))^IFERROR(VLOOKUP(I27,Hoja2!$B$5:$E$9,4,FALSE),1),0) -> 0 | O27: 0
K28: =+IF(J28=Hoja2!$B$16,H28*(1+IFERROR(VLOOKUP(I28,Hoja2!$B$5:$E$9,2,FALSE),0))^IFERROR(VLOOKUP(I28,Hoja2!$B$5:$E$9,4,FALSE),1),0) -> 0 | L28: =+IF(J28=Hoja2!$B$17,H28*(1+IFERROR(VLOOKUP(I28,Hoja2!$B$5:$E$9,2,FALSE),0))^IFERROR(VLOOKUP(I28,Hoja2!$B$5:$E$9,4,FALSE),1),0) -> 0 | M28: =+IF(J28=Hoja2!$B$19,H28*(1+IFERROR(VLOOKUP(I28,Hoja2!$B$5:$E$9,2,FALSE),0))^IFERROR(VLOOKUP(I28,Hoja2!$B$5:$E$9,4,FALSE),1),0) -> 0 | N28: =+IF(J28=Hoja2!$B$18,H28*(1+IFERROR(VLOOKUP(I28,Hoja2!$B$5:$E$9,2,FALSE),0))^IFERROR(VLOOKUP(I28,Hoja2!$B$5:$E$9,4,FALSE),1),0) -> 0 | O28: 0
K29: =+IF(J29=Hoja2!$B$16,H29*(1+IFERROR(VLOOKUP(I29,Hoja2!$B$5:$E$9,2,FALSE),0))^IFERROR(VLOOKUP(I29,Hoja2!$B$5:$E$9,4,FALSE),1),0) -> 0 | L29: =+IF(J29=Hoja2!$B$17,H29*(1+IFERROR(VLOOKUP(I29,Hoja2!$B$5:$E$9,2,FALSE),0))^IFERROR(VLOOKUP(I29,Hoja2!$B$5:$E$9,4,FALSE),1),0) -> 0 | M29: =+IF(J29=Hoja2!$B$19,H29*(1+IFERROR(VLOOKUP(I29,Hoja2!$B$5:$E$9,2,FALSE),0))^IFERROR(VLOOKUP(I29,Hoja2!$B$5:$E$9,4,FALSE),1),0) -> 0 | N29: =+IF(J29=Hoja2!$B$18,H29*(1+IFERROR(VLOOKUP(I29,Hoja2!$B$5:$E$9,2,FALSE),0))^IFERROR(VLOOKUP(I29,Hoja2!$B$5:$E$9,4,FALSE),1),0) -> 0 | O29: 0
K30: =+IF(J30=Hoja2!$B$16,H30*(1+IFERROR(VLOOKUP(I30,Hoja2!$B$5:$E$9,2,FALSE),0))^IFERROR(VLOOKUP(I30,Hoja2!$B$5:$E$9,4,FALSE),1),0) -> 0 | L30: =+IF(J30=Hoja2!$B$17,H30*(1+IFERROR(VLOOKUP(I30,Hoja2!$B$5:$E$9,2,FALSE),0))^IFERROR(VLOOKUP(I30,Hoja2!$B$5:$E$9,4,FALSE),1),0) -> 0 | M30: =+IF(J30=Hoja2!$B$19,H30*(1+IFERROR(VLOOKUP(I30,Hoja2!$B$5:$E$9,2,FALSE),0))^IFERROR(VLOOKUP(I30,Hoja2!$B$5:$E$9,4,FALSE),1),0) -> 0 | N30: =+IF(J30=Hoja2!$B$18,H30*(1+IFERROR(VLOOKUP(I30,Hoja2!$B$5:$E$9,2,FALSE),0))^IFERROR(VLOOKUP(I30,Hoja2!$B$5:$E$9,4,FALSE),1),0) -> 0 | O30: 0
K31: =+IF(J31=Hoja2!$B$16,H31*(1+IFERROR(VLOOKUP(I31,Hoja2!$B$5:$E$9,2,FALSE),0))^IFERROR(VLOOKUP(I31,Hoja2!$B$5:$E$9,4,FALSE),1),0) -> 0 | L31: =+IF(J31=Hoja2!$B$17,H31*(1+IFERROR(VLOOKUP(I31,Hoja2!$B$5:$E$9,2,FALSE),0))^IFERROR(VLOOKUP(I31,Hoja2!$B$5:$E$9,4,FALSE),1),0) -> 0 | M31: =+IF(J31=Hoja2!$B$19,H31*(1+IFERROR(VLOOKUP(I31,Hoja2!$B$5:$E$9,2,FALSE),0))^IFERROR(VLOOKUP(I31,Hoja2!$B$5:$E$9,4,FALSE),1),0) -> 0 | N31: =+IF(J31=Hoja2!$B$18,H31*(1+IFERROR(VLOOKUP(I31,Hoja2!$B$5:$E$9,2,FALSE),0))^IFERROR(VLOOKUP(I31,Hoja2!$B$5:$E$9,4,FALSE),1),0) -> 0 | O31: 0
K32: =+IF(J32=Hoja2!$B$16,H32*(1+IFERROR(VLOOKUP(I32,Hoja2!$B$5:$E$9,2,FALSE),0))^IFERROR(VLOOKUP(I32,Hoja2!$B$5:$E$9,4,FALSE),1),0) -> 0 | L32: =+IF(J32=Hoja2!$B$17,H32*(1+IFERROR(VLOOKUP(I32,Hoja2!$B$5:$E$9,2,FALSE),0))^IFERROR(VLOOKUP(I32,Hoja2!$B$5:$E$9,4,FALSE),1),0) -> 0 | M32: =+IF(J32=Hoja2!$B$19,H32*(1+IFERROR(VLOOKUP(I32,Hoja2!$B$5:$E$9,2,FALSE),0))^IFERROR(VLOOKUP(I32,Hoja2!$B$5:$E$9,4,FALSE),1),0) -> 0 | N32: =+IF(J32=Hoja2!$B$18,H32*(1+IFERROR(VLOOKUP(I32,Hoja2!$B$5:$E$9,2,FALSE),0))^IFERROR(VLOOKUP(I32,Hoja2!$B$5:$E$9,4,FALSE),1),0) -> 0 | O32: 0
K33: =+IF(J33=Hoja2!$B$16,H33*(1+IFERROR(VLOOKUP(I33,Hoja2!$B$5:$E$9,2,FALSE),0))^IFERROR(VLOOKUP(I33,Hoja2!$B$5:$E$9,4,FALSE),1),0) -> 0 | L33: =+IF(J33=Hoja2!$B$17,H33*(1+IFERROR(VLOOKUP(I33,Hoja2!$B$5:$E$9,2,FALSE),0))^IFERROR(VLOOKUP(I33,Hoja2!$B$5:$E$9,4,FALSE),1),0) -> 0 | M33: =+IF(J33=Hoja2!$B$19,H33*(1+IFERROR(VLOOKUP(I33,Hoja2!$B$5:$E$9,2,FALSE),0))^IFERROR(VLOOKUP(I33,Hoja2!$B$5:$E$9,4,FALSE),1),0) -> 0 | N33: =+IF(J33=Hoja2!$B$18,H33*(1+IFERROR(VLOOKUP(I33,Hoja2!$B$5:$E$9,2,FALSE),0))^IFERROR(VLOOKUP(I33,Hoja2!$B$5:$E$9,4,FALSE),1),0) -> 0 | O33: 0
K34: =+SUM(K9:K33) -> 0 | L34: 0 | M34: 0 | N34: 0 | O34: =+SUM(O9:O33) -> 0

Sheet Materiales e Insumos
C3: Nombre del proyecto | H3: =+'Ficha Resumen'!D18 -> Exploración de la validez de las formulas utilizadas para calcular porcentaje graso frente a la absorciometro de rayos X en deportistas paralimpicos con aputación de miembros inferiores
B5: MATERIALES E INSUMOS
G6: Cifras en Pesos COP
B7: * Campos obligatorios
B8: Institución* | C8: N° Actividad (Cronograma) | D8: Actividad (Cronograma) | E8: Descripción / Justificación | F8: Justificación* | G8: Unidad de Medida* | H8: Cantidad* | I8: Costo por unidad de medida* | J8: Total costo | K8: Año* | L8: Financiado / Contrapartida | M8: Proveedor | N8: =+'Propiedad Intelectual'!K8 -> Financiado Caja | O8: =+'Propiedad Intelectual'!L8 -> Financiado No Caja | P8: =+'Propiedad Intelectual'!M8 -> Contrapartida Especie | Q8: =+'Propiedad Intelectual'!N8 -> Contrapartida Efectivo | R8: Total
J9: =+H9*I9 -> 0 | N9: =+IF(L9=Hoja2!$B$16,J9*(1+IFERROR(VLOOKUP(K9,Hoja2!$B$5:$E$9,2,FALSE),0))^IFERROR(VLOOKUP(K9,Hoja2!$B$5:$E$9,4,FALSE),1),0) -> 0 | O9: =+IF(L9=Hoja2!$B$17,J9*(1+IFERROR(VLOOKUP(K9,Hoja2!$B$5:$E$9,2,FALSE),0))^IFERROR(VLOOKUP(K9,Hoja2!$B$5:$E$9,4,FALSE),1),0) -> 0 | P9: =+IF(L9=Hoja2!$B$19,J9*(1+IFERROR(VLOOKUP(K9,Hoja2!$B$5:$E$9,2,FALSE),0))^IFERROR(VLOOKUP(K9,Hoja2!$B$5:$E$9,4,FALSE),1),0) -> 0 | Q9: =+IF(L9=Hoja2!$B$18,J9*(1+IFERROR(VLOOKUP(K9,Hoja2!$B$5:$E$9,2,FALSE),0))^IFERROR(VLOOKUP(K9,Hoja2!$B$5:$E$9,4,FALSE),1),0) -> 0 | R9: =+SUM(N9:Q9) -> 0
J10: 0 | N10: =+IF(L10=Hoja2!$B$16,J10*(1+IFERROR(VLOOKUP(K10,Hoja2!$B$5:$E$9,2,FALSE),0))^IFERROR(VLOOKUP(K10,Hoja2!$B$5:$E$9,4,FALSE),1),0) -> 0 | O10: =+IF(L10=Hoja2!$B$17,J10*(1+IFERROR(VLOOKUP(K10,Hoja2!$B$5:$E$9,2,FALSE),0))^IFERROR(VLOOKUP(K10,Hoja2!$B$5:$E$9,4,FALSE),1),0) -> 0 | P10: =+IF(L10=Hoja2!$B$19,J10*(1+IFERROR(VLOOKUP(K10,Hoja2!$B$5:$E$9,2,FALSE),0))^IFERROR(VLOOKUP(K10,Hoja2!$B$5:$E$9,4,FALSE),1),0) -> 0 | Q10: =+IF(L10=Hoja2!$B$18,J10*(1+IFERROR(VLOOKUP(K10,Hoja2!$B$5:$E$9,2,FALSE),0))^IFERROR(VLOOKUP(K10,Hoja2!$B$5:$E$9,4,FALSE),1),0) -> 0 | R10: =+SUM(N10:Q10) -> 0
J11: 0 | N11: =+IF(L11=Hoja2!$B$16,J11*(1+IFERROR(VLOOKUP(K11,Hoja2!$B$5:$E$9,2,FALSE),0))^IFERROR(VLOOKUP(K11,Hoja2!$B$5:$E$9,4,FALSE),1),0) -> 0 | O11: =+IF(L11=Hoja2!$B$17,J11*(1+IFERROR(VLOOKUP(K11,Hoja2!$B$5:$E$9,2,FALSE),0))^IFERROR(VLOOKUP(K11,Hoja2!$B$5:$E$9,4,FALSE),1),0) -> 0 | P11: =+IF(L11=Hoja2!$B$19,J11*(1+IFERROR(VLOOKUP(K11,Hoja2!$B$5:$E$9,2,FALSE),0))^IFERROR(VLOOKUP(K11,Hoja2!$B$5:$E$9,4,FALSE),1),0) -> 0 | Q11: =+IF(L11=Hoja2!$B$18,J11*(1+IFERROR(VLOOKUP(K11,Hoja2!$B$5:$E$9,2,FALSE),0))^IFERROR(VLOOKUP(K11,Hoja2!$B$5:$E$9,4,FALSE),1),0) -> 0 | R11: 0
J12: 0 | N12: =+IF(L12=Hoja2!$B$16,J12*(1+IFERROR(VLOOKUP(K12,Hoja2!$B$5:$E$9,2,FALSE),0))^IFERROR(VLOOKUP(K12,Hoja2!$B$5:$E$9,4,FALSE),1),0) -> 0 | O12: =+IF(L12=Hoja2!$B$17,J12*(1+IFERROR(VLOOKUP(K12,Hoja2!$B$5:$E$9,2,FALSE),0))^IFERROR(VLOOKUP(K12,Hoja2!$B$5:$E$9,4,FALSE),1),0) -> 0 | P12: =+IF(L12=Hoja2!$B$19,J12*(1+IFERROR(VLOOKUP(K12,Hoja2!$B$5:$E$9,2,FALSE),0))^IFERROR(VLOOKUP(K12,Hoja2!$B$5:$E$9,4,FALSE),1),0) -> 0 | Q12: =+IF(L12=Hoja2!$B$18,J12*(1+IFERROR(VLOOKUP(K12,Hoja2!$B$5:$E$9,2,FALSE),0))^IFERROR(VLOOKUP(K12,Hoja2!$B$5:$E$9,4,FALSE),1),0) -> 0 | R12: 0
J13: 0 | N13: =+IF(L13=Hoja2!$B$16,J13*(1+IFERROR(VLOOKUP(K13,Hoja2!$B$5:$E$9,2,FALSE),0))^IFERROR(VLOOKUP(K13,Hoja2!$B$5:$E$9,4,FALSE),1),0) -> 0 | O13: =+IF(L13=Hoja2!$B$17,J13*(1+IFERROR(VLOOKUP(K13,Hoja2!$B$5:$E$9,2,FALSE),0))^IFERROR(VLOOKUP(K13,Hoja2!$B$5:$E$9,4,FALSE),1),0) -> 0 | P13: =+IF(L13=Hoja2!$B$19,J13*(1+IFERROR(VLOOKUP(K13,Hoja2!$B$5:$E$9,2,FALSE),0))^IFERROR(VLOOKUP(K13,Hoja2!$B$5:$E$9,4,FALSE),1),0) -> 0 | Q13: =+IF(L13=Hoja2!$B$18,J13*(1+IFERROR(VLOOKUP(K13,Hoja2!$B$5:$E$9,2,FALSE),0))^IFERROR(VLOOKUP(K13,Hoja2!$B$5:$E$9,4,FALSE),1),0) -> 0 | R13: 0
J14: 0 | N14: =+IF(L14=Hoja2!$B$16,J14*(1+IFERROR(VLOOKUP(K14,Hoja2!$B$5:$E$9,2,FALSE),0))^IFERROR(VLOOKUP(K14,Hoja2!$B$5:$E$9,4,FALSE),1),0) -> 0 | O14: =+IF(L14=Hoja2!$B$17,J14*(1+IFERROR(VLOOKUP(K14,Hoja2!$B$5:$E$9,2,FALSE),0))^IFERROR(VLOOKUP(K14,Hoja2!$B$5:$E$9,4,FALSE),1),0) -> 0 | P14: =+IF(L14=Hoja2!$B$19,J14*(1+IFERROR(VLOOKUP(K14,Hoja2!$B$5:$E$9,2,FALSE),0))^IFERROR(VLOOKUP(K14,Hoja2!$B$5:$E$9,4,FALSE),1),0) -> 0 | Q14: =+IF(L14=Hoja2!$B$18,J14*(1+IFERROR(VLOOKUP(K14,Hoja2!$B$5:$E$9,2,FALSE),0))^IFERROR(VLOOKUP(K14,Hoja2!$B$5:$E$9,4,FALSE),1),0) -> 0 | R14: 0
J15: 0 | N15: =+IF(L15=Hoja2!$B$16,J15*(1+IFERROR(VLOOKUP(K15,Hoja2!$B$5:$E$9,2,FALSE),0))^IFERROR(VLOOKUP(K15,Hoja2!$B$5:$E$9,4,FALSE),1),0) -> 0 | O15: =+IF(L15=Hoja2!$B$17,J15*(1+IFERROR(VLOOKUP(K15,Hoja2!$B$5:$E$9,2,FALSE),0))^IFERROR(VLOOKUP(K15,Hoja2!$B$5:$E$9,4,FALSE),1),0) -> 0 | P15: =+IF(L15=Hoja2!$B$19,J15*(1+IFERROR(VLOOKUP(K15,Hoja2!$B$5:$E$9,2,FALSE),0))^IFERROR(VLOOKUP(K15,Hoja2!$B$5:$E$9,4,FALSE),1),0) -> 0 | Q15: =+IF(L15=Hoja2!$B$18,J15*(1+IFERROR(VLOOKUP(K15,Hoja2!$B$5:$E$9,2,FALSE),0))^IFERROR(VLOOKUP(K15,Hoja2!$B$5:$E$9,4,FALSE),1),0) -> 0 | R15: 0
J16: 0 | N16: =+IF(L16=Hoja2!$B$16,J16*(1+IFERROR(VLOOKUP(K16,Hoja2!$B$5:$E$9,2,FALSE),0))^IFERROR(VLOOKUP(K16,Hoja2!$B$5:$E$9,4,FALSE),1),0) -> 0 | O16: =+IF(L16=Hoja2!$B$17,J16*(1+IFERROR(VLOOKUP(K16,Hoja2!$B$5:$E$9,2,FALSE),0))^IFERROR(VLOOKUP(K16,Hoja2!$B$5:$E$9,4,FALSE),1),0) -> 0 | P16: =+IF(L16=Hoja2!$B$19,J16*(1+IFERROR(VLOOKUP(K16,Hoja2!$B$5:$E$9,2,FALSE),0))^IFERROR(VLOOKUP(K16,Hoja2!$B$5:$E$9,4,FALSE),1),0) -> 0 | Q16: =+IF(L16=Hoja2!$B$18,J16*(1+IFERROR(VLOOKUP(K16,Hoja2!$B$5:$E$9,2,FALSE),0))^IFERROR(VLOOKUP(K16,Hoja2!$B$5:$E$9,4,FALSE),1),0) -> 0 | R16: 0
J17: 0 | N17: =+IF(L17=Hoja2!$B$16,J17*(1+IFERROR(VLOOKUP(K17,Hoja2!$B$5:$E$9,2,FALSE),0))^IFERROR(VLOOKUP(K17,Hoja2!$B$5:$E$9,4,FALSE),1),0) -> 0 | O17: =+IF(L17=Hoja2!$B$17,J17*(1+IFERROR(VLOOKUP(K17,Hoja2!$B$5:$E$9,2,FALSE),0))^IFERROR(VLOOKUP(K17,Hoja2!$B$5:$E$9,4,FALSE),1),0) -> 0 | P17: =+IF(L17=Hoja2!$B$19,J17*(1+IFERROR(VLOOKUP(K17,Hoja2!$B$5:$E$9,2,FALSE),0))^IFERROR(VLOOKUP(K17,Hoja2!$B$5:$E$9,4,FALSE),1),0) -> 0 | Q17: =+IF(L17=Hoja2!$B$18,J17*(1+IFERROR(VLOOKUP(K17,Hoja2!$B$5:$E$9,2,FALSE),0))^IFERROR(VLOOKUP(K17,Hoja2!$B$5:$E$9,4,FALSE),1),0) -> 0 | R17: 0
J18: 0 | N18: =+IF(L18=Hoja2!$B$16,J18*(1+IFERROR(VLOOKUP(K18,Hoja2!$B$5:$E$9,2,FALSE),0))^IFERROR(VLOOKUP(K18,Hoja2!$B$5:$E$9,4,FALSE),1),0) -> 0 | O18: =+IF(L18=Hoja2!$B$17,J18*(1+IFERROR(VLOOKUP(K18,Hoja2!$B$5:$E$9,2,FALSE),0))^IFERROR(VLOOKUP(K18,Hoja2!$B$5:$E$9,4,FALSE),1),0) -> 0 | P18: =+IF(L18=Hoja2!$B$19,J18*(1+IFERROR(VLOOKUP(K18,Hoja2!$B$5:$E$9,2,FALSE),0))^IFERROR(VLOOKUP(K18,Hoja2!$B$5:$E$9,4,FALSE),1),0) -> 0 | Q18: =+IF(L18=Hoja2!$B$18,J18*(1+IFERROR(VLOOKUP(K18,Hoja2!$B$5:$E$9,2,FALSE),0))^IFERROR(VLOOKUP(K18,Hoja2!$B$5:$E$9,4,FALSE),1),0) -> 0 | R18: 0
J19: 0 | N19: =+IF(L19=Hoja2!$B$16,J19*(1+IFERROR(VLOOKUP(K19,Hoja2!$B$5:$E$9,2,FALSE),0))^IFERROR(VLOOKUP(K19,Hoja2!$B$5:$E$9,4,FALSE),1),0) -> 0 | O19: =+IF(L19=Hoja2!$B$17,J19*(1+IFERROR(VLOOKUP(K19,Hoja2!$B$5:$E$9,2,FALSE),0))^IFERROR(VLOOKUP(K19,Hoja2!$B$5:$E$9,4,FALSE),1),0) -> 0 | P19: =+IF(L19=Hoja2!$B$19,J19*(1+IFERROR(VLOOKUP(K19,Hoja2!$B$5:$E$9,2,FALSE),0))^IFERROR(VLOOKUP(K19,Hoja2!$B$5:$E$9,4,FALSE),1),0) -> 0 | Q19: =+IF(L19=Hoja2!$B$18,J19*(1+IFERROR(VLOOKUP(K19,Hoja2!$B$5:$E$9,2,FALSE),0))^IFERROR(VLOOKUP(K19,Hoja2!$B$5:$E$9,4,FALSE),1),0) -> 0 | R19: 0
J20: 0 | N20: =+IF(L20=Hoja2!$B$16,J20*(1+IFERROR(VLOOKUP(K20,Hoja2!$B$5:$E$9,2,FALSE),0))^IFERROR(VLOOKUP(K20,Hoja2!$B$5:$E$9,4,FALSE),1),0) -> 0 | O20: =+IF(L20=Hoja2!$B$17,J20*(1+IFERROR(VLOOKUP(K20,Hoja2!$B$5:$E$9,2,FALSE),0))^IFERROR(VLOOKUP(K20,Hoja2!$B$5:$E$9,4,FALSE),1),0) -> 0 | P20: =+IF(L20=Hoja2!$B$19,J20*(1+IFERROR(VLOOKUP(K20,Hoja2!$B$5:$E$9,2,FALSE),0))^IFERROR(VLOOKUP(K20,Hoja2!$B$5:$E$9,4,FALSE),1),0) -> 0 | Q20: =+IF(L20=Hoja2!$B$18,J20*(1+IFERROR(VLOOKUP(K20,Hoja2!$B$5:$E$9,2,FALSE),0))^IFERROR(VLOOKUP(K20,Hoja2!$B$5:$E$9,4,FALSE),1),0) -> 0 | R20: 0
J21: 0 | N21: =+IF(L21=Hoja2!$B$16,J21*(1+IFERROR(VLOOKUP(K21,Hoja2!$B$5:$E$9,2,FALSE),0))^IFERROR(VLOOKUP(K21,Hoja2!$B$5:$E$9,4,FALSE),1),0) -> 0 | O21: =+IF(L21=Hoja2!$B$17,J21*(1+IFERROR(VLOOKUP(K21,Hoja2!$B$5:$E$9,2,FALSE),0))^IFERROR(VLOOKUP(K21,Hoja2!$B$5:$E$9,4,FALSE),1),0) -> 0 | P21: =+IF(L21=Hoja2!$B$19,J21*(1+IFERROR(VLOOKUP(K21,Hoja2!$B$5:$E$9,2,FALSE),0))^IFERROR(VLOOKUP(K21,Hoja2!$B$5:$E$9,4,FALSE),1),0) -> 0 | Q21: =+IF(L21=Hoja2!$B$18,J21*(1+IFERROR(VLOOKUP(K21,Hoja2!$B$5:$E$9,2,FALSE),0))^IFERROR(VLOOKUP(K21,Hoja2!$B$5:$E$9,4,FALSE),1),0) -> 0 | R21: 0
J22: 0 | N22: =+IF(L22=Hoja2!$B$16,J22*(1+IFERROR(VLOOKUP(K22,Hoja2!$B$5:$E$9,2,FALSE),0))^IFERROR(VLOOKUP(K22,Hoja2!$B$5:$E$9,4,FALSE),1),0) -> 0 | O22: =+IF(L22=Hoja2!$B$17,J22*(1+IFERROR(VLOOKUP(K22,Hoja2!$B$5:$E$9,2,FALSE),0))^IFERROR(VLOOKUP(K22,Hoja2!$B$5:$E$9,4,FALSE),1),0) -> 0 | P22: =+IF(L22=Hoja2!$B$19,J22*(1+IFERROR(VLOOKUP(K22,Hoja2!$B$5:$E$9,2,FALSE),0))^IFERROR(VLOOKUP(K22,Hoja2!$B$5:$E$9,4,FALSE),1),0) -> 0 | Q22: =+IF(L22=Hoja2!$B$18,J22*(1+IFERROR(VLOOKUP(K22,Hoja2!$B$5:$E$9,2,FALSE),0))^IFERROR(VLOOKUP(K22,Hoja2!$B$5:$E$9,4,FALSE),1),0) -> 0 | R22: 0
J23: 0 | N23: =+IF(L23=Hoja2!$B$16,J23*(1+IFERROR(VLOOKUP(K23,Hoja2!$B$5:$E$9,2,FALSE),0))^IFERROR(VLOOKUP(K23,Hoja2!$B$5:$E$9,4,FALSE),1),0) -> 0 | O23: =+IF(L23=Hoja2!$B$17,J23*(1+IFERROR(VLOOKUP(K23,Hoja2!$B$5:$E$9,2,FALSE),0))^IFERROR(VLOOKUP(K23,Hoja2!$B$5:$E$9,4,FALSE),1),0) -> 0 | P23: =+IF(L23=Hoja2!$B$19,J23*(1+IFERROR(VLOOKUP(K23,Hoja2!$B$5:$E$9,2,FALSE),0))^IFERROR(VLOOKUP(K23,Hoja2!$B$5:$E$9,4,FALSE),1),0) -> 0 | Q23: =+IF(L23=Hoja2!$B$18,J23*(1+IFERROR(VLOOKUP(K23,Hoja2!$B$5:$E$9,2,FALSE),0))^IFERROR(VLOOKUP(K23,Hoja2!$B$5:$E$9,4,FALSE),1),0) -> 0 | R23: 0
J24: 0 | N24: =+IF(L24=Hoja2!$B$16,J24*(1+IFERROR(VLOOKUP(K24,Hoja2!$B$5:$E$9,2,FALSE),0))^IFERROR(VLOOKUP(K24,Hoja2!$B$5:$E$9,4,FALSE),1),0) -> 0 | O24: =+IF(L24=Hoja2!$B$17,J24*(1+IFERROR(VLOOKUP(K24,Hoja2!$B$5:$E$9,2,FALSE),0))^IFERROR(VLOOKUP(K24,Hoja2!$B$5:$E$9,4,FALSE),1),0) -> 0 | P24: =+IF(L24=Hoja2!$B$19,J24*(1+IFERROR(VLOOKUP(K24,Hoja2!$B$5:$E$9,2,FALSE),0))^IFERROR(VLOOKUP(K24,Hoja2!$B$5:$E$9,4,FALSE),1),0) -> 0 | Q24: =+IF(L24=Hoja2!$B$18,J24*(1+IFERROR(VLOOKUP(K24,Hoja2!$B$5:$E$9,2,FALSE),0))^IFERROR(VLOOKUP(K24,Hoja2!$B$5:$E$9,4,FALSE),1),0) -> 0 | R24: 0
J25: 0 | N25: =+IF(L25=Hoja2!$B$16,J25*(1+IFERROR(VLOOKUP(K25,Hoja2!$B$5:$E$9,2,FALSE),0))^IFERROR(VLOOKUP(K25,Hoja2!$B$5:$E$9,4,FALSE),1),0) -> 0 | O25: =+IF(L25=Hoja2!$B$17,J25*(1+IFERROR(VLOOKUP(K25,Hoja2!$B$5:$E$9,2,FALSE),0))^IFERROR(VLOOKUP(K25,Hoja2!$B$5:$E$9,4,FALSE),1),0) -> 0 | P25: =+IF(L25=Hoja2!$B$19,J25*(1+IFERROR(VLOOKUP(K25,Hoja2!$B$5:$E$9,2,FALSE),0))^IFERROR(VLOOKUP(K25,Hoja2!$B$5:$E$9,4,FALSE),1),0) -> 0 | Q25: =+IF(L25=Hoja2!$B$18,J25*(1+IFERROR(VLOOKUP(K25,Hoja2!$B$5:$E$9,2,FALSE),0))^IFERROR(VLOOKUP(K25,Hoja2!$B$5:$E$9,4,FALSE),1),0) -> 0 | R25: 0
J26: 0 | N26: =+IF(L26=Hoja2!$B$16,J26*(1+IFERROR(VLOOKUP(K26,Hoja2!$B$5:$E$9,2,FALSE),0))^IFERROR(VLOOKUP(K26,Hoja2!$B$5:$E$9,4,FALSE),1),0) -> 0 | O26: =+IF(L26=Hoja2!$B$17,J26*(1+IFERROR(VLOOKUP(K26,Hoja2!$B$5:$E$9,2,FALSE),0))^IFERROR(VLOOKUP(K26,Hoja2!$B$5:$E$9,4,FALSE),1),0) -> 0 | P26: =+IF(L26=Hoja2!$B$19,J26*(1+IFERROR(VLOOKUP(K26,Hoja2!$B$5:$E$9,2,FALSE),0))^IFERROR(VLOOKUP(K26,Hoja2!$B$5:$E$9,4,FALSE),1),0) -> 0 | Q26: =+IF(L26=Hoja2!$B$18,J26*(1+IFERROR(VLOOKUP(K26,Hoja2!$B$5:$E$9,2,FALSE),0))^IFERROR(VLOOKUP(K26,Hoja2!$B$5:$E$9,4,FALSE),1),0) -> 0 | R26: 0
J27: 0 | N27: =+IF(L27=Hoja2!$B$16,J27*(1+IFERROR(VLOOKUP(K27,Hoja2!$B$5:$E$9,2,FALSE),0))^IFERROR(VLOOKUP(K27,Hoja2!$B$5:$E$9,4,FALSE),1),0) -> 0 | O27: =+IF(L27=Hoja2!$B$17,J27*(1+IFERROR(VLOOKUP(K27,Hoja2!$B$5:$E$9,2,FALSE),0))^IFERROR(VLOOKUP(K27,Hoja2!$B$5:$E$9,4,FALSE),1),0) -> 0 | P27: =+IF(L27=Hoja2!$B$19,J27*(1+IFERROR(VLOOKUP(K27,Hoja2!$B$5:$E$9,2,FALSE),0))^IFERROR(VLOOKUP(K27,Hoja2!$B$5:$E$9,4,FALSE),1),0) -> 0 | Q27: =+IF(L27=Hoja2!$B$18,J27*(1+IFERROR(VLOOKUP(K27,Hoja2!$B$5:$E$9,2,FALSE),0))^IFERROR(VLOOKUP(K27,Hoja2!$B$5:$E$9,4,FALSE),1),0) -> 0 | R27: 0
J28: 0 | N28: =+IF(L28=Hoja2!$B$16,J28*(1+IFERROR(VLOOKUP(K28,Hoja2!$B$5:$E$9,2,FALSE),0))^IFERROR(VLOOKUP(K28,Hoja2!$B$5:$E$9,4,FALSE),1),0) -> 0 | O28: =+IF(L28=Hoja2!$B$17,J28*(1+IFERROR(VLOOKUP(K28,Hoja2!$B$5:$E$9,2,FALSE),0))^IFERROR(VLOOKUP(K28,Hoja2!$B$5:$E$9,4,FALSE),1),0) -> 0 | P28: =+IF(L28=Hoja2!$B$19,J28*(1+IFERROR(VLOOKUP(K28,Hoja2!$B$5:$E$9,2,FALSE),0))^IFERROR(VLOOKUP(K28,Hoja2!$B$5:$E$9,4,FALSE),1),0) -> 0 | Q28: =+IF(L28=Hoja2!$B$18,J28*(1+IFERROR(VLOOKUP(K28,Hoja2!$B$5:$E$9,2,FALSE),0))^IFERROR(VLOOKUP(K28,Hoja2!$B$5:$E$9,4,FALSE),1),0) -> 0 | R28: 0
J29: 0 | N29: =+IF(L29=Hoja2!$B$16,J29*(1+IFERROR(VLOOKUP(K29,Hoja2!$B$5:$E$9,2,FALSE),0))^IFERROR(VLOOKUP(K29,Hoja2!$B$5:$E$9,4,FALSE),1),0) -> 0 | O29: =+IF(L29=Hoja2!$B$17,J29*(1+IFERROR(VLOOKUP(K29,Hoja2!$B$5:$E$9,2,FALSE),0))^IFERROR(VLOOKUP(K29,Hoja2!$B$5:$E$9,4,FALSE),1),0) -> 0 | P29: =+IF(L29=Hoja2!$B$19,J29*(1+IFERROR(VLOOKUP(K29,Hoja2!$B$5:$E$9,2,FALSE),0))^IFERROR(VLOOKUP(K29,Hoja2!$B$5:$E$9,4,FALSE),1),0) -> 0 | Q29: =+IF(L29=Hoja2!$B$18,J29*(1+IFERROR(VLOOKUP(K29,Hoja2!$B$5:$E$9,2,FALSE),0))^IFERROR(VLOOKUP(K29,Hoja2!$B$5:$E$9,4,FALSE),1),0) -> 0 | R29: 0
J30: 0 | N30: =+IF(L30=Hoja2!$B$16,J30*(1+IFERROR(VLOOKUP(K30,Hoja2!$B$5:$E$9,2,FALSE),0))^IFERROR(VLOOKUP(K30,Hoja2!$B$5:$E$9,4,FALSE),1),0) -> 0 | O30: =+IF(L30=Hoja2!$B$17,J30*(1+IFERROR(VLOOKUP(K30,Hoja2!$B$5:$E$9,2,FALSE),0))^IFERROR(VLOOKUP(K30,Hoja2!$B$5:$E$9,4,FALSE),1),0) -> 0 | P30: =+IF(L30=Hoja2!$B$19,J30*(1+IFERROR(VLOOKUP(K30,Hoja2!$B$5:$E$9,2,FALSE),0))^IFERROR(VLOOKUP(K30,Hoja2!$B$5:$E$9,4,FALSE),1),0) -> 0 | Q30: =+IF(L30=Hoja2!$B$18,J30*(1+IFERROR(VLOOKUP(K30,Hoja2!$B$5:$E$9,2,FALSE),0))^IFERROR(VLOOKUP(K30,Hoja2!$B$5:$E$9,4,FALSE),1),0) -> 0 | R30: 0
J31: 0 | N31: =+IF(L31=Hoja2!$B$16,J31*(1+IFERROR(VLOOKUP(K31,Hoja2!$B$5:$E$9,2,FALSE),0))^IFERROR(VLOOKUP(K31,Hoja2!$B$5:$E$9,4,FALSE),1),0) -> 0 | O31: =+IF(L31=Hoja2!$B$17,J31*(1+IFERROR(VLOOKUP(K31,Hoja2!$B$5:$E$9,2,FALSE),0))^IFERROR(VLOOKUP(K31,Hoja2!$B$5:$E$9,4,FALSE),1),0) -> 0 | P31: =+IF(L31=Hoja2!$B$19,J31*(1+IFERROR(VLOOKUP(K31,Hoja2!$B$5:$E$9,2,FALSE),0))^IFERROR(VLOOKUP(K31,Hoja2!$B$5:$E$9,4,FALSE),1),0) -> 0 | Q31: =+IF(L31=Hoja2!$B$18,J31*(1+IFERROR(VLOOKUP(K31,Hoja2!$B$5:$E$9,2,FALSE),0))^IFERROR(VLOOKUP(K31,Hoja2!$B$5:$E$9,4,FALSE),1),0) -> 0 | R31: 0
J32: 0 | N32: =+IF(L32=Hoja2!$B$16,J32*(1+IFERROR(VLOOKUP(K32,Hoja2!$B$5:$E$9,2,FALSE),0))^IFERROR(VLOOKUP(K32,Hoja2!$B$5:$E$9,4,FALSE),1),0) -> 0 | O32: =+IF(L32=Hoja2!$B$17,J32*(1+IFERROR(VLOOKUP(K32,Hoja2!$B$5:$E$9,2,FALSE),0))^IFERROR(VLOOKUP(K32,Hoja2!$B$5:$E$9,4,FALSE),1),0) -> 0 | P32: =+IF(L32=Hoja2!$B$19,J32*(1+IFERROR(VLOOKUP(K32,Hoja2!$B$5:$E$9,2,FALSE),0))^IFERROR(VLOOKUP(K32,Hoja2!$B$5:$E$9,4,FALSE),1),0) -> 0 | Q32: =+IF(L32=Hoja2!$B$18,J32*(1+IFERROR(VLOOKUP(K32,Hoja2!$B$5:$E$9,2,FALSE),0))^IFERROR(VLOOKUP(K32,Hoja2!$B$5:$E$9,4,FALSE),1),0) -> 0 | R32: 0
J33: 0 | N33: =+IF(L33=Hoja2!$B$16,J33*(1+IFERROR(VLOOKUP(K33,Hoja2!$B$5:$E$9,2,FALSE),0))^IFERROR(VLOOKUP(K33,Hoja2!$B$5:$E$9,4,FALSE),1),0) -> 0 | O33: =+IF(L33=Hoja2!$B$17,J33*(1+IFERROR(VLOOKUP(K33,Hoja2!$B$5:$E$9,2,FALSE),0))^IFERROR(VLOOKUP(K33,Hoja2!$B$5:$E$9,4,FALSE),1),0) -> 0 | P33: =+IF(L33=Hoja2!$B$19,J33*(1+IFERROR(VLOOKUP(K33,Hoja2!$B$5:$E$9,2,FALSE),0))^IFERROR(VLOOKUP(K33,Hoja2!$B$5:$E$9,4,FALSE),1),0) -> 0 | Q33: =+IF(L33=Hoja2!$B$18,J33*(1+IFERROR(VLOOKUP(K33,Hoja2!$B$5:$E$9,2,FALSE),0))^IFERROR(VLOOKUP(K33,Hoja2!$B$5:$E$9,4,FALSE),1),0) -> 0 | R33: 0
J34: 0 | N34: =+IF(L34=Hoja2!$B$16,J34*(1+IFERROR(VLOOKUP(K34,Hoja2!$B$5:$E$9,2,FALSE),0))^IFERROR(VLOOKUP(K34,Hoja2!$B$5:$E$9,4,FALSE),1),0) -> 0 | O34: =+IF(L34=Hoja2!$B$17,J34*(1+IFERROR(VLOOKUP(K34,Hoja2!$B$5:$E$9,2,FALSE),0))^IFERROR(VLOOKUP(K34,Hoja2!$B$5:$E$9,4,FALSE),1),0) -> 0 | P34: =+IF(L34=Hoja2!$B$19,J34*(1+IFERROR(VLOOKUP(K34,Hoja2!$B$5:$E$9,2,FALSE),0))^IFERROR(VLOOKUP(K34,Hoja2!$B$5:$E$9,4,FALSE),1),0) -> 0 | Q34: =+IF(L34=Hoja2!$B$18,J34*(1+IFERROR(VLOOKUP(K34,Hoja2!$B$5:$E$9,2,FALSE),0))^IFERROR(VLOOKUP(K34,Hoja2!$B$5:$E$9,4,FALSE),1),0) -> 0 | R34: 0
J35: 0 | N35: =+IF(L35=Hoja2!$B$16,J35*(1+IFERROR(VLOOKUP(K35,Hoja2!$B$5:$E$9,2,FALSE),0))^IFERROR(VLOOKUP(K35,Hoja2!$B$5:$E$9,4,FALSE),1),0) -> 0 | O35: =+IF(L35=Hoja2!$B$17,J35*(1+IFERROR(VLOOKUP(K35,Hoja2!$B$5:$E$9,2,FALSE),0))^IFERROR(VLOOKUP(K35,Hoja2!$B$5:$E$9,4,FALSE),1),0) -> 0 | P35: =+IF(L35=Hoja2!$B$19,J35*(1+IFERROR(VLOOKUP(K35,Hoja2!$B$5:$E$9,2,FALSE),0))^IFERROR(VLOOKUP(K35,Hoja2!$B$5:$E$9,4,FALSE),1),0) -> 0 | Q35: =+IF(L35=Hoja2!$B$18,J35*(1+IFERROR(VLOOKUP(K35,Hoja2!$B$5:$E$9,2,FALSE),0))^IFERROR(VLOOKUP(K35,Hoja2!$B$5:$E$9,4,FALSE),1),0) -> 0 | R35: 0
J36: 0 | N36: =+IF(L36=Hoja2!$B$16,J36*(1+IFERROR(VLOOKUP(K36,Hoja2!$B$5:$E$9,2,FALSE),0))^IFERROR(VLOOKUP(K36,Hoja2!$B$5:$E$9,4,FALSE),1),0) -> 0 | O36: =+IF(L36=Hoja2!$B$17,J36*(1+IFERROR(VLOOKUP(K36,Hoja2!$B$5:$E$9,2,FALSE),0))^IFERROR(VLOOKUP(K36,Hoja2!$B$5:$E$9,4,FALSE),1),0) -> 0 | P36: =+IF(L36=Hoja2!$B$19,J36*(1+IFERROR(VLOOKUP(K36,Hoja2!$B$5:$E$9,2,FALSE),0))^IFERROR(VLOOKUP(K36,Hoja2!$B$5:$E$9,4,FALSE),1),0) -> 0 | Q36: =+IF(L36=Hoja2!$B$18,J36*(1+IFERROR(VLOOKUP(K36,Hoja2!$B$5:$E$9,2,FALSE),0))^IFERROR(VLOOKUP(K36,Hoja2!$B$5:$E$9,4,FALSE),1),0) -> 0 | R36: 0
J37: 0 | N37: =+IF(L37=Hoja2!$B$16,J37*(1+IFERROR(VLOOKUP(K37,Hoja2!$B$5:$E$9,2,FALSE),0))^IFERROR(VLOOKUP(K37,Hoja2!$B$5:$E$9,4,FALSE),1),0) -> 0 | O37: =+IF(L37=Hoja2!$B$17,J37*(1+IFERROR(VLOOKUP(K37,Hoja2!$B$5:$E$9,2,FALSE),0))^IFERROR(VLOOKUP(K37,Hoja2!$B$5:$E$9,4,FALSE),1),0) -> 0 | P37: =+IF(L37=Hoja2!$B$19,J37*(1+IFERROR(VLOOKUP(K37,Hoja2!$B$5:$E$9,2,FALSE),0))^IFERROR(VLOOKUP(K37,Hoja2!$B$5:$E$9,4,FALSE),1),0) -> 0 | Q37: =+IF(L37=Hoja2!$B$18,J37*(1+IFERROR(VLOOKUP(K37,Hoja2!$B$5:$E$9,2,FALSE),0))^IFERROR(VLOOKUP(K37,Hoja2!$B$5:$E$9,4,FALSE),1),0) -> 0 | R37: 0
J38: 0 | N38: =+IF(L38=Hoja2!$B$16,J38*(1+IFERROR(VLOOKUP(K38,Hoja2!$B$5:$E$9,2,FALSE),0))^IFERROR(VLOOKUP(K38,Hoja2!$B$5:$E$9,4,FALSE),1),0) -> 0 | O38: =+IF(L38=Hoja2!$B$17,J38*(1+IFERROR(VLOOKUP(K38,Hoja2!$B$5:$E$9,2,FALSE),0))^IFERROR(VLOOKUP(K38,Hoja2!$B$5:$E$9,4,FALSE),1),0) -> 0 | P38: =+IF(L38=Hoja2!$B$19,J38*(1+IFERROR(VLOOKUP(K38,Hoja2!$B$5:$E$9,2,FALSE),0))^IFERROR(VLOOKUP(K38,Hoja2!$B$5:$E$9,4,FALSE),1),0) -> 0 | Q38: =+IF(L38=Hoja2!$B$18,J38*(1+IFERROR(VLOOKUP(K38,Hoja2!$B$5:$E$9,2,FALSE),0))^IFERROR(VLOOKUP(K38,Hoja2!$B$5:$E$9,4,FALSE),1),0) -> 0 | R38: 0
J39: 0 | N39: =+IF(L39=Hoja2!$B$16,J39*(1+IFERROR(VLOOKUP(K39,Hoja2!$B$5:$E$9,2,FALSE),0))^IFERROR(VLOOKUP(K39,Hoja2!$B$5:$E$9,4,FALSE),1),0) -> 0 | O39: =+IF(L39=Hoja2!$B$17,J39*(1+IFERROR(VLOOKUP(K39,Hoja2!$B$5:$E$9,2,FALSE),0))^IFERROR(VLOOKUP(K39,Hoja2!$B$5:$E$9,4,FALSE),1),0) -> 0 | P39: =+IF(L39=Hoja2!$B$19,J39*(1+IFERROR(VLOOKUP(K39,Hoja2!$B$5:$E$9,2,FALSE),0))^IFERROR(VLOOKUP(K39,Hoja2!$B$5:$E$9,4,FALSE),1),0) -> 0 | Q39: =+IF(L39=Hoja2!$B$18,J39*(1+IFERROR(VLOOKUP(K39,Hoja2!$B$5:$E$9,2,FALSE),0))^IFERROR(VLOOKUP(K39,Hoja2!$B$5:$E$9,4,FALSE),1),0) -> 0 | R39: 0
J40: 0 | N40: =+IF(L40=Hoja2!$B$16,J40*(1+IFERROR(VLOOKUP(K40,Hoja2!$B$5:$E$9,2,FALSE),0))^IFERROR(VLOOKUP(K40,Hoja2!$B$5:$E$9,4,FALSE),1),0) -> 0 | O40: =+IF(L40=Hoja2!$B$17,J40*(1+IFERROR(VLOOKUP(K40,Hoja2!$B$5:$E$9,2,FALSE),0))^IFERROR(VLOOKUP(K40,Hoja2!$B$5:$E$9,4,FALSE),1),0) -> 0 | P40: =+IF(L40=Hoja2!$B$19,J40*(1+IFERROR(VLOOKUP(K40,Hoja2!$B$5:$E$9,2,FALSE),0))^IFERROR(VLOOKUP(K40,Hoja2!$B$5:$E$9,4,FALSE),1),0) -> 0 | Q40: =+IF(L40=Hoja2!$B$18,J40*(1+IFERROR(VLOOKUP(K40,Hoja2!$B$5:$E$9,2,FALSE),0))^IFERROR(VLOOKUP(K40,Hoja2!$B$5:$E$9,4,FALSE),1),0) -> 0 | R40: 0
J41: 0 | N41: =+IF(L41=Hoja2!$B$16,J41*(1+IFERROR(VLOOKUP(K41,Hoja2!$B$5:$E$9,2,FALSE),0))^IFERROR(VLOOKUP(K41,Hoja2!$B$5:$E$9,4,FALSE),1),0) -> 0 | O41: =+IF(L41=Hoja2!$B$17,J41*(1+IFERROR(VLOOKUP(K41,Hoja2!$B$5:$E$9,2,FALSE),0))^IFERROR(VLOOKUP(K41,Hoja2!$B$5:$E$9,4,FALSE),1),0) -> 0 | P41: =+IF(L41=Hoja2!$B$19,J41*(1+IFERROR(VLOOKUP(K41,Hoja2!$B$5:$E$9,2,FALSE),0))^IFERROR(VLOOKUP(K41,Hoja2!$B$5:$E$9,4,FALSE),1),0) -> 0 | Q41: =+IF(L41=Hoja2!$B$18,J41*(1+IFERROR(VLOOKUP(K41,Hoja2!$B$5:$E$9,2,FALSE),0))^IFERROR(VLOOKUP(K41,Hoja2!$B$5:$E$9,4,FALSE),1),0) -> 0 | R41: 0
J42: 0 | N42: =+IF(L42=Hoja2!$B$16,J42*(1+IFERROR(VLOOKUP(K42,Hoja2!$B$5:$E$9,2,FALSE),0))^IFERROR(VLOOKUP(K42,Hoja2!$B$5:$E$9,4,FALSE),1),0) -> 0 | O42: =+IF(L42=Hoja2!$B$17,J42*(1+IFERROR(VLOOKUP(K42,Hoja2!$B$5:$E$9,2,FALSE),0))^IFERROR(VLOOKUP(K42,Hoja2!$B$5:$E$9,4,FALSE),1),0) -> 0 | P42: =+IF(L42=Hoja2!$B$19,J42*(1+IFERROR(VLOOKUP(K42,Hoja2!$B$5:$E$9,2,FALSE),0))^IFERROR(VLOOKUP(K42,Hoja2!$B$5:$E$9,4,FALSE),1),0) -> 0 | Q42: =+IF(L42=Hoja2!$B$18,J42*(1+IFERROR(VLOOKUP(K42,Hoja2!$B$5:$E$9,2,FALSE),0))^IFERROR(VLOOKUP(K42,Hoja2!$B$5:$E$9,4,FALSE),1),0) -> 0 | R42: 0
